Workbook

Sheet GC
A1: ChromSimGCxGC_4.0 | D1: Author: Bo Svensmark, svensmark@plen.ku.dk, Analytical Chemistry, PLEN, Univ. of Copenhagen, 2017-2026 | P1: 3D and 2D Plots of VBA results: | Y1: Most cells are proteted. To unprotect go to Review and click Unprotect sheet | AF1: Gradient profile plot | AH1: 2D Time | AI1: 1D Time | AJ1: 1D LSS | AK1: 1D VBA | AL1: 2D LSS | AM1: Ref | AO1: 1 | AP1: 2 | AQ1: 3 | AR1: 4 | AS1: 5 | AT1: 6 | AU1: 7 | AV1: 8 | AW1: 9 | AX1: 10 | AY1: 11 | AZ1: 12 | BA1: 13 | BB1: 14 | BC1: 15 | BD1: 16 | BE1: 17 | BF1: 18 | BG1: 19 | BH1: 20 | BI1: Data from macros | BK1: 2D Plot X | BL1: 2D time, s | BM1: A # Ch 2 | BN1: A # Ch 5 | BO1: A # Ch 12 | BP1: 2D sum Ch 2 | BV1: Column # | BW1: 1 | BX1: 2 | BY1: 3 | BZ1: 4 | CA1: 5 | CB1: 6 | CC1: 7 | CD1: 8 | CE1: 9 | CF1: 10 | CG1: 11 | CH1: 12 | CI1: 13 | CJ1: 14 | CK1: 15 | CL1: 16 | CM1: 17 | CN1: 18 | CO1: 19 | CP1: 20 | CQ1: 21 | CR1: 22 | CS1: 23 | CT1: 24 | CU1: 25 | CV1: 26 | CW1: 27 | CX1: 28 | CY1: 29 | CZ1: 30 | DA1: 31 | DB1: 32 | DC1: 33 | DD1: 34 | DE1: 35 | DF1: 36 | DG1: 37 | DH1: 38 | DI1: 39 | DJ1: 40 | DK1: 41 | DL1: 42 | DM1: 43 | DN1: 44 | DO1: 45 | DP1: 46 | DQ1: 47 | DR1: 48 | DS1: 49 | DT1: 50 | DU1: 51 | DV1: 52 | DW1: 53 | DX1: 54 | DY1: 55 | DZ1: 56 | EA1: 57 | EB1: 58 | EC1: 59 | ED1: 60 | EE1: 61 | EF1: 62 | EG1: 63 | EH1: 64 | EI1: 65 | EJ1: 66 | EK1: 67 | EL1: 68 | EM1: 69 | EN1: 70 | EO1: 71 | EP1: 72 | EQ1: 73 | ER1: 74 | ES1: 75 | ET1: 76 | EU1: 77 | EV1: 78 | EW1: 79 | EX1: 80 | EY1: 81 | EZ1: 82 | FA1: 83 | FB1: 84 | FC1: 85 | FD1: 86 | FE1: 87 | FF1: 88 | FG1: 89 | FH1: 90 | FI1: 91 | FJ1: 92 | FK1: 93 | FL1: 94 | FM1: 95 | FN1: 96 | FO1: 97 | FP1: 98 | FQ1: 99 | FR1: 100 | FS1: 101 | FT1: 102 | FU1: 103 | FV1: 104 | FW1: 105 | FX1: 106 | FY1: 107 | FZ1: 108 | GA1: 109 | GB1: 110 | GC1: 111 | GD1: 112 | GE1: 113 | GF1: 114 | GG1: 115 | GH1: 116 | GI1: 117 | GJ1: 118 | GK1: 119 | GL1: 120 | GM1: 121 | GN1: 122 | GO1: 123 | GP1: 124 | GQ1: 125 | GR1: 126 | GV1: Contour plot
D2: plen.ku.dk | AE2: Time | AF2: LSS | AG2: Complex | AH2: 0 | AI2: 0 | AJ2: =IF($N$29=0,-1,$N$29*($B$32*NORMDIST($AI2,$B$29,$B$33*$B$29,FALSE)+IF(C$62<>"",B$6*NORMDIST($AI2,C$62,D$62/4,FALSE),0)+IF(C$63<>"",B$7*NORMDIST($AI2,C$63,D$63/4,FALSE),0)+IF(C$64<>"",B$8*NORMDIST($AI2,C$64,D$64/4,FALSE),0)+IF(C$65<>"",B$9*NORMDIST($AI2,C$65,D$65/4,FALSE),0)+IF(C$66<>"",B$10*NORMDIST($AI2,C$66,D$66/4,FALSE),0)+IF(C$67<>"",B$11*NORMDIST($AI2,C$67,D$67/4,FALSE),0)+IF(C$68<>"",B$12*NORMDIST($AI2,C$68,D$68/4,FALSE),0)+IF(C$69<>"",B$13*NORMDIST($AI2,C$69,D$69/4,FALSE),0)+IF(C$70<>"",B$14*NORMDIST($AI2,C$70,D$70/4,FALSE),0)+IF(C$71<>"",B$15*NORMDIST($AI2,C$71,D$71/4,FALSE),0)+IF(C$72<>"",B$16*NORMDIST($AI2,C$72,D$72/4,FALSE),0)+IF(C$73<>"",B$17*NORMDIST($AI2,C$73,D$73/4,FALSE),0)+IF(C$74<>"",B$18*NORMDIST($AI2,C$74,D$74/4,FALSE),0)+IF(C$75<>"",B$19*NORMDIST($AI2,C$75,D$75/4,FALSE),0)+IF(C$76<>"",B$20*NORMDIST($AI2,C$76,D$76/4,FALSE),0)+IF(C$77<>"",B$21*NORMDIST($AI2,C$77,D$77/4,FALSE),0)+IF(C$78<>"",B$22*NORMDIST($AI2,C$78,D$78/4,FALSE),0)+IF(C$79<>"",B$23*NORMDIST($AI2,C$79,D$79/4,FALSE),0)+IF(C$80<>"",B$24*NORMDIST($AI2,C$80,D$80/4,FALSE),0)+IF(C$81<>"",B$25*NORMDIST($AI2,C$81,D$81/4,FALSE),0))+$M$29) -> 6 | AK2: =IF($N$30<>0,SUM(AO2:BH2)*$N$30+$M$30,-1) -> 6 | AL2: =IF($N$31=0,-1,$N$31*($B$32*NORMDIST($AH2,$B$29,$B$33*$B$29,FALSE)+IF(G$62<>"",B$6*NORMDIST($AH2,G$62,H$62/4,FALSE),0)+IF(G$63<>"",B$7*NORMDIST($AH2,G$63,H$63/4,FALSE),0)+IF(G$64<>"",B$8*NORMDIST($AH2,G$64,H$64/4,FALSE),0)+IF(G$65<>"",B$9*NORMDIST($AH2,G$65,H$65/4,FALSE),0)+IF(G$66<>"",B$10*NORMDIST($AH2,G$66,H$66/4,FALSE),0)+IF(G$67<>"",B$11*NORMDIST($AH2,G$67,H$67/4,FALSE),0)+IF(G$68<>"",B$12*NORMDIST($AH2,G$68,H$68/4,FALSE),0)+IF(G$69<>"",B$13*NORMDIST($AH2,G$69,H$69/4,FALSE),0)+IF(G$70<>"",B$14*NORMDIST($AH2,G$70,H$70/4,FALSE),0)+IF(G$71<>"",B$15*NORMDIST($AH2,G$71,H$71/4,FALSE),0)+IF(G$72<>"",B$16*NORMDIST($AH2,G$72,H$72/4,FALSE),0)+IF(G$73<>"",B$17*NORMDIST($AH2,G$73,H$73/4,FALSE),0)+IF(G$74<>"",B$18*NORMDIST($AH2,G$74,H$74/4,FALSE),0)+IF(G$75<>"",B$19*NORMDIST($AH2,G$75,H$75/4,FALSE),0)+IF(G$76<>"",B$20*NORMDIST($AH2,G$76,H$76/4,FALSE),0)+IF(G$77<>"",B$21*NORMDIST($AH2,G$77,H$77/4,FALSE),0)+IF(G$78<>"",B$22*NORMDIST($AH2,G$78,H$78/4,FALSE),0)+IF(G$79<>"",B$23*NORMDIST($AH2,G$79,H$79/4,FALSE),0)+IF(G$80<>"",B$24*NORMDIST($AH2,G$80,H$80/4,FALSE),0)+IF(G$81<>"",B$25*NORMDIST($AH2,G$81,H$81/4,FALSE),0))+$M$31) -> 15 | AM2: =IF($N$33=0,-1,$N$33*($B$32*NORMDIST($AI2,$B$29,$B$33*$B$29,FALSE)+IF(K$62<>"",B$6*NORMDIST($AI2,K$62,L$62/4,FALSE),0)+IF(K$63<>"",B$7*NORMDIST($AI2,K$63,L$63/4,FALSE),0)+IF(K$64<>"",B$8*NORMDIST($AI2,K$64,L$64/4,FALSE),0)+IF(K$65<>"",B$9*NORMDIST($AI2,K$65,L$65/4,FALSE),0)+IF(K$66<>"",B$10*NORMDIST($AI2,K$66,L$66/4,FALSE),0)+IF(K$67<>"",B$11*NORMDIST($AI2,K$67,L$67/4,FALSE),0)+IF(K$68<>"",B$12*NORMDIST($AI2,K$68,L$68/4,FALSE),0)+IF(K$69<>"",B$13*NORMDIST($AI2,K$69,L$69/4,FALSE),0)+IF(K$70<>"",B$14*NORMDIST($AI2,K$70,L$70/4,FALSE),0)+IF(K$71<>"",B$15*NORMDIST($AI2,K$71,L$71/4,FALSE),0)+IF(K$72<>"",B$16*NORMDIST($AI2,K$72,L$72/4,FALSE),0)+IF(K$73<>"",B$17*NORMDIST($AI2,K$73,L$73/4,FALSE),0)+IF(K$74<>"",B$18*NORMDIST($AI2,K$74,L$74/4,FALSE),0)+IF(K$75<>"",B$19*NORMDIST($AI2,K$75,L$75/4,FALSE),0)+IF(K$76<>"",B$20*NORMDIST($AI2,K$76,L$76/4,FALSE),0)+IF(K$77<>"",B$21*NORMDIST($AI2,K$77,L$77/4,FALSE),0)+IF(K$78<>"",B$22*NORMDIST($AI2,K$78,L$78/4,FALSE),0)+IF(K$79<>"",B$23*NORMDIST($AI2,K$79,L$79/4,FALSE),0)+IF(K$80<>"",B$24*NORMDIST($AI2,K$80,L$80/4,FALSE),0)+IF(K$81<>"",B$25*NORMDIST($AI2,K$81,L$81/4,FALSE),0))+$M$33) -> 5 | AN2: 1 | AO2: =IF($C$85>0,$B$6*NORMDIST($AI2,$C$85,$D$85/4,FALSE),0) -> 0 | AP2: =IF($C$86>0,$B$7*NORMDIST($AI2,$C$86,$D$86/4,FALSE),0) -> 0 | AQ2: =IF($C$87>0,$B$8*NORMDIST($AI2,$C$87,$D$87/4,FALSE),0) -> 0 | AR2: =IF($C$88>0,$B$9*NORMDIST($AI2,$C$88,$D$88/4,FALSE),0) -> 0 | AS2: =IF($C$89>0,$B$10*NORMDIST($AI2,$C$89,$D$89/4,FALSE),0) -> 0 | AT2: =IF($C$90>0,$B$11*NORMDIST($AI2,$C$90,$D$90/4,FALSE),0) -> 0 | AU2: =IF($C$91>0,$B$12*NORMDIST($AI2,$C$91,$D$91/4,FALSE),0) -> 0 | AV2: =IF($C$92>0,$B$13*NORMDIST($AI2,$C$92,$D$92/4,FALSE),0) -> 0 | AW2: =IF($C$93>0,$B$14*NORMDIST($AI2,$C$93,$D$93/4,FALSE),0) -> 0 | AX2: =IF($C$94>0,$B$15*NORMDIST($AI2,$C$94,$D$94/4,FALSE),0) -> 0 | AY2: =IF($C$95>0,$B$16*NORMDIST($AI2,$C$95,$D$95/4,FALSE),0) -> 0 | AZ2: =IF($C$96>0,$B$17*NORMDIST($AI2,$C$96,$D$96/4,FALSE),0) -> 0 | BA2: =IF($C$97>0,$B$18*NORMDIST($AI2,$C$97,$D$97/4,FALSE),0) -> 0 | BB2: =IF($C$98>0,$B$19*NORMDIST($AI2,$C$98,$D$98/4,FALSE),0) -> 0 | BC2: =IF($C$99>0,$B$20*NORMDIST($AI2,$C$99,$D$99/4,FALSE),0) -> 0 | BD2: =IF($C$100>0,$B$21*NORMDIST($AI2,$C$100,$D$100/4,FALSE),0) -> 0 | BE2: =IF($C$101>0,$B$22*NORMDIST($AI2,$C$101,$D$101/4,FALSE),0) -> 0 | BF2: =IF($C$102>0,$B$23*NORMDIST($AI2,$C$102,$D$102/4,FALSE),0) -> 0 | BG2: =IF($C$103>0,$B$24*NORMDIST($AI2,$C$103,$D$103/4,FALSE),0) -> 0 | BH2: =IF($C$104>0,$B$25*NORMDIST($AI2,$C$104,$D$104/4,FALSE),0) -> 0 | BI2: 2D nt | BJ2: 100 | BK2: 0 | BL2: 0 | BM2: =$N$32*$O$61*NORMDIST(AH2,$BJ$26,$BJ$27,FALSE)+$M$32 -> 15.00071219 | BN2: =$BJ$31*NORMDIST(BL2,$BJ$29,$BJ$30,FALSE) -> 0.009992539993 | BO2: =$BJ$35*NORMDIST(AI2,$BJ$33,$BJ$34,FALSE) -> 0 | BP2: =BW$4*$N$32+$M$32 -> 15.0021579 | BV2: 2D Trace | BW2: =INDEX($BW$6:$GR$261,$BJ$19,BW1) -> 0 | BX2: =INDEX($BW$6:$GR$261,$BJ$19,BX1) -> 0 | BY2: =INDEX($BW$6:$GR$261,$BJ$19,BY1) -> 0 | BZ2: =INDEX($BW$6:$GR$261,$BJ$19,BZ1) -> 0 | CA2: =INDEX($BW$6:$GR$261,$BJ$19,CA1) -> 0 | CB2: =INDEX($BW$6:$GR$261,$BJ$19,CB1) -> 0 | CC2: =INDEX($BW$6:$GR$261,$BJ$19,CC1) -> 0 | CD2: =INDEX($BW$6:$GR$261,$BJ$19,CD1) -> 0 | CE2: =INDEX($BW$6:$GR$261,$BJ$19,CE1) -> 0 | CF2: =INDEX($BW$6:$GR$261,$BJ$19,CF1) -> 0 | CG2: =INDEX($BW$6:$GR$261,$BJ$19,CG1) -> 0 | CH2: =INDEX($BW$6:$GR$261,$BJ$19,CH1) -> 0 | CI2: =INDEX($BW$6:$GR$261,$BJ$19,CI1) -> 0 | CJ2: =INDEX($BW$6:$GR$261,$BJ$19,CJ1) -> 0 | CK2: =INDEX($BW$6:$GR$261,$BJ$19,CK1) -> 0 | CL2: =INDEX($BW$6:$GR$261,$BJ$19,CL1) -> 0 | CM2: =INDEX($BW$6:$GR$261,$BJ$19,CM1) -> 0 | CN2: =INDEX($BW$6:$GR$261,$BJ$19,CN1) -> 0 | CO2: =INDEX($BW$6:$GR$261,$BJ$19,CO1) -> 0 | CP2: =INDEX($BW$6:$GR$261,$BJ$19,CP1) -> 0 | CQ2: =INDEX($BW$6:$GR$261,$BJ$19,CQ1) -> 0 | CR2: =INDEX($BW$6:$GR$261,$BJ$19,CR1) -> 0 | CS2: =INDEX($BW$6:$GR$261,$BJ$19,CS1) -> 0 | CT2: =INDEX($BW$6:$GR$261,$BJ$19,CT1) -> 0 | CU2: =INDEX($BW$6:$GR$261,$BJ$19,CU1) -> 0 | CV2: =INDEX($BW$6:$GR$261,$BJ$19,CV1) -> 0 | CW2: =INDEX($BW$6:$GR$261,$BJ$19,CW1) -> 0 | CX2: =INDEX($BW$6:$GR$261,$BJ$19,CX1) -> 0 | CY2: =INDEX($BW$6:$GR$261,$BJ$19,CY1) -> 0 | CZ2: =INDEX($BW$6:$GR$261,$BJ$19,CZ1) -> 0 | DA2: =INDEX($BW$6:$GR$261,$BJ$19,DA1) -> 0 | DB2: =INDEX($BW$6:$GR$261,$BJ$19,DB1) -> 0 | DC2: =INDEX($BW$6:$GR$261,$BJ$19,DC1) -> 0 | DD2: =INDEX($BW$6:$GR$261,$BJ$19,DD1) -> 0 | DE2: =INDEX($BW$6:$GR$261,$BJ$19,DE1) -> 0 | DF2: =INDEX($BW$6:$GR$261,$BJ$19,DF1) -> 0 | DG2: =INDEX($BW$6:$GR$261,$BJ$19,DG1) -> 0 | DH2: =INDEX($BW$6:$GR$261,$BJ$19,DH1) -> 0 | DI2: =INDEX($BW$6:$GR$261,$BJ$19,DI1) -> 0 | DJ2: =INDEX($BW$6:$GR$261,$BJ$19,DJ1) -> 0 | DK2: =INDEX($BW$6:$GR$261,$BJ$19,DK1) -> 0 | DL2: =INDEX($BW$6:$GR$261,$BJ$19,DL1) -> 0 | DM2: =INDEX($BW$6:$GR$261,$BJ$19,DM1) -> 0 | DN2: =INDEX($BW$6:$GR$261,$BJ$19,DN1) -> 0 | DO2: =INDEX($BW$6:$GR$261,$BJ$19,DO1) -> 0 | DP2: =INDEX($BW$6:$GR$261,$BJ$19,DP1) -> 0 | DQ2: =INDEX($BW$6:$GR$261,$BJ$19,DQ1) -> 0 | DR2: =INDEX($BW$6:$GR$261,$BJ$19,DR1) -> 0 | DS2: =INDEX($BW$6:$GR$261,$BJ$19,DS1) -> 0 | DT2: =INDEX($BW$6:$GR$261,$BJ$19,DT1) -> 0 | DU2: =INDEX($BW$6:$GR$261,$BJ$19,DU1) -> 0 | DV2: =INDEX($BW$6:$GR$261,$BJ$19,DV1) -> 0 | DW2: =INDEX($BW$6:$GR$261,$BJ$19,DW1) -> 0 | DX2: =INDEX($BW$6:$GR$261,$BJ$19,DX1) -> 0 | DY2: =INDEX($BW$6:$GR$261,$BJ$19,DY1) -> 0 | DZ2: =INDEX($BW$6:$GR$261,$BJ$19,DZ1) -> 0 | EA2: =INDEX($BW$6:$GR$261,$BJ$19,EA1) -> 0 | EB2: =INDEX($BW$6:$GR$261,$BJ$19,EB1) -> 0 | EC2: =INDEX($BW$6:$GR$261,$BJ$19,EC1) -> 0 | ED2: =INDEX($BW$6:$GR$261,$BJ$19,ED1) -> 0 | EE2: =INDEX($BW$6:$GR$261,$BJ$19,EE1) -> 0 | EF2: =INDEX($BW$6:$GR$261,$BJ$19,EF1) -> 0 | EG2: =INDEX($BW$6:$GR$261,$BJ$19,EG1) -> 0 | EH2: =INDEX($BW$6:$GR$261,$BJ$19,EH1) -> 0 | EI2: =INDEX($BW$6:$GR$261,$BJ$19,EI1) -> 0 | EJ2: =INDEX($BW$6:$GR$261,$BJ$19,EJ1) -> 0 | EK2: =INDEX($BW$6:$GR$261,$BJ$19,EK1) -> 0 | EL2: =INDEX($BW$6:$GR$261,$BJ$19,EL1) -> 0 | EM2: =INDEX($BW$6:$GR$261,$BJ$19,EM1) -> 0 | EN2: =INDEX($BW$6:$GR$261,$BJ$19,EN1) -> 0 | EO2: =INDEX($BW$6:$GR$261,$BJ$19,EO1) -> 0 | EP2: =INDEX($BW$6:$GR$261,$BJ$19,EP1) -> 0 | EQ2: =INDEX($BW$6:$GR$261,$BJ$19,EQ1) -> 0 | ER2: =INDEX($BW$6:$GR$261,$BJ$19,ER1) -> 0 | ES2: =INDEX($BW$6:$GR$261,$BJ$19,ES1) -> 0 | ET2: =INDEX($BW$6:$GR$261,$BJ$19,ET1) -> 0 | EU2: =INDEX($BW$6:$GR$261,$BJ$19,EU1) -> 0 | EV2: =INDEX($BW$6:$GR$261,$BJ$19,EV1) -> 0 | EW2: =INDEX($BW$6:$GR$261,$BJ$19,EW1) -> 0 | EX2: =INDEX($BW$6:$GR$261,$BJ$19,EX1) -> 0 | EY2: =INDEX($BW$6:$GR$261,$BJ$19,EY1) -> 0 | EZ2: =INDEX($BW$6:$GR$261,$BJ$19,EZ1) -> 0 | FA2: =INDEX($BW$6:$GR$261,$BJ$19,FA1) -> 0 | FB2: =INDEX($BW$6:$GR$261,$BJ$19,FB1) -> 0 | FC2: =INDEX($BW$6:$GR$261,$BJ$19,FC1) -> 0 | FD2: =INDEX($BW$6:$GR$261,$BJ$19,FD1) -> 0 | FE2: =INDEX($BW$6:$GR$261,$BJ$19,FE1) -> 0 | FF2: =INDEX($BW$6:$GR$261,$BJ$19,FF1) -> 0 | FG2: =INDEX($BW$6:$GR$261,$BJ$19,FG1) -> 0 | FH2: =INDEX($BW$6:$GR$261,$BJ$19,FH1) -> 0 | FI2: =INDEX($BW$6:$GR$261,$BJ$19,FI1) -> 0 | FJ2: =INDEX($BW$6:$GR$261,$BJ$19,FJ1) -> 0 | FK2: =INDEX($BW$6:$GR$261,$BJ$19,FK1) -> 0 | FL2: =INDEX($BW$6:$GR$261,$BJ$19,FL1) -> 0 | FM2: =INDEX($BW$6:$GR$261,$BJ$19,FM1) -> 0 | FN2: =INDEX($BW$6:$GR$261,$BJ$19,FN1) -> 0 | FO2: =INDEX($BW$6:$GR$261,$BJ$19,FO1) -> 0 | FP2: =INDEX($BW$6:$GR$261,$BJ$19,FP1) -> 0 | FQ2: =INDEX($BW$6:$GR$261,$BJ$19,FQ1) -> 0 | FR2: =INDEX($BW$6:$GR$261,$BJ$19,FR1) -> 0 | FS2: =INDEX($BW$6:$GR$261,$BJ$19,FS1) -> 0 | FT2: =INDEX($BW$6:$GR$261,$BJ$19,FT1) -> 0 | FU2: =INDEX($BW$6:$GR$261,$BJ$19,FU1) -> 0 | FV2: =INDEX($BW$6:$GR$261,$BJ$19,FV1) -> 0 | FW2: =INDEX($BW$6:$GR$261,$BJ$19,FW1) -> 0 | FX2: =INDEX($BW$6:$GR$261,$BJ$19,FX1) -> 0 | FY2: =INDEX($BW$6:$GR$261,$BJ$19,FY1) -> 0 | FZ2: =INDEX($BW$6:$GR$261,$BJ$19,FZ1) -> 0 | GA2: =INDEX($BW$6:$GR$261,$BJ$19,GA1) -> 0 | GB2: =INDEX($BW$6:$GR$261,$BJ$19,GB1) -> 0 | GC2: =INDEX($BW$6:$GR$261,$BJ$19,GC1) -> 0 | GD2: =INDEX($BW$6:$GR$261,$BJ$19,GD1) -> 0 | GE2: =INDEX($BW$6:$GR$261,$BJ$19,GE1) -> 0 | GF2: =INDEX($BW$6:$GR$261,$BJ$19,GF1) -> 0 | GG2: =INDEX($BW$6:$GR$261,$BJ$19,GG1) -> 0 | GH2: =INDEX($BW$6:$GR$261,$BJ$19,GH1) -> 0 | GI2: =INDEX($BW$6:$GR$261,$BJ$19,GI1) -> 0 | GJ2: =INDEX($BW$6:$GR$261,$BJ$19,GJ1) -> 0 | GK2: =INDEX($BW$6:$GR$261,$BJ$19,GK1) -> 0 | GL2: =INDEX($BW$6:$GR$261,$BJ$19,GL1) -> 0 | GM2: =INDEX($BW$6:$GR$261,$BJ$19,GM1) -> 0 | GN2: =INDEX($BW$6:$GR$261,$BJ$19,GN1) -> 0 | GO2: =INDEX($BW$6:$GR$261,$BJ$19,GO1) -> 0 | GP2: =INDEX($BW$6:$GR$261,$BJ$19,GP1) -> 0 | GQ2: =INDEX($BW$6:$GR$261,$BJ$19,GQ1) -> 0 | GR2: =INDEX($BW$6:$GR$261,$BJ$19,GR1) -> 0 | GV2: data
D3: bosvensmark.dk | H3: VBA: (Nonlinear) Simulation of 2D chromatography by Visual Basic for Applications | AE3: 0 | AF3: =IF('Macro input'!$F$19=1,GC!AG3,IF($K$29>0,IF($AE3<$I$29,$G$29,IF($AE3<$I$29+$J$29,$G$29+((H$29-G$29)*($AE3-I$29)/J$29),$H$29)),$G$29)) -> 150 | AG3: 150 | AH3: =AH2+$C$34 -> 0.003 | AI3: =AI2+$B$34 -> 0.01 | AJ3: =IF($N$29=0,-1,$N$29*($B$32*NORMDIST($AI3,$B$29,$B$33*$B$29,FALSE)+IF(C$62<>"",B$6*NORMDIST($AI3,C$62,D$62/4,FALSE),0)+IF(C$63<>"",B$7*NORMDIST($AI3,C$63,D$63/4,FALSE),0)+IF(C$64<>"",B$8*NORMDIST($AI3,C$64,D$64/4,FALSE),0)+IF(C$65<>"",B$9*NORMDIST($AI3,C$65,D$65/4,FALSE),0)+IF(C$66<>"",B$10*NORMDIST($AI3,C$66,D$66/4,FALSE),0)+IF(C$67<>"",B$11*NORMDIST($AI3,C$67,D$67/4,FALSE),0)+IF(C$68<>"",B$12*NORMDIST($AI3,C$68,D$68/4,FALSE),0)+IF(C$69<>"",B$13*NORMDIST($AI3,C$69,D$69/4,FALSE),0)+IF(C$70<>"",B$14*NORMDIST($AI3,C$70,D$70/4,FALSE),0)+IF(C$71<>"",B$15*NORMDIST($AI3,C$71,D$71/4,FALSE),0)+IF(C$72<>"",B$16*NORMDIST($AI3,C$72,D$72/4,FALSE),0)+IF(C$73<>"",B$17*NORMDIST($AI3,C$73,D$73/4,FALSE),0)+IF(C$74<>"",B$18*NORMDIST($AI3,C$74,D$74/4,FALSE),0)+IF(C$75<>"",B$19*NORMDIST($AI3,C$75,D$75/4,FALSE),0)+IF(C$76<>"",B$20*NORMDIST($AI3,C$76,D$76/4,FALSE),0)+IF(C$77<>"",B$21*NORMDIST($AI3,C$77,D$77/4,FALSE),0)+IF(C$78<>"",B$22*NORMDIST($AI3,C$78,D$78/4,FALSE),0)+IF(C$79<>"",B$23*NORMDIST($AI3,C$79,D$79/4,FALSE),0)+IF(C$80<>"",B$24*NORMDIST($AI3,C$80,D$80/4,FALSE),0)+IF(C$81<>"",B$25*NORMDIST($AI3,C$81,D$81/4,FALSE),0))+$M$29) -> 6 | AK3: 6 | AL3: =IF($N$31=0,-1,$N$31*($B$32*NORMDIST($AH3,$B$29,$B$33*$B$29,FALSE)+IF(G$62<>"",B$6*NORMDIST($AH3,G$62,H$62/4,FALSE),0)+IF(G$63<>"",B$7*NORMDIST($AH3,G$63,H$63/4,FALSE),0)+IF(G$64<>"",B$8*NORMDIST($AH3,G$64,H$64/4,FALSE),0)+IF(G$65<>"",B$9*NORMDIST($AH3,G$65,H$65/4,FALSE),0)+IF(G$66<>"",B$10*NORMDIST($AH3,G$66,H$66/4,FALSE),0)+IF(G$67<>"",B$11*NORMDIST($AH3,G$67,H$67/4,FALSE),0)+IF(G$68<>"",B$12*NORMDIST($AH3,G$68,H$68/4,FALSE),0)+IF(G$69<>"",B$13*NORMDIST($AH3,G$69,H$69/4,FALSE),0)+IF(G$70<>"",B$14*NORMDIST($AH3,G$70,H$70/4,FALSE),0)+IF(G$71<>"",B$15*NORMDIST($AH3,G$71,H$71/4,FALSE),0)+IF(G$72<>"",B$16*NORMDIST($AH3,G$72,H$72/4,FALSE),0)+IF(G$73<>"",B$17*NORMDIST($AH3,G$73,H$73/4,FALSE),0)+IF(G$74<>"",B$18*NORMDIST($AH3,G$74,H$74/4,FALSE),0)+IF(G$75<>"",B$19*NORMDIST($AH3,G$75,H$75/4,FALSE),0)+IF(G$76<>"",B$20*NORMDIST($AH3,G$76,H$76/4,FALSE),0)+IF(G$77<>"",B$21*NORMDIST($AH3,G$77,H$77/4,FALSE),0)+IF(G$78<>"",B$22*NORMDIST($AH3,G$78,H$78/4,FALSE),0)+IF(G$79<>"",B$23*NORMDIST($AH3,G$79,H$79/4,FALSE),0)+IF(G$80<>"",B$24*NORMDIST($AH3,G$80,H$80/4,FALSE),0)+IF(G$81<>"",B$25*NORMDIST($AH3,G$81,H$81/4,FALSE),0))+$M$31) -> 15 | AM3: 5 | AN3: 2 | AO3: =IF($C$85>0,$B$6*NORMDIST($AI3,$C$85,$D$85/4,FALSE),0) -> 0 | AP3: 0 | AQ3: 0 | AR3: 0 | AS3: 0 | AT3: 0 | AU3: 0 | AV3: 0 | AW3: 0 | AX3: 0 | AY3: 0 | AZ3: =IF($C$96>0,$B$17*NORMDIST($AI3,$C$96,$D$96/4,FALSE),0) -> 0 | BA3: =IF($C$97>0,$B$18*NORMDIST($AI3,$C$97,$D$97/4,FALSE),0) -> 0 | BB3: =IF($C$98>0,$B$19*NORMDIST($AI3,$C$98,$D$98/4,FALSE),0) -> 0 | BC3: =IF($C$99>0,$B$20*NORMDIST($AI3,$C$99,$D$99/4,FALSE),0) -> 0 | BD3: =IF($C$100>0,$B$21*NORMDIST($AI3,$C$100,$D$100/4,FALSE),0) -> 0 | BE3: =IF($C$101>0,$B$22*NORMDIST($AI3,$C$101,$D$101/4,FALSE),0) -> 0 | BF3: =IF($C$102>0,$B$23*NORMDIST($AI3,$C$102,$D$102/4,FALSE),0) -> 0 | BG3: =IF($C$103>0,$B$24*NORMDIST($AI3,$C$103,$D$103/4,FALSE),0) -> 0 | BH3: =IF($C$104>0,$B$25*NORMDIST($AI3,$C$104,$D$104/4,FALSE),0) -> 0 | BI3: 1D dt factor | BJ3: 1 | BK3: =BK2+$BJ$38 -> 0.2 | BL3: =BL2+$BJ$6 -> 0.06 | BM3: =$N$32*$O$61*NORMDIST(AH3,$BJ$26,$BJ$27,FALSE)+$M$32 -> 15.00073601 | BN3: 0.01902821107 | BO3: 0 | BP3: =BX$4*$N$32+$M$32 -> 15.0039623 | BV3: 2D time, s | BW3: 0 | BX3: =BW3+$BJ$6 -> 0.06 | BY3: =BX3+$BJ$6 -> 0.12 | BZ3: =BY3+$BJ$6 -> 0.18 | CA3: =BZ3+$BJ$6 -> 0.24 | CB3: =CA3+$BJ$6 -> 0.3 | CC3: =CB3+$BJ$6 -> 0.36 | CD3: =CC3+$BJ$6 -> 0.42 | CE3: =CD3+$BJ$6 -> 0.48 | CF3: =CE3+$BJ$6 -> 0.54 | CG3: =CF3+$BJ$6 -> 0.6 | CH3: =CG3+$BJ$6 -> 0.66 | CI3: =CH3+$BJ$6 -> 0.72 | CJ3: =CI3+$BJ$6 -> 0.78 | CK3: =CJ3+$BJ$6 -> 0.84 | CL3: =CK3+$BJ$6 -> 0.9 | CM3: =CL3+$BJ$6 -> 0.96 | CN3: =CM3+$BJ$6 -> 1.02 | CO3: =CN3+$BJ$6 -> 1.08 | CP3: =CO3+$BJ$6 -> 1.14 | CQ3: =CP3+$BJ$6 -> 1.2 | CR3: =CQ3+$BJ$6 -> 1.26 | CS3: =CR3+$BJ$6 -> 1.32 | CT3: =CS3+$BJ$6 -> 1.38 | CU3: =CT3+$BJ$6 -> 1.44 | CV3: =CU3+$BJ$6 -> 1.5 | CW3: =CV3+$BJ$6 -> 1.56 | CX3: =CW3+$BJ$6 -> 1.62 | CY3: =CX3+$BJ$6 -> 1.68 | CZ3: =CY3+$BJ$6 -> 1.74 | DA3: =CZ3+$BJ$6 -> 1.8 | DB3: =DA3+$BJ$6 -> 1.86 | DC3: =DB3+$BJ$6 -> 1.92 | DD3: =DC3+$BJ$6 -> 1.98 | DE3: =DD3+$BJ$6 -> 2.04 | DF3: =DE3+$BJ$6 -> 2.1 | DG3: =DF3+$BJ$6 -> 2.16 | DH3: =DG3+$BJ$6 -> 2.22 | DI3: =DH3+$BJ$6 -> 2.28 | DJ3: =DI3+$BJ$6 -> 2.34 | DK3: =DJ3+$BJ$6 -> 2.4 | DL3: =DK3+$BJ$6 -> 2.46 | DM3: =DL3+$BJ$6 -> 2.52 | DN3: =DM3+$BJ$6 -> 2.58 | DO3: =DN3+$BJ$6 -> 2.64 | DP3: =DO3+$BJ$6 -> 2.7 | DQ3: =DP3+$BJ$6 -> 2.76 | DR3: =DQ3+$BJ$6 -> 2.82 | DS3: =DR3+$BJ$6 -> 2.88 | DT3: =DS3+$BJ$6 -> 2.94 | DU3: =DT3+$BJ$6 -> 3 | DV3: =DU3+$BJ$6 -> 3.06 | DW3: =DV3+$BJ$6 -> 3.12 | DX3: =DW3+$BJ$6 -> 3.18 | DY3: =DX3+$BJ$6 -> 3.24 | DZ3: =DY3+$BJ$6 -> 3.3 | EA3: =DZ3+$BJ$6 -> 3.36 | EB3: =EA3+$BJ$6 -> 3.42 | EC3: =EB3+$BJ$6 -> 3.48 | ED3: =EC3+$BJ$6 -> 3.54 | EE3: =ED3+$BJ$6 -> 3.6 | EF3: =EE3+$BJ$6 -> 3.66 | EG3: =EF3+$BJ$6 -> 3.72 | EH3: =EG3+$BJ$6 -> 3.78 | EI3: =EH3+$BJ$6 -> 3.84 | EJ3: =EI3+$BJ$6 -> 3.9 | EK3: =EJ3+$BJ$6 -> 3.96 | EL3: =EK3+$BJ$6 -> 4.02 | EM3: =EL3+$BJ$6 -> 4.08 | EN3: =EM3+$BJ$6 -> 4.14 | EO3: =EN3+$BJ$6 -> 4.2 | EP3: =EO3+$BJ$6 -> 4.26 | EQ3: =EP3+$BJ$6 -> 4.32 | ER3: =EQ3+$BJ$6 -> 4.38 | ES3: =ER3+$BJ$6 -> 4.44 | ET3: =ES3+$BJ$6 -> 4.5 | EU3: =ET3+$BJ$6 -> 4.56 | EV3: =EU3+$BJ$6 -> 4.62 | EW3: =EV3+$BJ$6 -> 4.68 | EX3: =EW3+$BJ$6 -> 4.74 | EY3: =EX3+$BJ$6 -> 4.8 | EZ3: =EY3+$BJ$6 -> 4.86 | FA3: =EZ3+$BJ$6 -> 4.92 | FB3: =FA3+$BJ$6 -> 4.98 | FC3: =FB3+$BJ$6 -> 5.04 | FD3: =FC3+$BJ$6 -> 5.1 | FE3: =FD3+$BJ$6 -> 5.16 | FF3: =FE3+$BJ$6 -> 5.22 | FG3: =FF3+$BJ$6 -> 5.28 | FH3: =FG3+$BJ$6 -> 5.34 | FI3: =FH3+$BJ$6 -> 5.4 | FJ3: =FI3+$BJ$6 -> 5.46 | FK3: =FJ3+$BJ$6 -> 5.52 | FL3: =FK3+$BJ$6 -> 5.58 | FM3: =FL3+$BJ$6 -> 5.64 | FN3: =FM3+$BJ$6 -> 5.7 | FO3: =FN3+$BJ$6 -> 5.76 | FP3: =FO3+$BJ$6 -> 5.82 | FQ3: =FP3+$BJ$6 -> 5.88 | FR3: =FQ3+$BJ$6 -> 5.94 | FS3: =FR3+$BJ$6 -> 6 | FT3: =FS3+$BJ$6 -> 6.06 | FU3: =FT3+$BJ$6 -> 6.12 | FV3: =FU3+$BJ$6 -> 6.18 | FW3: =FV3+$BJ$6 -> 6.24 | FX3: =FW3+$BJ$6 -> 6.3 | FY3: =FX3+$BJ$6 -> 6.36 | FZ3: =FY3+$BJ$6 -> 6.42 | GA3: =FZ3+$BJ$6 -> 6.48 | GB3: =GA3+$BJ$6 -> 6.54 | GC3: =GB3+$BJ$6 -> 6.6 | GD3: =GC3+$BJ$6 -> 6.66 | GE3: =GD3+$BJ$6 -> 6.72 | GF3: =GE3+$BJ$6 -> 6.78 | GG3: =GF3+$BJ$6 -> 6.84 | GH3: =GG3+$BJ$6 -> 6.9 | GI3: =GH3+$BJ$6 -> 6.96 | GJ3: =GI3+$BJ$6 -> 7.02 | GK3: =GJ3+$BJ$6 -> 7.08 | GL3: =GK3+$BJ$6 -> 7.14 | GM3: =GL3+$BJ$6 -> 7.2 | GN3: =GM3+$BJ$6 -> 7.26 | GO3: =GN3+$BJ$6 -> 7.32 | GP3: =GO3+$BJ$6 -> 7.38 | GQ3: =GP3+$BJ$6 -> 7.44 | GR3: =GQ3+$BJ$6 -> 7.5 | GV3: 1D in columns
A4: Table 1 | H4: LSS: Linear Solvent Strength method (slightly wrong for GC,error up to ~tM/2) | AE4: =AE3+$B$31/100 -> 0.2 | AF4: =IF('Macro input'!$F$19=1,GC!AG4,IF($K$29>0,IF($AE4<$I$29,$G$29,IF($AE4<$I$29+$J$29,$G$29+((H$29-G$29)*($AE4-I$29)/J$29),$H$29)),$G$29)) -> 150 | AG4: 150 | AH4: =AH3+$C$34 -> 0.006 | AI4: =AI3+$B$34 -> 0.02 | AJ4: 6 | AK4: 6 | AL4: 15 | AM4: 5 | AN4: 3 | AO4: 0 | AP4: 0 | AQ4: 0 | AR4: 0 | AS4: 0 | AT4: 0 | AU4: 0 | AV4: 0 | AW4: 0 | AX4: 0 | AY4: 0 | AZ4: 0 | BA4: 0 | BB4: 0 | BC4: 0 | BD4: 0 | BE4: 0 | BF4: 0 | BG4: 0 | BH4: 0 | BK4: =BK3+$BJ$38 -> 0.4 | BL4: 0.12 | BM4: 15.00076057 | BN4: =$BJ$31*NORMDIST(BL4,$BJ$29,$BJ$30,FALSE) -> 0.03518417143 | BO4: 0 | BP4: =BY$4*$N$32+$M$32 -> 15.00706704 | BV4: 2D Sum | BW4: =0.01*SUM(BW6:BW256) -> 0.002157896023 | BX4: =0.01*SUM(BX6:BX256) -> 0.003962295873 | BY4: 0.007067042827 | BZ4: 0.01224462215 | CA4: 0.02061166676 | CB4: 0.03371202397 | CC4: 0.05358029295 | CD4: 0.08275970944 | CE4: 0.124243004 | CF4: 0.1813050322 | CG4: 0.257204603 | CH4: 0.3547520513 | CI4: 0.4758379642 | CJ4: 0.6303200242 | CK4: 1.1819734 | CL4: 5.746751258 | CM4: 20.12581703 | CN4: 31.99780019 | CO4: 31.36819912 | CP4: 23.9827769 | CQ4: 12.52242616 | CR4: 5.979556926 | CS4: 8.382843509 | CT4: 15.41032871 | CU4: 19.0872988 | CV4: 14.95688005 | CW4: 7.72257246 | CX4: 3.133059281 | CY4: 1.527671082 | CZ4: 1.085584612 | DA4: 0.8748207207 | DB4: 0.7015109788 | DC4: 0.5500238289 | DD4: 0.4267915113 | DE4: 0.3529057533 | DF4: 0.3914268067 | DG4: 0.6833817613 | DH4: 1.429570294 | DI4: 2.726563172 | DJ4: 4.305067857 | DK4: 5.48417013 | DL4: 5.597451037 | DM4: 4.569892244 | DN4: 2.991249995 | DO4: 1.600917684 | DP4: 0.7956104822 | DQ4: 0.5975762846 | DR4: 0.8958343604 | DS4: 1.595913133 | DT4: 2.582299246 | DU4: 3.629049611 | DV4: 4.410351921 | DW4: 4.646153419 | DX4: 4.278479559 | DY4: 3.52633869 | DZ4: 2.765802327 | EA4: 2.330636563 | EB4: 2.374994704 | EC4: 2.858276084 | ED4: 3.613577457 | EE4: 4.433745273 | EF4: 5.136941797 | EG4: 5.602097734 | EH4: 5.775593766 | EI4: 5.656725963 | EJ4: =0.01*SUM(EJ6:EJ256) -> 5.276486574 | EK4: 4.683804496 | EL4: 3.942507208 | EM4: 3.130664445 | EN4: 2.332677826 | EO4: 1.623214562 | EP4: 1.051007468 | EQ4: 0.6315661175 | ER4: 0.351631175 | ES4: 0.1812116146 | ET4: 0.08639755886 | EU4: 0.03810306557 | EV4: 0.01554440785 | EW4: 0.005866892979 | EX4: 0.002049063198 | EY4: 0.0006624114511 | EZ4: 0.0001982680862 | FA4: 5.496359725e-05 | FB4: 1.411811557e-05 | FC4: 3.363422302e-06 | FD4: 7.4896835e-07 | FE4: 1.716595355e-07 | FF4: 8.348089361e-08 | FG4: 1.524185957e-07 | FH4: 3.868139407e-07 | FI4: 9.815443846e-07 | FJ4: 2.421768978e-06 | FK4: 5.79983563e-06 | FL4: 1.348162099e-05 | FM4: 3.041875582e-05 | FN4: 6.662651003e-05 | FO4: 0.0001416751809 | FP4: 0.0002924944565 | FQ4: 0.0005863486381 | FR4: 0.001141424104 | FS4: 0.002157896023 | FT4: 0 | FU4: 0 | FV4: 0 | FW4: 0 | FX4: 0 | FY4: 0 | FZ4: 0 | GA4: 0 | GB4: 0 | GC4: 0 | GD4: 0 | GE4: 0 | GF4: 0 | GG4: 0 | GH4: 0 | GI4: 0 | GJ4: 0 | GK4: 0 | GL4: 0 | GM4: 0 | GN4: 0 | GO4: 0 | GP4: 0 | GQ4: 0 | GR4: 0 | GV4: 2D in rows
B5: Conc | C5: Analyte | E5: t1D(ref) | F5: t2D(ref) | H5: OBS: Only VBA will use a complex temperature program (see sheet Macro input) | AE5: 0.4 | AF5: =IF('Macro input'!$F$19=1,GC!AG5,IF($K$29>0,IF($AE5<$I$29,$G$29,IF($AE5<$I$29+$J$29,$G$29+((H$29-G$29)*($AE5-I$29)/J$29),$H$29)),$G$29)) -> 150 | AG5: 150 | AH5: 0.009 | AI5: 0.03 | AJ5: 6 | AK5: 6 | AL5: 15 | AM5: 5 | AN5: 4 | AO5: 0 | AP5: 0 | AQ5: 0 | AR5: 0 | AS5: 0 | AT5: 0 | AU5: 0 | AV5: 0 | AW5: 0 | AX5: 0 | AY5: 0 | AZ5: 0 | BA5: 0 | BB5: 0 | BC5: 0 | BD5: 0 | BE5: 0 | BF5: 0 | BG5: 0 | BH5: 0 | BI5: Time intervals | BK5: 0.6 | BL5: 0.18 | BM5: 15.0007859 | BN5: 0.0631719087 | BO5: 0 | BP5: =BZ$4*$N$32+$M$32 -> 15.01224462 | BU5: 1D t, min | BV5: 2D plot | BW5: =BW2*$BJ$21 ->  | BY5: =BY2*$BJ$21 ->  | EK5: =EK2*$BJ$21 ->  | GT5: Index | GU5: 1D SumC | GV5: 1D Sum | GW5: 1D Trans | GX5: 1Dt plot
A6: =IF(C6<>"",IF(C6<>VLOOKUP(C6,Compounds!$B$11:'Compounds'!$G$610,1),"Name error",1),"") -> 1 | B6: 1 | C6: Phenol | E6: 1.555 | F6: 1.476 | H6: Do only change the white input cells! | AE6: 0.6 | AF6: =IF('Macro input'!$F$19=1,GC!AG6,IF($K$29>0,IF($AE6<$I$29,$G$29,IF($AE6<$I$29+$J$29,$G$29+((H$29-G$29)*($AE6-I$29)/J$29),$H$29)),$G$29)) -> 150 | AG6: 150 | AH6: 0.012 | AI6: 0.04 | AJ6: 6 | AK6: 6 | AL6: 15 | AM6: 5 | AN6: 5 | AO6: 0 | AP6: 0 | AQ6: 0 | AR6: 0 | AS6: 0 | AT6: 0 | AU6: 0 | AV6: 0 | AW6: 0 | AX6: 0 | AY6: 0 | AZ6: 0 | BA6: 0 | BB6: 0 | BC6: 0 | BD6: 0 | BE6: 0 | BF6: 0 | BG6: 0 | BH6: 0 | BI6: 2D dt | BJ6: =C31*60/BJ2 -> 0.06 | BK6: 0.8 | BL6: 0.24 | BM6: 15.00081201 | BN6: 0.1101356636 | BO6: 0 | BP6: =CA$4*$N$32+$M$32 -> 15.02061167 | BU6: 0 | BW6: 0 | BX6: 0 | BY6: 0 | BZ6: 0 | CA6: 0 | CB6: 0 | CC6: 0 | CD6: 0 | CE6: 0 | CF6: 0 | CG6: 0 | CH6: 0 | CI6: 0 | CJ6: 0 | CK6: 0 | CL6: 0 | CM6: 0 | CN6: 0 | CO6: 0 | CP6: 0 | CQ6: 0 | CR6: 0 | CS6: 0 | CT6: 0 | CU6: 0 | CV6: 0 | CW6: 0 | CX6: 0 | CY6: 0 | CZ6: 0 | DA6: 0 | DB6: 0 | DC6: 0 | DD6: 0 | DE6: 0 | DF6: 0 | DG6: 0 | DH6: 0 | DI6: 0 | DJ6: 0 | DK6: 0 | DL6: 0 | DM6: 0 | DN6: 0 | DO6: 0 | DP6: 0 | DQ6: 0 | DR6: 0 | DS6: 0 | DT6: 0 | DU6: 0 | DV6: 0 | DW6: 0 | DX6: 0 | DY6: 0 | DZ6: 0 | EA6: 0 | EB6: 0 | EC6: 0 | ED6: 0 | EE6: 0 | EF6: 0 | EG6: 0 | EH6: 0 | EI6: 0 | EJ6: 0 | EK6: 0 | EL6: 0 | EM6: 0 | EN6: 0 | EO6: 0 | EP6: 0 | EQ6: 0 | ER6: 0 | ES6: 0 | ET6: 0 | EU6: 0 | EV6: 0 | EW6: 0 | EX6: 0 | EY6: 0 | EZ6: 0 | FA6: 0 | FB6: 0 | FC6: 0 | FD6: 0 | FE6: 0 | FF6: 0 | FG6: 0 | FH6: 0 | FI6: 0 | FJ6: 0 | FK6: 0 | FL6: 0 | FM6: 0 | FN6: 0 | FO6: 0 | FP6: 0 | FQ6: 0 | FR6: 0 | FS6: 0 | FT6: 0 | FU6: 0 | FV6: 0 | FW6: 0 | FX6: 0 | FY6: 0 | FZ6: 0 | GA6: 0 | GB6: 0 | GC6: 0 | GD6: 0 | GE6: 0 | GF6: 0 | GG6: 0 | GH6: 0 | GI6: 0 | GJ6: 0 | GK6: 0 | GL6: 0 | GM6: 0 | GN6: 0 | GO6: 0 | GP6: 0 | GQ6: 0 | GR6: 0 | GT6: 1 | GU6: =IF(BU6="","",0.01*SUM(BW6:GR6)) -> 0 | GV6: =IF(BW6="","",0.01*SUM(BW6:GR6)*$N$32+$M$32) -> 15 | GW6: =INDEX($BW$6:$GR$261,$GT6,$BJ$14) -> 0 | GX6: =GW6*$BJ$16 -> 0
A7: =IF(C7<>"",IF(C7<>VLOOKUP(C7,Compounds!$B$11:'Compounds'!$G$610,1),"Name error",2),"") -> 2 | B7: 1 | C7: Benzonitrile | E7: 1.665 | F7: 1.722 | AE7: 0.8 | AF7: =IF('Macro input'!$F$19=1,GC!AG7,IF($K$29>0,IF($AE7<$I$29,$G$29,IF($AE7<$I$29+$J$29,$G$29+((H$29-G$29)*($AE7-I$29)/J$29),$H$29)),$G$29)) -> 150 | AG7: 150 | AH7: 0.015 | AI7: 0.05 | AJ7: 6 | AK7: 6 | AL7: 15 | AM7: 5 | AN7: 6 | AO7: 0 | AP7: 0 | AQ7: 0 | AR7: 0 | AS7: 0 | AT7: 0 | AU7: 0 | AV7: 0 | AW7: 0 | AX7: 0 | AY7: 0 | AZ7: 0 | BA7: 0 | BB7: 0 | BC7: 0 | BD7: 0 | BE7: 0 | BF7: 0 | BG7: 0 | BH7: 0 | BI7: 1D dt | BJ7: =C31*BJ3 -> 0.1 | BK7: 1 | BL7: 0.3 | BM7: 15.00083892 | BN7: 0.1864486528 | BO7: 0 | BP7: =CB$4*$N$32+$M$32 -> 15.03371202 | BU7: =BU6+$BJ$7 -> 0.1 | BW7: 0 | BX7: 0 | BY7: 0 | BZ7: 0 | CA7: 0 | CB7: 0 | CC7: 0 | CD7: 0 | CE7: 0 | CF7: 0 | CG7: 0 | CH7: 0 | CI7: 0 | CJ7: 0 | CK7: 0 | CL7: 0 | CM7: 0 | CN7: 0 | CO7: 0 | CP7: 0 | CQ7: 0 | CR7: 0 | CS7: 0 | CT7: 0 | CU7: 0 | CV7: 0 | CW7: 0 | CX7: 0 | CY7: 0 | CZ7: 0 | DA7: 0 | DB7: 0 | DC7: 0 | DD7: 0 | DE7: 0 | DF7: 0 | DG7: 0 | DH7: 0 | DI7: 0 | DJ7: 0 | DK7: 0 | DL7: 0 | DM7: 0 | DN7: 0 | DO7: 0 | DP7: 0 | DQ7: 0 | DR7: 0 | DS7: 0 | DT7: 0 | DU7: 0 | DV7: 0 | DW7: 0 | DX7: 0 | DY7: 0 | DZ7: 0 | EA7: 0 | EB7: 0 | EC7: 0 | ED7: 0 | EE7: 0 | EF7: 0 | EG7: 0 | EH7: 0 | EI7: 0 | EJ7: 0 | EK7: 0 | EL7: 0 | EM7: 0 | EN7: 0 | EO7: 0 | EP7: 0 | EQ7: 0 | ER7: 0 | ES7: 0 | ET7: 0 | EU7: 0 | EV7: 0 | EW7: 0 | EX7: 0 | EY7: 0 | EZ7: 0 | FA7: 0 | FB7: 0 | FC7: 0 | FD7: 0 | FE7: 0 | FF7: 0 | FG7: 0 | FH7: 0 | FI7: 0 | FJ7: 0 | FK7: 0 | FL7: 0 | FM7: 0 | FN7: 0 | FO7: 0 | FP7: 0 | FQ7: 0 | FR7: 0 | FS7: 0 | FT7: 0 | FU7: 0 | FV7: 0 | FW7: 0 | FX7: 0 | FY7: 0 | FZ7: 0 | GA7: 0 | GB7: 0 | GC7: 0 | GD7: 0 | GE7: 0 | GF7: 0 | GG7: 0 | GH7: 0 | GI7: 0 | GJ7: 0 | GK7: 0 | GL7: 0 | GM7: 0 | GN7: 0 | GO7: 0 | GP7: 0 | GQ7: 0 | GR7: 0 | GT7: 2 | GU7: 0 | GV7: 15 | GW7: =INDEX($BW$6:$GR$261,$GT7,$BJ$14) -> 0 | GX7: 0
A8: =IF(C8<>"",IF(C8<>VLOOKUP(C8,Compounds!$B$11:'Compounds'!$G$610,1),"Name error",3),"") -> 3 | B8: 1 | C8: Benzofuran | E8: 1.68 | F8: 1.566 | H8: GC x GC simulation | AE8: 1 | AF8: =IF('Macro input'!$F$19=1,GC!AG8,IF($K$29>0,IF($AE8<$I$29,$G$29,IF($AE8<$I$29+$J$29,$G$29+((H$29-G$29)*($AE8-I$29)/J$29),$H$29)),$G$29)) -> 150 | AG8: 150 | AH8: 0.018 | AI8: 0.06 | AJ8: 6 | AK8: 6 | AL8: 15 | AM8: 5 | AN8: 7 | AO8: 0 | AP8: 0 | AQ8: 0 | AR8: 0 | AS8: 0 | AT8: 0 | AU8: 0 | AV8: 0 | AW8: 0 | AX8: 0 | AY8: 0 | AZ8: 0 | BA8: 0 | BB8: 0 | BC8: 0 | BD8: 0 | BE8: 0 | BF8: 0 | BG8: 0 | BH8: 0 | BK8: 1.2 | BL8: 0.36 | BM8: 15.00086667 | BN8: 0.306491073 | BO8: 0 | BP8: =CC$4*$N$32+$M$32 -> 15.05358029 | BU8: 0.2 | BW8: 0 | BX8: 0 | BY8: 0 | BZ8: 0 | CA8: 0 | CB8: 0 | CC8: 0 | CD8: 0 | CE8: 0 | CF8: 0 | CG8: 0 | CH8: 0 | CI8: 0 | CJ8: 0 | CK8: 0 | CL8: 0 | CM8: 0 | CN8: 0 | CO8: 0 | CP8: 0 | CQ8: 0 | CR8: 0 | CS8: 0 | CT8: 0 | CU8: 0 | CV8: 0 | CW8: 0 | CX8: 0 | CY8: 0 | CZ8: 0 | DA8: 0 | DB8: 0 | DC8: 0 | DD8: 0 | DE8: 0 | DF8: 0 | DG8: 0 | DH8: 0 | DI8: 0 | DJ8: 0 | DK8: 0 | DL8: 0 | DM8: 0 | DN8: 0 | DO8: 0 | DP8: 0 | DQ8: 0 | DR8: 0 | DS8: 0 | DT8: 0 | DU8: 0 | DV8: 0 | DW8: 0 | DX8: 0 | DY8: 0 | DZ8: 0 | EA8: 0 | EB8: 0 | EC8: 0 | ED8: 0 | EE8: 0 | EF8: 0 | EG8: 0 | EH8: 0 | EI8: 0 | EJ8: 0 | EK8: 0 | EL8: 0 | EM8: 0 | EN8: 0 | EO8: 0 | EP8: 0 | EQ8: 0 | ER8: 0 | ES8: 0 | ET8: 0 | EU8: 0 | EV8: 0 | EW8: 0 | EX8: 0 | EY8: 0 | EZ8: 0 | FA8: 0 | FB8: 0 | FC8: 0 | FD8: 0 | FE8: 0 | FF8: 0 | FG8: 0 | FH8: 0 | FI8: 0 | FJ8: 0 | FK8: 0 | FL8: 0 | FM8: 0 | FN8: 0 | FO8: 0 | FP8: 0 | FQ8: 0 | FR8: 0 | FS8: 0 | FT8: 0 | FU8: 0 | FV8: 0 | FW8: 0 | FX8: 0 | FY8: 0 | FZ8: 0 | GA8: 0 | GB8: 0 | GC8: 0 | GD8: 0 | GE8: 0 | GF8: 0 | GG8: 0 | GH8: 0 | GI8: 0 | GJ8: 0 | GK8: 0 | GL8: 0 | GM8: 0 | GN8: 0 | GO8: 0 | GP8: 0 | GQ8: 0 | GR8: 0 | GT8: 3 | GU8: 0 | GV8: 15 | GW8: =INDEX($BW$6:$GR$261,$GT8,$BJ$14) -> 0 | GX8: 0
A9: =IF(C9<>"",IF(C9<>VLOOKUP(C9,Compounds!$B$11:'Compounds'!$G$610,1),"Name error",4),"") -> 4 | B9: 1 | C9: o-Cresol | E9: 1.875 | F9: 1.848 | AE9: 1.2 | AF9: =IF('Macro input'!$F$19=1,GC!AG9,IF($K$29>0,IF($AE9<$I$29,$G$29,IF($AE9<$I$29+$J$29,$G$29+((H$29-G$29)*($AE9-I$29)/J$29),$H$29)),$G$29)) -> 150 | AG9: 150 | AH9: 0.021 | AI9: 0.07 | AJ9: 6 | AK9: 6 | AL9: 15 | AM9: 5 | AN9: 8 | AO9: 0 | AP9: 0 | AQ9: 0 | AR9: 0 | AS9: 0 | AT9: 0 | AU9: 0 | AV9: 0 | AW9: 0 | AX9: 0 | AY9: 0 | AZ9: 0 | BA9: 0 | BB9: 0 | BC9: 0 | BD9: 0 | BE9: 0 | BF9: 0 | BG9: 0 | BH9: 0 | BI9: Sum max | BK9: 1.4 | BL9: 0.42 | BM9: 15.00089526 | BN9: 0.489219447 | BO9: 0 | BP9: =CD$4*$N$32+$M$32 -> 15.08275971 | BU9: 0.3 | BW9: 0 | BX9: 0 | BY9: 0 | BZ9: 0 | CA9: 0 | CB9: 0 | CC9: 0 | CD9: 0 | CE9: 0 | CF9: 0 | CG9: 0 | CH9: 0 | CI9: 0 | CJ9: 0 | CK9: 0 | CL9: 0 | CM9: 0 | CN9: 0 | CO9: 0 | CP9: 0 | CQ9: 0 | CR9: 0 | CS9: 0 | CT9: 0 | CU9: 0 | CV9: 0 | CW9: 0 | CX9: 0 | CY9: 0 | CZ9: 0 | DA9: 0 | DB9: 0 | DC9: 0 | DD9: 0 | DE9: 0 | DF9: 0 | DG9: 0 | DH9: 0 | DI9: 0 | DJ9: 0 | DK9: 0 | DL9: 0 | DM9: 0 | DN9: 0 | DO9: 0 | DP9: 0 | DQ9: 0 | DR9: 0 | DS9: 0 | DT9: 0 | DU9: 0 | DV9: 0 | DW9: 0 | DX9: 0 | DY9: 0 | DZ9: 0 | EA9: 0 | EB9: 0 | EC9: 0 | ED9: 0 | EE9: 0 | EF9: 0 | EG9: 0 | EH9: 0 | EI9: 0 | EJ9: 0 | EK9: 0 | EL9: 0 | EM9: 0 | EN9: 0 | EO9: 0 | EP9: 0 | EQ9: 0 | ER9: 0 | ES9: 0 | ET9: 0 | EU9: 0 | EV9: 0 | EW9: 0 | EX9: 0 | EY9: 0 | EZ9: 0 | FA9: 0 | FB9: 0 | FC9: 0 | FD9: 0 | FE9: 0 | FF9: 0 | FG9: 0 | FH9: 0 | FI9: 0 | FJ9: 0 | FK9: 0 | FL9: 0 | FM9: 0 | FN9: 0 | FO9: 0 | FP9: 0 | FQ9: 0 | FR9: 0 | FS9: 0 | FT9: 0 | FU9: 0 | FV9: 0 | FW9: 0 | FX9: 0 | FY9: 0 | FZ9: 0 | GA9: 0 | GB9: 0 | GC9: 0 | GD9: 0 | GE9: 0 | GF9: 0 | GG9: 0 | GH9: 0 | GI9: 0 | GJ9: 0 | GK9: 0 | GL9: 0 | GM9: 0 | GN9: 0 | GO9: 0 | GP9: 0 | GQ9: 0 | GR9: 0 | GT9: 4 | GU9: 0 | GV9: 15 | GW9: =INDEX($BW$6:$GR$261,$GT9,$BJ$14) -> 0 | GX9: 0
A10: =IF(C10<>"",IF(C10<>VLOOKUP(C10,Compounds!$B$11:'Compounds'!$G$610,1),"Name error",5),"") -> 5 | B10: 1 | C10: 3,5-Dimethylphenol | E10: 2.54 | F10: 2.622 | J10: =IF('Macro input'!B20>0,"Please run","ok") -> ok | AE10: 1.4 | AF10: =IF('Macro input'!$F$19=1,GC!AG10,IF($K$29>0,IF($AE10<$I$29,$G$29,IF($AE10<$I$29+$J$29,$G$29+((H$29-G$29)*($AE10-I$29)/J$29),$H$29)),$G$29)) -> 150 | AG10: 150 | AH10: 0.024 | AI10: 0.08 | AJ10: 6 | AK10: 6 | AL10: 15 | AM10: 5 | AN10: 9 | AO10: 0 | AP10: 0 | AQ10: 0 | AR10: 0 | AS10: 0 | AT10: 0 | AU10: 0 | AV10: 0 | AW10: 0 | AX10: 0 | AY10: 0 | AZ10: 0 | BA10: 0 | BB10: 0 | BC10: 0 | BD10: 0 | BE10: 0 | BF10: 0 | BG10: 0 | BH10: 0 | BI10: 1D | BJ10: =MAX(GU6:GU256) -> 58.25272884 | BK10: 1.6 | BL10: 0.48 | BM10: 15.00092473 | BN10: 0.7582578204 | BO10: 0 | BP10: =CE$4*$N$32+$M$32 -> 15.124243 | BU10: 0.4 | BW10: 0 | BX10: 0 | BY10: 0 | BZ10: 0 | CA10: 0 | CB10: 0 | CC10: 0 | CD10: 0 | CE10: 0 | CF10: 0 | CG10: 0 | CH10: 0 | CI10: 0 | CJ10: 0 | CK10: 0 | CL10: 0 | CM10: 0 | CN10: 0 | CO10: 0 | CP10: 0 | CQ10: 0 | CR10: 0 | CS10: 0 | CT10: 0 | CU10: 0 | CV10: 0 | CW10: 0 | CX10: 0 | CY10: 0 | CZ10: 0 | DA10: 0 | DB10: 0 | DC10: 0 | DD10: 0 | DE10: 0 | DF10: 0 | DG10: 0 | DH10: 0 | DI10: 0 | DJ10: 0 | DK10: 0 | DL10: 0 | DM10: 0 | DN10: 0 | DO10: 0 | DP10: 0 | DQ10: 0 | DR10: 0 | DS10: 0 | DT10: 0 | DU10: 0 | DV10: 0 | DW10: 0 | DX10: 0 | DY10: 0 | DZ10: 0 | EA10: 0 | EB10: 0 | EC10: 0 | ED10: 0 | EE10: 0 | EF10: 0 | EG10: 0 | EH10: 0 | EI10: 0 | EJ10: 0 | EK10: 0 | EL10: 0 | EM10: 0 | EN10: 0 | EO10: 0 | EP10: 0 | EQ10: 0 | ER10: 0 | ES10: 0 | ET10: 0 | EU10: 0 | EV10: 0 | EW10: 0 | EX10: 0 | EY10: 0 | EZ10: 0 | FA10: 0 | FB10: 0 | FC10: 0 | FD10: 0 | FE10: 0 | FF10: 0 | FG10: 0 | FH10: 0 | FI10: 0 | FJ10: 0 | FK10: 0 | FL10: 0 | FM10: 0 | FN10: 0 | FO10: 0 | FP10: 0 | FQ10: 0 | FR10: 0 | FS10: 0 | FT10: 0 | FU10: 0 | FV10: 0 | FW10: 0 | FX10: 0 | FY10: 0 | FZ10: 0 | GA10: 0 | GB10: 0 | GC10: 0 | GD10: 0 | GE10: 0 | GF10: 0 | GG10: 0 | GH10: 0 | GI10: 0 | GJ10: 0 | GK10: 0 | GL10: 0 | GM10: 0 | GN10: 0 | GO10: 0 | GP10: 0 | GQ10: 0 | GR10: 0 | GT10: 5 | GU10: 0 | GV10: 15 | GW10: =INDEX($BW$6:$GR$261,$GT10,$BJ$14) -> 0 | GX10: 0
A11: =IF(C11<>"",IF(C11<>VLOOKUP(C11,Compounds!$B$11:'Compounds'!$G$610,1),"Name error",6),"") -> 6 | B11: 1 | C11: Quinoline | E11: 3.615 | F11: 4.758 | I11: =IF('Macro input'!A2*B31>2^16,"N(Fortran) too high","") ->  | AE11: 1.6 | AF11: =IF('Macro input'!$F$19=1,GC!AG11,IF($K$29>0,IF($AE11<$I$29,$G$29,IF($AE11<$I$29+$J$29,$G$29+((H$29-G$29)*($AE11-I$29)/J$29),$H$29)),$G$29)) -> 150 | AG11: 150 | AH11: 0.027 | AI11: 0.09 | AJ11: 6 | AK11: 6 | AL11: 15 | AM11: 5 | AN11: 10 | AO11: 0 | AP11: 0 | AQ11: 0 | AR11: 0 | AS11: 0 | AT11: 0 | AU11: 0 | AV11: 0 | AW11: 0 | AX11: 0 | AY11: 0 | AZ11: 0 | BA11: 0 | BB11: 0 | BC11: 0 | BD11: 0 | BE11: 0 | BF11: 0 | BG11: 0 | BH11: 0 | BI11: 2D | BJ11: =MAX(BW4:GR4) -> 31.99780019 | BK11: 1.8 | BL11: 0.54 | BM11: 15.0009551 | BN11: 1.141188501 | BO11: 0 | BP11: =CF$4*$N$32+$M$32 -> 15.18130503 | BU11: 0.5 | BW11: 0 | BX11: 0 | BY11: 0 | BZ11: 0 | CA11: 0 | CB11: 0 | CC11: 0 | CD11: 0 | CE11: 0 | CF11: 0 | CG11: 0 | CH11: 0 | CI11: 0 | CJ11: 0 | CK11: 0 | CL11: 0 | CM11: 0 | CN11: 0 | CO11: 0 | CP11: 0 | CQ11: 0 | CR11: 0 | CS11: 0 | CT11: 0 | CU11: 0 | CV11: 0 | CW11: 0 | CX11: 0 | CY11: 0 | CZ11: 0 | DA11: 0 | DB11: 0 | DC11: 0 | DD11: 0 | DE11: 0 | DF11: 0 | DG11: 0 | DH11: 0 | DI11: 0 | DJ11: 0 | DK11: 0 | DL11: 0 | DM11: 0 | DN11: 0 | DO11: 0 | DP11: 0 | DQ11: 0 | DR11: 0 | DS11: 0 | DT11: 0 | DU11: 0 | DV11: 0 | DW11: 0 | DX11: 0 | DY11: 0 | DZ11: 0 | EA11: 0 | EB11: 0 | EC11: 0 | ED11: 0 | EE11: 0 | EF11: 0 | EG11: 0 | EH11: 0 | EI11: 0 | EJ11: 0 | EK11: 0 | EL11: 0 | EM11: 0 | EN11: 0 | EO11: 0 | EP11: 0 | EQ11: 0 | ER11: 0 | ES11: 0 | ET11: 0 | EU11: 0 | EV11: 0 | EW11: 0 | EX11: 0 | EY11: 0 | EZ11: 0 | FA11: 0 | FB11: 0 | FC11: 0 | FD11: 0 | FE11: 0 | FF11: 0 | FG11: 0 | FH11: 0 | FI11: 0 | FJ11: 0 | FK11: 0 | FL11: 0 | FM11: 0 | FN11: 0 | FO11: 0 | FP11: 0 | FQ11: 0 | FR11: 0 | FS11: 0 | FT11: 0 | FU11: 0 | FV11: 0 | FW11: 0 | FX11: 0 | FY11: 0 | FZ11: 0 | GA11: 0 | GB11: 0 | GC11: 0 | GD11: 0 | GE11: 0 | GF11: 0 | GG11: 0 | GH11: 0 | GI11: 0 | GJ11: 0 | GK11: 0 | GL11: 0 | GM11: 0 | GN11: 0 | GO11: 0 | GP11: 0 | GQ11: 0 | GR11: 0 | GT11: 6 | GU11: 0 | GV11: 15 | GW11: =INDEX($BW$6:$GR$261,$GT11,$BJ$14) -> 0 | GX11: 0
A12: =IF(C12<>"",IF(C12<>VLOOKUP(C12,Compounds!$B$11:'Compounds'!$G$610,1),"Name error",7),"") -> 7 | B12: 1 | C12: Indole | E12: 4.51 | F12: 0.534 | H12: Modulation time | J12: =C31 -> 0.1 | K12: min | AE12: 1.8 | AF12: =IF('Macro input'!$F$19=1,GC!AG12,IF($K$29>0,IF($AE12<$I$29,$G$29,IF($AE12<$I$29+$J$29,$G$29+((H$29-G$29)*($AE12-I$29)/J$29),$H$29)),$G$29)) -> 150 | AG12: 150 | AH12: 0.03 | AI12: 0.1 | AJ12: 6 | AK12: 6 | AL12: 15 | AM12: 5 | AN12: 11 | AO12: 0 | AP12: 0 | AQ12: 0 | AR12: 0 | AS12: 0 | AT12: 0 | AU12: 0 | AV12: 0 | AW12: 0 | AX12: 0 | AY12: 0 | AZ12: 0 | BA12: 0 | BB12: 0 | BC12: 0 | BD12: 0 | BE12: 0 | BF12: 0 | BG12: 0 | BH12: 0 | BK12: 2 | BL12: 0.6 | BM12: 15.0009864 | BN12: 1.66772784 | BO12: 0 | BP12: =CG$4*$N$32+$M$32 -> 15.2572046 | BU12: 0.6 | BW12: 0 | BX12: 0 | BY12: 0 | BZ12: 0 | CA12: 0 | CB12: 0 | CC12: 0 | CD12: 0 | CE12: 0 | CF12: 0 | CG12: 0 | CH12: 0 | CI12: 0 | CJ12: 0 | CK12: 0 | CL12: 0 | CM12: 0 | CN12: 0 | CO12: 0 | CP12: 0 | CQ12: 0 | CR12: 0 | CS12: 0 | CT12: 0 | CU12: 0 | CV12: 0 | CW12: 0 | CX12: 0 | CY12: 0 | CZ12: 0 | DA12: 0 | DB12: 0 | DC12: 0 | DD12: 0 | DE12: 0 | DF12: 0 | DG12: 0 | DH12: 0 | DI12: 0 | DJ12: 0 | DK12: 0 | DL12: 0 | DM12: 0 | DN12: 0 | DO12: 0 | DP12: 0 | DQ12: 0 | DR12: 0 | DS12: 0 | DT12: 0 | DU12: 0 | DV12: 0 | DW12: 0 | DX12: 0 | DY12: 0 | DZ12: 0 | EA12: 0 | EB12: 0 | EC12: 0 | ED12: 0 | EE12: 0 | EF12: 0 | EG12: 0 | EH12: 0 | EI12: 0 | EJ12: 0 | EK12: 0 | EL12: 0 | EM12: 0 | EN12: 0 | EO12: 0 | EP12: 0 | EQ12: 0 | ER12: 0 | ES12: 0 | ET12: 0 | EU12: 0 | EV12: 0 | EW12: 0 | EX12: 0 | EY12: 0 | EZ12: 0 | FA12: 0 | FB12: 0 | FC12: 0 | FD12: 0 | FE12: 0 | FF12: 0 | FG12: 0 | FH12: 0 | FI12: 0 | FJ12: 0 | FK12: 0 | FL12: 0 | FM12: 0 | FN12: 0 | FO12: 0 | FP12: 0 | FQ12: 0 | FR12: 0 | FS12: 0 | FT12: 0 | FU12: 0 | FV12: 0 | FW12: 0 | FX12: 0 | FY12: 0 | FZ12: 0 | GA12: 0 | GB12: 0 | GC12: 0 | GD12: 0 | GE12: 0 | GF12: 0 | GG12: 0 | GH12: 0 | GI12: 0 | GJ12: 0 | GK12: 0 | GL12: 0 | GM12: 0 | GN12: 0 | GO12: 0 | GP12: 0 | GQ12: 0 | GR12: 0 | GT12: 7 | GU12: 0 | GV12: 15 | GW12: =INDEX($BW$6:$GR$261,$GT12,$BJ$14) -> 0 | GX12: 0
A13: =IF(C13<>"",IF(C13<>VLOOKUP(C13,Compounds!$B$11:'Compounds'!$G$610,1),"Name error",8),"") -> 8 | B13: 1 | C13: Tetradecane | E13: 5.83 | F13: 2.052 | H13: No of cycles | J13: =B31/C31 -> 200 | K13: =IF(J13>500,"Too many!","") ->  | AE13: 2 | AF13: =IF('Macro input'!$F$19=1,GC!AG13,IF($K$29>0,IF($AE13<$I$29,$G$29,IF($AE13<$I$29+$J$29,$G$29+((H$29-G$29)*($AE13-I$29)/J$29),$H$29)),$G$29)) -> 150 | AG13: 150 | AH13: 0.033 | AI13: 0.11 | AJ13: 6 | AK13: 6 | AL13: 15 | AM13: 5 | AN13: 12 | AO13: 0 | AP13: 0 | AQ13: 0 | AR13: 0 | AS13: 0 | AT13: 0 | AU13: 0 | AV13: 0 | AW13: 0 | AX13: 0 | AY13: 0 | AZ13: 0 | BA13: 0 | BB13: 0 | BC13: 0 | BD13: 0 | BE13: 0 | BF13: 0 | BG13: 0 | BH13: 0 | BI13: 1D trace | BK13: 2.2 | BL13: 0.66 | BM13: 15.00101864 | BN13: 2.366575005 | BO13: 0 | BP13: =CH$4*$N$32+$M$32 -> 15.35475205 | BU13: 0.7 | BW13: 0 | BX13: 0 | BY13: 0 | BZ13: 0 | CA13: 0 | CB13: 0 | CC13: 0 | CD13: 0 | CE13: 0 | CF13: 0 | CG13: 0 | CH13: 0 | CI13: 0 | CJ13: 0 | CK13: 0 | CL13: 0 | CM13: 0 | CN13: 0 | CO13: 0 | CP13: 0 | CQ13: 0 | CR13: 0 | CS13: 0 | CT13: 0 | CU13: 0 | CV13: 0 | CW13: 0 | CX13: 0 | CY13: 0 | CZ13: 0 | DA13: 0 | DB13: 0 | DC13: 0 | DD13: 0 | DE13: 0 | DF13: 0 | DG13: 0 | DH13: 0 | DI13: 0 | DJ13: 0 | DK13: 0 | DL13: 0 | DM13: 0 | DN13: 0 | DO13: 0 | DP13: 0 | DQ13: 0 | DR13: 0 | DS13: 0 | DT13: 0 | DU13: 0 | DV13: 0 | DW13: 0 | DX13: 0 | DY13: 0 | DZ13: 0 | EA13: 0 | EB13: 0 | EC13: 0 | ED13: 0 | EE13: 0 | EF13: 0 | EG13: 0 | EH13: 0 | EI13: 0 | EJ13: 0 | EK13: 0 | EL13: 0 | EM13: 0 | EN13: 0 | EO13: 0 | EP13: 0 | EQ13: 0 | ER13: 0 | ES13: 0 | ET13: 0 | EU13: 0 | EV13: 0 | EW13: 0 | EX13: 0 | EY13: 0 | EZ13: 0 | FA13: 0 | FB13: 0 | FC13: 0 | FD13: 0 | FE13: 0 | FF13: 0 | FG13: 0 | FH13: 0 | FI13: 0 | FJ13: 0 | FK13: 0 | FL13: 0 | FM13: 0 | FN13: 0 | FO13: 0 | FP13: 0 | FQ13: 0 | FR13: 0 | FS13: 0 | FT13: 0 | FU13: 0 | FV13: 0 | FW13: 0 | FX13: 0 | FY13: 0 | FZ13: 0 | GA13: 0 | GB13: 0 | GC13: 0 | GD13: 0 | GE13: 0 | GF13: 0 | GG13: 0 | GH13: 0 | GI13: 0 | GJ13: 0 | GK13: 0 | GL13: 0 | GM13: 0 | GN13: 0 | GO13: 0 | GP13: 0 | GQ13: 0 | GR13: 0 | GT13: 8 | GU13: 0 | GV13: 15 | GW13: =INDEX($BW$6:$GR$261,$GT13,$BJ$14) -> 0 | GX13: 0
A14: =IF(C14<>"",IF(C14<>VLOOKUP(C14,Compounds!$B$11:'Compounds'!$G$610,1),"Name error",9),"") -> 9 | B14: 1 | C14: Dibenzofuran | E14: 8.795 | F14: 3.744 | H14: Calibration range | J14: =SPmodel!B30 -> HP-5 | K14: =SPmodel!X30 -> Rxi-50-240 | M14: Column difference | AE14: 2.2 | AF14: =IF('Macro input'!$F$19=1,GC!AG14,IF($K$29>0,IF($AE14<$I$29,$G$29,IF($AE14<$I$29+$J$29,$G$29+((H$29-G$29)*($AE14-I$29)/J$29),$H$29)),$G$29)) -> 150 | AG14: 150 | AH14: 0.036 | AI14: 0.12 | AJ14: 6 | AK14: =IF($N$30<>0,SUM(AO14:BH14)*$N$30+$M$30,-1) -> 6 | AL14: 15 | AM14: 5 | AN14: 13 | AO14: 0 | AP14: 0 | AQ14: 0 | AR14: 0 | AS14: 0 | AT14: 0 | AU14: 0 | AV14: 0 | AW14: 0 | AX14: 0 | AY14: 0 | AZ14: 0 | BA14: 0 | BB14: 0 | BC14: 0 | BD14: 0 | BE14: 0 | BF14: 0 | BG14: 0 | BH14: 0 | BI14: Column | BJ14: =ROUND(O67*BJ2/(60*C31),0)+1 -> 53 | BK14: 2.4 | BL14: 0.72 | BM14: 15.00105186 | BN14: 3.260938971 | BO14: 0 | BP14: =CI$4*$N$32+$M$32 -> 15.47583796 | BU14: 0.8 | BW14: 0 | BX14: 0 | BY14: 0 | BZ14: 0 | CA14: 0 | CB14: 0 | CC14: 0 | CD14: 0 | CE14: 0 | CF14: 0 | CG14: 0 | CH14: 0 | CI14: 0 | CJ14: 0 | CK14: 0 | CL14: 0 | CM14: 0 | CN14: 0 | CO14: 0 | CP14: 0 | CQ14: 0 | CR14: 0 | CS14: 0 | CT14: 0 | CU14: 0 | CV14: 0 | CW14: 0 | CX14: 0 | CY14: 0 | CZ14: 0 | DA14: 0 | DB14: 0 | DC14: 0 | DD14: 0 | DE14: 0 | DF14: 0 | DG14: 0 | DH14: 0 | DI14: 0 | DJ14: 0 | DK14: 0 | DL14: 0 | DM14: 0 | DN14: 0 | DO14: 0 | DP14: 0 | DQ14: 0 | DR14: 0 | DS14: 0 | DT14: 0 | DU14: 0 | DV14: 0 | DW14: 0 | DX14: 0 | DY14: 0 | DZ14: 0 | EA14: 0 | EB14: 0 | EC14: 0 | ED14: 0 | EE14: 0 | EF14: 0 | EG14: 0 | EH14: 0 | EI14: 0 | EJ14: 0 | EK14: 0 | EL14: 0 | EM14: 0 | EN14: 0 | EO14: 0 | EP14: 0 | EQ14: 0 | ER14: 0 | ES14: 0 | ET14: 0 | EU14: 0 | EV14: 0 | EW14: 0 | EX14: 0 | EY14: 0 | EZ14: 0 | FA14: 0 | FB14: 0 | FC14: 0 | FD14: 0 | FE14: 0 | FF14: 0 | FG14: 0 | FH14: 0 | FI14: 0 | FJ14: 0 | FK14: 0 | FL14: 0 | FM14: 0 | FN14: 0 | FO14: 0 | FP14: 0 | FQ14: 0 | FR14: 0 | FS14: 0 | FT14: 0 | FU14: 0 | FV14: 0 | FW14: 0 | FX14: 0 | FY14: 0 | FZ14: 0 | GA14: 0 | GB14: 0 | GC14: 0 | GD14: 0 | GE14: 0 | GF14: 0 | GG14: 0 | GH14: 0 | GI14: 0 | GJ14: 0 | GK14: 0 | GL14: 0 | GM14: 0 | GN14: 0 | GO14: 0 | GP14: 0 | GQ14: 0 | GR14: 0 | GT14: 9 | GU14: 0 | GV14: 15 | GW14: =INDEX($BW$6:$GR$261,$GT14,$BJ$14) -> 0 | GX14: 0
A15: =IF(C15<>"",IF(C15<>VLOOKUP(C15,Compounds!$B$11:'Compounds'!$G$610,1),"Name error",10),"") -> 10 | B15: 1 | C15: Diphenylamine | E15: 10.1 | F15: 3.132 | H15: Min oC | J15: =MIN(SPmodel!B31:B50) -> 60 | K15: =MIN(SPmodel!X31:X50) -> 60 | M15: 1 - Cos q | N15: d | AE15: 2.4 | AF15: =IF('Macro input'!$F$19=1,GC!AG15,IF($K$29>0,IF($AE15<$I$29,$G$29,IF($AE15<$I$29+$J$29,$G$29+((H$29-G$29)*($AE15-I$29)/J$29),$H$29)),$G$29)) -> 150 | AG15: 150 | AH15: 0.039 | AI15: 0.13 | AJ15: 6 | AK15: 6 | AL15: 15 | AM15: 5 | AN15: 14 | AO15: 0 | AP15: 0 | AQ15: 0 | AR15: 0 | AS15: 0 | AT15: 0 | AU15: 0 | AV15: 0 | AW15: 0 | AX15: 0 | AY15: 0 | AZ15: 0 | BA15: 0 | BB15: 0 | BC15: 0 | BD15: 0 | BE15: 0 | BF15: 0 | BG15: 0 | BH15: 0 | BI15: Max | BJ15: =MAX(GW6:GW256) -> 228.0208681 | BK15: 2.6 | BL15: 0.78 | BM15: 15.00108609 | BN15: 4.363071917 | BO15: 0 | BP15: =CJ$4*$N$32+$M$32 -> 15.63032002 | BU15: 0.9 | BW15: 0 | BX15: 0 | BY15: 0 | BZ15: 0 | CA15: 0 | CB15: 0 | CC15: 0 | CD15: 0 | CE15: 0 | CF15: 0 | CG15: 0 | CH15: 0 | CI15: 0 | CJ15: 0 | CK15: 0 | CL15: 0 | CM15: 0 | CN15: 0 | CO15: 0 | CP15: 0 | CQ15: 0 | CR15: 0 | CS15: 0 | CT15: 0 | CU15: 0 | CV15: 0 | CW15: 0 | CX15: 0 | CY15: 0 | CZ15: 0 | DA15: 0 | DB15: 0 | DC15: 0 | DD15: 0 | DE15: 0 | DF15: 0 | DG15: 0 | DH15: 0 | DI15: 0 | DJ15: 0 | DK15: 0 | DL15: 0 | DM15: 0 | DN15: 0 | DO15: 0 | DP15: 0 | DQ15: 0 | DR15: 0 | DS15: 0 | DT15: 0 | DU15: 0 | DV15: 0 | DW15: 0 | DX15: 0 | DY15: 0 | DZ15: 0 | EA15: 0 | EB15: 0 | EC15: 0 | ED15: 0 | EE15: 0 | EF15: 0 | EG15: 0 | EH15: 0 | EI15: 0 | EJ15: 0 | EK15: 0 | EL15: 0 | EM15: 0 | EN15: 0 | EO15: 0 | EP15: 0 | EQ15: 0 | ER15: 0 | ES15: 0 | ET15: 0 | EU15: 0 | EV15: 0 | EW15: 0 | EX15: 0 | EY15: 0 | EZ15: 0 | FA15: 0 | FB15: 0 | FC15: 0 | FD15: 0 | FE15: 0 | FF15: 0 | FG15: 0 | FH15: 0 | FI15: 0 | FJ15: 0 | FK15: 0 | FL15: 0 | FM15: 0 | FN15: 0 | FO15: 0 | FP15: 0 | FQ15: 0 | FR15: 0 | FS15: 0 | FT15: 0 | FU15: 0 | FV15: 0 | FW15: 0 | FX15: 0 | FY15: 0 | FZ15: 0 | GA15: 0 | GB15: 0 | GC15: 0 | GD15: 0 | GE15: 0 | GF15: 0 | GG15: 0 | GH15: 0 | GI15: 0 | GJ15: 0 | GK15: 0 | GL15: 0 | GM15: 0 | GN15: 0 | GO15: 0 | GP15: 0 | GQ15: 0 | GR15: 0 | GT15: 10 | GU15: 0 | GV15: 15 | GW15: =INDEX($BW$6:$GR$261,$GT15,$BJ$14) -> 0 | GX15: 0
A16: =IF(C16<>"",IF(C16<>VLOOKUP(C16,Compounds!$B$11:'Compounds'!$G$610,1),"Name error",11),"") -> 11 | B16: 1 | C16: Carbazole | E16: 12.745 | F16: 3.222 | H16: Max oC | J16: =MAX(SPmodel!B31:B50) -> 300 | K16: =MAX(SPmodel!X31:X50) -> 240 | M16: =SPmodel!J34 -> 23.74012227 | N16: =SPmodel!K34 -> 0.4113857104 | AE16: 2.6 | AF16: =IF('Macro input'!$F$19=1,GC!AG16,IF($K$29>0,IF($AE16<$I$29,$G$29,IF($AE16<$I$29+$J$29,$G$29+((H$29-G$29)*($AE16-I$29)/J$29),$H$29)),$G$29)) -> 150 | AG16: 150 | AH16: 0.042 | AI16: 0.14 | AJ16: 6 | AK16: 6 | AL16: 15 | AM16: 5 | AN16: 15 | AO16: 0 | AP16: 0 | AQ16: 0 | AR16: 0 | AS16: 0 | AT16: 0 | AU16: 0 | AV16: 0 | AW16: 0 | AX16: 0 | AY16: 0 | AZ16: 0 | BA16: 0 | BB16: 0 | BC16: 0 | BD16: 0 | BE16: 0 | BF16: 0 | BG16: 0 | BH16: 0 | BI16: Plot factor | BJ16: =O69*BJ10/BJ15 -> 0.2554710423 | BK16: 2.8 | BL16: 0.84 | BM16: 15.00112135 | BN16: 5.668515978 | BO16: 0 | BP16: =CK$4*$N$32+$M$32 -> 16.1819734 | BU16: 1 | BW16: 0 | BX16: 0 | BY16: 0 | BZ16: 0 | CA16: 0 | CB16: 0 | CC16: 0 | CD16: 0 | CE16: 0 | CF16: 0 | CG16: 0 | CH16: 0 | CI16: 0 | CJ16: 0 | CK16: 0 | CL16: 0 | CM16: 0 | CN16: 0 | CO16: 0 | CP16: 0 | CQ16: 0 | CR16: 0 | CS16: 0 | CT16: 0 | CU16: 0 | CV16: 0 | CW16: 0 | CX16: 0 | CY16: 0 | CZ16: 0 | DA16: 0 | DB16: 0 | DC16: 0 | DD16: 0 | DE16: 0 | DF16: 0 | DG16: 0 | DH16: 0 | DI16: 0 | DJ16: 0 | DK16: 0 | DL16: 0 | DM16: 0 | DN16: 0 | DO16: 0 | DP16: 0 | DQ16: 0 | DR16: 0 | DS16: 0 | DT16: 0 | DU16: 0 | DV16: 0 | DW16: 0 | DX16: 0 | DY16: 0 | DZ16: 0 | EA16: 0 | EB16: 0 | EC16: 0 | ED16: 0 | EE16: 0 | EF16: 0 | EG16: 0 | EH16: 0 | EI16: 0 | EJ16: 0 | EK16: 0 | EL16: 0 | EM16: 0 | EN16: 0 | EO16: 0 | EP16: 0 | EQ16: 0 | ER16: 0 | ES16: 0 | ET16: 0 | EU16: 0 | EV16: 0 | EW16: 0 | EX16: 0 | EY16: 0 | EZ16: 0 | FA16: 0 | FB16: 0 | FC16: 0 | FD16: 0 | FE16: 0 | FF16: 0 | FG16: 0 | FH16: 0 | FI16: 0 | FJ16: 0 | FK16: 0 | FL16: 0 | FM16: 0 | FN16: 0 | FO16: 0 | FP16: 0 | FQ16: 0 | FR16: 0 | FS16: 0 | FT16: 0 | FU16: 0 | FV16: 0 | FW16: 0 | FX16: 0 | FY16: 0 | FZ16: 0 | GA16: 0 | GB16: 0 | GC16: 0 | GD16: 0 | GE16: 0 | GF16: 0 | GG16: 0 | GH16: 0 | GI16: 0 | GJ16: 0 | GK16: 0 | GL16: 0 | GM16: 0 | GN16: 0 | GO16: 0 | GP16: 0 | GQ16: 0 | GR16: 0 | GT16: 11 | GU16: 0 | GV16: 15 | GW16: =INDEX($BW$6:$GR$261,$GT16,$BJ$14) -> 0 | GX16: 0
A17: =IF(C17<>"",IF(C17<>VLOOKUP(C17,Compounds!$B$11:'Compounds'!$G$610,1),"Name error",12),"") ->  | AE17: 2.8 | AF17: =IF('Macro input'!$F$19=1,GC!AG17,IF($K$29>0,IF($AE17<$I$29,$G$29,IF($AE17<$I$29+$J$29,$G$29+((H$29-G$29)*($AE17-I$29)/J$29),$H$29)),$G$29)) -> 150 | AG17: 150 | AH17: 0.045 | AI17: 0.15 | AJ17: 6 | AK17: 6 | AL17: 15 | AM17: 5 | AN17: 16 | AO17: 0 | AP17: 0 | AQ17: 0 | AR17: 0 | AS17: 0 | AT17: 0 | AU17: 0 | AV17: 0 | AW17: 0 | AX17: 0 | AY17: 0 | AZ17: 0 | BA17: 0 | BB17: 0 | BC17: 0 | BD17: 0 | BE17: 0 | BF17: 0 | BG17: 0 | BH17: 0 | BK17: 3 | BL17: 0.9 | BM17: 15.00115766 | BN17: 7.151113675 | BO17: 0 | BP17: =CL$4*$N$32+$M$32 -> 20.74675126 | BU17: 1.1 | BW17: 0 | BX17: 0 | BY17: 0 | BZ17: 0 | CA17: 0 | CB17: 0 | CC17: 0 | CD17: 0 | CE17: 0 | CF17: 0 | CG17: 0 | CH17: 0 | CI17: 0 | CJ17: 0 | CK17: 0 | CL17: 0 | CM17: 0 | CN17: 0 | CO17: 0 | CP17: 0 | CQ17: 0 | CR17: 0 | CS17: 0 | CT17: 0 | CU17: 0 | CV17: 0 | CW17: 0 | CX17: 0 | CY17: 0 | CZ17: 0 | DA17: 0 | DB17: 0 | DC17: 0 | DD17: 0 | DE17: 0 | DF17: 0 | DG17: 0 | DH17: 0 | DI17: 0 | DJ17: 0 | DK17: 0 | DL17: 0 | DM17: 0 | DN17: 0 | DO17: 0 | DP17: 0 | DQ17: 0 | DR17: 0 | DS17: 0 | DT17: 0 | DU17: 0 | DV17: 0 | DW17: 0 | DX17: 0 | DY17: 0 | DZ17: 0 | EA17: 0 | EB17: 0 | EC17: 0 | ED17: 0 | EE17: 0 | EF17: 0 | EG17: 0 | EH17: 0 | EI17: 0 | EJ17: 0 | EK17: 0 | EL17: 0 | EM17: 0 | EN17: 0 | EO17: 0 | EP17: 0 | EQ17: 0 | ER17: 0 | ES17: 0 | ET17: 0 | EU17: 0 | EV17: 0 | EW17: 0 | EX17: 0 | EY17: 0 | EZ17: 0 | FA17: 0 | FB17: 0 | FC17: 0 | FD17: 0 | FE17: 0 | FF17: 0 | FG17: 0 | FH17: 0 | FI17: 0 | FJ17: 0 | FK17: 0 | FL17: 0 | FM17: 0 | FN17: 0 | FO17: 0 | FP17: 0 | FQ17: 0 | FR17: 0 | FS17: 0 | FT17: 0 | FU17: 0 | FV17: 0 | FW17: 0 | FX17: 0 | FY17: 0 | FZ17: 0 | GA17: 0 | GB17: 0 | GC17: 0 | GD17: 0 | GE17: 0 | GF17: 0 | GG17: 0 | GH17: 0 | GI17: 0 | GJ17: 0 | GK17: 0 | GL17: 0 | GM17: 0 | GN17: 0 | GO17: 0 | GP17: 0 | GQ17: 0 | GR17: 0 | GT17: 12 | GU17: 0 | GV17: 15 | GW17: =INDEX($BW$6:$GR$261,$GT17,$BJ$14) -> 0 | GX17: 0
A18: =IF(C18<>"",IF(C18<>VLOOKUP(C18,Compounds!$B$11:'Compounds'!$G$610,1),"Name error",13),"") ->  | H18: 1) Fill in Table 1, 2 and 3 | AE18: 3 | AF18: =IF('Macro input'!$F$19=1,GC!AG18,IF($K$29>0,IF($AE18<$I$29,$G$29,IF($AE18<$I$29+$J$29,$G$29+((H$29-G$29)*($AE18-I$29)/J$29),$H$29)),$G$29)) -> 150 | AG18: 150 | AH18: 0.048 | AI18: 0.16 | AJ18: 6 | AK18: 6 | AL18: 15 | AM18: 5 | AN18: 17 | AO18: 0 | AP18: 0 | AQ18: 0 | AR18: 0 | AS18: 0 | AT18: 0 | AU18: 0 | AV18: 0 | AW18: 0 | AX18: 0 | AY18: 0 | AZ18: 0 | BA18: 0 | BB18: 0 | BC18: 0 | BD18: 0 | BE18: 0 | BF18: 0 | BG18: 0 | BH18: 0 | BI18: 2D trace | BK18: 3.2 | BL18: 0.96 | BM18: 15.00119507 | BN18: 8.760023903 | BO18: 0 | BP18: =CM$4*$N$32+$M$32 -> 35.12581703 | BU18: 1.2 | BW18: 0 | BX18: 0 | BY18: 0 | BZ18: 0 | CA18: 0 | CB18: 0 | CC18: 0 | CD18: 0 | CE18: 0 | CF18: 0 | CG18: 0 | CH18: 0 | CI18: 0 | CJ18: 0 | CK18: 0 | CL18: 0 | CM18: 0 | CN18: 0 | CO18: 0 | CP18: 0 | CQ18: 0 | CR18: 0 | CS18: 0 | CT18: 0 | CU18: 0 | CV18: 0 | CW18: 0 | CX18: 0 | CY18: 0 | CZ18: 0 | DA18: 0 | DB18: 0 | DC18: 0 | DD18: 0 | DE18: 0 | DF18: 0 | DG18: 0 | DH18: 0 | DI18: 0 | DJ18: 0 | DK18: 0 | DL18: 0 | DM18: 0 | DN18: 0 | DO18: 0 | DP18: 0 | DQ18: 0 | DR18: 0 | DS18: 0 | DT18: 0 | DU18: 0 | DV18: 0 | DW18: 0 | DX18: 0 | DY18: 0 | DZ18: 0 | EA18: 0 | EB18: 0 | EC18: 0 | ED18: 0 | EE18: 0 | EF18: 0 | EG18: 0 | EH18: 0 | EI18: 0 | EJ18: 0 | EK18: 0 | EL18: 0 | EM18: 0 | EN18: 0 | EO18: 0 | EP18: 0 | EQ18: 0 | ER18: 0 | ES18: 0 | ET18: 0 | EU18: 0 | EV18: 0 | EW18: 0 | EX18: 0 | EY18: 0 | EZ18: 0 | FA18: 0 | FB18: 0 | FC18: 0 | FD18: 0 | FE18: 0 | FF18: 0 | FG18: 0 | FH18: 0 | FI18: 0 | FJ18: 0 | FK18: 0 | FL18: 0 | FM18: 0 | FN18: 0 | FO18: 0 | FP18: 0 | FQ18: 0 | FR18: 0 | FS18: 0 | FT18: 0 | FU18: 0 | FV18: 0 | FW18: 0 | FX18: 0 | FY18: 0 | FZ18: 0 | GA18: 0 | GB18: 0 | GC18: 0 | GD18: 0 | GE18: 0 | GF18: 0 | GG18: 0 | GH18: 0 | GI18: 0 | GJ18: 0 | GK18: 0 | GL18: 0 | GM18: 0 | GN18: 0 | GO18: 0 | GP18: 0 | GQ18: 0 | GR18: 0 | GT18: 13 | GU18: 0 | GV18: 15 | GW18: =INDEX($BW$6:$GR$261,$GT18,$BJ$14) -> 0 | GX18: 0
A19: =IF(C19<>"",IF(C19<>VLOOKUP(C19,Compounds!$B$11:'Compounds'!$G$610,1),"Name error",14),"") ->  | H19: 2) Press Run simualtion | M19: R 1Dx2D | AE19: 3.2 | AF19: =IF('Macro input'!$F$19=1,GC!AG19,IF($K$29>0,IF($AE19<$I$29,$G$29,IF($AE19<$I$29+$J$29,$G$29+((H$29-G$29)*($AE19-I$29)/J$29),$H$29)),$G$29)) -> 150 | AG19: 150 | AH19: 0.051 | AI19: 0.17 | AJ19: 6 | AK19: 6 | AL19: 15 | AM19: 5 | AN19: 18 | AO19: 0 | AP19: 0 | AQ19: 0 | AR19: 0 | AS19: 0 | AT19: 0 | AU19: 0 | AV19: 0 | AW19: 0 | AX19: 0 | AY19: 0 | AZ19: 0 | BA19: 0 | BB19: 0 | BC19: 0 | BD19: 0 | BE19: 0 | BF19: 0 | BG19: 0 | BH19: 0 | BI19: Row | BJ19: =ROUND(O68/(BJ3*C31),0)+1 -> 79 | BK19: 3.4 | BL19: 1.02 | BM19: 15.00123359 | BN19: 10.41991566 | BO19: 0 | BP19: =CN$4*$N$32+$M$32 -> 46.99780019 | BU19: 1.3 | BW19: 0 | BX19: 0 | BY19: 0 | BZ19: 0 | CA19: 0 | CB19: 0 | CC19: 0 | CD19: 0 | CE19: 0 | CF19: 0 | CG19: 0 | CH19: 0 | CI19: 0 | CJ19: 0 | CK19: 0 | CL19: 0 | CM19: 0 | CN19: 0 | CO19: 0 | CP19: 0 | CQ19: 0 | CR19: 0 | CS19: 0 | CT19: 0 | CU19: 0 | CV19: 0 | CW19: 0 | CX19: 0 | CY19: 0 | CZ19: 0 | DA19: 0 | DB19: 0 | DC19: 0 | DD19: 0 | DE19: 0 | DF19: 0 | DG19: 0 | DH19: 0 | DI19: 0 | DJ19: 0 | DK19: 0 | DL19: 0 | DM19: 0 | DN19: 0 | DO19: 0 | DP19: 0 | DQ19: 0 | DR19: 0 | DS19: 0 | DT19: 0 | DU19: 0 | DV19: 0 | DW19: 0 | DX19: 0 | DY19: 0 | DZ19: 0 | EA19: 0 | EB19: 0 | EC19: 0 | ED19: 0 | EE19: 0 | EF19: 0 | EG19: 0 | EH19: 0 | EI19: 0 | EJ19: 0 | EK19: 0 | EL19: 0 | EM19: 0 | EN19: 0 | EO19: 0 | EP19: 0 | EQ19: 0 | ER19: 0 | ES19: 0 | ET19: 0 | EU19: 0 | EV19: 0 | EW19: 0 | EX19: 0 | EY19: 0 | EZ19: 0 | FA19: 0 | FB19: 0 | FC19: 0 | FD19: 0 | FE19: 0 | FF19: 0 | FG19: 0 | FH19: 0 | FI19: 0 | FJ19: 0 | FK19: 0 | FL19: 0 | FM19: 0 | FN19: 0 | FO19: 0 | FP19: 0 | FQ19: 0 | FR19: 0 | FS19: 0 | FT19: 0 | FU19: 0 | FV19: 0 | FW19: 0 | FX19: 0 | FY19: 0 | FZ19: 0 | GA19: 0 | GB19: 0 | GC19: 0 | GD19: 0 | GE19: 0 | GF19: 0 | GG19: 0 | GH19: 0 | GI19: 0 | GJ19: 0 | GK19: 0 | GL19: 0 | GM19: 0 | GN19: 0 | GO19: 0 | GP19: 0 | GQ19: 0 | GR19: 0 | GT19: 14 | GU19: 0 | GV19: 15 | GW19: =INDEX($BW$6:$GR$261,$GT19,$BJ$14) -> 0 | GX19: 0
A20: =IF(C20<>"",IF(C20<>VLOOKUP(C20,Compounds!$B$11:'Compounds'!$G$610,1),"Name error",15),"") ->  | H20: 3) Analyse the results | M20: =CORREL(C85:C104,J85:J104) -> 0.9244190191 | AE20: 3.4 | AF20: =IF('Macro input'!$F$19=1,GC!AG20,IF($K$29>0,IF($AE20<$I$29,$G$29,IF($AE20<$I$29+$J$29,$G$29+((H$29-G$29)*($AE20-I$29)/J$29),$H$29)),$G$29)) -> 150 | AG20: 150 | AH20: 0.054 | AI20: 0.18 | AJ20: 6 | AK20: 6 | AL20: 15 | AM20: 5 | AN20: 19 | AO20: 0 | AP20: 0 | AQ20: 0 | AR20: 0 | AS20: 0 | AT20: 0 | AU20: 0 | AV20: 0 | AW20: 0 | AX20: 0 | AY20: 0 | AZ20: 0 | BA20: 0 | BB20: 0 | BC20: 0 | BD20: 0 | BE20: 0 | BF20: 0 | BG20: 0 | BH20: 0 | BI20: Max | BJ20: =MAX(BW2:GR2) -> 0 | BK20: 3.6 | BL20: 1.08 | BM20: 15.00127326 | BN20: 12.03511984 | BO20: 0 | BP20: =CO$4*$N$32+$M$32 -> 46.36819912 | BU20: 1.4 | BW20: 2.154514597e-72 | BX20: 1.045780543e-63 | BY20: 1.442901334e-55 | BZ20: 5.658973678e-48 | CA20: 6.308755176e-41 | CB20: 1.999192599e-34 | CC20: 1.800821048e-28 | CD20: 4.610960925e-23 | CE20: 3.35596395e-18 | CF20: 6.943014835e-14 | CG20: 4.083042126e-10 | CH20: 6.825344701e-07 | CI20: 0.0003243174222 | CJ20: 0.04380472222 | CK20: 1.6818085 | CL20: 18.35427003 | CM20: 56.93805815 | CN20: 50.20802611 | CO20: 12.58486627 | CP20: 0.8966625341 | CQ20: 0.01815993976 | CR20: 0.0001045453557 | CS20: 1.710803172e-07 | CT20: 7.957933585e-11 | CU20: 1.052217535e-14 | CV20: 3.954719825e-19 | CW20: 4.225040421e-24 | CX20: 1.283071849e-29 | CY20: 1.107582401e-35 | CZ20: 2.717728553e-42 | DA20: 1.895575423e-49 | DB20: 3.758209816e-57 | DC20: 2.117999909e-65 | DD20: 3.392937134e-74 | DE20: 1.545007706e-83 | DF20: 1.999817885e-93 | DG20: 7.357922474e-104 | DH20: 7.695288889e-115 | DI20: 2.287702835e-126 | DJ20: 1.933210981e-138 | DK20: 4.643696823e-151 | DL20: 3.170687376e-164 | DM20: 6.153864796e-178 | DN20: 3.395059879e-192 | DO20: 5.324169678e-207 | DP20: 2.37334732e-222 | DQ20: 3.007292492e-238 | DR20: 1.083165959e-254 | DS20: 1.108968722e-271 | DT20: 3.227368477e-289 | DU20: 2.66982484e-307 | DV20: 0 | DW20: 0 | DX20: 0 | DY20: 0 | DZ20: 0 | EA20: 0 | EB20: 0 | EC20: 0 | ED20: 0 | EE20: 0 | EF20: 0 | EG20: 0 | EH20: 0 | EI20: 0 | EJ20: 0 | EK20: 0 | EL20: 0 | EM20: 0 | EN20: 0 | EO20: 0 | EP20: 0 | EQ20: 0 | ER20: 0 | ES20: 0 | ET20: 0 | EU20: 0 | EV20: 0 | EW20: 0 | EX20: 0 | EY20: 0 | EZ20: 0 | FA20: 0 | FB20: 1.22084219e-303 | FC20: 1.147535963e-285 | FD20: 3.066041589e-268 | FE20: 2.328599177e-251 | FF20: 5.027086971e-235 | FG20: 3.0849137e-219 | FH20: 5.381143839e-204 | FI20: 2.668155545e-189 | FJ20: 3.760561089e-175 | FK20: 1.506603991e-161 | FL20: 1.715736301e-148 | FM20: 5.55401346e-136 | FN20: 5.110557477e-124 | FO20: 1.336701968e-112 | FP20: 9.938157127e-102 | FQ20: 2.100303672e-91 | FR20: 1.261720867e-81 | FS20: 2.154514597e-72 | FT20: 0 | FU20: 0 | FV20: 0 | FW20: 0 | FX20: 0 | FY20: 0 | FZ20: 0 | GA20: 0 | GB20: 0 | GC20: 0 | GD20: 0 | GE20: 0 | GF20: 0 | GG20: 0 | GH20: 0 | GI20: 0 | GJ20: 0 | GK20: 0 | GL20: 0 | GM20: 0 | GN20: 0 | GO20: 0 | GP20: 0 | GQ20: 0 | GR20: 0 | GT20: 15 | GU20: 1.40726086 | GV20: 16.40726086 | GW20: =INDEX($BW$6:$GR$261,$GT20,$BJ$14) -> 0 | GX20: 0
A21: =IF(C21<>"",IF(C21<>VLOOKUP(C21,Compounds!$B$11:'Compounds'!$G$610,1),"Name error",16),"") ->  | H21: 4) Have fun (or read the manual) | AE21: 3.6 | AF21: =IF('Macro input'!$F$19=1,GC!AG21,IF($K$29>0,IF($AE21<$I$29,$G$29,IF($AE21<$I$29+$J$29,$G$29+((H$29-G$29)*($AE21-I$29)/J$29),$H$29)),$G$29)) -> 150 | AG21: 150 | AH21: 0.057 | AI21: 0.19 | AJ21: 6 | AK21: 6 | AL21: 15 | AM21: 5 | AN21: 20 | AO21: 0 | AP21: 0 | AQ21: 0 | AR21: 0 | AS21: 0 | AT21: 0 | AU21: 0 | AV21: 0 | AW21: 0 | AX21: 0 | AY21: 0 | AZ21: 0 | BA21: 0 | BB21: 0 | BC21: 0 | BD21: 0 | BE21: 0 | BF21: 0 | BG21: 0 | BH21: 0 | BI21: Plot factor | BJ21: =O69*BJ11/BJ20 ->  | BK21: 3.8 | BL21: 1.14 | BM21: 15.00131411 | BN21: 13.49782949 | BO21: 0 | BP21: =CP$4*$N$32+$M$32 -> 38.9827769 | BU21: 1.5 | BW21: 4.409066167e-70 | BX21: 3.712327905e-62 | BY21: 3.168203592e-54 | BZ21: 1.162982688e-46 | CA21: 1.284594493e-39 | CB21: 4.064206162e-33 | CC21: 3.659612088e-27 | CD21: 9.369423426e-22 | CE21: 6.819091908e-17 | CF21: 1.410774278e-12 | CG21: 8.296645153e-09 | CH21: 1.38696186e-05 | CI21: 0.006591041796 | CJ21: 0.890428861 | CK21: 34.20438623 | CL21: 373.8411363 | CM21: 1165.972446 | CN21: 1055.890921 | CO21: 314.7980803 | CP21: 58.60413678 | CQ21: 11.2230374 | CR21: 1.109974356 | CS21: 0.04231865621 | CT21: 0.000602078789 | CU21: 3.187568412e-06 | CV21: 6.277975083e-09 | CW21: 4.599557542e-12 | CX21: 1.253564319e-15 | CY21: 1.270898953e-19 | CZ21: 4.793019885e-24 | DA21: 6.724209662e-29 | DB21: 3.5091915e-34 | DC21: 6.812502862e-40 | DD21: 4.919717137e-46 | DE21: 1.321622354e-52 | DF21: 1.320712916e-59 | DG21: 4.909568012e-67 | DH21: 6.789095897e-75 | DI21: 3.492323066e-83 | DJ21: 6.682680351e-92 | DK21: 4.756864392e-101 | DL21: 1.259576821e-110 | DM21: 1.240687355e-120 | DN21: 4.546046342e-131 | DO21: 6.196396043e-142 | DP21: 3.141798181e-153 | DQ21: 5.92585754e-165 | DR21: 4.157745825e-177 | DS21: 1.085171732e-189 | DT21: 1.053592851e-202 | DU21: 3.80523046e-216 | DV21: 5.112377569e-230 | DW21: 2.555045765e-244 | DX21: 4.750160162e-259 | DY21: 3.285122958e-274 | DZ21: 8.45140302e-290 | EA21: 8.087975033e-306 | EB21: 0 | EC21: 0 | ED21: 0 | EE21: 0 | EF21: 0 | EG21: 0 | EH21: 0 | EI21: 0 | EJ21: 0 | EK21: 0 | EL21: 0 | EM21: 0 | EN21: 0 | EO21: 0 | EP21: 0 | EQ21: 0 | ER21: 0 | ES21: 0 | ET21: 0 | EU21: 0 | EV21: 0 | EW21: 0 | EX21: 0 | EY21: 0 | EZ21: 3.722452386e-296 | FA21: 2.149010046e-280 | FB21: 4.61510458e-265 | FC21: 3.686875348e-250 | FD21: 1.095643254e-235 | FE21: 1.211193942e-221 | FF21: 4.980718741e-208 | FG21: 7.6191084e-195 | FH21: 4.335608846e-182 | FI21: 9.177615137e-170 | FJ21: 7.226756076e-158 | FK21: 2.116853278e-146 | FL21: 2.306598077e-135 | FM21: 9.349468017e-125 | FN21: 1.409729167e-114 | FO21: 7.907121736e-105 | FP21: 1.649833266e-95 | FQ21: 1.280944609e-86 | FR21: 3.722857526e-78 | FS21: 4.409066167e-70 | FT21: 0 | FU21: 0 | FV21: 0 | FW21: 0 | FX21: 0 | FY21: 0 | FZ21: 0 | GA21: 0 | GB21: 0 | GC21: 0 | GD21: 0 | GE21: 0 | GF21: 0 | GG21: 0 | GH21: 0 | GI21: 0 | GJ21: 0 | GK21: 0 | GL21: 0 | GM21: 0 | GN21: 0 | GO21: 0 | GP21: 0 | GQ21: 0 | GR21: 0 | GT21: 16 | GU21: 30.16584076 | GV21: 45.16584076 | GW21: =INDEX($BW$6:$GR$261,$GT21,$BJ$14) -> 2.555045765e-244 | GX21: 6.527402049e-245
A22: =IF(C22<>"",IF(C22<>VLOOKUP(C22,Compounds!$B$11:'Compounds'!$G$610,1),"Name error",17),"") ->  | AE22: 3.8 | AF22: =IF('Macro input'!$F$19=1,GC!AG22,IF($K$29>0,IF($AE22<$I$29,$G$29,IF($AE22<$I$29+$J$29,$G$29+((H$29-G$29)*($AE22-I$29)/J$29),$H$29)),$G$29)) -> 150 | AG22: 150 | AH22: 0.06 | AI22: 0.2 | AJ22: 6 | AK22: 6 | AL22: 15 | AM22: 5 | AN22: 21 | AO22: 0 | AP22: 0 | AQ22: 0 | AR22: 0 | AS22: 0 | AT22: 0 | AU22: 0 | AV22: 0 | AW22: 0 | AX22: 0 | AY22: 0 | AZ22: 0 | BA22: 0 | BB22: 0 | BC22: 0 | BD22: 0 | BE22: 0 | BF22: 0 | BG22: 0 | BH22: 0 | BK22: 4 | BL22: 1.2 | BM22: 15.00135618 | BN22: 14.69957434 | BO22: 0 | BP22: =CQ$4*$N$32+$M$32 -> 27.52242616 | BU22: 1.6 | BW22: 8.461688565e-69 | BX22: 3.392718034e-61 | BY22: 5.132805237e-54 | BZ22: 3.049240124e-47 | CA22: 7.808413905e-41 | CB22: 9.43658436e-35 | CC22: 5.089639749e-29 | CD22: 1.048913752e-23 | CE22: 7.392051468e-19 | CF22: 1.694483279e-14 | CG22: 1.239179129e-10 | CH22: 2.870372709e-07 | CI22: 0.0002101347991 | CJ22: 0.04864785336 | CK22: 3.574954883 | CL22: 84.26862166 | CM22: 654.8914962 | CN22: 1796.484634 | CO22: 1990.76881 | CP22: 1025.268139 | CQ22: 244.5621866 | CR22: 24.42222104 | CS22: 0.9671798515 | CT22: 0.0156639408 | CU22: 0.0001178527793 | CV22: 4.847914476e-07 | CW22: 1.082773788e-09 | CX22: 1.129544154e-12 | CY22: 4.957756402e-16 | CZ22: 8.811289759e-20 | DA22: 6.273362043e-24 | DB22: 1.784520287e-28 | DC22: 2.026961605e-33 | DD22: 9.192191095e-39 | DE22: 1.66430065e-44 | DF22: 1.203045089e-50 | DG22: 3.471915173e-57 | DH22: 4.000307161e-64 | DI22: 1.84015582e-71 | DJ22: 3.379503376e-79 | DK22: 2.477925213e-87 | DL22: 7.253715696e-96 | DM22: 8.477540824e-105 | DN22: 3.955635582e-114 | DO22: 7.368849471e-124 | DP22: 5.480499217e-134 | DQ22: 1.627337304e-144 | DR22: 1.929176954e-155 | DS22: 9.13068952e-167 | DT22: 1.725329748e-178 | DU22: 1.301600391e-190 | DV22: 3.920308602e-203 | DW22: 4.714111665e-216 | DX22: 2.263166473e-229 | DY22: 4.337806357e-243 | DZ22: 3.319409602e-257 | EA22: 1.014118151e-271 | EB22: 1.236953265e-286 | EC22: 6.023585113e-302 | ED22: 0 | EE22: 0 | EF22: 0 | EG22: 0 | EH22: 0 | EI22: 0 | EJ22: 0 | EK22: 0 | EL22: 0 | EM22: 0 | EN22: 0 | EO22: 0 | EP22: 0 | EQ22: 0 | ER22: 0 | ES22: 0 | ET22: 0 | EU22: 0 | EV22: 0 | EW22: 0 | EX22: 0 | EY22: 4.672010889e-305 | EZ22: 1.15280982e-289 | FA22: 1.135690623e-274 | FB22: 4.467483607e-260 | FC22: 7.021262294e-246 | FD22: 4.420044359e-232 | FE22: 1.126224841e-218 | FF22: 1.205661986e-205 | FG22: 6.009149742e-193 | FH22: 1.621897744e-180 | FI22: 2.398514706e-168 | FJ22: 1.651608813e-156 | FK22: 4.621798169e-145 | FL22: 4.957762253e-134 | FM22: 1.998280264e-123 | FN22: 3.006592919e-113 | FO22: 1.684924384e-103 | FP22: 3.514268004e-94 | FQ22: 2.727187653e-85 | FR22: 7.874068234e-77 | FS22: 8.461688565e-69 | FT22: 0 | FU22: 0 | FV22: 0 | FW22: 0 | FX22: 0 | FY22: 0 | FZ22: 0 | GA22: 0 | GB22: 0 | GC22: 0 | GD22: 0 | GE22: 0 | GF22: 0 | GG22: 0 | GH22: 0 | GI22: 0 | GJ22: 0 | GK22: 0 | GL22: 0 | GM22: 0 | GN22: 0 | GO22: 0 | GP22: 0 | GQ22: 0 | GR22: 0 | GT22: 17 | GU22: 58.25272884 | GV22: 73.25272884 | GW22: =INDEX($BW$6:$GR$261,$GT22,$BJ$14) -> 4.714111665e-216 | GX22: 1.204319021e-216
A23: =IF(C23<>"",IF(C23<>VLOOKUP(C23,Compounds!$B$11:'Compounds'!$G$610,1),"Name error",18),"") ->  | H23: Test for proper modulation: | K23: VBA temp.program. | M23: C-term. | AE23: 4 | AF23: =IF('Macro input'!$F$19=1,GC!AG23,IF($K$29>0,IF($AE23<$I$29,$G$29,IF($AE23<$I$29+$J$29,$G$29+((H$29-G$29)*($AE23-I$29)/J$29),$H$29)),$G$29)) -> 150 | AG23: 150 | AH23: 0.063 | AI23: 0.21 | AJ23: 6 | AK23: 6 | AL23: 15 | AM23: 5 | AN23: 22 | AO23: 0 | AP23: 0 | AQ23: 0 | AR23: 0 | AS23: 0 | AT23: 0 | AU23: 0 | AV23: 0 | AW23: 0 | AX23: 0 | AY23: 0 | AZ23: 0 | BA23: 0 | BB23: 0 | BC23: 0 | BD23: 0 | BE23: 0 | BF23: 0 | BG23: 0 | BH23: 0 | BI23: Analyt # | BJ23: =N61 -> 11 | BK23: 4.2 | BL23: 1.26 | BM23: 15.00139948 | BN23: 15.54436134 | BO23: 0 | BP23: =CR$4*$N$32+$M$32 -> 20.97955693 | BU23: 1.7 | BW23: 2.030632961e-70 | BX23: 5.413716722e-63 | BY23: 5.848465391e-56 | BZ23: 2.669443093e-49 | CA23: 5.80662263e-43 | CB23: 6.751220937e-37 | CC23: 3.734706436e-31 | CD23: 7.902202556e-26 | CE23: 5.657803077e-21 | CF23: 1.309658377e-16 | CG23: 9.654868284e-13 | CH23: 2.258949827e-09 | CI23: 1.68397123e-06 | CJ23: 0.0004066351495 | CK23: 0.03348126266 | CL23: 1.080792487 | CM23: 17.3239987 | CN23: 151.0306692 | CO23: 620.0852828 | CP23: 1064.500186 | CQ23: 736.0582032 | CR23: 203.4765787 | CS23: 22.46211886 | CT23: 0.9900252796 | CU23: 0.01742151167 | CV23: 0.0001223952983 | CW23: 3.433060026e-07 | CX23: 3.844459607e-10 | CY23: 1.71880375e-13 | CZ23: 3.067992707e-17 | DA23: 2.186348465e-21 | DB23: 6.220445176e-26 | DC23: 7.065787576e-31 | DD23: 3.204326134e-36 | DE23: 5.801627912e-42 | DF23: 4.193726046e-48 | DG23: 1.21028393e-54 | DH23: 1.39447747e-61 | DI23: 6.414647001e-69 | DJ23: 1.178069866e-76 | DK23: 8.637863905e-85 | DL23: 2.528591608e-93 | DM23: 2.95520799e-102 | DN23: 1.378905289e-111 | DO23: 2.56872639e-121 | DP23: 1.910461467e-131 | DQ23: 5.672777406e-142 | DR23: 6.724968086e-153 | DS23: 3.182890792e-164 | DT23: 6.014371811e-176 | DU23: 4.537282634e-188 | DV23: 1.366590565e-200 | DW23: 1.643304438e-213 | DX23: 7.889230831e-227 | DY23: 1.512127192e-240 | DZ23: 1.157121621e-254 | EA23: 3.535140822e-269 | EB23: 4.311927536e-284 | EC23: 2.099777191e-299 | ED23: 0 | EE23: 0 | EF23: 0 | EG23: 0 | EH23: 0 | EI23: 0 | EJ23: 0 | EK23: 0 | EL23: 0 | EM23: 0 | EN23: 0 | EO23: 0 | EP23: 0 | EQ23: 0 | ER23: 0 | ES23: 0 | ET23: 0 | EU23: 0 | EV23: 0 | EW23: 0 | EX23: 0 | EY23: 1.628628419e-302 | EZ23: 4.018582084e-287 | FA23: 3.958773948e-272 | FB23: 1.556989159e-257 | FC23: 2.444823433e-243 | FD23: 1.532662173e-229 | FE23: 3.836033737e-216 | FF23: 3.83314705e-203 | FG23: 1.529205248e-190 | FH23: 2.435644066e-178 | FI23: 1.548820695e-166 | FJ23: 3.932167608e-155 | FK23: 3.985817837e-144 | FL23: 1.613181652e-133 | FM23: 2.607264376e-123 | FN23: 1.68318293e-113 | FO23: 4.342229769e-104 | FP23: 4.479481746e-95 | FQ23: 1.849615111e-86 | FR23: 3.060092124e-78 | FS23: 2.030632961e-70 | FT23: 0 | FU23: 0 | FV23: 0 | FW23: 0 | FX23: 0 | FY23: 0 | FZ23: 0 | GA23: 0 | GB23: 0 | GC23: 0 | GD23: 0 | GE23: 0 | GF23: 0 | GG23: 0 | GH23: 0 | GI23: 0 | GJ23: 0 | GK23: 0 | GL23: 0 | GM23: 0 | GN23: 0 | GO23: 0 | GP23: 0 | GQ23: 0 | GR23: 0 | GT23: 18 | GU23: 28.17059289 | GV23: 43.17059289 | GW23: =INDEX($BW$6:$GR$261,$GT23,$BJ$14) -> 1.643304438e-213 | GX23: 4.198166977e-214
A24: =IF(C24<>"",IF(C24<>VLOOKUP(C24,Compounds!$B$11:'Compounds'!$G$610,1),"Name error",19),"") ->  | H24: =IF('Macro input'!N6="Ok"," Ok","Change tmax 1D to ") -> Ok | K24: 1D | L24: =IF('Macro input'!F19=0,"LSS","Complex") -> LSS | M24: 1D | N24: =IF(Columns!K7=0,"Litt.","Mean") -> Mean | AE24: 4.2 | AF24: =IF('Macro input'!$F$19=1,GC!AG24,IF($K$29>0,IF($AE24<$I$29,$G$29,IF($AE24<$I$29+$J$29,$G$29+((H$29-G$29)*($AE24-I$29)/J$29),$H$29)),$G$29)) -> 150 | AG24: 150 | AH24: 0.066 | AI24: 0.22 | AJ24: 6 | AK24: 6 | AL24: 15 | AM24: 5 | AN24: 23 | AO24: 0 | AP24: 0 | AQ24: 0 | AR24: 0 | AS24: 0 | AT24: 0 | AU24: 0 | AV24: 0 | AW24: 0 | AX24: 0 | AY24: 0 | AZ24: 0 | BA24: 0 | BB24: 0 | BC24: 0 | BD24: 0 | BE24: 0 | BF24: 0 | BG24: 0 | BH24: 0 | BI24: sqrt(pi/2) | BJ24: =SQRT(PI()/2) -> 1.253314137 | BK24: 4.4 | BL24: 1.32 | BM24: 15.00144406 | BN24: 15.96130185 | BO24: 0 | BP24: =CS$4*$N$32+$M$32 -> 23.38284351 | BU24: 1.8 | BW24: 1.405462844e-71 | BX24: 3.671222476e-64 | BY24: 3.828591788e-57 | BZ24: 1.594059208e-50 | CA24: 2.649761944e-44 | CB24: 1.758515875e-38 | CC24: 4.659322303e-33 | CD24: 4.928743737e-28 | CE24: 2.081549525e-23 | CF24: 3.509734649e-19 | CG24: 2.362647022e-15 | CH24: 6.34980558e-12 | CI24: 6.813323942e-09 | CJ24: 2.918735048e-06 | CK24: 0.0004991916739 | CL24: 0.03408607679 | CM24: 0.9292310817 | CN24: 10.11363936 | CO24: 43.94689773 | CP24: 76.24054778 | CQ24: 52.8057017 | CR24: 14.60201039 | CS24: 1.612061155 | CT24: 0.07105381453 | CU24: 0.001250346285 | CV24: 8.784362374e-06 | CW24: 2.463923406e-08 | CX24: 2.759187336e-11 | CY24: 1.233593857e-14 | CZ24: 2.201913394e-18 | DA24: 1.569153006e-22 | DB24: 4.464443985e-27 | DC24: 5.071150368e-32 | DD24: 2.299760568e-37 | DE24: 4.163856782e-43 | DF24: 3.009857734e-49 | DG24: 8.686267076e-56 | DH24: 1.000823314e-62 | DI24: 4.603823586e-70 | DJ24: 8.455065155e-78 | DK24: 6.199437253e-86 | DL24: 1.814782588e-94 | DM24: 2.120967256e-103 | DN24: 9.896470829e-113 | DO24: 1.843587517e-122 | DP24: 1.371147556e-132 | DQ24: 4.071380142e-143 | DR24: 4.82654255e-154 | DS24: 2.284376318e-165 | DT24: 4.316544121e-177 | DU24: 3.256429981e-189 | DV24: 9.808087453e-202 | DW24: 1.179407648e-214 | DX24: 5.662139627e-228 | DY24: 1.085261096e-241 | DZ24: 8.304718575e-256 | EA24: 2.537187891e-270 | EB24: 3.094691522e-285 | EC24: 1.507020379e-300 | ED24: 0 | EE24: 0 | EF24: 0 | EG24: 0 | EH24: 0 | EI24: 0 | EJ24: 0 | EK24: 0 | EL24: 0 | EM24: 0 | EN24: 0 | EO24: 0 | EP24: 0 | EQ24: 0 | ER24: 0 | ES24: 0 | ET24: 0 | EU24: 0 | EV24: 0 | EW24: 0 | EX24: 0 | EY24: 1.168874597e-303 | EZ24: 2.884156054e-288 | FA24: 2.841231462e-273 | FB24: 1.117458749e-258 | FC24: 1.754661754e-244 | FD24: 1.099999138e-230 | FE24: 2.753140053e-217 | FF24: 2.751067774e-204 | FG24: 1.09751711e-191 | FH24: 1.748068047e-179 | FI24: 1.111584275e-167 | FJ24: 2.82204204e-156 | FK24: 2.860365881e-145 | FL24: 1.157488604e-134 | FM24: 1.870031336e-124 | FN24: 1.206196514e-114 | FO24: 3.106163262e-105 | FP24: 3.193504362e-96 | FQ24: 1.31083423e-87 | FR24: 2.14815225e-79 | FS24: 1.405462844e-71 | FT24: 0 | FU24: 0 | FV24: 0 | FW24: 0 | FX24: 0 | FY24: 0 | FZ24: 0 | GA24: 0 | GB24: 0 | GC24: 0 | GD24: 0 | GE24: 0 | GF24: 0 | GG24: 0 | GH24: 0 | GI24: 0 | GJ24: 0 | GK24: 0 | GL24: 0 | GM24: 0 | GN24: 0 | GO24: 0 | GP24: 0 | GQ24: 0 | GR24: 0 | GT24: 19 | GU24: 2.003569904 | GV24: 17.0035699 | GW24: =INDEX($BW$6:$GR$261,$GT24,$BJ$14) -> 1.179407648e-214 | GX24: 3.013045011e-215
A25: =IF(C25<>"",IF(C25<>VLOOKUP(C25,Compounds!$B$11:'Compounds'!$G$610,1),"Name error",20),"") ->  | H25: =IF('Macro input'!N6="Ok","",'Macro input'!N6) ->  | I25: =IF(H25="","","or") ->  | J25: =IF('Macro input'!N7="Ok","",'Macro input'!N7) ->  | M25: 2D | N25: =IF(Columns!L7=0,"Litt.","Mean") -> Mean | AE25: 4.4 | AF25: =IF('Macro input'!$F$19=1,GC!AG25,IF($K$29>0,IF($AE25<$I$29,$G$29,IF($AE25<$I$29+$J$29,$G$29+((H$29-G$29)*($AE25-I$29)/J$29),$H$29)),$G$29)) -> 150 | AG25: 150 | AH25: 0.069 | AI25: 0.23 | AJ25: 6 | AK25: 6 | AL25: 15 | AM25: 5 | AN25: 24 | AO25: 0 | AP25: 0 | AQ25: 0 | AR25: 0 | AS25: 0 | AT25: 0 | AU25: 0 | AV25: 0 | AW25: 0 | AX25: 0 | AY25: 0 | AZ25: 0 | BA25: 0 | BB25: 0 | BC25: 0 | BD25: 0 | BE25: 0 | BF25: 0 | BG25: 0 | BH25: 0 | BI25: Chart 2: | BK25: 4.6 | BL25: 1.38 | BM25: 15.00148995 | BN25: 15.91442826 | BO25: 0 | BP25: =CT$4*$N$32+$M$32 -> 30.41032871 | BU25: 1.9 | BW25: 0 | BX25: 0 | BY25: 0 | BZ25: 0 | CA25: 0 | CB25: 0 | CC25: 0 | CD25: 0 | CE25: 0 | CF25: 0 | CG25: 0 | CH25: 0 | CI25: 0 | CJ25: 0 | CK25: 0 | CL25: 0 | CM25: 0 | CN25: 0 | CO25: 0 | CP25: 0 | CQ25: 0 | CR25: 0 | CS25: 0 | CT25: 0 | CU25: 0 | CV25: 0 | CW25: 0 | CX25: 0 | CY25: 0 | CZ25: 0 | DA25: 0 | DB25: 0 | DC25: 0 | DD25: 0 | DE25: 0 | DF25: 0 | DG25: 0 | DH25: 0 | DI25: 0 | DJ25: 0 | DK25: 0 | DL25: 0 | DM25: 0 | DN25: 0 | DO25: 0 | DP25: 0 | DQ25: 0 | DR25: 0 | DS25: 0 | DT25: 0 | DU25: 0 | DV25: 0 | DW25: 0 | DX25: 0 | DY25: 0 | DZ25: 0 | EA25: 0 | EB25: 0 | EC25: 0 | ED25: 0 | EE25: 0 | EF25: 0 | EG25: 0 | EH25: 0 | EI25: 0 | EJ25: 0 | EK25: 0 | EL25: 0 | EM25: 0 | EN25: 0 | EO25: 0 | EP25: 0 | EQ25: 0 | ER25: 0 | ES25: 0 | ET25: 0 | EU25: 0 | EV25: 0 | EW25: 0 | EX25: 0 | EY25: 0 | EZ25: 0 | FA25: 0 | FB25: 0 | FC25: 0 | FD25: 0 | FE25: 0 | FF25: 0 | FG25: 0 | FH25: 0 | FI25: 0 | FJ25: 0 | FK25: 0 | FL25: 0 | FM25: 0 | FN25: 0 | FO25: 0 | FP25: 0 | FQ25: 0 | FR25: 0 | FS25: 0 | FT25: 0 | FU25: 0 | FV25: 0 | FW25: 0 | FX25: 0 | FY25: 0 | FZ25: 0 | GA25: 0 | GB25: 0 | GC25: 0 | GD25: 0 | GE25: 0 | GF25: 0 | GG25: 0 | GH25: 0 | GI25: 0 | GJ25: 0 | GK25: 0 | GL25: 0 | GM25: 0 | GN25: 0 | GO25: 0 | GP25: 0 | GQ25: 0 | GR25: 0 | GT25: 20 | GU25: 0 | GV25: 15 | GW25: =INDEX($BW$6:$GR$261,$GT25,$BJ$14) -> 0 | GX25: 0
H26: Copy/Paste Value… to cell B31 | AE26: 4.6 | AF26: =IF('Macro input'!$F$19=1,GC!AG26,IF($K$29>0,IF($AE26<$I$29,$G$29,IF($AE26<$I$29+$J$29,$G$29+((H$29-G$29)*($AE26-I$29)/J$29),$H$29)),$G$29)) -> 150 | AG26: 150 | AH26: 0.072 | AI26: 0.24 | AJ26: 6 | AK26: 6 | AL26: 15 | AM26: 5 | AN26: 25 | AO26: 0 | AP26: 0 | AQ26: 0 | AR26: 0 | AS26: 0 | AT26: 0 | AU26: 0 | AV26: 0 | AW26: 0 | AX26: 0 | AY26: 0 | AZ26: 0 | BA26: 0 | BB26: 0 | BC26: 0 | BD26: 0 | BE26: 0 | BF26: 0 | BG26: 0 | BH26: 0 | BI26: 2D tR | BJ26: =INDEX(G85:H104,N61,1) -> 1.344 | BK26: 4.8 | BL26: 1.44 | BM26: 15.00153719 | BN26: 15.40781567 | BO26: 0 | BP26: =CU$4*$N$32+$M$32 -> 34.0872988 | BU26: 2 | BW26: 5.41413297e-77 | BX26: 6.474044431e-71 | BY26: 4.32102871e-65 | BZ26: 1.60976821e-59 | CA26: 3.347374164e-54 | CB26: 3.885168789e-49 | CC26: 2.516982762e-44 | CD26: 9.10154896e-40 | CE26: 1.837025126e-35 | CF26: 2.069567529e-31 | CG26: 1.301394076e-27 | CH26: 4.56775464e-24 | CI26: 8.948730477e-21 | CJ26: 9.785540233e-18 | CK26: 5.972730296e-15 | CL26: 2.034818699e-12 | CM26: 3.869396675e-10 | CN26: 4.107007603e-08 | CO26: 2.433170138e-06 | CP26: 8.046076683e-05 | CQ26: 0.001485116678 | CR26: 0.01530036184 | CS26: 0.08798477874 | CT26: 0.2824087245 | CU26: 0.5059567462 | CV26: 0.5059567462 | CW26: 0.2824087245 | CX26: 0.08798477874 | CY26: 0.01530036184 | CZ26: 0.001485116678 | DA26: 8.046076683e-05 | DB26: 2.433170138e-06 | DC26: 4.107007603e-08 | DD26: 3.869396675e-10 | DE26: 2.034818699e-12 | DF26: 5.972730296e-15 | DG26: 9.785540233e-18 | DH26: 8.948730477e-21 | DI26: 4.56775464e-24 | DJ26: 1.301394076e-27 | DK26: 2.069567529e-31 | DL26: 1.837025126e-35 | DM26: 9.10154896e-40 | DN26: 2.516982762e-44 | DO26: 3.885168789e-49 | DP26: 3.347374164e-54 | DQ26: 1.60976821e-59 | DR26: 4.32102871e-65 | DS26: 6.474044431e-71 | DT26: 5.41413297e-77 | DU26: 2.527242279e-83 | DV26: 6.584602421e-90 | DW26: 9.575841627e-97 | DX26: 7.773007211e-104 | DY26: 3.521809859e-111 | DZ26: 8.906507902e-119 | EA26: 1.257227085e-126 | EB26: 9.905689672e-135 | EC26: 4.356326541e-143 | ED26: 1.06935241e-151 | EE26: 1.465163184e-160 | EF26: 1.120510319e-169 | EG26: 4.783110809e-179 | EH26: 1.139645401e-188 | EI26: 1.515631981e-198 | EJ26: 1.125077651e-208 | EK26: 4.661610174e-219 | EL26: 1.078087788e-229 | EM26: 1.391672415e-240 | EN26: 1.002731434e-251 | EO26: 4.032709688e-263 | EP26: 9.05261407e-275 | EQ26: 1.13426824e-286 | ER26: 7.932722389e-299 | ES26: 0 | ET26: 0 | EU26: 7.932722389e-299 | EV26: 1.13426824e-286 | EW26: 9.05261407e-275 | EX26: 4.032709688e-263 | EY26: 1.002731434e-251 | EZ26: 1.391672415e-240 | FA26: 1.078087788e-229 | FB26: 4.661610174e-219 | FC26: 1.125077651e-208 | FD26: 1.515631981e-198 | FE26: 1.139645401e-188 | FF26: 4.783110809e-179 | FG26: 1.120510319e-169 | FH26: 1.465163184e-160 | FI26: 1.06935241e-151 | FJ26: 4.356326541e-143 | FK26: 9.905689672e-135 | FL26: 1.257227085e-126 | FM26: 8.906507902e-119 | FN26: 3.521809859e-111 | FO26: 7.773007211e-104 | FP26: 9.575841627e-97 | FQ26: 6.584602421e-90 | FR26: 2.527242279e-83 | FS26: 5.41413297e-77 | FT26: 0 | FU26: 0 | FV26: 0 | FW26: 0 | FX26: 0 | FY26: 0 | FZ26: 0 | GA26: 0 | GB26: 0 | GC26: 0 | GD26: 0 | GE26: 0 | GF26: 0 | GG26: 0 | GH26: 0 | GI26: 0 | GJ26: 0 | GK26: 0 | GL26: 0 | GM26: 0 | GN26: 0 | GO26: 0 | GP26: 0 | GQ26: 0 | GR26: 0 | GT26: 21 | GU26: 0.01786437327 | GV26: 15.01786437 | GW26: =INDEX($BW$6:$GR$261,$GT26,$BJ$14) -> 9.575841627e-97 | GX26: 2.446350242e-97
A27: Table 2 | D27: Table 3 | AE27: 4.8 | AF27: =IF('Macro input'!$F$19=1,GC!AG27,IF($K$29>0,IF($AE27<$I$29,$G$29,IF($AE27<$I$29+$J$29,$G$29+((H$29-G$29)*($AE27-I$29)/J$29),$H$29)),$G$29)) -> 150 | AG27: 150 | AH27: 0.075 | AI27: 0.25 | AJ27: 6 | AK27: 6 | AL27: 15 | AM27: 5 | AN27: 26 | AO27: 0 | AP27: 0 | AQ27: 0 | AR27: 0 | AS27: 0 | AT27: 0 | AU27: 0 | AV27: 0 | AW27: 0 | AX27: 0 | AY27: 0 | AZ27: 0 | BA27: 0 | BB27: 0 | BC27: 0 | BD27: 0 | BE27: 0 | BF27: 0 | BG27: 0 | BH27: 0 | BI27: 2D w | BJ27: =INDEX(G85:H104,N61,2)/4 -> 0.3498662907 | BK27: 5 | BL27: 1.5 | BM27: 15.00158581 | BN27: 14.48499703 | BO27: 0 | BP27: =CV$4*$N$32+$M$32 -> 29.95688005 | BU27: 2.1 | BW27: 3.051678794e-74 | BX27: 3.649098427e-68 | BY27: 2.435550024e-62 | BZ27: 9.073466679e-57 | CA27: 1.886749145e-51 | CB27: 2.189877358e-46 | CC27: 1.41869861e-41 | CD27: 5.130092687e-37 | CE27: 1.035440144e-32 | CF27: 1.166512787e-28 | CG27: 7.335314307e-25 | CH27: 2.574617219e-21 | CI27: 5.043956471e-18 | CJ27: 5.515624714e-15 | CK27: 3.36653246e-12 | CL27: 1.146926592e-09 | CM27: 2.180987398e-07 | CN27: 2.314916918e-05 | CO27: 0.001371457582 | CP27: 0.04535175203 | CQ27: 0.8370867685 | CR27: 8.624056707 | CS27: 49.59266515 | CT27: 159.1798208 | CU27: 285.1827766 | CV27: 285.1827766 | CW27: 159.1798208 | CX27: 49.59266515 | CY27: 8.624056707 | CZ27: 0.8370867685 | DA27: 0.04535175203 | DB27: 0.001371457582 | DC27: 2.314916918e-05 | DD27: 2.180987398e-07 | DE27: 1.146926592e-09 | DF27: 3.36653246e-12 | DG27: 5.515624714e-15 | DH27: 5.043956471e-18 | DI27: 2.574617219e-21 | DJ27: 7.335314307e-25 | DK27: 1.166512787e-28 | DL27: 1.035440144e-32 | DM27: 5.130092687e-37 | DN27: 1.41869861e-41 | DO27: 2.189877358e-46 | DP27: 1.886749145e-51 | DQ27: 9.073466679e-57 | DR27: 2.435550024e-62 | DS27: 3.649098427e-68 | DT27: 3.051678794e-74 | DU27: 1.424481392e-80 | DV27: 3.711414494e-87 | DW27: 5.397427989e-94 | DX27: 4.381259456e-101 | DY27: 1.985069913e-108 | DZ27: 5.020157695e-116 | EA27: 7.08636684e-124 | EB27: 5.583347007e-132 | EC27: 2.455445664e-140 | ED27: 6.027410281e-149 | EE27: 8.258399715e-158 | EF27: 6.315762097e-167 | EG27: 2.696002833e-176 | EH27: 6.423617081e-186 | EI27: 8.542867348e-196 | EJ27: 6.341505883e-206 | EK27: 2.627518939e-216 | EL27: 6.076647286e-227 | EM27: 7.844168623e-238 | EN27: 5.651900812e-249 | EO27: 2.27303886e-260 | EP27: 5.102510511e-272 | EQ27: 6.393308687e-284 | ER27: 4.471282997e-296 | ES27: 0 | ET27: 0 | EU27: 4.471282997e-296 | EV27: 6.393308687e-284 | EW27: 5.102510511e-272 | EX27: 2.27303886e-260 | EY27: 5.651900812e-249 | EZ27: 7.844168623e-238 | FA27: 6.076647286e-227 | FB27: 2.627518939e-216 | FC27: 6.341505883e-206 | FD27: 8.542867348e-196 | FE27: 6.423617081e-186 | FF27: 2.696002833e-176 | FG27: 6.315762097e-167 | FH27: 8.258399715e-158 | FI27: 6.027410281e-149 | FJ27: 2.455445664e-140 | FK27: 5.583347007e-132 | FL27: 7.08636684e-124 | FM27: 5.020157695e-116 | FN27: 1.985069913e-108 | FO27: 4.381259456e-101 | FP27: 5.397427989e-94 | FQ27: 3.711414494e-87 | FR27: 1.424481392e-80 | FS27: 3.051678794e-74 | FT27: 0 | FU27: 0 | FV27: 0 | FW27: 0 | FX27: 0 | FY27: 0 | FZ27: 0 | GA27: 0 | GB27: 0 | GC27: 0 | GD27: 0 | GE27: 0 | GF27: 0 | GG27: 0 | GH27: 0 | GI27: 0 | GJ27: 0 | GK27: 0 | GL27: 0 | GM27: 0 | GN27: 0 | GO27: 0 | GP27: 0 | GQ27: 0 | GR27: 0 | GT27: 22 | GU27: 10.06926305 | GV27: 25.06926305 | GW27: =INDEX($BW$6:$GR$261,$GT27,$BJ$14) -> 5.397427989e-94 | GX27: 1.378886554e-94
A28: Settings | B28: 1D | C28: 2D | E28: Name* | F28: Beta | G28: To | H28: Tmax | I28: t(iso) | J28: t(pgm) | K28: dT | L28: Degree | M28: Offset | N28: Amplify | AE28: 5 | AF28: =IF('Macro input'!$F$19=1,GC!AG28,IF($K$29>0,IF($AE28<$I$29,$G$29,IF($AE28<$I$29+$J$29,$G$29+((H$29-G$29)*($AE28-I$29)/J$29),$H$29)),$G$29)) -> 150 | AG28: 150 | AH28: 0.078 | AI28: 0.26 | AJ28: 6 | AK28: 6 | AL28: 15 | AM28: 5 | AN28: 27 | AO28: 0 | AP28: 0 | AQ28: 0 | AR28: 0 | AS28: 0 | AT28: 0 | AU28: 0 | AV28: 0 | AW28: 0 | AX28: 0 | AY28: 0 | AZ28: 0 | BA28: 0 | BB28: 0 | BC28: 0 | BD28: 0 | BE28: 0 | BF28: 0 | BG28: 0 | BH28: 0 | BI28: Chart 5: | BK28: 5.2 | BL28: 1.56 | BM28: 15.00163584 | BN28: 13.22278845 | BO28: 0 | BP28: =CW$4*$N$32+$M$32 -> 22.72257246 | BU28: 2.2 | BW28: 5.959530453e-74 | BX28: 7.126213035e-68 | BY28: 4.756311367e-62 | BZ28: 1.771929637e-56 | CA28: 3.684574866e-51 | CB28: 4.276544711e-46 | CC28: 2.770533251e-41 | CD28: 1.001840156e-36 | CE28: 2.02207948e-32 | CF28: 2.278047248e-28 | CG28: 1.432491161e-24 | CH28: 5.027891451e-21 | CI28: 9.850188772e-18 | CJ28: 1.07712953e-14 | CK28: 6.574398575e-12 | CL28: 2.239797964e-09 | CM28: 4.259183779e-07 | CN28: 4.520730653e-05 | CO28: 0.002678277688 | CP28: 0.08856605348 | CQ28: 1.634721222 | CR28: 16.84165734 | CS28: 96.8480034 | CT28: 310.8574177 | CU28: 556.9247474 | CV28: 556.9247474 | CW28: 310.8574177 | CX28: 96.8480034 | CY28: 16.84165734 | CZ28: 1.634721222 | DA28: 0.08856605348 | DB28: 0.002678277688 | DC28: 4.520730653e-05 | DD28: 4.259183779e-07 | DE28: 2.239797964e-09 | DF28: 6.574398575e-12 | DG28: 1.07712953e-14 | DH28: 9.850188772e-18 | DI28: 5.027891451e-21 | DJ28: 1.432491161e-24 | DK28: 2.278047248e-28 | DL28: 2.02207948e-32 | DM28: 1.001840156e-36 | DN28: 2.770533251e-41 | DO28: 4.276544711e-46 | DP28: 3.684574866e-51 | DQ28: 1.771929637e-56 | DR28: 4.756311367e-62 | DS28: 7.126213035e-68 | DT28: 5.959530453e-74 | DU28: 2.781826269e-80 | DV28: 7.247908181e-87 | DW28: 1.054047252e-93 | DX28: 8.556027981e-101 | DY28: 3.876582496e-108 | DZ28: 9.803712868e-116 | EA28: 1.38387497e-123 | EB28: 1.09035481e-131 | EC28: 4.795164956e-140 | ED28: 1.177074573e-148 | EE28: 1.612757696e-157 | EF28: 1.233385919e-166 | EG28: 5.264941715e-176 | EH28: 1.25444859e-185 | EI28: 1.668310512e-195 | EJ28: 1.238413345e-205 | EK28: 5.131201606e-216 | EL28: 1.186689917e-226 | EM28: 1.531863769e-237 | EN28: 1.103742473e-248 | EO28: 4.438948272e-260 | EP28: 9.964537171e-272 | EQ28: 1.248529756e-283 | ER28: 8.731832209e-296 | ES28: 0 | ET28: 0 | EU28: 8.731832209e-296 | EV28: 1.248529756e-283 | EW28: 9.964537171e-272 | EX28: 4.438948272e-260 | EY28: 1.103742473e-248 | EZ28: 1.531863769e-237 | FA28: 1.186689917e-226 | FB28: 5.131201606e-216 | FC28: 1.238413345e-205 | FD28: 1.668310512e-195 | FE28: 1.25444859e-185 | FF28: 5.264941715e-176 | FG28: 1.233385919e-166 | FH28: 1.612757696e-157 | FI28: 1.177074573e-148 | FJ28: 4.795164956e-140 | FK28: 1.09035481e-131 | FL28: 1.38387497e-123 | FM28: 9.803712868e-116 | FN28: 3.876582496e-108 | FO28: 8.556027981e-101 | FP28: 1.054047252e-93 | FQ28: 7.247908181e-87 | FR28: 2.781826269e-80 | FS28: 5.959530453e-74 | FT28: 0 | FU28: 0 | FV28: 0 | FW28: 0 | FX28: 0 | FY28: 0 | FZ28: 0 | GA28: 0 | GB28: 0 | GC28: 0 | GD28: 0 | GE28: 0 | GF28: 0 | GG28: 0 | GH28: 0 | GI28: 0 | GJ28: 0 | GK28: 0 | GL28: 0 | GM28: 0 | GN28: 0 | GO28: 0 | GP28: 0 | GQ28: 0 | GR28: 0 | GT28: 23 | GU28: 19.66395674 | GV28: 34.66395674 | GW28: =INDEX($BW$6:$GR$261,$GT28,$BJ$14) -> 1.054047252e-93 | GX28: 2.692785501e-94
A29: tM, min | B29: 1 | C29: 0.01 | D29: 1D LSS | E29: HP-5 | F29: 1 | G29: 150 | H29: 350 | I29: 5 | J29: 20 | K29: =IF(H29>G29,H29-G29,0) -> 200 | M29: 6 | N29: 1 | AE29: 5.2 | AF29: =IF('Macro input'!$F$19=1,GC!AG29,IF($K$29>0,IF($AE29<$I$29,$G$29,IF($AE29<$I$29+$J$29,$G$29+((H$29-G$29)*($AE29-I$29)/J$29),$H$29)),$G$29)) -> 152 | AG29: 152 | AH29: 0.081 | AI29: 0.27 | AJ29: 6 | AK29: 6 | AL29: 15 | AM29: 5 | AN29: 28 | AO29: 0 | AP29: 0 | AQ29: 0 | AR29: 0 | AS29: 0 | AT29: 0 | AU29: 0 | AV29: 0 | AW29: 0 | AX29: 0 | AY29: 0 | AZ29: 0 | BA29: 0 | BB29: 0 | BC29: 0 | BD29: 0 | BE29: 0 | BF29: 0 | BG29: 0 | BH29: 0 | BI29: 2D tR | BJ29: =INDEX(G85:H104,N61,1) -> 1.344 | BK29: 5.4 | BL29: 1.62 | BM29: 15.00168733 | BN29: 11.72073891 | BO29: 0 | BP29: =CX$4*$N$32+$M$32 -> 18.13305928 | BU29: 2.3 | BW29: 7.543775889e-76 | BX29: 9.020602293e-70 | BY29: 6.020700337e-64 | BZ29: 2.242968667e-58 | CA29: 4.664059905e-53 | CB29: 5.413395422e-48 | CC29: 3.50703501e-43 | CD29: 1.268163268e-38 | CE29: 2.559616827e-34 | CF29: 2.883629513e-30 | CG29: 1.813295924e-26 | CH29: 6.364475625e-23 | CI29: 1.246870322e-19 | CJ29: 1.363467112e-16 | CK29: 8.322096824e-14 | CL29: 2.835212272e-11 | CM29: 5.391419366e-09 | CN29: 5.722494275e-07 | CO29: 3.390254787e-05 | CP29: 0.001121099161 | CQ29: 0.02069285599 | CR29: 0.213187414 | CS29: 1.225934893 | CT29: 3.934938685 | CU29: 7.049742449 | CV29: 7.049742449 | CW29: 3.934938685 | CX29: 1.225934893 | CY29: 0.213187414 | CZ29: 0.02069285599 | DA29: 0.001121099161 | DB29: 3.390254787e-05 | DC29: 5.722494275e-07 | DD29: 5.391419366e-09 | DE29: 2.835212272e-11 | DF29: 8.322096824e-14 | DG29: 1.363467112e-16 | DH29: 1.246870322e-19 | DI29: 6.364475625e-23 | DJ29: 1.813295924e-26 | DK29: 2.883629513e-30 | DL29: 2.559616827e-34 | DM29: 1.268163268e-38 | DN29: 3.50703501e-43 | DO29: 5.413395422e-48 | DP29: 4.664059905e-53 | DQ29: 2.242968667e-58 | DR29: 6.020700337e-64 | DS29: 9.020602293e-70 | DT29: 7.543775889e-76 | DU29: 3.521330095e-82 | DV29: 9.174648139e-89 | DW29: 1.334248781e-95 | DX29: 1.083051057e-102 | DY29: 4.907109678e-110 | DZ29: 1.240987245e-117 | EA29: 1.751755899e-125 | EB29: 1.380208121e-133 | EC29: 6.069882529e-142 | ED29: 1.489980939e-150 | EE29: 2.041483421e-159 | EF29: 1.561261753e-168 | EG29: 6.664541893e-178 | EH29: 1.587923596e-187 | EI29: 2.111804062e-197 | EJ29: 1.567625638e-207 | EK29: 6.495249125e-218 | EL29: 1.502152368e-228 | EM29: 1.939085144e-239 | EN29: 1.397154679e-250 | EO29: 5.618971362e-262 | EP29: 1.261344931e-273 | EQ29: 1.580431336e-285 | ER29: 1.105304953e-297 | ES29: 0 | ET29: 0 | EU29: 1.105304953e-297 | EV29: 1.580431336e-285 | EW29: 1.261344931e-273 | EX29: 5.618971362e-262 | EY29: 1.397154679e-250 | EZ29: 1.939085144e-239 | FA29: 1.502152368e-228 | FB29: 6.495249125e-218 | FC29: 1.567625638e-207 | FD29: 2.111804062e-197 | FE29: 1.587923596e-187 | FF29: 6.664541893e-178 | FG29: 1.561261753e-168 | FH29: 2.041483421e-159 | FI29: 1.489980939e-150 | FJ29: 6.069882529e-142 | FK29: 1.380208121e-133 | FL29: 1.751755899e-125 | FM29: 1.240987245e-117 | FN29: 4.907109678e-110 | FO29: 1.083051057e-102 | FP29: 1.334248781e-95 | FQ29: 9.174648139e-89 | FR29: 3.521330095e-82 | FS29: 7.543775889e-76 | FT29: 0 | FU29: 0 | FV29: 0 | FW29: 0 | FX29: 0 | FY29: 0 | FZ29: 0 | GA29: 0 | GB29: 0 | GC29: 0 | GD29: 0 | GE29: 0 | GF29: 0 | GG29: 0 | GH29: 0 | GI29: 0 | GJ29: 0 | GK29: 0 | GL29: 0 | GM29: 0 | GN29: 0 | GO29: 0 | GP29: 0 | GQ29: 0 | GR29: 0 | GT29: 24 | GU29: 0.2489130375 | GV29: 15.24891304 | GW29: =INDEX($BW$6:$GR$261,$GT29,$BJ$14) -> 1.334248781e-95 | GX29: 3.408619269e-96
A30: N | B30: 2000 | C30: 500 | D30: 1D VBA | L30: 2 | M30: 6 | N30: 1 | AE30: 5.4 | AF30: =IF('Macro input'!$F$19=1,GC!AG30,IF($K$29>0,IF($AE30<$I$29,$G$29,IF($AE30<$I$29+$J$29,$G$29+((H$29-G$29)*($AE30-I$29)/J$29),$H$29)),$G$29)) -> 154 | AG30: 154 | AH30: 0.084 | AI30: 0.28 | AJ30: 6 | AK30: 6 | AL30: 15 | AM30: 5 | AN30: 29 | AO30: 0 | AP30: 0 | AQ30: 0 | AR30: 0 | AS30: 0 | AT30: 0 | AU30: 0 | AV30: 0 | AW30: 0 | AX30: 0 | AY30: 0 | AZ30: 0 | BA30: 0 | BB30: 0 | BC30: 0 | BD30: 0 | BE30: 0 | BF30: 0 | BG30: 0 | BH30: 0 | BI30: 2D w | BJ30: =INDEX(G85:H104,N61,2)/4 -> 0.3498662907 | BK30: 5.6 | BL30: 1.68 | BM30: 15.00174032 | BN30: 10.08821285 | BO30: 0 | BP30: =CY$4*$N$32+$M$32 -> 16.52767108 | BU30: 2.4 | BW30: 0 | BX30: 0 | BY30: 0 | BZ30: 0 | CA30: 0 | CB30: 0 | CC30: 0 | CD30: 0 | CE30: 0 | CF30: 0 | CG30: 0 | CH30: 0 | CI30: 0 | CJ30: 0 | CK30: 0 | CL30: 0 | CM30: 0 | CN30: 0 | CO30: 0 | CP30: 0 | CQ30: 0 | CR30: 0 | CS30: 0 | CT30: 0 | CU30: 0 | CV30: 0 | CW30: 0 | CX30: 0 | CY30: 0 | CZ30: 0 | DA30: 0 | DB30: 0 | DC30: 0 | DD30: 0 | DE30: 0 | DF30: 0 | DG30: 0 | DH30: 0 | DI30: 0 | DJ30: 0 | DK30: 0 | DL30: 0 | DM30: 0 | DN30: 0 | DO30: 0 | DP30: 0 | DQ30: 0 | DR30: 0 | DS30: 0 | DT30: 0 | DU30: 0 | DV30: 0 | DW30: 0 | DX30: 0 | DY30: 0 | DZ30: 0 | EA30: 0 | EB30: 0 | EC30: 0 | ED30: 0 | EE30: 0 | EF30: 0 | EG30: 0 | EH30: 0 | EI30: 0 | EJ30: 0 | EK30: 0 | EL30: 0 | EM30: 0 | EN30: 0 | EO30: 0 | EP30: 0 | EQ30: 0 | ER30: 0 | ES30: 0 | ET30: 0 | EU30: 0 | EV30: 0 | EW30: 0 | EX30: 0 | EY30: 0 | EZ30: 0 | FA30: 0 | FB30: 0 | FC30: 0 | FD30: 0 | FE30: 0 | FF30: 0 | FG30: 0 | FH30: 0 | FI30: 0 | FJ30: 0 | FK30: 0 | FL30: 0 | FM30: 0 | FN30: 0 | FO30: 0 | FP30: 0 | FQ30: 0 | FR30: 0 | FS30: 0 | FT30: 0 | FU30: 0 | FV30: 0 | FW30: 0 | FX30: 0 | FY30: 0 | FZ30: 0 | GA30: 0 | GB30: 0 | GC30: 0 | GD30: 0 | GE30: 0 | GF30: 0 | GG30: 0 | GH30: 0 | GI30: 0 | GJ30: 0 | GK30: 0 | GL30: 0 | GM30: 0 | GN30: 0 | GO30: 0 | GP30: 0 | GQ30: 0 | GR30: 0 | GT30: 25 | GU30: 0 | GV30: 15 | GW30: =INDEX($BW$6:$GR$261,$GT30,$BJ$14) -> 0 | GX30: 0
A31: tmax | B31: 20 | C31: 0.1 | D31: 2D LSS | E31: Rxi-50-240 | F31: 1 | G31: Offset | H31: 30 | I31: oC | M31: 15 | N31: 0.1 | AE31: 5.6 | AF31: =IF('Macro input'!$F$19=1,GC!AG31,IF($K$29>0,IF($AE31<$I$29,$G$29,IF($AE31<$I$29+$J$29,$G$29+((H$29-G$29)*($AE31-I$29)/J$29),$H$29)),$G$29)) -> 156 | AG31: 156 | AH31: 0.087 | AI31: 0.29 | AJ31: 6 | AK31: 6 | AL31: 15 | AM31: 5 | AN31: 30 | AO31: 0 | AP31: 0 | AQ31: 0 | AR31: 0 | AS31: 0 | AT31: 0 | AU31: 0 | AV31: 0 | AW31: 0 | AX31: 0 | AY31: 0 | AZ31: 0 | BA31: 0 | BB31: 0 | BC31: 0 | BD31: 0 | BE31: 0 | BF31: 0 | BG31: 0 | BH31: 0 | BI31: h | BJ31: =$O$61*BJ11*BJ24*BJ30 -> 14.03079118 | BK31: 5.8 | BL31: 1.74 | BM31: 15.00179483 | BN31: 8.431421192 | BO31: 0 | BP31: =CZ$4*$N$32+$M$32 -> 16.08558461 | BU31: 2.5 | BW31: 0 | BX31: 0 | BY31: 0 | BZ31: 0 | CA31: 0 | CB31: 0 | CC31: 0 | CD31: 0 | CE31: 0 | CF31: 0 | CG31: 0 | CH31: 0 | CI31: 0 | CJ31: 0 | CK31: 0 | CL31: 0 | CM31: 0 | CN31: 0 | CO31: 0 | CP31: 0 | CQ31: 0 | CR31: 0 | CS31: 0 | CT31: 0 | CU31: 0 | CV31: 0 | CW31: 0 | CX31: 0 | CY31: 0 | CZ31: 0 | DA31: 0 | DB31: 0 | DC31: 0 | DD31: 0 | DE31: 0 | DF31: 0 | DG31: 0 | DH31: 0 | DI31: 0 | DJ31: 0 | DK31: 0 | DL31: 0 | DM31: 0 | DN31: 0 | DO31: 0 | DP31: 0 | DQ31: 0 | DR31: 0 | DS31: 0 | DT31: 0 | DU31: 0 | DV31: 0 | DW31: 0 | DX31: 0 | DY31: 0 | DZ31: 0 | EA31: 0 | EB31: 0 | EC31: 0 | ED31: 0 | EE31: 0 | EF31: 0 | EG31: 0 | EH31: 0 | EI31: 0 | EJ31: 0 | EK31: 0 | EL31: 0 | EM31: 0 | EN31: 0 | EO31: 0 | EP31: 0 | EQ31: 0 | ER31: 0 | ES31: 0 | ET31: 0 | EU31: 0 | EV31: 0 | EW31: 0 | EX31: 0 | EY31: 0 | EZ31: 0 | FA31: 0 | FB31: 0 | FC31: 0 | FD31: 0 | FE31: 0 | FF31: 0 | FG31: 0 | FH31: 0 | FI31: 0 | FJ31: 0 | FK31: 0 | FL31: 0 | FM31: 0 | FN31: 0 | FO31: 0 | FP31: 0 | FQ31: 0 | FR31: 0 | FS31: 0 | FT31: 0 | FU31: 0 | FV31: 0 | FW31: 0 | FX31: 0 | FY31: 0 | FZ31: 0 | GA31: 0 | GB31: 0 | GC31: 0 | GD31: 0 | GE31: 0 | GF31: 0 | GG31: 0 | GH31: 0 | GI31: 0 | GJ31: 0 | GK31: 0 | GL31: 0 | GM31: 0 | GN31: 0 | GO31: 0 | GP31: 0 | GQ31: 0 | GR31: 0 | GT31: 26 | GU31: 0 | GV31: 15 | GW31: =INDEX($BW$6:$GR$261,$GT31,$BJ$14) -> 0 | GX31: 0
A32: tM size | B32: 0.1 | D32: 2D VBA | F32: Extra column peakwidth 2D VBA | H32: 0.1 | I32: s | L32: 2 | M32: 15 | N32: 1 | AE32: 5.8 | AF32: =IF('Macro input'!$F$19=1,GC!AG32,IF($K$29>0,IF($AE32<$I$29,$G$29,IF($AE32<$I$29+$J$29,$G$29+((H$29-G$29)*($AE32-I$29)/J$29),$H$29)),$G$29)) -> 158 | AG32: 158 | AH32: 0.09 | AI32: 0.3 | AJ32: 6 | AK32: 6 | AL32: 15 | AM32: 5 | AN32: 31 | AO32: 0 | AP32: 0 | AQ32: 0 | AR32: 0 | AS32: 0 | AT32: 0 | AU32: 0 | AV32: 0 | AW32: 0 | AX32: 0 | AY32: 0 | AZ32: 0 | BA32: 0 | BB32: 0 | BC32: 0 | BD32: 0 | BE32: 0 | BF32: 0 | BG32: 0 | BH32: 0 | BI32: Chart 12: | BK32: 6 | BL32: 1.8 | BM32: 15.00185092 | BN32: 6.842497323 | BO32: 0 | BP32: =DA$4*$N$32+$M$32 -> 15.87482072 | BU32: 2.6 | BW32: 0 | BX32: 0 | BY32: 0 | BZ32: 0 | CA32: 0 | CB32: 0 | CC32: 0 | CD32: 0 | CE32: 0 | CF32: 0 | CG32: 0 | CH32: 0 | CI32: 0 | CJ32: 0 | CK32: 0 | CL32: 0 | CM32: 0 | CN32: 0 | CO32: 0 | CP32: 0 | CQ32: 0 | CR32: 0 | CS32: 0 | CT32: 0 | CU32: 0 | CV32: 0 | CW32: 0 | CX32: 0 | CY32: 0 | CZ32: 0 | DA32: 0 | DB32: 0 | DC32: 0 | DD32: 0 | DE32: 0 | DF32: 0 | DG32: 0 | DH32: 0 | DI32: 0 | DJ32: 0 | DK32: 0 | DL32: 0 | DM32: 0 | DN32: 0 | DO32: 0 | DP32: 0 | DQ32: 0 | DR32: 0 | DS32: 0 | DT32: 0 | DU32: 0 | DV32: 0 | DW32: 0 | DX32: 0 | DY32: 0 | DZ32: 0 | EA32: 0 | EB32: 0 | EC32: 0 | ED32: 0 | EE32: 0 | EF32: 0 | EG32: 0 | EH32: 0 | EI32: 0 | EJ32: 0 | EK32: 0 | EL32: 0 | EM32: 0 | EN32: 0 | EO32: 0 | EP32: 0 | EQ32: 0 | ER32: 0 | ES32: 0 | ET32: 0 | EU32: 0 | EV32: 0 | EW32: 0 | EX32: 0 | EY32: 0 | EZ32: 0 | FA32: 0 | FB32: 0 | FC32: 0 | FD32: 0 | FE32: 0 | FF32: 0 | FG32: 0 | FH32: 0 | FI32: 0 | FJ32: 0 | FK32: 0 | FL32: 0 | FM32: 0 | FN32: 0 | FO32: 0 | FP32: 0 | FQ32: 0 | FR32: 0 | FS32: 0 | FT32: 0 | FU32: 0 | FV32: 0 | FW32: 0 | FX32: 0 | FY32: 0 | FZ32: 0 | GA32: 0 | GB32: 0 | GC32: 0 | GD32: 0 | GE32: 0 | GF32: 0 | GG32: 0 | GH32: 0 | GI32: 0 | GJ32: 0 | GK32: 0 | GL32: 0 | GM32: 0 | GN32: 0 | GO32: 0 | GP32: 0 | GQ32: 0 | GR32: 0 | GT32: 27 | GU32: 0 | GV32: 15 | GW32: =INDEX($BW$6:$GR$261,$GT32,$BJ$14) -> 0 | GX32: 0
A33: 4/sqrt(N) | B33: =4/SQRT(B30) -> 0.0894427191 | C33: =4/SQRT(C30) -> 0.1788854382 | D33: Reference | M33: 5 | N33: -1 | AE33: 6 | AF33: =IF('Macro input'!$F$19=1,GC!AG33,IF($K$29>0,IF($AE33<$I$29,$G$29,IF($AE33<$I$29+$J$29,$G$29+((H$29-G$29)*($AE33-I$29)/J$29),$H$29)),$G$29)) -> 160 | AG33: 160 | AH33: 0.093 | AI33: 0.31 | AJ33: 6 | AK33: 6 | AL33: 15 | AM33: 5 | AN33: 32 | AO33: 0 | AP33: 0 | AQ33: 0 | AR33: 0 | AS33: 0 | AT33: 0 | AU33: 0 | AV33: 0 | AW33: 0 | AX33: 0 | AY33: 0 | AZ33: 0 | BA33: 0 | BB33: 0 | BC33: 0 | BD33: 0 | BE33: 0 | BF33: 0 | BG33: 0 | BH33: 0 | BI33: 1D tR | BJ33: =INDEX(C85:D104,N61,1) -> 10.35 | BK33: 6.2 | BL33: 1.86 | BM33: 15.00190862 | BN33: 5.392073335 | BO33: 0 | BP33: =DB$4*$N$32+$M$32 -> 15.70151098 | BU33: 2.7 | BW33: 7.902377256e-84 | BX33: 6.588103414e-80 | BY33: 4.385129688e-76 | BZ33: 2.330364531e-72 | CA33: 9.887458332e-69 | CB33: 3.349383345e-65 | CC33: 9.058669853e-62 | CD33: 1.956065497e-58 | CE33: 3.372265339e-55 | CF33: 4.641725675e-52 | CG33: 5.101014839e-49 | CH33: 4.475618795e-46 | CI33: 3.135226897e-43 | CJ33: 1.753493858e-40 | CK33: 7.829948525e-38 | CL33: 2.791469906e-35 | CM33: 7.945594163e-33 | CN33: 1.805673369e-30 | CO33: 3.276207438e-28 | CP33: 4.745948012e-26 | CQ33: 5.489009045e-24 | CR33: 5.068556612e-22 | CS33: 3.736749991e-20 | CT33: 2.199495957e-18 | CU33: 1.033645645e-16 | CV33: 3.878283705e-15 | CW33: 1.161787922e-13 | CX33: 2.77864794e-12 | CY33: 5.305906305e-11 | CZ33: 8.089189592e-10 | DA33: 9.84622685e-09 | DB33: 9.568724391e-08 | DC33: 7.424336359e-07 | DD33: 4.599182237e-06 | DE33: 2.274694003e-05 | DF33: 8.982241597e-05 | DG33: 0.000283182145 | DH33: 0.0007127978602 | DI33: 0.001432472498 | DJ33: 0.002298399845 | DK33: 0.002944314921 | DL33: 0.003011357531 | DM33: 0.002459007017 | DN33: 0.00160315901 | DO33: 0.000834474015 | DP33: 0.0003467914809 | DQ33: 0.0001150650441 | DR33: 3.048160154e-05 | DS33: 6.446909004e-06 | DT33: 1.088640994e-06 | DU33: 1.467699728e-07 | DV33: 1.579825532e-08 | DW33: 1.357689403e-09 | DX33: 9.315606032e-11 | DY33: 5.103183488e-12 | DZ33: 2.231981753e-13 | EA33: 7.793983481e-15 | EB33: 2.172939865e-16 | EC33: 4.836768699e-18 | ED33: 8.595721114e-20 | EE33: 1.219631686e-21 | EF33: 1.381638628e-23 | EG33: 1.249624754e-25 | EH33: 9.023689812e-28 | EI33: 5.202451999e-30 | EJ33: 2.394701525e-32 | EK33: 8.800636537e-35 | EL33: 2.582237387e-37 | EM33: 6.04919563e-40 | EN33: 1.131406006e-42 | EO33: 1.689502021e-45 | EP33: 2.014273024e-48 | EQ33: 1.917332097e-51 | ER33: 1.457121392e-54 | ES33: 8.841246743e-58 | ET33: 4.28302563e-61 | EU33: 1.656560192e-64 | EV33: 5.115441866e-68 | EW33: 1.261184056e-71 | EX33: 2.482522395e-75 | EY33: 3.901460944e-79 | EZ33: 4.895316072e-83 | FA33: 4.904035407e-87 | FB33: 3.922345463e-91 | FC33: 2.504710128e-95 | FD33: 1.276992913e-99 | FE33: 5.198031269e-104 | FF33: 1.689307358e-108 | FG33: 4.383266183e-113 | FH33: 9.08042972e-118 | FI33: 1.501878961e-122 | FJ33: 1.616812038e-123 | FK33: 1.022432013e-118 | FL33: 5.162760818e-114 | FM33: 2.081368402e-109 | FN33: 6.699390516e-105 | FO33: 1.721634736e-100 | FP33: 3.532369482e-96 | FQ33: 5.786428845e-92 | FR33: 7.567884499e-88 | FS33: 7.902377256e-84 | FT33: 0 | FU33: 0 | FV33: 0 | FW33: 0 | FX33: 0 | FY33: 0 | FZ33: 0 | GA33: 0 | GB33: 0 | GC33: 0 | GD33: 0 | GE33: 0 | GF33: 0 | GG33: 0 | GH33: 0 | GI33: 0 | GJ33: 0 | GK33: 0 | GL33: 0 | GM33: 0 | GN33: 0 | GO33: 0 | GP33: 0 | GQ33: 0 | GR33: 0 | GT33: 28 | GU33: 0.0001619721991 | GV33: 15.00016197 | GW33: =INDEX($BW$6:$GR$261,$GT33,$BJ$14) -> 1.357689403e-09 | GX33: 3.468503269e-10
A34: dt | B34: =B31/2000 -> 0.01 | C34: =C31*60/2000 -> 0.003 | AE34: 6.2 | AF34: =IF('Macro input'!$F$19=1,GC!AG34,IF($K$29>0,IF($AE34<$I$29,$G$29,IF($AE34<$I$29+$J$29,$G$29+((H$29-G$29)*($AE34-I$29)/J$29),$H$29)),$G$29)) -> 162 | AG34: 162 | AH34: 0.096 | AI34: 0.32 | AJ34: 6 | AK34: 6 | AL34: 15 | AM34: 5 | AN34: 33 | AO34: 0 | AP34: 0 | AQ34: 0 | AR34: 0 | AS34: 0 | AT34: 0 | AU34: 0 | AV34: 0 | AW34: 0 | AX34: 0 | AY34: 0 | AZ34: 0 | BA34: 0 | BB34: 0 | BC34: 0 | BD34: 0 | BE34: 0 | BF34: 0 | BG34: 0 | BH34: 0 | BI34: 1D w | BJ34: =INDEX(C85:D105,N61,2)/4 -> 0.06380976587 | BK34: 6.4 | BL34: 1.92 | BM34: 15.00196797 | BN34: =$BJ$31*NORMDIST(BL34,$BJ$29,$BJ$30,FALSE) -> 4.125952722 | BO34: =$BJ$35*NORMDIST(AI34,$BJ$33,$BJ$34,FALSE) -> 0 | BP34: =DC$4*$N$32+$M$32 -> 15.55002383 | BU34: 2.8 | BW34: 6.727360469e-81 | BX34: 5.608508053e-77 | BY34: 3.733097922e-73 | BZ34: 1.983858998e-69 | CA34: 8.417276747e-66 | CB34: 2.851358317e-62 | CC34: 7.711722119e-59 | CD34: 1.665215071e-55 | CE34: 2.870837952e-52 | CF34: 3.951540253e-49 | CG34: 4.342536995e-46 | CH34: 3.810132063e-43 | CI34: 2.669045125e-40 | CJ34: 1.492764124e-37 | CK34: 6.665701279e-35 | CL34: 2.376401897e-32 | CM34: 6.764151387e-30 | CN34: 1.537184982e-27 | CO34: 2.78906305e-25 | CP34: 4.040265608e-23 | CQ34: 4.672839738e-21 | CR34: 4.314905032e-19 | CS34: 3.181126812e-17 | CT34: 1.872449476e-15 | CU34: 8.799512633e-14 | CV34: 3.301615658e-12 | CW34: 9.890398658e-11 | CX34: 2.365486448e-09 | CY34: 4.51696283e-08 | CZ34: 6.886395388e-07 | DA34: 8.382176039e-06 | DB34: 8.145935852e-05 | DC34: 0.0006320400218 | DD34: 0.003915322664 | DE34: 0.01936466207 | DF34: 0.07646658099 | DG34: 0.2410753506 | DH34: 0.6068108357 | DI34: 1.219475931 | DJ34: 1.956647191 | DK34: 2.506520148 | DL34: 2.563594088 | DM34: 2.093373432 | DN34: 1.364782799 | DO34: 0.7103947735 | DP34: 0.2952265153 | DQ34: 0.09795584343 | DR34: 0.02594924472 | DS34: 0.00548830806 | DT34: 0.0009267692688 | DU34: 0.0001249465168 | DV34: 1.344918812e-05 | DW34: 1.15581245e-06 | DX34: 7.930454056e-08 | DY34: 4.344383184e-09 | DZ34: 1.900104909e-10 | EA34: 6.635083934e-12 | EB34: 1.84984205e-13 | EC34: 4.117582025e-15 | ED34: 7.317609948e-17 | EE34: 1.038282751e-18 | EF34: 1.176200627e-20 | EG34: 1.063816103e-22 | EH34: 7.681943315e-25 | EI34: 4.428891305e-27 | EJ34: 2.038629624e-29 | EK34: 7.492056178e-32 | EL34: 2.198280487e-34 | EM34: 5.149731307e-37 | EN34: 9.631754846e-40 | EO34: 1.438287333e-42 | EP34: 1.71476763e-45 | EQ34: 1.632241001e-48 | ER34: 1.240459742e-51 | ES34: 7.526627989e-55 | ET34: 3.646175876e-58 | EU34: 1.410243676e-61 | EV34: 4.354818844e-65 | EW34: 1.073656633e-68 | EX34: 2.113392272e-72 | EY34: 3.321346638e-76 | EZ34: 4.167423898e-80 | FA34: 4.174846742e-84 | FB34: 3.339125805e-88 | FC34: 2.132280876e-92 | FD34: 1.087114847e-96 | FE34: 4.425127901e-101 | FF34: 1.438121615e-105 | FG34: 3.731511505e-110 | FH34: 7.730246477e-115 | FI34: 1.278562238e-119 | FJ34: 1.376405737e-120 | FK34: 8.704050039e-116 | FL34: 4.395101868e-111 | FM34: 1.771886491e-106 | FN34: 5.703247702e-102 | FO34: 1.465642184e-97 | FP34: 3.00713596e-93 | FQ34: 4.926035724e-89 | FR34: 6.442603962e-85 | FS34: 6.727360469e-81 | FT34: 0 | FU34: 0 | FV34: 0 | FW34: 0 | FX34: 0 | FY34: 0 | FZ34: 0 | GA34: 0 | GB34: 0 | GC34: 0 | GD34: 0 | GE34: 0 | GF34: 0 | GG34: 0 | GH34: 0 | GI34: 0 | GJ34: 0 | GK34: 0 | GL34: 0 | GM34: 0 | GN34: 0 | GO34: 0 | GP34: 0 | GQ34: 0 | GR34: 0 | GT34: 29 | GU34: 0.1378883005 | GV34: 15.1378883 | GW34: =INDEX($BW$6:$GR$261,$GT34,$BJ$14) -> 1.15581245e-06 | GX34: 2.952766113e-07
AE35: 6.4 | AF35: =IF('Macro input'!$F$19=1,GC!AG35,IF($K$29>0,IF($AE35<$I$29,$G$29,IF($AE35<$I$29+$J$29,$G$29+((H$29-G$29)*($AE35-I$29)/J$29),$H$29)),$G$29)) -> 164 | AG35: 164 | AH35: 0.099 | AI35: 0.33 | AJ35: 6 | AK35: 6 | AL35: 15 | AM35: 5 | AN35: 34 | AO35: 0 | AP35: 0 | AQ35: 0 | AR35: 0 | AS35: 0 | AT35: 0 | AU35: 0 | AV35: 0 | AW35: 0 | AX35: 0 | AY35: 0 | AZ35: 0 | BA35: 0 | BB35: 0 | BC35: 0 | BD35: 0 | BE35: 0 | BF35: 0 | BG35: 0 | BH35: 0 | BI35: h | BJ35: =$O$61*BJ10*BJ24*BJ34 -> 4.658685192 | BK35: 6.6 | BL35: =BL34+$BJ$6 -> 1.98 | BM35: 15.00202902 | BN35: 3.065631904 | BO35: 0 | BP35: =DD$4*$N$32+$M$32 -> 15.42679151 | BU35: 2.9 | BW35: 2.998546147e-79 | BX35: 2.499846751e-75 | BY35: 1.66393141e-71 | BZ35: 8.84253606e-68 | CA35: 3.751782423e-64 | CB35: 1.270918889e-60 | CC35: 3.437299778e-57 | CD35: 7.422263543e-54 | CE35: 1.27960143e-50 | CF35: 1.761296404e-47 | CG35: 1.935573043e-44 | CH35: 1.698267377e-41 | CI35: 1.189657521e-38 | CJ35: 6.653608252e-36 | CK35: 2.971063165e-33 | CL35: 1.059219405e-30 | CM35: 3.014944743e-28 | CN35: 6.851602685e-26 | CO35: 1.243152392e-23 | CP35: 1.800843425e-21 | CQ35: 2.082796909e-19 | CR35: 1.923256814e-17 | CS35: 1.417904629e-15 | CT35: 8.345957062e-14 | CU35: 3.922154138e-12 | CV35: 1.471609401e-10 | CW35: 4.408388242e-09 | CX35: 1.054354127e-07 | CY35: 2.013318827e-06 | CZ35: 3.06943183e-05 | DA35: 0.0003736137194 | DB35: 0.003630839269 | DC35: 0.02817154189 | DD35: 0.1745153355 | DE35: 0.863129501 | DF35: 3.408299182 | DG35: 10.74530742 | DH35: 27.04701646 | DI35: 54.35497132 | DJ35: 87.21246501 | DK35: 111.7216234 | DL35: 114.265546 | DM35: 93.306682 | DN35: 60.83164745 | DO35: 31.66400137 | DP35: 13.1589549 | DQ35: 4.366127224 | DR35: 1.156620165 | DS35: 0.2446270727 | DT35: 0.04130833234 | DU35: 0.005569166367 | DV35: 0.0005994626184 | DW35: 5.151733707e-05 | DX35: 3.534793856e-06 | DY35: 1.936395934e-07 | DZ35: 8.469223969e-09 | EA35: 2.957416279e-10 | EB35: 8.245190337e-12 | EC35: 1.83530521e-13 | ED35: 3.261634517e-15 | EE35: 4.627875607e-17 | EF35: 5.242608711e-19 | EG35: 4.74168389e-21 | EH35: 3.42402665e-23 | EI35: 1.974063233e-25 | EJ35: 9.086661899e-28 | EK35: 3.339389392e-30 | EL35: 9.798264139e-33 | EM35: 2.295358936e-35 | EN35: 4.293104482e-38 | EO35: 6.410792109e-41 | EP35: 7.6431312e-44 | EQ35: 7.275290191e-47 | ER35: 5.52902702e-50 | ES35: 3.354798879e-53 | ET35: 1.625188166e-56 | EU35: 6.285794792e-60 | EV35: 1.941047358e-63 | EW35: 4.785545499e-67 | EX35: 9.419896979e-71 | EY35: 1.480403973e-74 | EZ35: 1.85752093e-78 | FA35: 1.86082947e-82 | FB35: 1.488328575e-86 | FC35: 9.504088023e-91 | FD35: 4.845531991e-95 | FE35: 1.972385794e-99 | FF35: 6.410053463e-104 | FG35: 1.663224306e-108 | FH35: 3.44555653e-113 | FI35: 5.698858996e-118 | FJ35: 6.134970973e-119 | FK35: 3.879604167e-114 | FL35: 1.95900247e-109 | FM35: 7.897723686e-105 | FN35: 2.542074488e-100 | FO35: 6.532719252e-96 | FP35: 1.340352727e-91 | FQ35: 2.195652442e-87 | FR35: 2.871623332e-83 | FS35: 2.998546147e-79 | FT35: 0 | FU35: 0 | FV35: 0 | FW35: 0 | FX35: 0 | FY35: 0 | FZ35: 0 | GA35: 0 | GB35: 0 | GC35: 0 | GD35: 0 | GE35: 0 | GF35: 0 | GG35: 0 | GH35: 0 | GI35: 0 | GJ35: 0 | GK35: 0 | GL35: 0 | GM35: 0 | GN35: 0 | GO35: 0 | GP35: 0 | GQ35: 0 | GR35: 0 | GT35: 30 | GU35: 6.146012749 | GV35: 21.14601275 | GW35: =INDEX($BW$6:$GR$261,$GT35,$BJ$14) -> 5.151733707e-05 | GX35: 1.31611878e-05
AE36: =AE35+$B$31/100 -> 6.6 | AF36: =IF('Macro input'!$F$19=1,GC!AG36,IF($K$29>0,IF($AE36<$I$29,$G$29,IF($AE36<$I$29+$J$29,$G$29+((H$29-G$29)*($AE36-I$29)/J$29),$H$29)),$G$29)) -> 166 | AG36: 166 | AH36: 0.102 | AI36: 0.34 | AJ36: 6 | AK36: 6 | AL36: 15 | AM36: 5 | AN36: 35 | AO36: 0 | AP36: 0 | AQ36: 0 | AR36: 0 | AS36: 0 | AT36: 0 | AU36: 0 | AV36: 0 | AW36: 0 | AX36: 0 | AY36: 0 | AZ36: 0 | BA36: 0 | BB36: 0 | BC36: 0 | BD36: 0 | BE36: 0 | BF36: 0 | BG36: 0 | BH36: 0 | BK36: 6.8 | BL36: 2.04 | BM36: 15.00209181 | BN36: 2.211785824 | BO36: 0 | BP36: =DE$4*$N$32+$M$32 -> 15.35290575 | BU36: 3 | BW36: 9.205297387e-79 | BX36: 7.674330038e-75 | BY36: 5.108136647e-71 | BZ36: 2.714588007e-67 | CA36: 1.151767265e-63 | CB36: 3.901619571e-60 | CC36: 1.055223602e-56 | CD36: 2.278575678e-53 | CE36: 3.928274279e-50 | CF36: 5.407039407e-47 | CG36: 5.942054783e-44 | CH36: 5.213545325e-41 | CI36: 3.652153653e-38 | CJ36: 2.042604637e-35 | CK36: 9.120926826e-33 | CL36: 3.251719046e-30 | CM36: 9.255639768e-28 | CN36: 2.103387348e-25 | CO36: 3.816378641e-23 | CP36: 5.528445608e-21 | CQ36: 6.394020304e-19 | CR36: 5.904244942e-17 | CS36: 4.352854061e-15 | CT36: 2.562142217e-13 | CU36: 1.204070021e-11 | CV36: 4.517723427e-10 | CW36: 1.353340011e-08 | CX36: 3.236783033e-07 | CY36: 6.180728136e-06 | CZ36: 9.422910778e-05 | DA36: 0.001146964304 | DB36: 0.01114638681 | DC36: 0.08648438549 | DD36: 0.5357481535 | DE36: 2.64973869 | DF36: 10.4632065 | DG36: 32.98723631 | DH36: 83.03218218 | DI36: 166.8654244 | DJ36: 267.735308 | DK36: 342.9764686 | DL36: 350.7861079 | DM36: 286.4440679 | DN36: 186.7483033 | DO36: 97.20595741 | DP36: 40.39694145 | DQ36: 13.40366216 | DR36: 3.550731609 | DS36: 0.7509855919 | DT36: 0.1268132839 | DU36: 0.01709689633 | DV36: 0.001840302401 | DW36: 0.0001581541137 | DX36: 1.085153506e-05 | DY36: 5.944580993e-07 | DZ36: 2.599984174e-08 | EA36: 9.079031974e-10 | EB36: 2.531207637e-11 | EC36: 5.634240536e-13 | ED36: 1.001295769e-14 | EE36: 1.420720881e-16 | EF36: 1.609439038e-18 | EG36: 1.455659115e-20 | EH36: 1.051148858e-22 | EI36: 6.060216596e-25 | EJ36: 2.789532691e-27 | EK36: 1.025165895e-29 | EL36: 3.0079889e-32 | EM36: 7.046568763e-35 | EN36: 1.317948817e-37 | EO36: 1.968062019e-40 | EP36: 2.346380286e-43 | EQ36: 2.233456032e-46 | ER36: 1.697367174e-49 | ES36: 1.029896484e-52 | ET36: 4.98919798e-56 | EU36: 1.92968884e-59 | EV36: 5.958860494e-63 | EW36: 1.46912428e-66 | EX36: 2.891833201e-70 | EY36: 4.544722059e-74 | EZ36: 5.702441024e-78 | FA36: 5.712597977e-82 | FB36: 4.569049955e-86 | FC36: 2.91767918e-90 | FD36: 1.487539654e-94 | FE36: 6.05506699e-99 | FF36: 1.967835261e-103 | FG36: 5.105965893e-108 | FH36: 1.057758359e-112 | FI36: 1.749504235e-117 | FJ36: 1.883387131e-118 | FK36: 1.19100752e-113 | FL36: 6.013981253e-109 | FM36: 2.424538147e-104 | FN36: 7.803965821e-100 | FO36: 2.005492679e-95 | FP36: 4.11477591e-91 | FQ36: 6.740477783e-87 | FR36: 8.815654474e-83 | FS36: 9.205297387e-79 | FT36: 0 | FU36: 0 | FV36: 0 | FW36: 0 | FX36: 0 | FY36: 0 | FZ36: 0 | GA36: 0 | GB36: 0 | GC36: 0 | GD36: 0 | GE36: 0 | GF36: 0 | GG36: 0 | GH36: 0 | GI36: 0 | GJ36: 0 | GK36: 0 | GL36: 0 | GM36: 0 | GN36: 0 | GO36: 0 | GP36: 0 | GQ36: 0 | GR36: 0 | GT36: 31 | GU36: 18.86776869 | GV36: 33.86776869 | GW36: =INDEX($BW$6:$GR$261,$GT36,$BJ$14) -> 0.0001581541137 | GX36: 4.040379628e-05
AE37: 6.8 | AF37: =IF('Macro input'!$F$19=1,GC!AG37,IF($K$29>0,IF($AE37<$I$29,$G$29,IF($AE37<$I$29+$J$29,$G$29+((H$29-G$29)*($AE37-I$29)/J$29),$H$29)),$G$29)) -> 168 | AG37: 168 | AH37: 0.105 | AI37: 0.35 | AJ37: 6 | AK37: 6 | AL37: 15 | AM37: 5 | AN37: 36 | AO37: 0 | AP37: 0 | AQ37: 0 | AR37: 0 | AS37: 0 | AT37: 0 | AU37: 0 | AV37: 0 | AW37: 0 | AX37: 0 | AY37: 0 | AZ37: 0 | BA37: 0 | BB37: 0 | BC37: 0 | BD37: 0 | BE37: 0 | BF37: 0 | BG37: 0 | BH37: 0 | BI37: 2D Plot X | BK37: 7 | BL37: 2.1 | BM37: 15.00215638 | BN37: 1.54950662 | BO37: 0 | BP37: =DF$4*$N$32+$M$32 -> 15.39142681 | BU37: 3.1 | BW37: 2.326055947e-79 | BX37: 1.939200905e-75 | BY37: 1.290758041e-71 | BZ37: 6.859402049e-68 | CA37: 2.910362351e-64 | CB37: 9.858872584e-61 | CC37: 2.666409385e-57 | CD37: 5.757657012e-54 | CE37: 9.926225479e-51 | CF37: 1.366286784e-47 | CG37: 1.501478038e-44 | CH37: 1.317393409e-41 | CI37: 9.228505464e-39 | CJ37: 5.161389647e-36 | CK37: 2.30473663e-33 | CL37: 8.216660589e-31 | CM37: 2.338776795e-28 | CN37: 5.314979456e-26 | CO37: 9.643480118e-24 | CP37: 1.396964513e-21 | CQ37: 1.615683701e-19 | CR37: 1.491923995e-17 | CS37: 1.099908199e-15 | CT37: 6.474191859e-14 | CU37: 3.042524447e-12 | CV37: 1.14156849e-10 | CW37: 3.419709813e-09 | CX37: 8.178919274e-08 | CY37: 1.561787613e-06 | CZ37: 2.38104395e-05 | DA37: 0.0002898225911 | DB37: 0.002816543371 | DC37: 0.02185345141 | DD37: 0.1353764171 | DE37: 0.669553647 | DF37: 2.643912813 | DG37: 8.335434909 | DH37: 20.98112565 | DI37: 42.1646685 | DJ37: 67.65314352 | DK37: 86.66558187 | DL37: 88.63897364 | DM37: 72.38059776 | DN37: 47.18880696 | DO37: 24.56264972 | DP37: 10.20776863 | DQ37: 3.386926762 | DR37: 0.8972225476 | DS37: 0.1897640487 | DT37: 0.03204402646 | DU37: 0.004320157807 | DV37: 0.0004650198863 | DW37: 3.99634364e-05 | DX37: 2.742038263e-06 | DY37: 1.502116378e-07 | DZ37: 6.569813439e-09 | EA37: 2.29415036e-10 | EB37: 6.396024298e-12 | EC37: 1.423697481e-13 | ED37: 2.530140939e-15 | EE37: 3.589972289e-17 | EF37: 4.066837917e-19 | EG37: 3.678256551e-21 | EH37: 2.656113049e-23 | EI37: 1.531335953e-25 | EJ37: 7.048777277e-28 | EK37: 2.590457566e-30 | EL37: 7.600786998e-33 | EM37: 1.780573999e-35 | EN37: 3.330280983e-38 | EO37: 4.973030388e-41 | EP37: 5.928990219e-44 | EQ37: 5.643645681e-47 | ER37: 4.289020595e-50 | ES37: 2.602411135e-53 | ET37: 1.260703825e-56 | EU37: 4.87606648e-60 | EV37: 1.505724618e-63 | EW37: 3.712281226e-67 | EX37: 7.30727703e-71 | EY37: 1.148390685e-74 | EZ37: 1.440930835e-78 | FA37: 1.443497362e-82 | FB37: 1.15453802e-86 | FC37: 7.372586373e-91 | FD37: 3.758814422e-95 | FE37: 1.530034717e-99 | FF37: 4.972457399e-104 | FG37: 1.290209521e-108 | FH37: 2.672814378e-113 | FI37: 4.420763999e-118 | FJ37: 4.759068233e-119 | FK37: 3.009517246e-114 | FL37: 1.519652899e-109 | FM37: 6.126484717e-105 | FN37: 1.971958139e-100 | FO37: 5.067612676e-96 | FP37: 1.039749024e-91 | FQ37: 1.703228888e-87 | FR37: 2.227598376e-83 | FS37: 2.326055947e-79 | FT37: 0 | FU37: 0 | FV37: 0 | FW37: 0 | FX37: 0 | FY37: 0 | FZ37: 0 | GA37: 0 | GB37: 0 | GC37: 0 | GD37: 0 | GE37: 0 | GF37: 0 | GG37: 0 | GH37: 0 | GI37: 0 | GJ37: 0 | GK37: 0 | GL37: 0 | GM37: 0 | GN37: 0 | GO37: 0 | GP37: 0 | GQ37: 0 | GR37: 0 | GT37: 32 | GU37: 4.767633647 | GV37: 19.76763365 | GW37: =INDEX($BW$6:$GR$261,$GT37,$BJ$14) -> 3.99634364e-05 | GX37: 1.020950075e-05
AE38: 7 | AF38: =IF('Macro input'!$F$19=1,GC!AG38,IF($K$29>0,IF($AE38<$I$29,$G$29,IF($AE38<$I$29+$J$29,$G$29+((H$29-G$29)*($AE38-I$29)/J$29),$H$29)),$G$29)) -> 170 | AG38: 170 | AH38: 0.108 | AI38: 0.36 | AJ38: 6 | AK38: 6 | AL38: 15 | AM38: 5 | AN38: 37 | AO38: 0 | AP38: 0 | AQ38: 0 | AR38: 0 | AS38: 0 | AT38: 0 | AU38: 0 | AV38: 0 | AW38: 0 | AX38: 0 | AY38: 0 | AZ38: 0 | BA38: 0 | BB38: 0 | BC38: 0 | BD38: 0 | BE38: 0 | BF38: 0 | BG38: 0 | BH38: 0 | BI38: dt | BJ38: =B31/BJ2 -> 0.2 | BK38: 7.2 | BL38: 2.16 | BM38: 15.00222278 | BN38: 1.054074009 | BO38: 0 | BP38: =DG$4*$N$32+$M$32 -> 15.68338176 | BU38: 3.2 | BW38: 2.364665884e-77 | BX38: 3.274625634e-77 | BY38: 2.178455178e-73 | BZ38: 1.157684045e-69 | CA38: 4.911915112e-66 | CB38: 1.66391464e-62 | CC38: 4.500187596e-59 | CD38: 9.717388789e-56 | CE38: 1.675282011e-52 | CF38: 2.305927542e-49 | CG38: 2.534094307e-46 | CH38: 2.22340857e-43 | CI38: 1.557525489e-40 | CJ38: 8.711048571e-38 | CK38: 3.889780486e-35 | CL38: 1.386753072e-32 | CM38: 3.947231202e-30 | CN38: 8.970267188e-28 | CO38: 1.627562138e-25 | CP38: 2.357703363e-23 | CQ38: 2.726842993e-21 | CR38: 2.517969632e-19 | CS38: 1.856351565e-17 | CT38: 1.092670842e-15 | CU38: 5.134969464e-14 | CV38: 1.92666302e-12 | CW38: 5.771557724e-11 | CX38: 1.380383345e-09 | CY38: 2.635880778e-08 | CZ38: 4.018566881e-07 | DA38: 4.891432037e-06 | DB38: 4.753573704e-05 | DC38: 0.0003688279508 | DD38: 0.002284792711 | DE38: 0.01130027907 | DF38: 0.04462219385 | DG38: 0.1406799009 | DH38: 0.3541054203 | DI38: 0.7116271076 | DJ38: 1.141804598 | DK38: 1.462684065 | DL38: 1.495990871 | DM38: 1.221598244 | DN38: 0.7964483351 | DO38: 0.4146446561 | DP38: 0.1725524132 | DQ38: 0.05785361515 | DR38: 0.0166556033 | DS38: 0.006058665653 | DT38: 0.005191582262 | DU38: 0.006606079393 | DV38: 0.007924644638 | DW38: 0.008276314016 | DX38: 0.007462471903 | DY38: 0.00580476994 | DZ38: 0.003895076558 | EA38: 0.002254620788 | EB38: 0.001125789992 | EC38: 0.0004849172319 | ED38: 0.0001801790149 | EE38: 5.775201691e-05 | EF38: 1.596821828e-05 | EG38: 3.808659273e-06 | EH38: 7.836355689e-07 | EI38: 1.390857111e-07 | EJ38: 2.129498053e-08 | EK38: 2.812537593e-09 | EL38: 3.204393055e-10 | EM38: 3.149340254e-11 | EN38: 2.670052148e-12 | EO38: 1.952748261e-13 | EP38: 1.231967165e-14 | EQ38: 6.704684754e-16 | ER38: 3.147631982e-17 | ES38: 1.274723209e-18 | ET38: 4.453220436e-20 | EU38: 1.342019575e-21 | EV38: 3.488750123e-23 | EW38: 7.823610768e-25 | EX38: 1.513460057e-26 | EY38: 2.525579526e-28 | EZ38: 3.635611678e-30 | FA38: 4.514610508e-32 | FB38: 4.836035088e-34 | FC38: 4.468738642e-36 | FD38: 3.562105879e-38 | FE38: 2.449373698e-40 | FF38: 1.452879622e-42 | FG38: 7.434137201e-45 | FH38: 3.281390136e-47 | FI38: 1.249428826e-49 | FJ38: 4.1038505e-52 | FK38: 1.162780924e-54 | FL38: 2.842042852e-57 | FM38: 5.992246941e-60 | FN38: 1.089871108e-62 | FO38: 1.709963869e-65 | FP38: 2.314328934e-68 | FQ38: 2.702026431e-71 | FR38: 2.72132529e-74 | FS38: 2.364665884e-77 | FT38: 0 | FU38: 0 | FV38: 0 | FW38: 0 | FX38: 0 | FY38: 0 | FZ38: 0 | GA38: 0 | GB38: 0 | GC38: 0 | GD38: 0 | GE38: 0 | GF38: 0 | GG38: 0 | GH38: 0 | GI38: 0 | GJ38: 0 | GK38: 0 | GL38: 0 | GM38: 0 | GN38: 0 | GO38: 0 | GP38: 0 | GQ38: 0 | GR38: 0 | GT38: 33 | GU38: 0.08100617367 | GV38: 15.08100617 | GW38: =INDEX($BW$6:$GR$261,$GT38,$BJ$14) -> 0.008276314016 | GX38: 0.002114358568
AE39: 7.2 | AF39: =IF('Macro input'!$F$19=1,GC!AG39,IF($K$29>0,IF($AE39<$I$29,$G$29,IF($AE39<$I$29+$J$29,$G$29+((H$29-G$29)*($AE39-I$29)/J$29),$H$29)),$G$29)) -> 172 | AG39: 172 | AH39: 0.111 | AI39: 0.37 | AJ39: 6 | AK39: 6 | AL39: 15 | AM39: 5 | AN39: 38 | AO39: 0 | AP39: 0 | AQ39: 0 | AR39: 0 | AS39: 0 | AT39: 0 | AU39: 0 | AV39: 0 | AW39: 0 | AX39: 0 | AY39: 0 | AZ39: 0 | BA39: 0 | BB39: 0 | BC39: 0 | BD39: 0 | BE39: 0 | BF39: 0 | BG39: 0 | BH39: 0 | BK39: 7.4 | BL39: 2.22 | BM39: 15.00229106 | BN39: 0.6962674245 | BO39: 0 | BP39: =DH$4*$N$32+$M$32 -> 16.42957029 | BU39: 3.3 | BW39: 5.161999437e-75 | BX39: 3.89704581e-78 | BY39: 1.887437107e-76 | BZ39: 1.002831422e-72 | CA39: 4.254684842e-69 | CB39: 1.441257147e-65 | CC39: 3.897976046e-62 | CD39: 8.417003403e-59 | CE39: 1.451094268e-55 | CF39: 1.997345858e-52 | CG39: 2.194978928e-49 | CH39: 1.925869442e-46 | CI39: 1.349095589e-43 | CJ39: 7.545325706e-41 | CK39: 3.369245428e-38 | CL39: 1.201176121e-35 | CM39: 3.419008008e-33 | CN39: 7.769855312e-31 | CO39: 1.409759827e-28 | CP39: 2.04219268e-26 | CQ39: 2.361933604e-24 | CR39: 2.181011926e-22 | CS39: 1.60793238e-20 | CT39: 9.464483258e-19 | CU39: 4.447801728e-17 | CV39: 1.668834683e-15 | CW39: 4.999201035e-14 | CX39: 1.195658825e-12 | CY39: 2.283144176e-11 | CZ39: 3.480797826e-10 | DA39: 4.236855764e-09 | DB39: 4.117447154e-08 | DC39: 3.1947143e-07 | DD39: 1.979047282e-06 | DE39: 9.788185731e-06 | DF39: 3.865239069e-05 | DG39: 0.0001218716511 | DH39: 0.0003068883964 | DI39: 0.000617801034 | DJ39: 0.0009990322701 | DK39: 0.001328667158 | DL39: 0.001623586351 | DM39: 0.002559829641 | DN39: 0.006624585196 | DO39: 0.02059127512 | DP39: 0.05964836437 | DQ39: 0.1509896131 | DR39: 0.3303255661 | DS39: 0.6235532408 | DT39: 1.015417938 | DU39: 1.426408866 | DV39: 1.728501449 | DW39: 1.806848916 | DX39: 1.629297117 | DY39: 1.267374882 | DZ39: 0.850425471 | EA39: 0.4922591297 | EB39: 0.2457976106 | EC39: 0.1058736512 | ED39: 0.03933910559 | EE39: 0.01260919698 | EF39: 0.003486396155 | EG39: 0.0008315577114 | EH39: 0.0001710938557 | EI39: 3.036706288e-05 | EJ39: 4.649406524e-06 | EK39: 6.140710304e-07 | EL39: 6.996261843e-08 | EM39: 6.876063165e-09 | EN39: 5.829616919e-10 | EO39: 4.263502609e-11 | EP39: 2.689796389e-12 | EQ39: 1.46385694e-13 | ER39: 6.872333437e-15 | ES39: 2.783147134e-16 | ET39: 9.722869725e-18 | EU39: 2.930077611e-19 | EV39: 7.617108435e-21 | EW39: 1.708155915e-22 | EX39: 3.304389526e-24 | EY39: 5.514184861e-26 | EZ39: 7.937756332e-28 | FA39: 9.856904786e-30 | FB39: 1.055868216e-31 | FC39: 9.756751159e-34 | FD39: 7.777268588e-36 | FE39: 5.347802049e-38 | FF39: 3.172122175e-40 | FG39: 1.623120808e-42 | FH39: 7.164372226e-45 | FI39: 2.727921035e-47 | FJ39: 8.960078296e-50 | FK39: 2.538739683e-52 | FL39: 6.205130152e-55 | FM39: 1.308307936e-57 | FN39: 2.379553168e-60 | FO39: 3.733423074e-63 | FP39: 5.052954159e-66 | FQ39: 5.899427472e-69 | FR39: 5.941563336e-72 | FS39: 5.161999437e-75 | FT39: 0 | FU39: 0 | FV39: 0 | FW39: 0 | FX39: 0 | FY39: 0 | FZ39: 0 | GA39: 0 | GB39: 0 | GC39: 0 | GD39: 0 | GE39: 0 | GF39: 0 | GG39: 0 | GH39: 0 | GI39: 0 | GJ39: 0 | GK39: 0 | GL39: 0 | GM39: 0 | GN39: 0 | GO39: 0 | GP39: 0 | GQ39: 0 | GR39: 0 | GT39: 34 | GU39: 0.118240192 | GV39: 15.11824019 | GW39: =INDEX($BW$6:$GR$261,$GT39,$BJ$14) -> 1.806848916 | GX39: 0.4615975758
AE40: 7.4 | AF40: =IF('Macro input'!$F$19=1,GC!AG40,IF($K$29>0,IF($AE40<$I$29,$G$29,IF($AE40<$I$29+$J$29,$G$29+((H$29-G$29)*($AE40-I$29)/J$29),$H$29)),$G$29)) -> 174 | AG40: 174 | AH40: 0.114 | AI40: 0.38 | AJ40: 6 | AK40: 6 | AL40: 15 | AM40: 5 | AN40: 39 | AO40: 0 | AP40: 0 | AQ40: 0 | AR40: 0 | AS40: 0 | AT40: 0 | AU40: 0 | AV40: 0 | AW40: 0 | AX40: 0 | AY40: 0 | AZ40: 0 | BA40: 0 | BB40: 0 | BC40: 0 | BD40: 0 | BE40: 0 | BF40: 0 | BG40: 0 | BH40: 0 | BK40: 7.6 | BL40: 2.28 | BM40: 15.00236127 | BN40: 0.4465893393 | BO40: 0 | BP40: =DI$4*$N$32+$M$32 -> 17.72656317 | BU40: 3.4 | BW40: 1.506788732e-73 | BX40: 1.12927349e-76 | BY40: 1.475300148e-78 | BZ40: 2.04455763e-75 | CA40: 2.571498719e-72 | CB40: 2.789970642e-69 | CC40: 2.611195036e-66 | CD40: 2.108168628e-63 | CE40: 1.46824232e-60 | CF40: 8.820972872e-58 | CG40: 4.571530187e-55 | CH40: 2.043774866e-52 | CI40: 7.88189914e-50 | CJ40: 2.62213501e-47 | CK40: 7.524984017e-45 | CL40: 1.862869668e-42 | CM40: 3.9781918e-40 | CN40: 7.328503865e-38 | CO40: 1.16458524e-35 | CP40: 1.596443667e-33 | CQ40: 1.887827344e-31 | CR40: 1.925738455e-29 | CS40: 1.694566788e-27 | CT40: 1.286312337e-25 | CU40: 8.4228785e-24 | CV40: 4.757743166e-22 | CW40: 2.318290252e-20 | CX40: 9.744531882e-19 | CY40: 3.533299968e-17 | CZ40: 1.105163148e-15 | DA40: 2.981938191e-14 | DB40: 6.940603524e-13 | DC40: 1.393548835e-11 | DD40: 2.413645617e-10 | DE40: 3.606211342e-09 | DF40: 4.647883154e-08 | DG40: 5.167560679e-07 | DH40: 4.956125843e-06 | DI40: 4.100392422e-05 | DJ40: 0.0002926408006 | DK40: 0.001801651083 | DL40: 0.009568257503 | DM40: 0.04383503716 | DN40: 0.1732352473 | DO40: 0.590578318 | DP40: 1.736781137 | DQ40: 4.405944736 | DR40: 9.64182743 | DS40: 18.20145137 | DT40: 29.64005752 | DU40: 41.63690326 | DV40: 50.45499384 | DW40: 52.74195823 | DX40: 47.55921747 | DY40: 36.99469975 | DZ40: 24.82393757 | EA40: 14.36905446 | EB40: 7.174837476 | EC40: 3.09045413 | ED40: 1.148309328 | EE40: 0.3680627278 | EF40: 0.1017679778 | EG40: 0.02427318727 | EH40: 0.004994233285 | EI40: 0.0008864152107 | EJ40: 0.0001357162752 | EK40: 1.792474643e-05 | EL40: 2.042210319e-06 | EM40: 2.007124299e-07 | EN40: 1.701666417e-08 | EO40: 1.244517318e-09 | EP40: 7.851521374e-11 | EQ40: 4.273001519e-12 | ER40: 2.006035591e-13 | ES40: 8.124012398e-15 | ET40: 2.838107739e-16 | EU40: 8.552902775e-18 | EV40: 2.223435571e-19 | EW40: 4.986110745e-21 | EX40: 9.645520049e-23 | EY40: 1.609591733e-24 | EZ40: 2.31703276e-26 | FA40: 2.877232602e-28 | FB40: 3.082081565e-30 | FC40: 2.847997737e-32 | FD40: 2.270186354e-34 | FE40: 1.561024555e-36 | FF40: 9.259431369e-39 | FG40: 4.737893088e-41 | FH40: 2.091281775e-43 | FI40: 7.962807299e-46 | FJ40: 2.615448759e-48 | FK40: 7.41058653e-51 | FL40: 1.81127881e-53 | FM40: 3.818953645e-56 | FN40: 6.945920755e-59 | FO40: 1.089786989e-61 | FP40: 1.474958393e-64 | FQ40: 1.722044133e-67 | FR40: 1.7343436e-70 | FS40: 1.506788732e-73 | FT40: 0 | FU40: 0 | FV40: 0 | FW40: 0 | FX40: 0 | FY40: 0 | FZ40: 0 | GA40: 0 | GB40: 0 | GC40: 0 | GD40: 0 | GE40: 0 | GF40: 0 | GG40: 0 | GH40: 0 | GI40: 0 | GJ40: 0 | GK40: 0 | GL40: 0 | GM40: 0 | GN40: 0 | GO40: 0 | GP40: 0 | GQ40: 0 | GR40: 0 | GT40: 35 | GU40: 3.449399258 | GV40: 18.44939926 | GW40: =INDEX($BW$6:$GR$261,$GT40,$BJ$14) -> 52.74195823 | GX40: 13.47404304
AE41: 7.6 | AF41: =IF('Macro input'!$F$19=1,GC!AG41,IF($K$29>0,IF($AE41<$I$29,$G$29,IF($AE41<$I$29+$J$29,$G$29+((H$29-G$29)*($AE41-I$29)/J$29),$H$29)),$G$29)) -> 176 | AG41: 176 | AH41: 0.117 | AI41: 0.39 | AJ41: 6 | AK41: 6 | AL41: 15 | AM41: 5 | AN41: 40 | AO41: 0 | AP41: 0 | AQ41: 0 | AR41: 0 | AS41: 0 | AT41: 0 | AU41: 0 | AV41: 0 | AW41: 0 | AX41: 0 | AY41: 0 | AZ41: 0 | BA41: 0 | BB41: 0 | BC41: 0 | BD41: 0 | BE41: 0 | BF41: 0 | BG41: 0 | BH41: 0 | BK41: 7.8 | BL41: 2.34 | BM41: 15.00243344 | BN41: 0.2781428686 | BO41: 0 | BP41: =DJ$4*$N$32+$M$32 -> 19.30506786 | BU41: 3.5 | BW41: 6.514344293e-73 | BX41: 4.88222148e-76 | BY41: 6.378208769e-78 | BZ41: 8.839296479e-75 | CA41: 1.111743647e-71 | CB41: 1.20619626e-68 | CC41: 1.128905673e-65 | CD41: 9.114307787e-63 | CE41: 6.347695452e-60 | CF41: 3.813597293e-57 | CG41: 1.976423168e-54 | CH41: 8.835912333e-52 | CI41: 3.407604769e-49 | CJ41: 1.133635385e-46 | CK41: 3.253298598e-44 | CL41: 8.053799538e-42 | CM41: 1.719903428e-39 | CN41: 3.168353753e-37 | CO41: 5.034885813e-35 | CP41: 6.901952126e-33 | CQ41: 8.161699795e-31 | CR41: 8.325602024e-29 | CS41: 7.326170719e-27 | CT41: 5.561152172e-25 | CU41: 3.641487976e-23 | CV41: 2.056929176e-21 | CW41: 1.002273282e-19 | CX41: 4.212882292e-18 | CY41: 1.527562026e-16 | CZ41: 4.777984529e-15 | DA41: 1.289190158e-13 | DB41: 3.000651651e-12 | DC41: 6.024770896e-11 | DD41: 1.043498549e-09 | DE41: 1.559084016e-08 | DF41: 2.009433072e-07 | DG41: 2.234106793e-06 | DH41: 2.142696545e-05 | DI41: 0.0001772734784 | DJ41: 0.001265182629 | DK41: 0.007789131416 | DL41: 0.04136673068 | DM41: 0.1895133128 | DN41: 0.7489530688 | DO41: 2.553264711 | DP41: 7.508677261 | DQ41: 19.0483512 | DR41: 41.68479772 | DS41: 78.6908731 | DT41: 128.1437374 | DU41: 180.0100554 | DV41: 218.1335673 | DW41: 228.0208681 | DX41: 205.6141717 | DY41: 159.9402797 | DZ41: 107.3220636 | EA41: 62.12215815 | EB41: 31.01918708 | EC41: 13.36105175 | ED41: 4.964519684 | EE41: 1.591256478 | EF41: 0.4399765088 | EG41: 0.1049409885 | EH41: 0.02159171648 | EI41: 0.0038322651 | EJ41: 0.000586746187 | EK41: 7.749458642e-05 | EL41: 8.829148278e-06 | EM41: 8.677459851e-07 | EN41: 7.356864756e-08 | EO41: 5.380458531e-09 | EP41: 3.39447146e-10 | EQ41: 1.847359386e-11 | ER41: 8.672753006e-13 | ES41: 3.51227831e-14 | ET41: 1.227007514e-15 | EU41: 3.697701755e-17 | EV41: 9.612644771e-19 | EW41: 2.155660007e-20 | EX41: 4.170076213e-22 | EY41: 6.958795548e-24 | EZ41: 1.001729627e-25 | FA41: 1.243922481e-27 | FB41: 1.332485439e-29 | FC41: 1.231283286e-31 | FD41: 9.814763812e-34 | FE41: 6.74882363e-36 | FF41: 4.003157352e-38 | FG41: 2.048347333e-40 | FH41: 9.041300357e-43 | FI41: 3.442584033e-45 | FJ41: 1.130744698e-47 | FK41: 3.203840794e-50 | FL41: 7.830755254e-53 | FM41: 1.651059525e-55 | FN41: 3.002950465e-58 | FO41: 4.711508323e-61 | FP41: 6.376731248e-64 | FQ41: 7.444964335e-67 | FR41: 7.498138987e-70 | FS41: 6.514344293e-73 | FT41: 0 | FU41: 0 | FV41: 0 | FW41: 0 | FX41: 0 | FY41: 0 | FZ41: 0 | GA41: 0 | GB41: 0 | GC41: 0 | GD41: 0 | GE41: 0 | GF41: 0 | GG41: 0 | GH41: 0 | GI41: 0 | GJ41: 0 | GK41: 0 | GL41: 0 | GM41: 0 | GN41: 0 | GO41: 0 | GP41: 0 | GQ41: 0 | GR41: 0 | GT41: 36 | GU41: 14.91288984 | GV41: 29.91288984 | GW41: =INDEX($BW$6:$GR$261,$GT41,$BJ$14) -> 228.0208681 | GX41: 58.25272884
AE42: 7.8 | AF42: =IF('Macro input'!$F$19=1,GC!AG42,IF($K$29>0,IF($AE42<$I$29,$G$29,IF($AE42<$I$29+$J$29,$G$29+((H$29-G$29)*($AE42-I$29)/J$29),$H$29)),$G$29)) -> 178 | AG42: 178 | AH42: 0.12 | AI42: 0.4 | AJ42: 6 | AK42: 6 | AL42: 15 | AM42: 5 | AN42: 41 | AO42: 0 | AP42: 0 | AQ42: 0 | AR42: 0 | AS42: 0 | AT42: 0 | AU42: 0 | AV42: 0 | AW42: 0 | AX42: 0 | AY42: 0 | AZ42: 0 | BA42: 0 | BB42: 0 | BC42: 0 | BD42: 0 | BE42: 0 | BF42: 0 | BG42: 0 | BH42: 0 | BK42: 8 | BL42: 2.4 | BM42: 15.00250764 | BN42: 0.1682111617 | BO42: 0 | BP42: =DK$4*$N$32+$M$32 -> 20.48417013 | BU42: 3.6 | BW42: 4.52957496e-73 | BX42: 3.394722043e-76 | BY42: 4.434916767e-78 | BZ42: 6.14616824e-75 | CA42: 7.730211914e-72 | CB42: 8.38696288e-69 | CC42: 7.849543469e-66 | CD42: 6.337389992e-63 | CE42: 4.413700149e-60 | CF42: 2.651682814e-57 | CG42: 1.374252954e-54 | CH42: 6.143815164e-52 | CI42: 2.369386778e-49 | CJ42: 7.882430251e-47 | CK42: 2.262094112e-44 | CL42: 5.599993964e-42 | CM42: 1.195888819e-39 | CN42: 2.203029987e-37 | CO42: 3.500873101e-35 | CP42: 4.799087693e-33 | CQ42: 5.67501952e-31 | CR42: 5.788984548e-29 | CS42: 5.094056738e-27 | CT42: 3.866798329e-25 | CU42: 2.532011206e-23 | CV42: 1.430230653e-21 | CW42: 6.969039026e-20 | CX42: 2.929314952e-18 | CY42: 1.062149373e-16 | CZ42: 3.322243668e-15 | DA42: 8.964038739e-14 | DB42: 2.086422819e-12 | DC42: 4.189163201e-11 | DD42: 7.255687887e-10 | DE42: 1.084067345e-08 | DF42: 1.397205508e-07 | DG42: 1.553426367e-06 | DH42: 1.489866697e-05 | DI42: 0.0001232623688 | DJ42: 0.0008797108808 | DK42: 0.005415964069 | DL42: 0.02876324907 | DM42: 0.1317730101 | DN42: 0.5207644721 | DO42: 1.775344283 | DP42: 5.220957778 | DQ42: 13.24476121 | DR42: 28.98440848 | DS42: 54.71559259 | DT42: 89.10131828 | DU42: 125.1651744 | DV42: 151.6733381 | DW42: 158.548208 | DX42: 142.9683114 | DY42: 111.210193 | DZ42: 74.62352462 | EA42: 43.19498009 | EB42: 21.56836157 | EC42: 9.290249751 | ED42: 3.451945896 | EE42: 1.106437605 | EF42: 0.3059258902 | EG42: 0.07296790779 | EH42: 0.01501322219 | EI42: 0.002664662974 | EJ42: 0.000407978258 | EK42: 5.388378667e-05 | EL42: 6.139111959e-06 | EM42: 6.033639472e-07 | EN42: 5.115399015e-08 | EO42: 3.741157842e-09 | EP42: 2.360254883e-10 | EQ42: 1.284511908e-11 | ER42: 6.030366692e-13 | ES42: 2.442168723e-14 | ET42: 8.53166836e-16 | EU42: 2.571097953e-17 | EV42: 6.683895277e-19 | EW42: 1.498880494e-20 | EX42: 2.899550891e-22 | EY42: 4.838612245e-24 | EZ42: 6.965258865e-26 | FA42: 8.64928206e-28 | FB42: 9.265080888e-30 | FC42: 8.561398796e-32 | FD42: 6.824433343e-34 | FE42: 4.692613892e-36 | FF42: 2.783488328e-38 | FG42: 1.424263498e-40 | FH42: 6.28662623e-43 | FI42: 2.393708673e-45 | FJ42: 7.862330636e-48 | FK42: 2.227704951e-50 | FL42: 5.444906091e-53 | FM42: 1.148020053e-55 | FN42: 2.088021238e-58 | FO42: 3.276021218e-61 | FP42: 4.433889412e-64 | FQ42: 5.1766567e-67 | FR42: 5.213630271e-70 | FS42: 4.52957496e-73 | FT42: 0 | FU42: 0 | FV42: 0 | FW42: 0 | FX42: 0 | FY42: 0 | FZ42: 0 | GA42: 0 | GB42: 0 | GC42: 0 | GD42: 0 | GE42: 0 | GF42: 0 | GG42: 0 | GH42: 0 | GI42: 0 | GJ42: 0 | GK42: 0 | GL42: 0 | GM42: 0 | GN42: 0 | GO42: 0 | GP42: 0 | GQ42: 0 | GR42: 0 | GT42: 37 | GU42: 10.36927884 | GV42: 25.36927884 | GW42: =INDEX($BW$6:$GR$261,$GT42,$BJ$14) -> 158.548208 | GX42: 40.50447597
AE43: 8 | AF43: =IF('Macro input'!$F$19=1,GC!AG43,IF($K$29>0,IF($AE43<$I$29,$G$29,IF($AE43<$I$29+$J$29,$G$29+((H$29-G$29)*($AE43-I$29)/J$29),$H$29)),$G$29)) -> 180 | AG43: 180 | AH43: 0.123 | AI43: 0.41 | AJ43: 6 | AK43: 6 | AL43: 15 | AM43: 5 | AN43: 42 | AO43: 0 | AP43: 0 | AQ43: 0 | AR43: 0 | AS43: 0 | AT43: 0 | AU43: 0 | AV43: 0 | AW43: 0 | AX43: 0 | AY43: 0 | AZ43: 0 | BA43: 0 | BB43: 0 | BC43: 0 | BD43: 0 | BE43: 0 | BF43: 0 | BG43: 0 | BH43: 0 | BK43: 8.2 | BL43: 2.46 | BM43: 15.00258391 | BN43: 0.09877999364 | BO43: 0 | BP43: =DL$4*$N$32+$M$32 -> 20.59745104 | BU43: 3.7 | BW43: 4.945556589e-74 | BX43: 3.706482421e-77 | BY43: 4.842205291e-79 | BZ43: 6.710612608e-76 | CA43: 8.44012977e-73 | CB43: 9.157194637e-70 | CC43: 8.570420352e-67 | CD43: 6.919395552e-64 | CE43: 4.819040207e-61 | CF43: 2.895204854e-58 | CG43: 1.500459936e-55 | CH43: 6.708043433e-53 | CI43: 2.586983656e-50 | CJ43: 8.60632735e-48 | CK43: 2.469837576e-45 | CL43: 6.114279439e-43 | CM43: 1.30571541e-40 | CN43: 2.405349191e-38 | CO43: 3.822382052e-36 | CP43: 5.239820506e-34 | CQ43: 6.196195101e-32 | CR43: 6.320626312e-30 | CS43: 5.561878562e-28 | CT43: 4.221912679e-26 | CU43: 2.76454299e-24 | CV43: 1.561578446e-22 | CW43: 7.609053206e-21 | CX43: 3.198333837e-19 | CY43: 1.159693763e-17 | CZ43: 3.627347866e-16 | DA43: 9.787267291e-15 | DB43: 2.278033195e-13 | DC43: 4.573882506e-12 | DD43: 7.922026979e-11 | DE43: 1.183624611e-09 | DF43: 1.525520378e-08 | DG43: 1.69608806e-07 | DH43: 1.626691274e-06 | DI43: 1.345823893e-05 | DJ43: 9.605007051e-05 | DK43: 0.0005913348829 | DL43: 0.003140477357 | DM43: 0.01438746204 | DN43: 0.05685898101 | DO43: 0.1938386205 | DP43: 0.5700433786 | DQ43: 1.446111758 | DR43: 3.164624354 | DS43: 5.974049704 | DT43: 9.728409742 | DU43: 13.66599424 | DV43: 16.56025307 | DW43: 17.31087667 | DX43: 15.60980623 | DY43: 12.14233802 | DZ43: 8.147670966 | EA43: 4.716186845 | EB43: 2.354913068 | EC43: 1.014343648 | ED43: 0.376896153 | EE43: 0.1208049284 | EF43: 0.03340211423 | EG43: 0.007966904629 | EH43: 0.001639198834 | EI43: 0.000290937707 | EJ43: 4.45445672e-05 | EK43: 5.883230072e-06 | EL43: 6.702908301e-07 | EM43: 6.587749559e-08 | EN43: 5.585180845e-09 | EO43: 4.084733772e-10 | EP43: 2.577013117e-11 | EQ43: 1.402477359e-12 | ER43: 6.584176218e-14 | ES43: 2.666449662e-15 | ET43: 9.315189404e-17 | EU43: 2.807219339e-18 | EV43: 7.29772277e-20 | EW43: 1.636532868e-21 | EX43: 3.16583634e-23 | EY43: 5.282974867e-25 | EZ43: 7.604925888e-27 | FA43: 9.443604369e-29 | FB43: 1.011595619e-30 | FC43: 9.347650188e-33 | FD43: 7.451167401e-35 | FE43: 5.123568493e-37 | FF43: 3.039114964e-39 | FG43: 1.555063287e-41 | FH43: 6.863969809e-44 | FI43: 2.613539196e-46 | FJ43: 8.584381851e-49 | FK43: 2.432290225e-51 | FL43: 5.944948793e-54 | FM43: 1.253450531e-56 | FN43: 2.279778408e-59 | FO43: 3.576880494e-62 | FP43: 4.841083587e-65 | FQ43: 5.652064239e-68 | FR43: 5.692433345e-71 | FS43: 4.945556589e-74 | FT43: 0 | FU43: 0 | FV43: 0 | FW43: 0 | FX43: 0 | FY43: 0 | FZ43: 0 | GA43: 0 | GB43: 0 | GC43: 0 | GD43: 0 | GE43: 0 | GF43: 0 | GG43: 0 | GH43: 0 | GI43: 0 | GJ43: 0 | GK43: 0 | GL43: 0 | GM43: 0 | GN43: 0 | GO43: 0 | GP43: 0 | GQ43: 0 | GR43: 0 | GT43: 38 | GU43: 1.132156013 | GV43: 16.13215601 | GW43: =INDEX($BW$6:$GR$261,$GT43,$BJ$14) -> 17.31087667 | GX43: 4.422427706
AE44: 8.2 | AF44: =IF('Macro input'!$F$19=1,GC!AG44,IF($K$29>0,IF($AE44<$I$29,$G$29,IF($AE44<$I$29+$J$29,$G$29+((H$29-G$29)*($AE44-I$29)/J$29),$H$29)),$G$29)) -> 182 | AG44: 182 | AH44: 0.126 | AI44: 0.42 | AJ44: 6 | AK44: 6 | AL44: 15 | AM44: 5 | AN44: 43 | AO44: 0 | AP44: 0 | AQ44: 0 | AR44: 0 | AS44: 0 | AT44: 0 | AU44: 0 | AV44: 0 | AW44: 0 | AX44: 0 | AY44: 0 | AZ44: 0 | BA44: 0 | BB44: 0 | BC44: 0 | BD44: 0 | BE44: 0 | BF44: 0 | BG44: 0 | BH44: 0 | BK44: 8.4 | BL44: 2.52 | BM44: 15.0026623 | BN44: 0.05632620359 | BO44: 0 | BP44: =DM$4*$N$32+$M$32 -> 19.56989224 | BU44: 3.8 | BW44: 7.657063492e-76 | BX44: 5.738640479e-79 | BY44: 7.497047641e-81 | BZ44: 1.038984913e-77 | CA44: 1.306761097e-74 | CB44: 1.417782195e-71 | CC44: 1.326933614e-68 | CD44: 1.071310178e-65 | CE44: 7.461181805e-63 | CF44: 4.48256268e-60 | CG44: 2.323119105e-57 | CH44: 1.038587135e-54 | CI44: 4.005352634e-52 | CJ44: 1.332492992e-49 | CK44: 3.823978716e-47 | CL44: 9.466563578e-45 | CM44: 2.021601739e-42 | CN44: 3.724133199e-40 | CO44: 5.918084555e-38 | CP44: 8.112663881e-36 | CQ44: 9.593391249e-34 | CR44: 9.786044526e-32 | CS44: 8.611297136e-30 | CT44: 6.536666372e-28 | CU44: 4.280262661e-26 | CV44: 2.417747143e-24 | CW44: 1.178087895e-22 | CX44: 4.951888593e-21 | CY44: 1.795520608e-19 | CZ44: 5.616118715e-18 | DA44: 1.515334538e-16 | DB44: 3.527013492e-15 | DC44: 7.081611165e-14 | DD44: 1.226544727e-12 | DE44: 1.832572054e-11 | DF44: 2.361919469e-10 | DG44: 2.626004521e-09 | DH44: 2.518559467e-08 | DI44: 2.083700552e-07 | DJ44: 1.487115707e-06 | DK44: 9.155468474e-06 | DL44: 4.862311064e-05 | DM44: 0.0002227569504 | DN44: 0.0008803313032 | DO44: 0.003001147794 | DP44: 0.008825818217 | DQ44: 0.02238973379 | DR44: 0.04899697168 | DS44: 0.09249449899 | DT44: 0.1506221792 | DU44: 0.2115866711 | DV44: 0.256397651 | DW44: 0.268019341 | DX44: 0.241682155 | DY44: 0.1879963388 | DZ44: 0.1261480539 | EA44: 0.07301936893 | EB44: 0.03646044395 | EC44: 0.01570479191 | ED44: 0.005835375093 | EE44: 0.001870388076 | EF44: 0.0005171553593 | EG44: 0.0001233493005 | EH44: 2.537924565e-05 | EI44: 4.504505115e-06 | EJ44: 6.896707644e-07 | EK44: 9.108836467e-08 | EL44: 1.037792077e-08 | EM44: 1.019962379e-09 | EN44: 8.647375393e-11 | EO44: 6.324276203e-12 | EP44: 3.989915534e-13 | EQ44: 2.171415491e-14 | ER44: 1.019409129e-15 | ES44: 4.128387573e-17 | ET44: 1.442244072e-18 | EU44: 4.346337228e-20 | EV44: 1.129885496e-21 | EW44: 2.533796925e-23 | EX44: 4.90157365e-25 | EY44: 8.17947854e-27 | EZ44: 1.177448874e-28 | FA44: 1.462126193e-30 | FB44: 1.566224497e-32 | FC44: 1.447269882e-34 | FD44: 1.153642889e-36 | FE44: 7.93267422e-39 | FF44: 4.705374576e-41 | FG44: 2.407659908e-43 | FH44: 1.062728769e-45 | FI44: 4.046467815e-48 | FJ44: 1.329095233e-50 | FK44: 3.76584523e-53 | FL44: 9.204393793e-56 | FM44: 1.940681525e-58 | FN44: 3.529715555e-61 | FO44: 5.53798153e-64 | FP44: 7.495310939e-67 | FQ44: 8.750929034e-70 | FR44: 8.813431363e-73 | FS44: 7.657063492e-76 | FT44: 0 | FU44: 0 | FV44: 0 | FW44: 0 | FX44: 0 | FY44: 0 | FZ44: 0 | GA44: 0 | GB44: 0 | GC44: 0 | GD44: 0 | GE44: 0 | GF44: 0 | GG44: 0 | GH44: 0 | GI44: 0 | GJ44: 0 | GK44: 0 | GL44: 0 | GM44: 0 | GN44: 0 | GO44: 0 | GP44: 0 | GQ44: 0 | GR44: 0 | GT44: 39 | GU44: 0.01752884699 | GV44: 15.01752885 | GW44: =INDEX($BW$6:$GR$261,$GT44,$BJ$14) -> 0.268019341 | GX44: 0.0684711804
AE45: 8.4 | AF45: =IF('Macro input'!$F$19=1,GC!AG45,IF($K$29>0,IF($AE45<$I$29,$G$29,IF($AE45<$I$29+$J$29,$G$29+((H$29-G$29)*($AE45-I$29)/J$29),$H$29)),$G$29)) -> 184 | AG45: 184 | AH45: 0.129 | AI45: 0.43 | AJ45: 6.000000001 | AK45: 6 | AL45: 15 | AM45: 4.999999999 | AN45: 44 | AO45: 0 | AP45: 0 | AQ45: 0 | AR45: 0 | AS45: 0 | AT45: 0 | AU45: 0 | AV45: 0 | AW45: 0 | AX45: 0 | AY45: 0 | AZ45: 0 | BA45: 0 | BB45: 0 | BC45: 0 | BD45: 0 | BE45: 0 | BF45: 0 | BG45: 0 | BH45: 0 | BK45: 8.6 | BL45: 2.58 | BM45: 15.00274287 | BN45: 0.03118740717 | BO45: 0 | BP45: =DN$4*$N$32+$M$32 -> 17.99124999 | BU45: 3.9 | BW45: 7.59913572e-78 | BX45: 1.14407624e-71 | BY45: 9.280053515e-66 | BZ45: 4.055559192e-60 | CA45: 9.548953041e-55 | CB45: 1.211338499e-49 | CC45: 8.279040974e-45 | CD45: 3.048591912e-40 | CE45: 6.048160446e-36 | CF45: 6.464754893e-32 | CG45: 3.72293602e-28 | CH45: 1.155111297e-24 | CI45: 1.930931375e-21 | CJ45: 1.739060122e-18 | CK45: 8.438535913e-16 | CL45: 2.206095755e-13 | CM45: 3.107322746e-11 | CN45: 2.358050593e-09 | CO45: 9.641056383e-08 | CP45: 2.123737697e-06 | CQ45: 2.520472008e-05 | CR45: 0.0001611638489 | CS45: 0.0005552110895 | CT45: 0.001030512781 | CU45: 0.001030512781 | CV45: 0.0005552110895 | CW45: 0.0001611638489 | CX45: 2.520472008e-05 | CY45: 2.123737697e-06 | CZ45: 9.641056383e-08 | DA45: 2.358050593e-09 | DB45: 3.107322746e-11 | DC45: 2.206095755e-13 | DD45: 8.438535913e-16 | DE45: 1.739060122e-18 | DF45: 1.930931375e-21 | DG45: 1.155111297e-24 | DH45: 3.72293602e-28 | DI45: 6.464754893e-32 | DJ45: 6.048160446e-36 | DK45: 3.048591912e-40 | DL45: 8.279040974e-45 | DM45: 1.211338499e-49 | DN45: 9.548953041e-55 | DO45: 4.055559192e-60 | DP45: 9.280053515e-66 | DQ45: 1.14407624e-71 | DR45: 7.59913572e-78 | DS45: 2.719431885e-84 | DT45: 5.243205973e-91 | DU45: 5.446536291e-98 | DV45: 3.048236324e-105 | DW45: 9.19139892e-113 | DX45: 1.493204694e-120 | DY45: 1.306958588e-128 | DZ45: 6.163239668e-137 | EA45: 1.565889223e-145 | EB45: 2.143471748e-154 | EC45: 1.580808423e-163 | ED45: 6.281241164e-173 | EE45: 1.344672256e-182 | EF45: 1.550929905e-192 | EG45: 9.63768317e-203 | EH45: 3.226694654e-213 | EI45: 5.82033314e-224 | EJ45: 5.656431944e-235 | EK45: 2.961706637e-246 | EL45: 8.35499627e-258 | EM45: 1.269858211e-269 | EN45: 1.039845823e-281 | EO45: 4.587619832e-294 | EP45: 1.090462263e-306 | EQ45: 0 | ER45: 0 | ES45: 0 | ET45: 0 | EU45: 1.090462263e-306 | EV45: 4.587619832e-294 | EW45: 1.039845823e-281 | EX45: 1.269858211e-269 | EY45: 8.35499627e-258 | EZ45: 2.961706637e-246 | FA45: 5.656431944e-235 | FB45: 5.82033314e-224 | FC45: 3.226694654e-213 | FD45: 9.63768317e-203 | FE45: 1.550929905e-192 | FF45: 1.344672256e-182 | FG45: 6.281241164e-173 | FH45: 1.580808423e-163 | FI45: 2.143471748e-154 | FJ45: 1.565889223e-145 | FK45: 6.163239668e-137 | FL45: 1.306958588e-128 | FM45: 1.493204694e-120 | FN45: 9.19139892e-113 | FO45: 3.048236324e-105 | FP45: 5.446536291e-98 | FQ45: 5.243205973e-91 | FR45: 2.719431885e-84 | FS45: 7.59913572e-78 | FT45: 0 | FU45: 0 | FV45: 0 | FW45: 0 | FX45: 0 | FY45: 0 | FZ45: 0 | GA45: 0 | GB45: 0 | GC45: 0 | GD45: 0 | GE45: 0 | GF45: 0 | GG45: 0 | GH45: 0 | GI45: 0 | GJ45: 0 | GK45: 0 | GL45: 0 | GM45: 0 | GN45: 0 | GO45: 0 | GP45: 0 | GQ45: 0 | GR45: 0 | GT45: 40 | GU45: 3.548629955e-05 | GV45: 15.00003549 | GW45: =INDEX($BW$6:$GR$261,$GT45,$BJ$14) -> 9.19139892e-113 | GX45: 2.348136263e-113
AE46: 8.6 | AF46: =IF('Macro input'!$F$19=1,GC!AG46,IF($K$29>0,IF($AE46<$I$29,$G$29,IF($AE46<$I$29+$J$29,$G$29+((H$29-G$29)*($AE46-I$29)/J$29),$H$29)),$G$29)) -> 186 | AG46: 186 | AH46: 0.132 | AI46: 0.44 | AJ46: 6.000000001 | AK46: 6 | AL46: 15 | AM46: 4.999999999 | AN46: 45 | AO46: 0 | AP46: 0 | AQ46: 0 | AR46: 0 | AS46: 0 | AT46: 0 | AU46: 0 | AV46: 0 | AW46: 0 | AX46: 0 | AY46: 0 | AZ46: 0 | BA46: 0 | BB46: 0 | BC46: 0 | BD46: 0 | BE46: 0 | BF46: 0 | BG46: 0 | BH46: 0 | BK46: 8.8 | BL46: 2.64 | BM46: 15.00282568 | BN46: 0.01676777211 | BO46: 0 | BP46: =DO$4*$N$32+$M$32 -> 16.60091768 | BU46: 4 | BW46: 1.08820466e-75 | BX46: 1.638329859e-69 | BY46: 1.328913952e-63 | BZ46: 5.807605726e-58 | CA46: 1.367420662e-52 | CB46: 1.73465016e-47 | CC46: 1.185567846e-42 | CD46: 4.365617417e-38 | CE46: 8.661032814e-34 | CF46: 9.25760068e-30 | CG46: 5.331285656e-26 | CH46: 1.654132184e-22 | CI46: 2.765115136e-19 | CJ46: 2.490353375e-16 | CK46: 1.208407698e-13 | CL46: 3.159153579e-11 | CM46: 4.449720623e-09 | CN46: 3.376754592e-07 | CO46: 1.380609963e-05 | CP46: 0.0003041215928 | CQ46: 0.00360934386 | CR46: 0.02307884184 | CS46: 0.07950684357 | CT46: 0.1475705728 | CU46: 0.1475705728 | CV46: 0.07950684357 | CW46: 0.02307884184 | CX46: 0.00360934386 | CY46: 0.0003041215928 | CZ46: 1.380609963e-05 | DA46: 3.376754592e-07 | DB46: 4.449720623e-09 | DC46: 3.159153579e-11 | DD46: 1.208407698e-13 | DE46: 2.490353375e-16 | DF46: 2.765115136e-19 | DG46: 1.654132184e-22 | DH46: 5.331285656e-26 | DI46: 9.25760068e-30 | DJ46: 8.661032814e-34 | DK46: 4.365617417e-38 | DL46: 1.185567846e-42 | DM46: 1.73465016e-47 | DN46: 1.367420662e-52 | DO46: 5.807605726e-58 | DP46: 1.328913952e-63 | DQ46: 1.638329859e-69 | DR46: 1.08820466e-75 | DS46: 3.894256609e-82 | DT46: 7.508329084e-89 | DU46: 7.799500353e-96 | DV46: 4.365108211e-103 | DW46: 1.316218516e-110 | DX46: 2.138285676e-118 | DY46: 1.871579187e-126 | DZ46: 8.825827535e-135 | EA46: 2.242370729e-143 | EB46: 3.069475307e-152 | EC46: 2.263735187e-161 | ED46: 8.994806986e-171 | EE46: 1.925585579e-180 | EF46: 2.220948819e-190 | EG46: 1.380126915e-200 | EH46: 4.620662518e-211 | EI46: 8.334781585e-222 | EJ46: 8.100073255e-233 | EK46: 4.24119674e-244 | EL46: 1.196444729e-255 | EM46: 1.818451036e-267 | EN46: 1.489070748e-279 | EO46: 6.569522462e-292 | EP46: 1.56155405e-304 | EQ46: 0 | ER46: 0 | ES46: 0 | ET46: 0 | EU46: 1.56155405e-304 | EV46: 6.569522462e-292 | EW46: 1.489070748e-279 | EX46: 1.818451036e-267 | EY46: 1.196444729e-255 | EZ46: 4.24119674e-244 | FA46: 8.100073255e-233 | FB46: 8.334781585e-222 | FC46: 4.620662518e-211 | FD46: 1.380126915e-200 | FE46: 2.220948819e-190 | FF46: 1.925585579e-180 | FG46: 8.994806986e-171 | FH46: 2.263735187e-161 | FI46: 3.069475307e-152 | FJ46: 2.242370729e-143 | FK46: 8.825827535e-135 | FL46: 1.871579187e-126 | FM46: 2.138285676e-118 | FN46: 1.316218516e-110 | FO46: 4.365108211e-103 | FP46: 7.799500353e-96 | FQ46: 7.508329084e-89 | FR46: 3.894256609e-82 | FS46: 1.08820466e-75 | FT46: 0 | FU46: 0 | FV46: 0 | FW46: 0 | FX46: 0 | FY46: 0 | FZ46: 0 | GA46: 0 | GB46: 0 | GC46: 0 | GD46: 0 | GE46: 0 | GF46: 0 | GG46: 0 | GH46: 0 | GI46: 0 | GJ46: 0 | GK46: 0 | GL46: 0 | GM46: 0 | GN46: 0 | GO46: 0 | GP46: 0 | GQ46: 0 | GR46: 0 | GT46: 41 | GU46: 0.005081677438 | GV46: 15.00508168 | GW46: =INDEX($BW$6:$GR$261,$GT46,$BJ$14) -> 1.316218516e-110 | GX46: 3.362557161e-111
AE47: 8.8 | AF47: =IF('Macro input'!$F$19=1,GC!AG47,IF($K$29>0,IF($AE47<$I$29,$G$29,IF($AE47<$I$29+$J$29,$G$29+((H$29-G$29)*($AE47-I$29)/J$29),$H$29)),$G$29)) -> 188 | AG47: 188 | AH47: 0.135 | AI47: 0.45 | AJ47: 6.000000003 | AK47: 6 | AL47: 15 | AM47: 4.999999997 | AN47: 46 | AO47: 0 | AP47: 0 | AQ47: 0 | AR47: 0 | AS47: 0 | AT47: 0 | AU47: 0 | AV47: 0 | AW47: 0 | AX47: 0 | AY47: 0 | AZ47: 0 | BA47: 0 | BB47: 0 | BC47: 0 | BD47: 0 | BE47: 0 | BF47: 0 | BG47: 0 | BH47: 0 | BK47: 9 | BL47: 2.7 | BM47: 15.00291076 | BN47: 0.008753843105 | BO47: 0 | BP47: =DP$4*$N$32+$M$32 -> 15.79561048 | BU47: 4.1 | BW47: 4.546287402e-74 | BX47: 6.844593368e-68 | BY47: 5.551919579e-62 | BZ47: 2.426294035e-56 | CA47: 5.712792417e-51 | CB47: 7.246999079e-46 | CC47: 4.953050066e-41 | CD47: 1.823862018e-36 | CE47: 3.618395125e-32 | CF47: 3.867628479e-28 | CG47: 2.227297649e-24 | CH47: 6.910612117e-21 | CI47: 1.155206237e-17 | CJ47: 1.040416623e-14 | CK47: 5.048470106e-12 | CL47: 1.31982711e-09 | CM47: 1.858998546e-07 | CN47: 1.410736181e-05 | CO47: 0.0005767894508 | CP47: 0.0127055527 | CQ47: 0.1507907026 | CR47: 0.9641848797 | CS47: 3.321626663 | CT47: 6.165184368 | CU47: 6.165184368 | CV47: 3.321626663 | CW47: 0.9641848797 | CX47: 0.1507907026 | CY47: 0.0127055527 | CZ47: 0.0005767894508 | DA47: 1.410736181e-05 | DB47: 1.858998546e-07 | DC47: 1.31982711e-09 | DD47: 5.048470106e-12 | DE47: 1.040416623e-14 | DF47: 1.155206237e-17 | DG47: 6.910612117e-21 | DH47: 2.227297649e-24 | DI47: 3.867628479e-28 | DJ47: 3.618395125e-32 | DK47: 1.823862018e-36 | DL47: 4.953050066e-41 | DM47: 7.246999079e-46 | DN47: 5.712792417e-51 | DO47: 2.426294035e-56 | DP47: 5.551919579e-62 | DQ47: 6.844593368e-68 | DR47: 4.546287402e-74 | DS47: 1.626937506e-80 | DT47: 3.136820047e-87 | DU47: 3.258465204e-94 | DV47: 1.823649282e-101 | DW47: 5.498880749e-109 | DX47: 8.933302338e-117 | DY47: 7.819059406e-125 | DZ47: 3.687242851e-133 | EA47: 9.368147527e-142 | EB47: 1.282361437e-150 | EC47: 9.457403687e-160 | ED47: 3.757838869e-169 | EE47: 8.044686613e-179 | EF47: 9.278651349e-189 | EG47: 5.765876436e-199 | EH47: 1.930414431e-209 | EI47: 3.482094308e-220 | EJ47: 3.384038164e-231 | EK47: 1.771881707e-242 | EL47: 4.998491366e-254 | EM47: 7.5971013e-266 | EN47: 6.221020576e-278 | EO47: 2.744606626e-290 | EP47: 6.523840381e-303 | EQ47: 0 | ER47: 0 | ES47: 0 | ET47: 0 | EU47: 6.523840381e-303 | EV47: 2.744606626e-290 | EW47: 6.221020576e-278 | EX47: 7.5971013e-266 | EY47: 4.998491366e-254 | EZ47: 1.771881707e-242 | FA47: 3.384038164e-231 | FB47: 3.482094308e-220 | FC47: 1.930414431e-209 | FD47: 5.765876436e-199 | FE47: 9.278651349e-189 | FF47: 8.044686613e-179 | FG47: 3.757838869e-169 | FH47: 9.457403687e-160 | FI47: 1.282361437e-150 | FJ47: 9.368147527e-142 | FK47: 3.687242851e-133 | FL47: 7.819059406e-125 | FM47: 8.933302338e-117 | FN47: 5.498880749e-109 | FO47: 1.823649282e-101 | FP47: 3.258465204e-94 | FQ47: 3.136820047e-87 | FR47: 1.626937506e-80 | FS47: 4.546287402e-74 | FT47: 0 | FU47: 0 | FV47: 0 | FW47: 0 | FX47: 0 | FY47: 0 | FZ47: 0 | GA47: 0 | GB47: 0 | GC47: 0 | GD47: 0 | GE47: 0 | GF47: 0 | GG47: 0 | GH47: 0 | GI47: 0 | GJ47: 0 | GK47: 0 | GL47: 0 | GM47: 0 | GN47: 0 | GO47: 0 | GP47: 0 | GQ47: 0 | GR47: 0 | GT47: 42 | GU47: 0.212301665 | GV47: 15.21230166 | GW47: =INDEX($BW$6:$GR$261,$GT47,$BJ$14) -> 5.498880749e-109 | GX47: 1.404804797e-109
AE48: 9 | AF48: =IF('Macro input'!$F$19=1,GC!AG48,IF($K$29>0,IF($AE48<$I$29,$G$29,IF($AE48<$I$29+$J$29,$G$29+((H$29-G$29)*($AE48-I$29)/J$29),$H$29)),$G$29)) -> 190 | AG48: 190 | AH48: 0.138 | AI48: 0.46 | AJ48: 6.000000005 | AK48: 6 | AL48: 15 | AM48: 4.999999995 | AN48: 47 | AO48: 0 | AP48: 0 | AQ48: 0 | AR48: 0 | AS48: 0 | AT48: 0 | AU48: 0 | AV48: 0 | AW48: 0 | AX48: 0 | AY48: 0 | AZ48: 0 | BA48: 0 | BB48: 0 | BC48: 0 | BD48: 0 | BE48: 0 | BF48: 0 | BG48: 0 | BH48: 0 | BK48: 9.2 | BL48: 2.76 | BM48: 15.00299819 | BN48: 0.004437613326 | BO48: 0 | BP48: =DQ$4*$N$32+$M$32 -> 15.59757628 | BU48: 4.2 | BW48: 5.669173035e-73 | BX48: 8.535136635e-67 | BY48: 6.923185884e-61 | BZ48: 3.025563388e-55 | CA48: 7.123792638e-50 | CB48: 9.036932364e-45 | CC48: 6.17640184e-40 | CD48: 2.274336938e-35 | CE48: 4.512101031e-31 | CF48: 4.822892427e-27 | CG48: 2.777416968e-23 | CH48: 8.617461326e-20 | CI48: 1.440530145e-16 | CJ48: 1.297388692e-13 | CK48: 6.295389636e-11 | CL48: 1.645810659e-08 | CM48: 2.318151823e-06 | CN48: 0.0001759173323 | CO48: 0.007192504371 | CP48: 0.1584369188 | CQ48: 1.880344354 | CR48: 12.02328502 | CS48: 41.42033849 | CT48: 76.87920688 | CU48: 76.87920688 | CV48: 41.42033849 | CW48: 12.02328502 | CX48: 1.880344354 | CY48: 0.1584369188 | CZ48: 0.007192504371 | DA48: 0.0001759173323 | DB48: 2.318151823e-06 | DC48: 1.645810659e-08 | DD48: 6.295389636e-11 | DE48: 1.297388692e-13 | DF48: 1.440530145e-16 | DG48: 8.617461326e-20 | DH48: 2.777416968e-23 | DI48: 4.822892427e-27 | DJ48: 4.512101031e-31 | DK48: 2.274336938e-35 | DL48: 6.17640184e-40 | DM48: 9.036932364e-45 | DN48: 7.123792638e-50 | DO48: 3.025563388e-55 | DP48: 6.923185884e-61 | DQ48: 8.535136635e-67 | DR48: 5.669173035e-73 | DS48: 2.028774124e-79 | DT48: 3.911581924e-86 | DU48: 4.063272168e-93 | DV48: 2.274071659e-100 | DW48: 6.857047016e-108 | DX48: 1.113973496e-115 | DY48: 9.750285633e-124 | DZ48: 4.597953428e-132 | EA48: 1.168198238e-140 | EB48: 1.599091355e-149 | EC48: 1.179328389e-158 | ED48: 4.685985926e-168 | EE48: 1.003164041e-177 | EF48: 1.157038158e-187 | EG48: 7.189987857e-198 | EH48: 2.407206687e-208 | EI48: 4.342135331e-219 | EJ48: 4.219860341e-230 | EK48: 2.209518033e-241 | EL48: 6.233066668e-253 | EM48: 9.473506187e-265 | EN48: 7.757547858e-277 | EO48: 3.422495874e-289 | EP48: 8.135161e-302 | EQ48: 0 | ER48: 0 | ES48: 0 | ET48: 0 | EU48: 8.135161e-302 | EV48: 3.422495874e-289 | EW48: 7.757547858e-277 | EX48: 9.473506187e-265 | EY48: 6.233066668e-253 | EZ48: 2.209518033e-241 | FA48: 4.219860341e-230 | FB48: 4.342135331e-219 | FC48: 2.407206687e-208 | FD48: 7.189987857e-198 | FE48: 1.157038158e-187 | FF48: 1.003164041e-177 | FG48: 4.685985926e-168 | FH48: 1.179328389e-158 | FI48: 1.599091355e-149 | FJ48: 1.168198238e-140 | FK48: 4.597953428e-132 | FL48: 9.750285633e-124 | FM48: 1.113973496e-115 | FN48: 6.857047016e-108 | FO48: 2.274071659e-100 | FP48: 4.063272168e-93 | FQ48: 3.911581924e-86 | FR48: 2.028774124e-79 | FS48: 5.669173035e-73 | FT48: 0 | FU48: 0 | FV48: 0 | FW48: 0 | FX48: 0 | FY48: 0 | FZ48: 0 | GA48: 0 | GB48: 0 | GC48: 0 | GD48: 0 | GE48: 0 | GF48: 0 | GG48: 0 | GH48: 0 | GI48: 0 | GJ48: 0 | GK48: 0 | GL48: 0 | GM48: 0 | GN48: 0 | GO48: 0 | GP48: 0 | GQ48: 0 | GR48: 0 | GT48: 43 | GU48: 2.647379648 | GV48: 17.64737965 | GW48: =INDEX($BW$6:$GR$261,$GT48,$BJ$14) -> 6.857047016e-108 | GX48: 1.751776948e-108
AE49: 9.2 | AF49: =IF('Macro input'!$F$19=1,GC!AG49,IF($K$29>0,IF($AE49<$I$29,$G$29,IF($AE49<$I$29+$J$29,$G$29+((H$29-G$29)*($AE49-I$29)/J$29),$H$29)),$G$29)) -> 192 | AG49: 192 | AH49: 0.141 | AI49: 0.47 | AJ49: 6.000000011 | AK49: 6 | AL49: 15 | AM49: 4.999999989 | AN49: 48 | AO49: 0 | AP49: 0 | AQ49: 0 | AR49: 0 | AS49: 0 | AT49: 0 | AU49: 0 | AV49: 0 | AW49: 0 | AX49: 0 | AY49: 0 | AZ49: 0 | BA49: 0 | BB49: 0 | BC49: 0 | BD49: 0 | BE49: 0 | BF49: 0 | BG49: 0 | BH49: 0 | BK49: 9.4 | BL49: 2.82 | BM49: 15.00308802 | BN49: 0.002184376314 | BO49: 0 | BP49: =DR$4*$N$32+$M$32 -> 15.89583436 | BU49: 4.3 | BW49: 2.16363183e-72 | BX49: 3.257422764e-66 | BY49: 2.642224052e-60 | BZ49: 1.154701966e-54 | CA49: 2.718785334e-49 | CB49: 3.448932391e-44 | CC49: 2.357214983e-39 | CD49: 8.679974594e-35 | CE49: 1.722036944e-30 | CF49: 1.840650039e-26 | CG49: 1.059997238e-22 | CH49: 3.288841865e-19 | CI49: 5.497762822e-16 | CJ49: 4.951465499e-13 | CK49: 2.402626506e-10 | CL49: 6.281212985e-08 | CM49: 8.847193481e-06 | CN49: 0.000671385998 | CO49: 0.02745009069 | CP49: 0.6046722483 | CQ49: 7.176307498 | CR49: 45.88669636 | CS49: 158.0801331 | CT49: 293.4084002 | CU49: 293.4084002 | CV49: 158.0801331 | CW49: 45.88669636 | CX49: 7.176307498 | CY49: 0.6046722483 | CZ49: 0.02745009069 | DA49: 0.000671385998 | DB49: 8.847193481e-06 | DC49: 6.281212985e-08 | DD49: 2.402626506e-10 | DE49: 4.951465499e-13 | DF49: 5.497762822e-16 | DG49: 3.288841865e-19 | DH49: 1.059997238e-22 | DI49: 1.840650039e-26 | DJ49: 1.722036944e-30 | DK49: 8.679974594e-35 | DL49: 2.357214983e-39 | DM49: 3.448932391e-44 | DN49: 2.718785334e-49 | DO49: 1.154701966e-54 | DP49: 2.642224052e-60 | DQ49: 3.257422764e-66 | DR49: 2.16363183e-72 | DS49: 7.742787605e-79 | DT49: 1.492849681e-85 | DU49: 1.550742047e-92 | DV49: 8.678962159e-100 | DW49: 2.616982246e-107 | DX49: 4.251464013e-115 | DY49: 3.721182652e-123 | DZ49: 1.75480239e-131 | EA49: 4.458411971e-140 | EB49: 6.102909424e-149 | EC49: 4.500890031e-158 | ED49: 1.788399868e-167 | EE49: 3.828561303e-177 | EF49: 4.415819684e-187 | EG49: 2.744048645e-197 | EH49: 9.187070104e-208 | EI49: 1.657169777e-218 | EJ49: 1.610503701e-229 | EK49: 8.432594163e-241 | EL49: 2.378841034e-252 | EM49: 3.61555017e-264 | EN49: 2.960657113e-276 | EO49: 1.306190685e-288 | EP49: 3.104772632e-301 | EQ49: 0 | ER49: 0 | ES49: 0 | ET49: 0 | EU49: 3.104772632e-301 | EV49: 1.306190685e-288 | EW49: 2.960657113e-276 | EX49: 3.61555017e-264 | EY49: 2.378841034e-252 | EZ49: 8.432594163e-241 | FA49: 1.610503701e-229 | FB49: 1.657169777e-218 | FC49: 9.187070104e-208 | FD49: 2.744048645e-197 | FE49: 4.415819684e-187 | FF49: 3.828561303e-177 | FG49: 1.788399868e-167 | FH49: 4.500890031e-158 | FI49: 6.102909424e-149 | FJ49: 4.458411971e-140 | FK49: 1.75480239e-131 | FL49: 3.721182652e-123 | FM49: 4.251464013e-115 | FN49: 2.616982246e-107 | FO49: 8.678962159e-100 | FP49: 1.550742047e-92 | FQ49: 1.492849681e-85 | FR49: 7.742787605e-79 | FS49: 2.16363183e-72 | FT49: 0 | FU49: 0 | FV49: 0 | FW49: 0 | FX49: 0 | FY49: 0 | FZ49: 0 | GA49: 0 | GB49: 0 | GC49: 0 | GD49: 0 | GE49: 0 | GF49: 0 | GG49: 0 | GH49: 0 | GI49: 0 | GJ49: 0 | GK49: 0 | GL49: 0 | GM49: 0 | GN49: 0 | GO49: 0 | GP49: 0 | GQ49: 0 | GR49: 0 | GT49: 44 | GU49: 10.1036868 | GV49: 25.1036868 | GW49: =INDEX($BW$6:$GR$261,$GT49,$BJ$14) -> 2.616982246e-107 | GX49: 6.685631823e-108
AE50: 9.4 | AF50: =IF('Macro input'!$F$19=1,GC!AG50,IF($K$29>0,IF($AE50<$I$29,$G$29,IF($AE50<$I$29+$J$29,$G$29+((H$29-G$29)*($AE50-I$29)/J$29),$H$29)),$G$29)) -> 194 | AG50: 194 | AH50: 0.144 | AI50: 0.48 | AJ50: 6.00000002 | AK50: 6 | AL50: 15 | AM50: 4.99999998 | AN50: 49 | AO50: 0 | AP50: 0 | AQ50: 0 | AR50: 0 | AS50: 0 | AT50: 0 | AU50: 0 | AV50: 0 | AW50: 0 | AX50: 0 | AY50: 0 | AZ50: 0 | BA50: 0 | BB50: 0 | BC50: 0 | BD50: 0 | BE50: 0 | BF50: 0 | BG50: 0 | BH50: 0 | BK50: 9.6 | BL50: 2.88 | BM50: 15.0031803 | BN50: 0.001044077563 | BO50: 0 | BP50: =DS$4*$N$32+$M$32 -> 16.59591313 | BU50: 4.4 | BW50: 2.57504008e-72 | BX50: 3.876812153e-66 | BY50: 3.144635209e-60 | BZ50: 1.37426516e-54 | CA50: 3.235754395e-49 | CB50: 4.104736774e-44 | CC50: 2.805432501e-39 | CD50: 1.033044632e-34 | CE50: 2.049477221e-30 | CF50: 2.190644248e-26 | CG50: 1.261552605e-22 | CH50: 3.914205504e-19 | CI50: 6.543146305e-16 | CJ50: 5.892972148e-13 | CK50: 2.859478892e-10 | CL50: 7.475567219e-08 | CM50: 1.052946139e-05 | CN50: 0.0007990480773 | CO50: 0.03266964496 | CP50: 0.7196489036 | CQ50: 8.54086133 | CR50: 54.61191715 | CS50: 188.1386069 | CT50: 349.1991474 | CU50: 349.1991474 | CV50: 188.1386069 | CW50: 54.61191715 | CX50: 8.54086133 | CY50: 0.7196489036 | CZ50: 0.03266964496 | DA50: 0.0007990480773 | DB50: 1.052946139e-05 | DC50: 7.475567219e-08 | DD50: 2.859478892e-10 | DE50: 5.892972148e-13 | DF50: 6.543146305e-16 | DG50: 3.914205504e-19 | DH50: 1.261552605e-22 | DI50: 2.190644248e-26 | DJ50: 2.049477221e-30 | DK50: 1.033044632e-34 | DL50: 2.805432501e-39 | DM50: 4.104736774e-44 | DN50: 3.235754395e-49 | DO50: 1.37426516e-54 | DP50: 3.144635209e-60 | DQ50: 3.876812153e-66 | DR50: 2.57504008e-72 | DS50: 9.215055969e-79 | DT50: 1.776710671e-85 | DU50: 1.845611101e-92 | DV50: 1.032924137e-99 | DW50: 3.114593749e-107 | DX50: 5.059867432e-115 | DY50: 4.428754624e-123 | DZ50: 2.08847292e-131 | EA50: 5.306165937e-140 | EB50: 7.26335976e-149 | EC50: 5.356721076e-158 | ED50: 2.12845886e-167 | EE50: 4.55655101e-177 | EF50: 5.255474851e-187 | EG50: 3.26582145e-197 | EH50: 1.093396455e-207 | EI50: 1.972275752e-218 | EJ50: 1.916736258e-229 | EK50: 1.003602722e-240 | EL50: 2.831170682e-252 | EM50: 4.303036435e-264 | EN50: 3.523617383e-276 | EO50: 1.554559015e-288 | EP50: 3.695136046e-301 | EQ50: 0 | ER50: 0 | ES50: 0 | ET50: 0 | EU50: 3.695136046e-301 | EV50: 1.554559015e-288 | EW50: 3.523617383e-276 | EX50: 4.303036435e-264 | EY50: 2.831170682e-252 | EZ50: 1.003602722e-240 | FA50: 1.916736258e-229 | FB50: 1.972275752e-218 | FC50: 1.093396455e-207 | FD50: 3.26582145e-197 | FE50: 5.255474851e-187 | FF50: 4.55655101e-177 | FG50: 2.12845886e-167 | FH50: 5.356721076e-158 | FI50: 7.26335976e-149 | FJ50: 5.306165937e-140 | FK50: 2.08847292e-131 | FL50: 4.428754624e-123 | FM50: 5.059867432e-115 | FN50: 3.114593749e-107 | FO50: 1.032924137e-99 | FP50: 1.845611101e-92 | FQ50: 1.776710671e-85 | FR50: 9.215055969e-79 | FS50: 2.57504008e-72 | FT50: 0 | FU50: 0 | FV50: 0 | FW50: 0 | FX50: 0 | FY50: 0 | FZ50: 0 | GA50: 0 | GB50: 0 | GC50: 0 | GD50: 0 | GE50: 0 | GF50: 0 | GG50: 0 | GH50: 0 | GI50: 0 | GJ50: 0 | GK50: 0 | GL50: 0 | GM50: 0 | GN50: 0 | GO50: 0 | GP50: 0 | GQ50: 0 | GR50: 0 | GT50: 45 | GU50: 12.02487322 | GV50: 27.02487322 | GW50: =INDEX($BW$6:$GR$261,$GT50,$BJ$14) -> 3.114593749e-107 | GX50: 7.956885114e-108
AE51: 9.6 | AF51: =IF('Macro input'!$F$19=1,GC!AG51,IF($K$29>0,IF($AE51<$I$29,$G$29,IF($AE51<$I$29+$J$29,$G$29+((H$29-G$29)*($AE51-I$29)/J$29),$H$29)),$G$29)) -> 196 | AG51: 196 | AH51: 0.147 | AI51: 0.49 | AJ51: 6.000000039 | AK51: 6 | AL51: 15 | AM51: 4.999999961 | AN51: 50 | AO51: 0 | AP51: 0 | AQ51: 0 | AR51: 0 | AS51: 0 | AT51: 0 | AU51: 0 | AV51: 0 | AW51: 0 | AX51: 0 | AY51: 0 | AZ51: 0 | BA51: 0 | BB51: 0 | BC51: 0 | BD51: 0 | BE51: 0 | BF51: 0 | BG51: 0 | BH51: 0 | BK51: 9.8 | BL51: 2.94 | BM51: 15.00327511 | BN51: 0.0004845798716 | BO51: 0 | BP51: =DT$4*$N$32+$M$32 -> 17.58229925 | BU51: 4.5 | BW51: 9.583937557e-73 | BX51: 1.44289504e-66 | BY51: 1.170389064e-60 | BZ51: 5.114821934e-55 | CA51: 1.204302345e-49 | CB51: 1.527725383e-44 | CC51: 1.044142579e-39 | CD51: 3.844847046e-35 | CE51: 7.627866403e-31 | CF51: 8.153270253e-27 | CG51: 4.695321633e-23 | CH51: 1.456812321e-19 | CI51: 2.435267168e-16 | CJ51: 2.193281477e-13 | CK51: 1.064257887e-10 | CL51: 2.782301138e-08 | CM51: 3.91891766e-06 | CN51: 0.0002973944731 | CO51: 0.01215918307 | CP51: 0.2678432157 | CQ51: 3.178788646 | CR51: 20.32578863 | CS51: 70.02254742 | CT51: 129.9670188 | CU51: 129.9670188 | CV51: 70.02254742 | CW51: 20.32578863 | CX51: 3.178788646 | CY51: 0.2678432157 | CZ51: 0.01215918307 | DA51: 0.0002973944731 | DB51: 3.91891766e-06 | DC51: 2.782301138e-08 | DD51: 1.064257887e-10 | DE51: 2.193281477e-13 | DF51: 2.435267168e-16 | DG51: 1.456812321e-19 | DH51: 4.695321633e-23 | DI51: 8.153270253e-27 | DJ51: 7.627866403e-31 | DK51: 3.844847046e-35 | DL51: 1.044142579e-39 | DM51: 1.527725383e-44 | DN51: 1.204302345e-49 | DO51: 5.114821934e-55 | DP51: 1.170389064e-60 | DQ51: 1.44289504e-66 | DR51: 9.583937557e-73 | DS51: 3.429714422e-79 | DT51: 6.612667611e-86 | DU51: 6.869105335e-93 | DV51: 3.844398582e-100 | DW51: 1.159208054e-107 | DX51: 1.883211601e-115 | DY51: 1.648320277e-123 | DZ51: 7.773002918e-132 | EA51: 1.974880446e-140 | EB51: 2.703320501e-149 | EC51: 1.993696358e-158 | ED51: 7.92182497e-168 | EE51: 1.695884297e-177 | EF51: 1.956013936e-187 | EG51: 1.215492881e-197 | EH51: 4.069468058e-208 | EI51: 7.340533375e-219 | EJ51: 7.13382318e-230 | EK51: 3.735268394e-241 | EL51: 1.053721969e-252 | EM51: 1.601529733e-264 | EN51: 1.311440907e-276 | EO51: 5.785850342e-289 | EP51: 1.375277744e-301 | EQ51: 0 | ER51: 0 | ES51: 0 | ET51: 0 | EU51: 1.375277744e-301 | EV51: 5.785850342e-289 | EW51: 1.311440907e-276 | EX51: 1.601529733e-264 | EY51: 1.053721969e-252 | EZ51: 3.735268394e-241 | FA51: 7.13382318e-230 | FB51: 7.340533375e-219 | FC51: 4.069468058e-208 | FD51: 1.215492881e-197 | FE51: 1.956013936e-187 | FF51: 1.695884297e-177 | FG51: 7.92182497e-168 | FH51: 1.993696358e-158 | FI51: 2.703320501e-149 | FJ51: 1.974880446e-140 | FK51: 7.773002918e-132 | FL51: 1.648320277e-123 | FM51: 1.883211601e-115 | FN51: 1.159208054e-107 | FO51: 3.844398582e-100 | FP51: 6.869105335e-93 | FQ51: 6.612667611e-86 | FR51: 3.429714422e-79 | FS51: 9.583937557e-73 | FT51: 0 | FU51: 0 | FV51: 0 | FW51: 0 | FX51: 0 | FY51: 0 | FZ51: 0 | GA51: 0 | GB51: 0 | GC51: 0 | GD51: 0 | GE51: 0 | GF51: 0 | GG51: 0 | GH51: 0 | GI51: 0 | GJ51: 0 | GK51: 0 | GL51: 0 | GM51: 0 | GN51: 0 | GO51: 0 | GP51: 0 | GQ51: 0 | GR51: 0 | GT51: 46 | GU51: 4.475488944 | GV51: 19.47548894 | GW51: =INDEX($BW$6:$GR$261,$GT51,$BJ$14) -> 1.159208054e-107 | GX51: 2.961440899e-108
AE52: 9.8 | AF52: =IF('Macro input'!$F$19=1,GC!AG52,IF($K$29>0,IF($AE52<$I$29,$G$29,IF($AE52<$I$29+$J$29,$G$29+((H$29-G$29)*($AE52-I$29)/J$29),$H$29)),$G$29)) -> 198 | AG52: 198 | AH52: 0.15 | AI52: 0.5 | AJ52: 6.000000073 | AK52: 6 | AL52: 15 | AM52: 4.999999927 | AN52: 51 | AO52: 0 | AP52: 0 | AQ52: 0 | AR52: 0 | AS52: 0 | AT52: 0 | AU52: 0 | AV52: 0 | AW52: 0 | AX52: 0 | AY52: 0 | AZ52: 0 | BA52: 0 | BB52: 0 | BC52: 0 | BD52: 0 | BE52: 0 | BF52: 0 | BG52: 0 | BH52: 0 | BK52: 10 | BL52: 3 | BM52: 15.00337249 | BN52: 0.000218386245 | BO52: 0 | BP52: =DU$4*$N$32+$M$32 -> 18.62904961 | BU52: 4.6 | BW52: 1.099129217e-73 | BX52: 1.654777159e-67 | BY52: 1.342255005e-61 | BZ52: 5.865908657e-56 | CA52: 1.381148287e-50 | CB52: 1.752064425e-45 | CC52: 1.197469839e-40 | CD52: 4.409444134e-36 | CE52: 8.747981484e-32 | CF52: 9.350538334e-28 | CG52: 5.384806778e-24 | CH52: 1.670738124e-20 | CI52: 2.792874306e-17 | CJ52: 2.515354194e-14 | CK52: 1.220538982e-11 | CL52: 3.190868527e-09 | CM52: 4.494391657e-07 | CN52: 3.41065405e-05 | CO52: 0.001394469996 | CP52: 0.03071746892 | CQ52: 0.3645578297 | CR52: 2.331053183 | CS52: 8.030501794 | CT52: 14.90520433 | CU52: 14.90520433 | CV52: 8.030501794 | CW52: 2.331053183 | CX52: 0.3645578297 | CY52: 0.03071746892 | CZ52: 0.001394469996 | DA52: 3.41065405e-05 | DB52: 4.494391657e-07 | DC52: 3.190868527e-09 | DD52: 1.220538982e-11 | DE52: 2.515354194e-14 | DF52: 2.792874306e-17 | DG52: 1.670738124e-20 | DH52: 5.384806778e-24 | DI52: 9.350538334e-28 | DJ52: 8.747981484e-32 | DK52: 4.409444134e-36 | DL52: 1.197469839e-40 | DM52: 1.752064425e-45 | DN52: 1.381148287e-50 | DO52: 5.865908657e-56 | DP52: 1.342255005e-61 | DQ52: 1.654777159e-67 | DR52: 1.099129217e-73 | DS52: 3.933351304e-80 | DT52: 7.583705687e-87 | DU52: 7.877800043e-94 | DV52: 4.408929815e-101 | DW52: 1.329432119e-108 | DX52: 2.159752065e-116 | DY52: 1.890368092e-124 | DZ52: 8.91443059e-133 | EA52: 2.264882034e-141 | EB52: 3.100289968e-150 | EC52: 2.286460972e-159 | ED52: 9.085106437e-169 | EE52: 1.944916658e-178 | EF52: 2.243245068e-188 | EG52: 1.393982099e-198 | EH52: 4.667049649e-209 | EI52: 8.418454999e-220 | EJ52: 8.181390417e-231 | EK52: 4.28377439e-242 | EL52: 1.208455915e-253 | EM52: 1.836706584e-265 | EN52: 1.504019625e-277 | EO52: 6.635474324e-290 | EP52: 1.577230592e-302 | EQ52: 0 | ER52: 0 | ES52: 0 | ET52: 0 | EU52: 1.577230592e-302 | EV52: 6.635474324e-290 | EW52: 1.504019625e-277 | EX52: 1.836706584e-265 | EY52: 1.208455915e-253 | EZ52: 4.28377439e-242 | FA52: 8.181390417e-231 | FB52: 8.418454999e-220 | FC52: 4.667049649e-209 | FD52: 1.393982099e-198 | FE52: 2.243245068e-188 | FF52: 1.944916658e-178 | FG52: 9.085106437e-169 | FH52: 2.286460972e-159 | FI52: 3.100289968e-150 | FJ52: 2.264882034e-141 | FK52: 8.91443059e-133 | FL52: 1.890368092e-124 | FM52: 2.159752065e-116 | FN52: 1.329432119e-108 | FO52: 4.408929815e-101 | FP52: 7.877800043e-94 | FQ52: 7.583705687e-87 | FR52: 3.933351304e-80 | FS52: 1.099129217e-73 | FT52: 0 | FU52: 0 | FV52: 0 | FW52: 0 | FX52: 0 | FY52: 0 | FZ52: 0 | GA52: 0 | GB52: 0 | GC52: 0 | GD52: 0 | GE52: 0 | GF52: 0 | GG52: 0 | GH52: 0 | GI52: 0 | GJ52: 0 | GK52: 0 | GL52: 0 | GM52: 0 | GN52: 0 | GO52: 0 | GP52: 0 | GQ52: 0 | GR52: 0 | GT52: 47 | GU52: 0.5132692728 | GV52: 15.51326927 | GW52: =INDEX($BW$6:$GR$261,$GT52,$BJ$14) -> 1.329432119e-108 | GX52: 3.396314091e-109
AE53: 10 | AF53: =IF('Macro input'!$F$19=1,GC!AG53,IF($K$29>0,IF($AE53<$I$29,$G$29,IF($AE53<$I$29+$J$29,$G$29+((H$29-G$29)*($AE53-I$29)/J$29),$H$29)),$G$29)) -> 200 | AG53: 200 | AH53: 0.153 | AI53: 0.51 | AJ53: 6.000000136 | AK53: 6 | AL53: 15 | AM53: 4.999999864 | AN53: 52 | AO53: 0 | AP53: 0 | AQ53: 0 | AR53: 0 | AS53: 0 | AT53: 0 | AU53: 0 | AV53: 0 | AW53: 0 | AX53: 0 | AY53: 0 | AZ53: 0 | BA53: 0 | BB53: 0 | BC53: 0 | BD53: 0 | BE53: 0 | BF53: 0 | BG53: 0 | BH53: 0 | BK53: 10.2 | BL53: 3.06 | BM53: 15.00347251 | BN53: 9.556799934e-05 | BO53: 0 | BP53: =DV$4*$N$32+$M$32 -> 19.41035192 | BU53: 4.7 | BW53: 3.791060531e-75 | BX53: 5.707573119e-69 | BY53: 4.62963762e-63 | BZ53: 2.023239346e-57 | CA53: 4.763786346e-52 | CB53: 6.043131405e-47 | CC53: 4.130251995e-42 | CD53: 1.520883019e-37 | CE53: 3.017309231e-33 | CF53: 3.225140071e-29 | CG53: 1.857300136e-25 | CH53: 5.762624868e-22 | CI53: 9.633039851e-19 | CJ53: 8.67583161e-16 | CK53: 4.209820908e-13 | CL53: 1.100578125e-10 | CM53: 1.550182686e-08 | CN53: 1.176385429e-06 | CO53: 4.809734907e-05 | CP53: 0.001059491297 | CQ53: 0.01257414304 | CR53: 0.08040149948 | CS53: 0.2769839789 | CT53: 0.5141027185 | CU53: 0.5141027185 | CV53: 0.2769839789 | CW53: 0.08040149948 | CX53: 0.01257414304 | CY53: 0.001059491297 | CZ53: 4.809734907e-05 | DA53: 1.176385429e-06 | DB53: 1.550182686e-08 | DC53: 1.100578125e-10 | DD53: 4.209820908e-13 | DE53: 8.67583161e-16 | DF53: 9.633039851e-19 | DG53: 5.762624868e-22 | DH53: 1.857300136e-25 | DI53: 3.225140071e-29 | DJ53: 3.017309231e-33 | DK53: 1.520883019e-37 | DL53: 4.130251995e-42 | DM53: 6.043131405e-47 | DN53: 4.763786346e-52 | DO53: 2.023239346e-57 | DP53: 4.62963762e-63 | DQ53: 5.707573119e-69 | DR53: 3.791060531e-75 | DS53: 1.356671504e-81 | DT53: 2.615733151e-88 | DU53: 2.717170679e-95 | DV53: 1.520705623e-102 | DW53: 4.585409572e-110 | DX53: 7.449306853e-118 | DY53: 6.520161371e-126 | DZ53: 3.074720009e-134 | EA53: 7.811915789e-143 | EB53: 1.06933623e-151 | EC53: 7.886344762e-161 | ED53: 3.133588653e-170 | EE53: 6.708307505e-180 | EF53: 7.737286669e-190 | EG53: 4.808052076e-200 | EH53: 1.609735001e-210 | EI53: 2.903650633e-221 | EJ53: 2.821883525e-232 | EK53: 1.47753765e-243 | EL53: 4.16814461e-255 | EM53: 6.335074829e-267 | EN53: 5.187587911e-279 | EO53: 2.288674017e-291 | EP53: 5.440103449e-304 | EQ53: 0 | ER53: 0 | ES53: 0 | ET53: 0 | EU53: 5.440103449e-304 | EV53: 2.288674017e-291 | EW53: 5.187587911e-279 | EX53: 6.335074829e-267 | EY53: 4.16814461e-255 | EZ53: 1.47753765e-243 | FA53: 2.821883525e-232 | FB53: 2.903650633e-221 | FC53: 1.609735001e-210 | FD53: 4.808052076e-200 | FE53: 7.737286669e-190 | FF53: 6.708307505e-180 | FG53: 3.133588653e-170 | FH53: 7.886344762e-161 | FI53: 1.06933623e-151 | FJ53: 7.811915789e-143 | FK53: 3.074720009e-134 | FL53: 6.520161371e-126 | FM53: 7.449306853e-118 | FN53: 4.585409572e-110 | FO53: 1.520705623e-102 | FP53: 2.717170679e-95 | FQ53: 2.615733151e-88 | FR53: 1.356671504e-81 | FS53: 3.791060531e-75 | FT53: 0 | FU53: 0 | FV53: 0 | FW53: 0 | FX53: 0 | FY53: 0 | FZ53: 0 | GA53: 0 | GB53: 0 | GC53: 0 | GD53: 0 | GE53: 0 | GF53: 0 | GG53: 0 | GH53: 0 | GI53: 0 | GJ53: 0 | GK53: 0 | GL53: 0 | GM53: 0 | GN53: 0 | GO53: 0 | GP53: 0 | GQ53: 0 | GR53: 0 | GT53: 48 | GU53: 0.01770342241 | GV53: 15.01770342 | GW53: =INDEX($BW$6:$GR$261,$GT53,$BJ$14) -> 4.585409572e-110 | GX53: 1.171439363e-110
AE54: 10.2 | AF54: =IF('Macro input'!$F$19=1,GC!AG54,IF($K$29>0,IF($AE54<$I$29,$G$29,IF($AE54<$I$29+$J$29,$G$29+((H$29-G$29)*($AE54-I$29)/J$29),$H$29)),$G$29)) -> 202 | AG54: 202.05 | AH54: 0.156 | AI54: 0.52 | AJ54: 6.000000249 | AK54: 6 | AL54: 15 | AM54: 4.999999751 | AN54: 53 | AO54: 0 | AP54: 0 | AQ54: 0 | AR54: 0 | AS54: 0 | AT54: 0 | AU54: 0 | AV54: 0 | AW54: 0 | AX54: 0 | AY54: 0 | AZ54: 0 | BA54: 0 | BB54: 0 | BC54: 0 | BD54: 0 | BE54: 0 | BF54: 0 | BG54: 0 | BH54: 0 | BK54: 10.4 | BL54: 3.12 | BM54: 15.00357523 | BN54: 4.060944095e-05 | BO54: 0 | BP54: =DW$4*$N$32+$M$32 -> 19.64615342 | BU54: 4.8 | BW54: 3.83900572e-77 | BX54: 5.779756265e-71 | BY54: 4.688188215e-65 | BZ54: 2.048827066e-59 | CA54: 4.824033509e-54 | CB54: 6.119558324e-49 | CC54: 4.182486908e-44 | CD54: 1.540117485e-39 | CE54: 3.05546886e-35 | CF54: 3.265928117e-31 | CG54: 1.880789238e-27 | CH54: 5.835504247e-24 | CI54: 9.754868008e-21 | CJ54: 8.785554044e-18 | CK54: 4.263062121e-15 | CL54: 1.114497034e-12 | CM54: 1.569787702e-10 | CN54: 1.191263066e-08 | CO54: 4.870563176e-07 | CP54: 1.072890585e-05 | CQ54: 0.0001273316705 | CR54: 0.0008141832975 | CS54: 0.002804869695 | CT54: 0.005206045276 | CU54: 0.005206045276 | CV54: 0.002804869695 | CW54: 0.0008141832975 | CX54: 0.0001273316705 | CY54: 1.072890585e-05 | CZ54: 4.870563176e-07 | DA54: 1.191263066e-08 | DB54: 1.569787702e-10 | DC54: 1.114497034e-12 | DD54: 4.263062121e-15 | DE54: 8.785554044e-18 | DF54: 9.754868008e-21 | DG54: 5.835504247e-24 | DH54: 1.880789238e-27 | DI54: 3.265928117e-31 | DJ54: 3.05546886e-35 | DK54: 1.540117485e-39 | DL54: 4.182486908e-44 | DM54: 6.119558324e-49 | DN54: 4.824033509e-54 | DO54: 2.048827066e-59 | DP54: 4.688188215e-65 | DQ54: 5.779756265e-71 | DR54: 3.83900572e-77 | DS54: 1.373829202e-83 | DT54: 2.648814085e-90 | DU54: 2.751534483e-97 | DV54: 1.539937845e-104 | DW54: 4.64340082e-112 | DX54: 7.543517543e-120 | DY54: 6.602621244e-128 | DZ54: 3.113605706e-136 | EA54: 7.91071236e-145 | EB54: 1.082860026e-153 | EC54: 7.98608263e-163 | ED54: 3.173218857e-172 | EE54: 6.793146846e-182 | EF54: 7.835139412e-192 | EG54: 4.868859063e-202 | EH54: 1.63009317e-212 | EI54: 2.940372832e-223 | EJ54: 2.857571623e-234 | EK54: 1.496223931e-245 | EL54: 4.220858747e-257 | EM54: 6.415193931e-269 | EN54: 5.253194852e-281 | EO54: 2.317618665e-293 | EP54: 5.508903931e-306 | EQ54: 0 | ER54: 0 | ES54: 0 | ET54: 0 | EU54: 5.508903931e-306 | EV54: 2.317618665e-293 | EW54: 5.253194852e-281 | EX54: 6.415193931e-269 | EY54: 4.220858747e-257 | EZ54: 1.496223931e-245 | FA54: 2.857571623e-234 | FB54: 2.940372832e-223 | FC54: 1.63009317e-212 | FD54: 4.868859063e-202 | FE54: 7.835139412e-192 | FF54: 6.793146846e-182 | FG54: 3.173218857e-172 | FH54: 7.98608263e-163 | FI54: 1.082860026e-153 | FJ54: 7.91071236e-145 | FK54: 3.113605706e-136 | FL54: 6.602621244e-128 | FM54: 7.543517543e-120 | FN54: 4.64340082e-112 | FO54: 1.539937845e-104 | FP54: 2.751534483e-97 | FQ54: 2.648814085e-90 | FR54: 1.373829202e-83 | FS54: 3.83900572e-77 | FT54: 0 | FU54: 0 | FV54: 0 | FW54: 0 | FX54: 0 | FY54: 0 | FZ54: 0 | GA54: 0 | GB54: 0 | GC54: 0 | GD54: 0 | GE54: 0 | GF54: 0 | GG54: 0 | GH54: 0 | GI54: 0 | GJ54: 0 | GK54: 0 | GL54: 0 | GM54: 0 | GN54: 0 | GO54: 0 | GP54: 0 | GQ54: 0 | GR54: 0 | GT54: 49 | GU54: 0.0001792731594 | GV54: 15.00017927 | GW54: =INDEX($BW$6:$GR$261,$GT54,$BJ$14) -> 4.64340082e-112 | GX54: 1.186254447e-112
AE55: 10.4 | AF55: =IF('Macro input'!$F$19=1,GC!AG55,IF($K$29>0,IF($AE55<$I$29,$G$29,IF($AE55<$I$29+$J$29,$G$29+((H$29-G$29)*($AE55-I$29)/J$29),$H$29)),$G$29)) -> 204 | AG55: 204.05 | AH55: 0.159 | AI55: 0.53 | AJ55: 6.00000045 | AK55: 6 | AL55: 15 | AM55: 4.99999955 | AN55: 54 | AO55: 0 | AP55: 0 | AQ55: 0 | AR55: 0 | AS55: 0 | AT55: 0 | AU55: 0 | AV55: 0 | AW55: 0 | AX55: 0 | AY55: 0 | AZ55: 0 | BA55: 0 | BB55: 0 | BC55: 0 | BD55: 0 | BE55: 0 | BF55: 0 | BG55: 0 | BH55: 0 | BK55: 10.6 | BL55: 3.18 | BM55: 15.00368072 | BN55: 1.67559413e-05 | BO55: 0 | BP55: =DX$4*$N$32+$M$32 -> 19.27847956 | BU55: 4.9 | BW55: 0 | BX55: 0 | BY55: 0 | BZ55: 0 | CA55: 0 | CB55: 0 | CC55: 0 | CD55: 0 | CE55: 0 | CF55: 0 | CG55: 0 | CH55: 0 | CI55: 0 | CJ55: 0 | CK55: 0 | CL55: 0 | CM55: 0 | CN55: 0 | CO55: 0 | CP55: 0 | CQ55: 0 | CR55: 0 | CS55: 0 | CT55: 0 | CU55: 0 | CV55: 0 | CW55: 0 | CX55: 0 | CY55: 0 | CZ55: 0 | DA55: 0 | DB55: 0 | DC55: 0 | DD55: 0 | DE55: 0 | DF55: 0 | DG55: 0 | DH55: 0 | DI55: 0 | DJ55: 0 | DK55: 0 | DL55: 0 | DM55: 0 | DN55: 0 | DO55: 0 | DP55: 0 | DQ55: 0 | DR55: 0 | DS55: 0 | DT55: 0 | DU55: 0 | DV55: 0 | DW55: 0 | DX55: 0 | DY55: 0 | DZ55: 0 | EA55: 0 | EB55: 0 | EC55: 0 | ED55: 0 | EE55: 0 | EF55: 0 | EG55: 0 | EH55: 0 | EI55: 0 | EJ55: 0 | EK55: 0 | EL55: 0 | EM55: 0 | EN55: 0 | EO55: 0 | EP55: 0 | EQ55: 0 | ER55: 0 | ES55: 0 | ET55: 0 | EU55: 0 | EV55: 0 | EW55: 0 | EX55: 0 | EY55: 0 | EZ55: 0 | FA55: 0 | FB55: 0 | FC55: 0 | FD55: 0 | FE55: 0 | FF55: 0 | FG55: 0 | FH55: 0 | FI55: 0 | FJ55: 0 | FK55: 0 | FL55: 0 | FM55: 0 | FN55: 0 | FO55: 0 | FP55: 0 | FQ55: 0 | FR55: 0 | FS55: 0 | FT55: 0 | FU55: 0 | FV55: 0 | FW55: 0 | FX55: 0 | FY55: 0 | FZ55: 0 | GA55: 0 | GB55: 0 | GC55: 0 | GD55: 0 | GE55: 0 | GF55: 0 | GG55: 0 | GH55: 0 | GI55: 0 | GJ55: 0 | GK55: 0 | GL55: 0 | GM55: 0 | GN55: 0 | GO55: 0 | GP55: 0 | GQ55: 0 | GR55: 0 | GT55: 50 | GU55: 0 | GV55: 15 | GW55: =INDEX($BW$6:$GR$261,$GT55,$BJ$14) -> 0 | GX55: 0
AE56: 10.6 | AF56: =IF('Macro input'!$F$19=1,GC!AG56,IF($K$29>0,IF($AE56<$I$29,$G$29,IF($AE56<$I$29+$J$29,$G$29+((H$29-G$29)*($AE56-I$29)/J$29),$H$29)),$G$29)) -> 206 | AG56: 206.05 | AH56: 0.162 | AI56: 0.54 | AJ56: 6.000000805 | AK56: 6 | AL56: 15 | AM56: 4.999999195 | AN56: 55 | AO56: 0 | AP56: 0 | AQ56: 0 | AR56: 0 | AS56: 0 | AT56: 0 | AU56: 0 | AV56: 0 | AW56: 0 | AX56: 0 | AY56: 0 | AZ56: 0 | BA56: 0 | BB56: 0 | BC56: 0 | BD56: 0 | BE56: 0 | BF56: 0 | BG56: 0 | BH56: 0 | BK56: 10.8 | BL56: 3.24 | BM56: 15.00378905 | BN56: 6.713329329e-06 | BO56: 0 | BP56: =DY$4*$N$32+$M$32 -> 18.52633869 | BU56: 5 | BW56: 0 | BX56: 0 | BY56: 0 | BZ56: 0 | CA56: 0 | CB56: 0 | CC56: 0 | CD56: 0 | CE56: 0 | CF56: 0 | CG56: 0 | CH56: 0 | CI56: 0 | CJ56: 0 | CK56: 0 | CL56: 0 | CM56: 0 | CN56: 0 | CO56: 0 | CP56: 0 | CQ56: 0 | CR56: 0 | CS56: 0 | CT56: 0 | CU56: 0 | CV56: 0 | CW56: 0 | CX56: 0 | CY56: 0 | CZ56: 0 | DA56: 0 | DB56: 0 | DC56: 0 | DD56: 0 | DE56: 0 | DF56: 0 | DG56: 0 | DH56: 0 | DI56: 0 | DJ56: 0 | DK56: 0 | DL56: 0 | DM56: 0 | DN56: 0 | DO56: 0 | DP56: 0 | DQ56: 0 | DR56: 0 | DS56: 0 | DT56: 0 | DU56: 0 | DV56: 0 | DW56: 0 | DX56: 0 | DY56: 0 | DZ56: 0 | EA56: 0 | EB56: 0 | EC56: 0 | ED56: 0 | EE56: 0 | EF56: 0 | EG56: 0 | EH56: 0 | EI56: 0 | EJ56: 0 | EK56: 0 | EL56: 0 | EM56: 0 | EN56: 0 | EO56: 0 | EP56: 0 | EQ56: 0 | ER56: 0 | ES56: 0 | ET56: 0 | EU56: 0 | EV56: 0 | EW56: 0 | EX56: 0 | EY56: 0 | EZ56: 0 | FA56: 0 | FB56: 0 | FC56: 0 | FD56: 0 | FE56: 0 | FF56: 0 | FG56: 0 | FH56: 0 | FI56: 0 | FJ56: 0 | FK56: 0 | FL56: 0 | FM56: 0 | FN56: 0 | FO56: 0 | FP56: 0 | FQ56: 0 | FR56: 0 | FS56: 0 | FT56: 0 | FU56: 0 | FV56: 0 | FW56: 0 | FX56: 0 | FY56: 0 | FZ56: 0 | GA56: 0 | GB56: 0 | GC56: 0 | GD56: 0 | GE56: 0 | GF56: 0 | GG56: 0 | GH56: 0 | GI56: 0 | GJ56: 0 | GK56: 0 | GL56: 0 | GM56: 0 | GN56: 0 | GO56: 0 | GP56: 0 | GQ56: 0 | GR56: 0 | GT56: 51 | GU56: 0 | GV56: 15 | GW56: =INDEX($BW$6:$GR$261,$GT56,$BJ$14) -> 0 | GX56: 0
AE57: 10.8 | AF57: =IF('Macro input'!$F$19=1,GC!AG57,IF($K$29>0,IF($AE57<$I$29,$G$29,IF($AE57<$I$29+$J$29,$G$29+((H$29-G$29)*($AE57-I$29)/J$29),$H$29)),$G$29)) -> 208 | AG57: 208.05 | AH57: 0.165 | AI57: 0.55 | AJ57: 6.000001422 | AK57: 6 | AL57: 15 | AM57: 4.999998578 | AN57: 56 | AO57: 0 | AP57: 0 | AQ57: 0 | AR57: 0 | AS57: 0 | AT57: 0 | AU57: 0 | AV57: 0 | AW57: 0 | AX57: 0 | AY57: 0 | AZ57: 0 | BA57: 0 | BB57: 0 | BC57: 0 | BD57: 0 | BE57: 0 | BF57: 0 | BG57: 0 | BH57: 0 | BK57: 11 | BL57: 3.3 | BM57: 15.00390027 | BN57: 2.611766684e-06 | BO57: 0 | BP57: =DZ$4*$N$32+$M$32 -> 17.76580233 | BU57: 5.1 | BW57: 0 | BX57: 0 | BY57: 0 | BZ57: 0 | CA57: 0 | CB57: 0 | CC57: 0 | CD57: 0 | CE57: 0 | CF57: 0 | CG57: 0 | CH57: 0 | CI57: 0 | CJ57: 0 | CK57: 0 | CL57: 0 | CM57: 0 | CN57: 0 | CO57: 0 | CP57: 0 | CQ57: 0 | CR57: 0 | CS57: 0 | CT57: 0 | CU57: 0 | CV57: 0 | CW57: 0 | CX57: 0 | CY57: 0 | CZ57: 0 | DA57: 0 | DB57: 0 | DC57: 0 | DD57: 0 | DE57: 0 | DF57: 0 | DG57: 0 | DH57: 0 | DI57: 0 | DJ57: 0 | DK57: 0 | DL57: 0 | DM57: 0 | DN57: 0 | DO57: 0 | DP57: 0 | DQ57: 0 | DR57: 0 | DS57: 0 | DT57: 0 | DU57: 0 | DV57: 0 | DW57: 0 | DX57: 0 | DY57: 0 | DZ57: 0 | EA57: 0 | EB57: 0 | EC57: 0 | ED57: 0 | EE57: 0 | EF57: 0 | EG57: 0 | EH57: 0 | EI57: 0 | EJ57: 0 | EK57: 0 | EL57: 0 | EM57: 0 | EN57: 0 | EO57: 0 | EP57: 0 | EQ57: 0 | ER57: 0 | ES57: 0 | ET57: 0 | EU57: 0 | EV57: 0 | EW57: 0 | EX57: 0 | EY57: 0 | EZ57: 0 | FA57: 0 | FB57: 0 | FC57: 0 | FD57: 0 | FE57: 0 | FF57: 0 | FG57: 0 | FH57: 0 | FI57: 0 | FJ57: 0 | FK57: 0 | FL57: 0 | FM57: 0 | FN57: 0 | FO57: 0 | FP57: 0 | FQ57: 0 | FR57: 0 | FS57: 0 | FT57: 0 | FU57: 0 | FV57: 0 | FW57: 0 | FX57: 0 | FY57: 0 | FZ57: 0 | GA57: 0 | GB57: 0 | GC57: 0 | GD57: 0 | GE57: 0 | GF57: 0 | GG57: 0 | GH57: 0 | GI57: 0 | GJ57: 0 | GK57: 0 | GL57: 0 | GM57: 0 | GN57: 0 | GO57: 0 | GP57: 0 | GQ57: 0 | GR57: 0 | GT57: 52 | GU57: 0 | GV57: 15 | GW57: =INDEX($BW$6:$GR$261,$GT57,$BJ$14) -> 0 | GX57: 0
AE58: 11 | AF58: =IF('Macro input'!$F$19=1,GC!AG58,IF($K$29>0,IF($AE58<$I$29,$G$29,IF($AE58<$I$29+$J$29,$G$29+((H$29-G$29)*($AE58-I$29)/J$29),$H$29)),$G$29)) -> 210 | AG58: 210.05 | AH58: 0.168 | AI58: 0.56 | AJ58: 6.00000248 | AK58: 6 | AL58: 15 | AM58: 4.99999752 | AN58: 57 | AO58: 0 | AP58: 0 | AQ58: 0 | AR58: 0 | AS58: 0 | AT58: 0 | AU58: 0 | AV58: 0 | AW58: 0 | AX58: 0 | AY58: 0 | AZ58: 0 | BA58: 0 | BB58: 0 | BC58: 0 | BD58: 0 | BE58: 0 | BF58: 0 | BG58: 0 | BH58: 0 | BK58: 11.2 | BL58: 3.36 | BM58: 15.00401447 | BN58: 9.866386085e-07 | BO58: 0 | BP58: =EA$4*$N$32+$M$32 -> 17.33063656 | BU58: 5.2 | BW58: 0 | BX58: 0 | BY58: 0 | BZ58: 0 | CA58: 0 | CB58: 0 | CC58: 0 | CD58: 0 | CE58: 0 | CF58: 0 | CG58: 0 | CH58: 0 | CI58: 0 | CJ58: 0 | CK58: 0 | CL58: 0 | CM58: 0 | CN58: 0 | CO58: 0 | CP58: 0 | CQ58: 0 | CR58: 0 | CS58: 0 | CT58: 0 | CU58: 0 | CV58: 0 | CW58: 0 | CX58: 0 | CY58: 0 | CZ58: 0 | DA58: 0 | DB58: 0 | DC58: 0 | DD58: 0 | DE58: 0 | DF58: 0 | DG58: 0 | DH58: 0 | DI58: 0 | DJ58: 0 | DK58: 0 | DL58: 0 | DM58: 0 | DN58: 0 | DO58: 0 | DP58: 0 | DQ58: 0 | DR58: 0 | DS58: 0 | DT58: 0 | DU58: 0 | DV58: 0 | DW58: 0 | DX58: 0 | DY58: 0 | DZ58: 0 | EA58: 0 | EB58: 0 | EC58: 0 | ED58: 0 | EE58: 0 | EF58: 0 | EG58: 0 | EH58: 0 | EI58: 0 | EJ58: 0 | EK58: 0 | EL58: 0 | EM58: 0 | EN58: 0 | EO58: 0 | EP58: 0 | EQ58: 0 | ER58: 0 | ES58: 0 | ET58: 0 | EU58: 0 | EV58: 0 | EW58: 0 | EX58: 0 | EY58: 0 | EZ58: 0 | FA58: 0 | FB58: 0 | FC58: 0 | FD58: 0 | FE58: 0 | FF58: 0 | FG58: 0 | FH58: 0 | FI58: 0 | FJ58: 0 | FK58: 0 | FL58: 0 | FM58: 0 | FN58: 0 | FO58: 0 | FP58: 0 | FQ58: 0 | FR58: 0 | FS58: 0 | FT58: 0 | FU58: 0 | FV58: 0 | FW58: 0 | FX58: 0 | FY58: 0 | FZ58: 0 | GA58: 0 | GB58: 0 | GC58: 0 | GD58: 0 | GE58: 0 | GF58: 0 | GG58: 0 | GH58: 0 | GI58: 0 | GJ58: 0 | GK58: 0 | GL58: 0 | GM58: 0 | GN58: 0 | GO58: 0 | GP58: 0 | GQ58: 0 | GR58: 0 | GT58: 53 | GU58: 0 | GV58: 15 | GW58: =INDEX($BW$6:$GR$261,$GT58,$BJ$14) -> 0 | GX58: 0
AE59: 11.2 | AF59: =IF('Macro input'!$F$19=1,GC!AG59,IF($K$29>0,IF($AE59<$I$29,$G$29,IF($AE59<$I$29+$J$29,$G$29+((H$29-G$29)*($AE59-I$29)/J$29),$H$29)),$G$29)) -> 212 | AG59: 212.05 | AH59: 0.171 | AI59: 0.57 | AJ59: 6.000004271 | AK59: 6 | AL59: 15 | AM59: 4.999995729 | AN59: 58 | AO59: 0 | AP59: 0 | AQ59: 0 | AR59: 0 | AS59: 0 | AT59: 0 | AU59: 0 | AV59: 0 | AW59: 0 | AX59: 0 | AY59: 0 | AZ59: 0 | BA59: 0 | BB59: 0 | BC59: 0 | BD59: 0 | BE59: 0 | BF59: 0 | BG59: 0 | BH59: 0 | BK59: 11.4 | BL59: 3.42 | BM59: 15.00413171 | BN59: 3.619171283e-07 | BO59: 0 | BP59: =EB$4*$N$32+$M$32 -> 17.3749947 | BU59: 5.3 | BW59: 0 | BX59: 0 | BY59: 0 | BZ59: 0 | CA59: 0 | CB59: 0 | CC59: 0 | CD59: 0 | CE59: 0 | CF59: 0 | CG59: 0 | CH59: 0 | CI59: 0 | CJ59: 0 | CK59: 0 | CL59: 0 | CM59: 0 | CN59: 0 | CO59: 0 | CP59: 0 | CQ59: 0 | CR59: 0 | CS59: 0 | CT59: 0 | CU59: 0 | CV59: 0 | CW59: 0 | CX59: 0 | CY59: 0 | CZ59: 0 | DA59: 0 | DB59: 0 | DC59: 0 | DD59: 0 | DE59: 0 | DF59: 0 | DG59: 0 | DH59: 0 | DI59: 0 | DJ59: 0 | DK59: 0 | DL59: 0 | DM59: 0 | DN59: 0 | DO59: 0 | DP59: 0 | DQ59: 0 | DR59: 0 | DS59: 0 | DT59: 0 | DU59: 0 | DV59: 0 | DW59: 0 | DX59: 0 | DY59: 0 | DZ59: 0 | EA59: 0 | EB59: 0 | EC59: 0 | ED59: 0 | EE59: 0 | EF59: 0 | EG59: 0 | EH59: 0 | EI59: 0 | EJ59: 0 | EK59: 0 | EL59: 0 | EM59: 0 | EN59: 0 | EO59: 0 | EP59: 0 | EQ59: 0 | ER59: 0 | ES59: 0 | ET59: 0 | EU59: 0 | EV59: 0 | EW59: 0 | EX59: 0 | EY59: 0 | EZ59: 0 | FA59: 0 | FB59: 0 | FC59: 0 | FD59: 0 | FE59: 0 | FF59: 0 | FG59: 0 | FH59: 0 | FI59: 0 | FJ59: 0 | FK59: 0 | FL59: 0 | FM59: 0 | FN59: 0 | FO59: 0 | FP59: 0 | FQ59: 0 | FR59: 0 | FS59: 0 | FT59: 0 | FU59: 0 | FV59: 0 | FW59: 0 | FX59: 0 | FY59: 0 | FZ59: 0 | GA59: 0 | GB59: 0 | GC59: 0 | GD59: 0 | GE59: 0 | GF59: 0 | GG59: 0 | GH59: 0 | GI59: 0 | GJ59: 0 | GK59: 0 | GL59: 0 | GM59: 0 | GN59: 0 | GO59: 0 | GP59: 0 | GQ59: 0 | GR59: 0 | GT59: 54 | GU59: 0 | GV59: 15 | GW59: =INDEX($BW$6:$GR$261,$GT59,$BJ$14) -> 0 | GX59: 0
A60: Peaks | B60: Analyte | D60: 1D LSS | E60: =J14 -> HP-5 | H60: 2D LSS | I60: =K14 -> Rxi-50-240 | K60: Reference | N60: Analyte # | O60: Scale | AE60: 11.4 | AF60: =IF('Macro input'!$F$19=1,GC!AG60,IF($K$29>0,IF($AE60<$I$29,$G$29,IF($AE60<$I$29+$J$29,$G$29+((H$29-G$29)*($AE60-I$29)/J$29),$H$29)),$G$29)) -> 214 | AG60: 214.05 | AH60: 0.174 | AI60: 0.58 | AJ60: 6.000007266 | AK60: 6 | AL60: 15 | AM60: 4.999992734 | AN60: 59 | AO60: 0 | AP60: 0 | AQ60: 0 | AR60: 0 | AS60: 0 | AT60: 0 | AU60: 0 | AV60: 0 | AW60: 0 | AX60: 0 | AY60: 0 | AZ60: 0 | BA60: 0 | BB60: 0 | BC60: 0 | BD60: 0 | BE60: 0 | BF60: 0 | BG60: 0 | BH60: 0 | BK60: 11.6 | BL60: 3.48 | BM60: 15.00425206 | BN60: 1.289102562e-07 | BO60: 0 | BP60: =EC$4*$N$32+$M$32 -> 17.85827608 | BU60: 5.4 | BW60: 0 | BX60: 0 | BY60: 0 | BZ60: 0 | CA60: 0 | CB60: 0 | CC60: 0 | CD60: 0 | CE60: 0 | CF60: 0 | CG60: 0 | CH60: 0 | CI60: 0 | CJ60: 0 | CK60: 0 | CL60: 0 | CM60: 0 | CN60: 0 | CO60: 0 | CP60: 0 | CQ60: 0 | CR60: 0 | CS60: 0 | CT60: 0 | CU60: 0 | CV60: 0 | CW60: 0 | CX60: 0 | CY60: 0 | CZ60: 0 | DA60: 0 | DB60: 0 | DC60: 0 | DD60: 0 | DE60: 0 | DF60: 0 | DG60: 0 | DH60: 0 | DI60: 0 | DJ60: 0 | DK60: 0 | DL60: 0 | DM60: 0 | DN60: 0 | DO60: 0 | DP60: 0 | DQ60: 0 | DR60: 0 | DS60: 0 | DT60: 0 | DU60: 0 | DV60: 0 | DW60: 0 | DX60: 0 | DY60: 0 | DZ60: 0 | EA60: 0 | EB60: 0 | EC60: 0 | ED60: 0 | EE60: 0 | EF60: 0 | EG60: 0 | EH60: 0 | EI60: 0 | EJ60: 0 | EK60: 0 | EL60: 0 | EM60: 0 | EN60: 0 | EO60: 0 | EP60: 0 | EQ60: 0 | ER60: 0 | ES60: 0 | ET60: 0 | EU60: 0 | EV60: 0 | EW60: 0 | EX60: 0 | EY60: 0 | EZ60: 0 | FA60: 0 | FB60: 0 | FC60: 0 | FD60: 0 | FE60: 0 | FF60: 0 | FG60: 0 | FH60: 0 | FI60: 0 | FJ60: 0 | FK60: 0 | FL60: 0 | FM60: 0 | FN60: 0 | FO60: 0 | FP60: 0 | FQ60: 0 | FR60: 0 | FS60: 0 | FT60: 0 | FU60: 0 | FV60: 0 | FW60: 0 | FX60: 0 | FY60: 0 | FZ60: 0 | GA60: 0 | GB60: 0 | GC60: 0 | GD60: 0 | GE60: 0 | GF60: 0 | GG60: 0 | GH60: 0 | GI60: 0 | GJ60: 0 | GK60: 0 | GL60: 0 | GM60: 0 | GN60: 0 | GO60: 0 | GP60: 0 | GQ60: 0 | GR60: 0 | GT60: 55 | GU60: 0 | GV60: 15 | GW60: =INDEX($BW$6:$GR$261,$GT60,$BJ$14) -> 0 | GX60: 0
C61: tR | D61: w | E61: a | F61: RS | G61: tR | H61: w | I61: Wrap-around | K61: tR | L61: w | N61: 11 | O61: 1 | AE61: 11.6 | AF61: =IF('Macro input'!$F$19=1,GC!AG61,IF($K$29>0,IF($AE61<$I$29,$G$29,IF($AE61<$I$29+$J$29,$G$29+((H$29-G$29)*($AE61-I$29)/J$29),$H$29)),$G$29)) -> 216 | AG61: 216.05 | AH61: 0.177 | AI61: 0.59 | AJ61: 6.000012206 | AK61: 6 | AL61: 15 | AM61: 4.999987794 | AN61: 60 | AO61: 0 | AP61: 0 | AQ61: 0 | AR61: 0 | AS61: 0 | AT61: 0 | AU61: 0 | AV61: 0 | AW61: 0 | AX61: 0 | AY61: 0 | AZ61: 0 | BA61: 0 | BB61: 0 | BC61: 0 | BD61: 0 | BE61: 0 | BF61: 0 | BG61: 0 | BH61: 0 | BK61: 11.8 | BL61: 3.54 | BM61: 15.00437559 | BN61: 4.45854453e-08 | BO61: 0 | BP61: =ED$4*$N$32+$M$32 -> 18.61357746 | BU61: 5.5 | BW61: 0 | BX61: 0 | BY61: 0 | BZ61: 0 | CA61: 0 | CB61: 0 | CC61: 0 | CD61: 0 | CE61: 0 | CF61: 0 | CG61: 0 | CH61: 0 | CI61: 0 | CJ61: 0 | CK61: 0 | CL61: 0 | CM61: 0 | CN61: 0 | CO61: 0 | CP61: 0 | CQ61: 0 | CR61: 0 | CS61: 0 | CT61: 0 | CU61: 0 | CV61: 0 | CW61: 0 | CX61: 0 | CY61: 0 | CZ61: 0 | DA61: 0 | DB61: 0 | DC61: 0 | DD61: 0 | DE61: 0 | DF61: 0 | DG61: 0 | DH61: 0 | DI61: 0 | DJ61: 0 | DK61: 0 | DL61: 0 | DM61: 0 | DN61: 0 | DO61: 0 | DP61: 0 | DQ61: 0 | DR61: 0 | DS61: 0 | DT61: 0 | DU61: 0 | DV61: 0 | DW61: 0 | DX61: 0 | DY61: 0 | DZ61: 0 | EA61: 0 | EB61: 0 | EC61: 0 | ED61: 0 | EE61: 0 | EF61: 0 | EG61: 0 | EH61: 0 | EI61: 0 | EJ61: 0 | EK61: 0 | EL61: 0 | EM61: 0 | EN61: 0 | EO61: 0 | EP61: 0 | EQ61: 0 | ER61: 0 | ES61: 0 | ET61: 0 | EU61: 0 | EV61: 0 | EW61: 0 | EX61: 0 | EY61: 0 | EZ61: 0 | FA61: 0 | FB61: 0 | FC61: 0 | FD61: 0 | FE61: 0 | FF61: 0 | FG61: 0 | FH61: 0 | FI61: 0 | FJ61: 0 | FK61: 0 | FL61: 0 | FM61: 0 | FN61: 0 | FO61: 0 | FP61: 0 | FQ61: 0 | FR61: 0 | FS61: 0 | FT61: 0 | FU61: 0 | FV61: 0 | FW61: 0 | FX61: 0 | FY61: 0 | FZ61: 0 | GA61: 0 | GB61: 0 | GC61: 0 | GD61: 0 | GE61: 0 | GF61: 0 | GG61: 0 | GH61: 0 | GI61: 0 | GJ61: 0 | GK61: 0 | GL61: 0 | GM61: 0 | GN61: 0 | GO61: 0 | GP61: 0 | GQ61: 0 | GR61: 0 | GT61: 56 | GU61: 0 | GV61: 15 | GW61: =INDEX($BW$6:$GR$261,$GT61,$BJ$14) -> 0 | GX61: 0
A62: 1 | B62: =IF(C6="","",C6) -> Phenol | C62: =IF(B6>0,IF(H108*B108=0,G108-IF(E108<>"",$B$29*0.5*D108/E108,0),$J$29+$I$29+I108-IF(E108>0,$B$29*0.5*D108/E108,0)),"") -> 1.703346127 | D62: =IF(B6>0,IF(OR(B108=0,C62<$I$29),$B$33*C62,$B$33*(SQRT(($B$29*(1+D108/2))^2+I108^2))),"") -> 0.1523519092 | E62: =IF(AND(B7>0,C63>C62),(C63-$B$29)/(C62-$B$29),"") -> 1.194633917 | F62: =IF(E62<>"",2*ABS(C63-C62)/(D63+D62),"") -> 0.8638324098 | G62: =IF(E131="","",(E131-I62*$C$31*60)) -> 1.100702793 | H62: =IF(D131="","",$C$29*$C$33*(1+D131)*60) -> 0.1968997015 | I62: =IF(E131="","",ROUNDDOWN(E131/(60*$C$31),0)) -> 0 | K62: =IF(E6<>"",E6,"") -> 1.555 | L62: =IF(K62<>"",D62,"") -> 0.1523519092 | AE62: 11.8 | AF62: =IF('Macro input'!$F$19=1,GC!AG62,IF($K$29>0,IF($AE62<$I$29,$G$29,IF($AE62<$I$29+$J$29,$G$29+((H$29-G$29)*($AE62-I$29)/J$29),$H$29)),$G$29)) -> 218 | AG62: 218.05 | AH62: 0.18 | AI62: 0.6 | AJ62: 6.00002025 | AK62: 6 | AL62: 15 | AM62: 4.99997975 | AN62: 61 | AO62: 0 | AP62: 0 | AQ62: 0 | AR62: 0 | AS62: 0 | AT62: 0 | AU62: 0 | AV62: 0 | AW62: 0 | AX62: 0 | AY62: 0 | AZ62: 0 | BA62: 0 | BB62: 0 | BC62: 0 | BD62: 0 | BE62: 0 | BF62: 0 | BG62: 0 | BH62: 0 | BK62: 12 | BL62: 3.6 | BM62: 15.00450238 | BN62: 1.497359384e-08 | BO62: 0 | BP62: =EE$4*$N$32+$M$32 -> 19.43374527 | BU62: 5.6 | BW62: 0 | BX62: 0 | BY62: 0 | BZ62: 0 | CA62: 0 | CB62: 0 | CC62: 0 | CD62: 0 | CE62: 0 | CF62: 0 | CG62: 0 | CH62: 0 | CI62: 0 | CJ62: 0 | CK62: 0 | CL62: 0 | CM62: 0 | CN62: 0 | CO62: 0 | CP62: 0 | CQ62: 0 | CR62: 0 | CS62: 0 | CT62: 0 | CU62: 0 | CV62: 0 | CW62: 0 | CX62: 0 | CY62: 0 | CZ62: 0 | DA62: 0 | DB62: 0 | DC62: 0 | DD62: 0 | DE62: 0 | DF62: 0 | DG62: 0 | DH62: 0 | DI62: 0 | DJ62: 0 | DK62: 0 | DL62: 0 | DM62: 0 | DN62: 0 | DO62: 0 | DP62: 0 | DQ62: 0 | DR62: 0 | DS62: 0 | DT62: 0 | DU62: 0 | DV62: 0 | DW62: 0 | DX62: 0 | DY62: 0 | DZ62: 0 | EA62: 0 | EB62: 0 | EC62: 0 | ED62: 0 | EE62: 0 | EF62: 0 | EG62: 0 | EH62: 0 | EI62: 0 | EJ62: 0 | EK62: 0 | EL62: 0 | EM62: 0 | EN62: 0 | EO62: 0 | EP62: 0 | EQ62: 0 | ER62: 0 | ES62: 0 | ET62: 0 | EU62: 0 | EV62: 0 | EW62: 0 | EX62: 0 | EY62: 0 | EZ62: 0 | FA62: 0 | FB62: 0 | FC62: 0 | FD62: 0 | FE62: 0 | FF62: 0 | FG62: 0 | FH62: 0 | FI62: 0 | FJ62: 0 | FK62: 0 | FL62: 0 | FM62: 0 | FN62: 0 | FO62: 0 | FP62: 0 | FQ62: 0 | FR62: 0 | FS62: 0 | FT62: 0 | FU62: 0 | FV62: 0 | FW62: 0 | FX62: 0 | FY62: 0 | FZ62: 0 | GA62: 0 | GB62: 0 | GC62: 0 | GD62: 0 | GE62: 0 | GF62: 0 | GG62: 0 | GH62: 0 | GI62: 0 | GJ62: 0 | GK62: 0 | GL62: 0 | GM62: 0 | GN62: 0 | GO62: 0 | GP62: 0 | GQ62: 0 | GR62: 0 | GT62: 57 | GU62: 0 | GV62: 15 | GW62: =INDEX($BW$6:$GR$261,$GT62,$BJ$14) -> 0 | GX62: 0
A63: 2 | B63: =IF(C7="","",C7) -> Benzonitrile | C63: =IF(B7>0,IF(H109*B109=0,G109-IF(E109<>"",$B$29*0.5*D109/E109,0),$J$29+$I$29+I109-IF(E109>0,$B$29*0.5*D109/E109,0)),"") -> 1.840241139 | D63: =IF(B7>0,IF(OR(B109=0,C63<$I$29),$B$33*C63,$B$33*(SQRT(($B$29*(1+D109/2))^2+I109^2))),"") -> 0.1645961713 | E63: 1.022737594 | F63: 0.1154729244 | G63: =IF(E132="","",(E132-I63*$C$31*60)) -> 1.24043153 | H63: 0.2218951377 | I63: 0 | K63: 1.665 | L63: 0.1645961713 | AE63: 12 | AF63: =IF('Macro input'!$F$19=1,GC!AG63,IF($K$29>0,IF($AE63<$I$29,$G$29,IF($AE63<$I$29+$J$29,$G$29+((H$29-G$29)*($AE63-I$29)/J$29),$H$29)),$G$29)) -> 220 | AG63: 220.05 | AH63: 0.183 | AI63: 0.61 | AJ63: 6.000033178 | AK63: 6 | AL63: 15 | AM63: 4.999966822 | AN63: 62 | AO63: 0 | AP63: 0 | AQ63: 0 | AR63: 0 | AS63: 0 | AT63: 0 | AU63: 0 | AV63: 0 | AW63: 0 | AX63: 0 | AY63: 0 | AZ63: 0 | BA63: 0 | BB63: 0 | BC63: 0 | BD63: 0 | BE63: 0 | BF63: 0 | BG63: 0 | BH63: 0 | BK63: 12.2 | BL63: 3.66 | BM63: 15.0046325 | BN63: 4.882995137e-09 | BO63: 0 | BP63: =EF$4*$N$32+$M$32 -> 20.1369418 | BU63: 5.7 | BW63: 0 | BX63: 0 | BY63: 0 | BZ63: 0 | CA63: 0 | CB63: 0 | CC63: 0 | CD63: 0 | CE63: 0 | CF63: 0 | CG63: 0 | CH63: 0 | CI63: 0 | CJ63: 0 | CK63: 0 | CL63: 0 | CM63: 0 | CN63: 0 | CO63: 0 | CP63: 0 | CQ63: 0 | CR63: 0 | CS63: 0 | CT63: 0 | CU63: 0 | CV63: 0 | CW63: 0 | CX63: 0 | CY63: 0 | CZ63: 0 | DA63: 0 | DB63: 0 | DC63: 0 | DD63: 0 | DE63: 0 | DF63: 0 | DG63: 0 | DH63: 0 | DI63: 0 | DJ63: 0 | DK63: 0 | DL63: 0 | DM63: 0 | DN63: 0 | DO63: 0 | DP63: 0 | DQ63: 0 | DR63: 0 | DS63: 0 | DT63: 0 | DU63: 0 | DV63: 0 | DW63: 0 | DX63: 0 | DY63: 0 | DZ63: 0 | EA63: 0 | EB63: 0 | EC63: 0 | ED63: 0 | EE63: 0 | EF63: 0 | EG63: 0 | EH63: 0 | EI63: 0 | EJ63: 0 | EK63: 0 | EL63: 0 | EM63: 0 | EN63: 0 | EO63: 0 | EP63: 0 | EQ63: 0 | ER63: 0 | ES63: 0 | ET63: 0 | EU63: 0 | EV63: 0 | EW63: 0 | EX63: 0 | EY63: 0 | EZ63: 0 | FA63: 0 | FB63: 0 | FC63: 0 | FD63: 0 | FE63: 0 | FF63: 0 | FG63: 0 | FH63: 0 | FI63: 0 | FJ63: 0 | FK63: 0 | FL63: 0 | FM63: 0 | FN63: 0 | FO63: 0 | FP63: 0 | FQ63: 0 | FR63: 0 | FS63: 0 | FT63: 0 | FU63: 0 | FV63: 0 | FW63: 0 | FX63: 0 | FY63: 0 | FZ63: 0 | GA63: 0 | GB63: 0 | GC63: 0 | GD63: 0 | GE63: 0 | GF63: 0 | GG63: 0 | GH63: 0 | GI63: 0 | GJ63: 0 | GK63: 0 | GL63: 0 | GM63: 0 | GN63: 0 | GO63: 0 | GP63: 0 | GQ63: 0 | GR63: 0 | GT63: 58 | GU63: 0 | GV63: 15 | GW63: =INDEX($BW$6:$GR$261,$GT63,$BJ$14) -> 0 | GX63: 0
A64: 3 | B64: Benzofuran | C64: 1.859346201 | D64: 0.16630498 | E64: 1.28289709 | F64: =IF(E64<>"",2*ABS(C65-C64)/(D65+D64),"") -> 1.372110894 | G64: 1.154110196 | H64: 0.2064535081 | I64: 0 | K64: 1.68 | L64: 0.16630498 | AE64: 12.2 | AF64: =IF('Macro input'!$F$19=1,GC!AG64,IF($K$29>0,IF($AE64<$I$29,$G$29,IF($AE64<$I$29+$J$29,$G$29+((H$29-G$29)*($AE64-I$29)/J$29),$H$29)),$G$29)) -> 222 | AG64: 222.05 | AH64: 0.186 | AI64: 0.62 | AJ64: 6.000053686 | AK64: 6 | AL64: 15 | AM64: 4.999946314 | AN64: 63 | AO64: 0 | AP64: 0 | AQ64: 0 | AR64: 0 | AS64: 0 | AT64: 0 | AU64: 0 | AV64: 0 | AW64: 0 | AX64: 0 | AY64: 0 | AZ64: 0 | BA64: 0 | BB64: 0 | BC64: 0 | BD64: 0 | BE64: 0 | BF64: 0 | BG64: 0 | BH64: 0 | BK64: 12.4 | BL64: 3.72 | BM64: 15.00476603 | BN64: 1.546229084e-09 | BO64: 0 | BP64: =EG$4*$N$32+$M$32 -> 20.60209773 | BU64: 5.8 | BW64: 0 | BX64: 0 | BY64: 0 | BZ64: 0 | CA64: 0 | CB64: 0 | CC64: 0 | CD64: 0 | CE64: 0 | CF64: 0 | CG64: 0 | CH64: 0 | CI64: 0 | CJ64: 0 | CK64: 0 | CL64: 0 | CM64: 0 | CN64: 0 | CO64: 0 | CP64: 0 | CQ64: 0 | CR64: 0 | CS64: 0 | CT64: 0 | CU64: 0 | CV64: 0 | CW64: 0 | CX64: 0 | CY64: 0 | CZ64: 0 | DA64: 0 | DB64: 0 | DC64: 0 | DD64: 0 | DE64: 0 | DF64: 0 | DG64: 0 | DH64: 0 | DI64: 0 | DJ64: 0 | DK64: 0 | DL64: 0 | DM64: 0 | DN64: 0 | DO64: 0 | DP64: 0 | DQ64: 0 | DR64: 0 | DS64: 0 | DT64: 0 | DU64: 0 | DV64: 0 | DW64: 0 | DX64: 0 | DY64: 0 | DZ64: 0 | EA64: 0 | EB64: 0 | EC64: 0 | ED64: 0 | EE64: 0 | EF64: 0 | EG64: 0 | EH64: 0 | EI64: 0 | EJ64: 0 | EK64: 0 | EL64: 0 | EM64: 0 | EN64: 0 | EO64: 0 | EP64: 0 | EQ64: 0 | ER64: 0 | ES64: 0 | ET64: 0 | EU64: 0 | EV64: 0 | EW64: 0 | EX64: 0 | EY64: 0 | EZ64: 0 | FA64: 0 | FB64: 0 | FC64: 0 | FD64: 0 | FE64: 0 | FF64: 0 | FG64: 0 | FH64: 0 | FI64: 0 | FJ64: 0 | FK64: 0 | FL64: 0 | FM64: 0 | FN64: 0 | FO64: 0 | FP64: 0 | FQ64: 0 | FR64: 0 | FS64: 0 | FT64: 0 | FU64: 0 | FV64: 0 | FW64: 0 | FX64: 0 | FY64: 0 | FZ64: 0 | GA64: 0 | GB64: 0 | GC64: 0 | GD64: 0 | GE64: 0 | GF64: 0 | GG64: 0 | GH64: 0 | GI64: 0 | GJ64: 0 | GK64: 0 | GL64: 0 | GM64: 0 | GN64: 0 | GO64: 0 | GP64: 0 | GQ64: 0 | GR64: 0 | GT64: 59 | GU64: 0 | GV64: 15 | GW64: =INDEX($BW$6:$GR$261,$GT64,$BJ$14) -> 0 | GX64: 0
A65: 4 | B65: o-Cresol | C65: 2.102452741 | D65: 0.1880490899 | E65: 1.756475061 | F65: =IF(E65<>"",2*ABS(C66-C65)/(D66+D65),"") -> 3.700882376 | G65: 1.311574026 | H65: 0.2346214943 | I65: 0 | K65: 1.875 | L65: 0.1880490899 | AE65: 12.4 | AF65: =IF('Macro input'!$F$19=1,GC!AG65,IF($K$29>0,IF($AE65<$I$29,$G$29,IF($AE65<$I$29+$J$29,$G$29+((H$29-G$29)*($AE65-I$29)/J$29),$H$29)),$G$29)) -> 224 | AG65: 224.05 | AH65: 0.189 | AI65: 0.63 | AJ65: 6.000085789 | AK65: 6 | AL65: 15 | AM65: 4.999914211 | AN65: 64 | AO65: 0 | AP65: 0 | AQ65: 0 | AR65: 0 | AS65: 0 | AT65: 0 | AU65: 0 | AV65: 0 | AW65: 0 | AX65: 0 | AY65: 0 | AZ65: 0 | BA65: 0 | BB65: 0 | BC65: 0 | BD65: 0 | BE65: 0 | BF65: 0 | BG65: 0 | BH65: 0 | BK65: 12.6 | BL65: 3.78 | BM65: 15.00490305 | BN65: 4.754323036e-10 | BO65: 0 | BP65: =EH$4*$N$32+$M$32 -> 20.77559377 | BU65: 5.9 | BW65: 0 | BX65: 0 | BY65: 0 | BZ65: 0 | CA65: 0 | CB65: 0 | CC65: 0 | CD65: 0 | CE65: 0 | CF65: 0 | CG65: 0 | CH65: 0 | CI65: 0 | CJ65: 0 | CK65: 0 | CL65: 0 | CM65: 0 | CN65: 0 | CO65: 0 | CP65: 0 | CQ65: 0 | CR65: 0 | CS65: 0 | CT65: 0 | CU65: 0 | CV65: 0 | CW65: 0 | CX65: 0 | CY65: 0 | CZ65: 0 | DA65: 0 | DB65: 0 | DC65: 0 | DD65: 0 | DE65: 0 | DF65: 0 | DG65: 0 | DH65: 0 | DI65: 0 | DJ65: 0 | DK65: 0 | DL65: 0 | DM65: 0 | DN65: 0 | DO65: 0 | DP65: 0 | DQ65: 0 | DR65: 0 | DS65: 0 | DT65: 0 | DU65: 0 | DV65: 0 | DW65: 0 | DX65: 0 | DY65: 0 | DZ65: 0 | EA65: 0 | EB65: 0 | EC65: 0 | ED65: 0 | EE65: 0 | EF65: 0 | EG65: 0 | EH65: 0 | EI65: 0 | EJ65: 0 | EK65: 0 | EL65: 0 | EM65: 0 | EN65: 0 | EO65: 0 | EP65: 0 | EQ65: 0 | ER65: 0 | ES65: 0 | ET65: 0 | EU65: 0 | EV65: 0 | EW65: 0 | EX65: 0 | EY65: 0 | EZ65: 0 | FA65: 0 | FB65: 0 | FC65: 0 | FD65: 0 | FE65: 0 | FF65: 0 | FG65: 0 | FH65: 0 | FI65: 0 | FJ65: 0 | FK65: 0 | FL65: 0 | FM65: 0 | FN65: 0 | FO65: 0 | FP65: 0 | FQ65: 0 | FR65: 0 | FS65: 0 | FT65: 0 | FU65: 0 | FV65: 0 | FW65: 0 | FX65: 0 | FY65: 0 | FZ65: 0 | GA65: 0 | GB65: 0 | GC65: 0 | GD65: 0 | GE65: 0 | GF65: 0 | GG65: 0 | GH65: 0 | GI65: 0 | GJ65: 0 | GK65: 0 | GL65: 0 | GM65: 0 | GN65: 0 | GO65: 0 | GP65: 0 | GQ65: 0 | GR65: 0 | GT65: 60 | GU65: 0 | GV65: 15 | GW65: =INDEX($BW$6:$GR$261,$GT65,$BJ$14) -> 0 | GX65: 0
A66: 5 | B66: 3,5-Dimethylphenol | C66: 2.936430745 | D66: 0.2626423503 | E66: 1.713817713 | F66: 4.260197062 | G66: 1.75023076 | H66: 0.3130907965 | I66: 0 | K66: 2.54 | L66: 0.2626423503 | N66: Trace coordinates | AE66: 12.6 | AF66: =IF('Macro input'!$F$19=1,GC!AG66,IF($K$29>0,IF($AE66<$I$29,$G$29,IF($AE66<$I$29+$J$29,$G$29+((H$29-G$29)*($AE66-I$29)/J$29),$H$29)),$G$29)) -> 226 | AG66: 226.05 | AH66: 0.192 | AI66: 0.64 | AJ66: =IF($N$29=0,-1,$N$29*($B$32*NORMDIST($AI66,$B$29,$B$33*$B$29,FALSE)+IF(C$62<>"",B$6*NORMDIST($AI66,C$62,D$62/4,FALSE),0)+IF(C$63<>"",B$7*NORMDIST($AI66,C$63,D$63/4,FALSE),0)+IF(C$64<>"",B$8*NORMDIST($AI66,C$64,D$64/4,FALSE),0)+IF(C$65<>"",B$9*NORMDIST($AI66,C$65,D$65/4,FALSE),0)+IF(C$66<>"",B$10*NORMDIST($AI66,C$66,D$66/4,FALSE),0)+IF(C$67<>"",B$11*NORMDIST($AI66,C$67,D$67/4,FALSE),0)+IF(C$68<>"",B$12*NORMDIST($AI66,C$68,D$68/4,FALSE),0)+IF(C$69<>"",B$13*NORMDIST($AI66,C$69,D$69/4,FALSE),0)+IF(C$70<>"",B$14*NORMDIST($AI66,C$70,D$70/4,FALSE),0)+IF(C$71<>"",B$15*NORMDIST($AI66,C$71,D$71/4,FALSE),0)+IF(C$72<>"",B$16*NORMDIST($AI66,C$72,D$72/4,FALSE),0)+IF(C$73<>"",B$17*NORMDIST($AI66,C$73,D$73/4,FALSE),0)+IF(C$74<>"",B$18*NORMDIST($AI66,C$74,D$74/4,FALSE),0)+IF(C$75<>"",B$19*NORMDIST($AI66,C$75,D$75/4,FALSE),0)+IF(C$76<>"",B$20*NORMDIST($AI66,C$76,D$76/4,FALSE),0)+IF(C$77<>"",B$21*NORMDIST($AI66,C$77,D$77/4,FALSE),0)+IF(C$78<>"",B$22*NORMDIST($AI66,C$78,D$78/4,FALSE),0)+IF(C$79<>"",B$23*NORMDIST($AI66,C$79,D$79/4,FALSE),0)+IF(C$80<>"",B$24*NORMDIST($AI66,C$80,D$80/4,FALSE),0)+IF(C$81<>"",B$25*NORMDIST($AI66,C$81,D$81/4,FALSE),0))+$M$29) -> 6.000135388 | AK66: =IF($N$30<>0,SUM(AO66:BH66)*$N$30+$M$30,-1) -> 6 | AL66: =IF($N$31=0,-1,$N$31*($B$32*NORMDIST($AH66,$B$29,$B$33*$B$29,FALSE)+IF(G$62<>"",B$6*NORMDIST($AH66,G$62,H$62/4,FALSE),0)+IF(G$63<>"",B$7*NORMDIST($AH66,G$63,H$63/4,FALSE),0)+IF(G$64<>"",B$8*NORMDIST($AH66,G$64,H$64/4,FALSE),0)+IF(G$65<>"",B$9*NORMDIST($AH66,G$65,H$65/4,FALSE),0)+IF(G$66<>"",B$10*NORMDIST($AH66,G$66,H$66/4,FALSE),0)+IF(G$67<>"",B$11*NORMDIST($AH66,G$67,H$67/4,FALSE),0)+IF(G$68<>"",B$12*NORMDIST($AH66,G$68,H$68/4,FALSE),0)+IF(G$69<>"",B$13*NORMDIST($AH66,G$69,H$69/4,FALSE),0)+IF(G$70<>"",B$14*NORMDIST($AH66,G$70,H$70/4,FALSE),0)+IF(G$71<>"",B$15*NORMDIST($AH66,G$71,H$71/4,FALSE),0)+IF(G$72<>"",B$16*NORMDIST($AH66,G$72,H$72/4,FALSE),0)+IF(G$73<>"",B$17*NORMDIST($AH66,G$73,H$73/4,FALSE),0)+IF(G$74<>"",B$18*NORMDIST($AH66,G$74,H$74/4,FALSE),0)+IF(G$75<>"",B$19*NORMDIST($AH66,G$75,H$75/4,FALSE),0)+IF(G$76<>"",B$20*NORMDIST($AH66,G$76,H$76/4,FALSE),0)+IF(G$77<>"",B$21*NORMDIST($AH66,G$77,H$77/4,FALSE),0)+IF(G$78<>"",B$22*NORMDIST($AH66,G$78,H$78/4,FALSE),0)+IF(G$79<>"",B$23*NORMDIST($AH66,G$79,H$79/4,FALSE),0)+IF(G$80<>"",B$24*NORMDIST($AH66,G$80,H$80/4,FALSE),0)+IF(G$81<>"",B$25*NORMDIST($AH66,G$81,H$81/4,FALSE),0))+$M$31) -> 15 | AM66: =IF($N$33=0,-1,$N$33*($B$32*NORMDIST($AI66,$B$29,$B$33*$B$29,FALSE)+IF(K$62<>"",B$6*NORMDIST($AI66,K$62,L$62/4,FALSE),0)+IF(K$63<>"",B$7*NORMDIST($AI66,K$63,L$63/4,FALSE),0)+IF(K$64<>"",B$8*NORMDIST($AI66,K$64,L$64/4,FALSE),0)+IF(K$65<>"",B$9*NORMDIST($AI66,K$65,L$65/4,FALSE),0)+IF(K$66<>"",B$10*NORMDIST($AI66,K$66,L$66/4,FALSE),0)+IF(K$67<>"",B$11*NORMDIST($AI66,K$67,L$67/4,FALSE),0)+IF(K$68<>"",B$12*NORMDIST($AI66,K$68,L$68/4,FALSE),0)+IF(K$69<>"",B$13*NORMDIST($AI66,K$69,L$69/4,FALSE),0)+IF(K$70<>"",B$14*NORMDIST($AI66,K$70,L$70/4,FALSE),0)+IF(K$71<>"",B$15*NORMDIST($AI66,K$71,L$71/4,FALSE),0)+IF(K$72<>"",B$16*NORMDIST($AI66,K$72,L$72/4,FALSE),0)+IF(K$73<>"",B$17*NORMDIST($AI66,K$73,L$73/4,FALSE),0)+IF(K$74<>"",B$18*NORMDIST($AI66,K$74,L$74/4,FALSE),0)+IF(K$75<>"",B$19*NORMDIST($AI66,K$75,L$75/4,FALSE),0)+IF(K$76<>"",B$20*NORMDIST($AI66,K$76,L$76/4,FALSE),0)+IF(K$77<>"",B$21*NORMDIST($AI66,K$77,L$77/4,FALSE),0)+IF(K$78<>"",B$22*NORMDIST($AI66,K$78,L$78/4,FALSE),0)+IF(K$79<>"",B$23*NORMDIST($AI66,K$79,L$79/4,FALSE),0)+IF(K$80<>"",B$24*NORMDIST($AI66,K$80,L$80/4,FALSE),0)+IF(K$81<>"",B$25*NORMDIST($AI66,K$81,L$81/4,FALSE),0))+$M$33) -> 4.999864612 | AN66: 65 | AO66: =IF($C$85>0,$B$6*NORMDIST($AI66,$C$85,$D$85/4,FALSE),0) -> 0 | AP66: =IF($C$86>0,$B$7*NORMDIST($AI66,$C$86,$D$86/4,FALSE),0) -> 0 | AQ66: =IF($C$87>0,$B$8*NORMDIST($AI66,$C$87,$D$87/4,FALSE),0) -> 0 | AR66: =IF($C$88>0,$B$9*NORMDIST($AI66,$C$88,$D$88/4,FALSE),0) -> 0 | AS66: =IF($C$89>0,$B$10*NORMDIST($AI66,$C$89,$D$89/4,FALSE),0) -> 0 | AT66: =IF($C$90>0,$B$11*NORMDIST($AI66,$C$90,$D$90/4,FALSE),0) -> 0 | AU66: =IF($C$91>0,$B$12*NORMDIST($AI66,$C$91,$D$91/4,FALSE),0) -> 0 | AV66: =IF($C$92>0,$B$13*NORMDIST($AI66,$C$92,$D$92/4,FALSE),0) -> 0 | AW66: =IF($C$93>0,$B$14*NORMDIST($AI66,$C$93,$D$93/4,FALSE),0) -> 0 | AX66: =IF($C$94>0,$B$15*NORMDIST($AI66,$C$94,$D$94/4,FALSE),0) -> 0 | AY66: =IF($C$95>0,$B$16*NORMDIST($AI66,$C$95,$D$95/4,FALSE),0) -> 0 | AZ66: 0 | BA66: 0 | BB66: 0 | BC66: 0 | BD66: 0 | BE66: 0 | BF66: 0 | BG66: 0 | BH66: 0 | BK66: 12.8 | BL66: 3.84 | BM66: 15.00504364 | BN66: =$BJ$31*NORMDIST(BL66,$BJ$29,$BJ$30,FALSE) -> 1.419485102e-10 | BO66: =$BJ$35*NORMDIST(AI66,$BJ$33,$BJ$34,FALSE) -> 0 | BP66: =EI$4*$N$32+$M$32 -> 20.65672596 | BU66: 6 | BW66: 0 | BX66: 0 | BY66: 0 | BZ66: 0 | CA66: 0 | CB66: 0 | CC66: 0 | CD66: 0 | CE66: 0 | CF66: 0 | CG66: 0 | CH66: 0 | CI66: 0 | CJ66: 0 | CK66: 0 | CL66: 0 | CM66: 0 | CN66: 0 | CO66: 0 | CP66: 0 | CQ66: 0 | CR66: 0 | CS66: 0 | CT66: 0 | CU66: 0 | CV66: 0 | CW66: 0 | CX66: 0 | CY66: 0 | CZ66: 0 | DA66: 0 | DB66: 0 | DC66: 0 | DD66: 0 | DE66: 0 | DF66: 0 | DG66: 0 | DH66: 0 | DI66: 0 | DJ66: 0 | DK66: 0 | DL66: 0 | DM66: 0 | DN66: 0 | DO66: 0 | DP66: 0 | DQ66: 0 | DR66: 0 | DS66: 0 | DT66: 0 | DU66: 0 | DV66: 0 | DW66: 0 | DX66: 0 | DY66: 0 | DZ66: 0 | EA66: 0 | EB66: 0 | EC66: 0 | ED66: 0 | EE66: 0 | EF66: 0 | EG66: 0 | EH66: 0 | EI66: 0 | EJ66: 0 | EK66: 0 | EL66: 0 | EM66: 0 | EN66: 0 | EO66: 0 | EP66: 0 | EQ66: 0 | ER66: 0 | ES66: 0 | ET66: 0 | EU66: 0 | EV66: 0 | EW66: 0 | EX66: 0 | EY66: 0 | EZ66: 0 | FA66: 0 | FB66: 0 | FC66: 0 | FD66: 0 | FE66: 0 | FF66: 0 | FG66: 0 | FH66: 0 | FI66: 0 | FJ66: 0 | FK66: 0 | FL66: 0 | FM66: 0 | FN66: 0 | FO66: 0 | FP66: 0 | FQ66: 0 | FR66: 0 | FS66: 0 | FT66: 0 | FU66: 0 | FV66: 0 | FW66: 0 | FX66: 0 | FY66: 0 | FZ66: 0 | GA66: 0 | GB66: 0 | GC66: 0 | GD66: 0 | GE66: 0 | GF66: 0 | GG66: 0 | GH66: 0 | GI66: 0 | GJ66: 0 | GK66: 0 | GL66: 0 | GM66: 0 | GN66: 0 | GO66: 0 | GP66: 0 | GQ66: 0 | GR66: 0 | GT66: 61 | GU66: 0 | GV66: 15 | GW66: =INDEX($BW$6:$GR$261,$GT66,$BJ$14) -> 0 | GX66: 0
A67: 6 | B67: Quinoline | C67: 4.31868931 | D67: 0.3862753148 | E67: 1.347856074 | F67: 3.920683353 | G67: 2.963380909 | H67: 0.5301056925 | I67: 0 | K67: 3.615 | L67: 0.3862753148 | N67: 2D | O67: =O72*C31*60 -> 3.149710843 | AE67: 12.8 | AF67: =IF('Macro input'!$F$19=1,GC!AG67,IF($K$29>0,IF($AE67<$I$29,$G$29,IF($AE67<$I$29+$J$29,$G$29+((H$29-G$29)*($AE67-I$29)/J$29),$H$29)),$G$29)) -> 228 | AG67: 228.05 | AH67: 0.195 | AI67: 0.65 | AJ67: 6.000211008 | AK67: 6 | AL67: 15 | AM67: 4.999788992 | AN67: 66 | AO67: 0 | AP67: 0 | AQ67: 0 | AR67: 0 | AS67: 0 | AT67: 0 | AU67: 0 | AV67: 0 | AW67: 0 | AX67: 0 | AY67: 0 | AZ67: =IF($C$96>0,$B$17*NORMDIST($AI67,$C$96,$D$96/4,FALSE),0) -> 0 | BA67: =IF($C$97>0,$B$18*NORMDIST($AI67,$C$97,$D$97/4,FALSE),0) -> 0 | BB67: =IF($C$98>0,$B$19*NORMDIST($AI67,$C$98,$D$98/4,FALSE),0) -> 0 | BC67: =IF($C$99>0,$B$20*NORMDIST($AI67,$C$99,$D$99/4,FALSE),0) -> 0 | BD67: =IF($C$100>0,$B$21*NORMDIST($AI67,$C$100,$D$100/4,FALSE),0) -> 0 | BE67: =IF($C$101>0,$B$22*NORMDIST($AI67,$C$101,$D$101/4,FALSE),0) -> 0 | BF67: =IF($C$102>0,$B$23*NORMDIST($AI67,$C$102,$D$102/4,FALSE),0) -> 0 | BG67: =IF($C$103>0,$B$24*NORMDIST($AI67,$C$103,$D$103/4,FALSE),0) -> 0 | BH67: =IF($C$104>0,$B$25*NORMDIST($AI67,$C$104,$D$104/4,FALSE),0) -> 0 | BK67: 13 | BL67: =BL66+$BJ$6 -> 3.9 | BM67: =$N$32*$O$61*NORMDIST(AH67,$BJ$26,$BJ$27,FALSE)+$M$32 -> 15.00518788 | BN67: 4.115288569e-11 | BO67: 0 | BP67: =EJ$4*$N$32+$M$32 -> 20.27648657 | BU67: 6.1 | BW67: 0 | BX67: 0 | BY67: 0 | BZ67: 0 | CA67: 0 | CB67: 0 | CC67: 0 | CD67: 0 | CE67: 0 | CF67: 0 | CG67: 0 | CH67: 0 | CI67: 0 | CJ67: 0 | CK67: 0 | CL67: 0 | CM67: 0 | CN67: 0 | CO67: 0 | CP67: 0 | CQ67: 0 | CR67: 0 | CS67: 0 | CT67: 0 | CU67: 0 | CV67: 0 | CW67: 0 | CX67: 0 | CY67: 0 | CZ67: 0 | DA67: 0 | DB67: 0 | DC67: 0 | DD67: 0 | DE67: 0 | DF67: 0 | DG67: 0 | DH67: 0 | DI67: 0 | DJ67: 0 | DK67: 0 | DL67: 0 | DM67: 0 | DN67: 0 | DO67: 0 | DP67: 0 | DQ67: 0 | DR67: 0 | DS67: 0 | DT67: 0 | DU67: 0 | DV67: 0 | DW67: 0 | DX67: 0 | DY67: 0 | DZ67: 0 | EA67: 0 | EB67: 0 | EC67: 0 | ED67: 0 | EE67: 0 | EF67: 0 | EG67: 0 | EH67: 0 | EI67: 0 | EJ67: 0 | EK67: 0 | EL67: 0 | EM67: 0 | EN67: 0 | EO67: 0 | EP67: 0 | EQ67: 0 | ER67: 0 | ES67: 0 | ET67: 0 | EU67: 0 | EV67: 0 | EW67: 0 | EX67: 0 | EY67: 0 | EZ67: 0 | FA67: 0 | FB67: 0 | FC67: 0 | FD67: 0 | FE67: 0 | FF67: 0 | FG67: 0 | FH67: 0 | FI67: 0 | FJ67: 0 | FK67: 0 | FL67: 0 | FM67: 0 | FN67: 0 | FO67: 0 | FP67: 0 | FQ67: 0 | FR67: 0 | FS67: 0 | FT67: 0 | FU67: 0 | FV67: 0 | FW67: 0 | FX67: 0 | FY67: 0 | FZ67: 0 | GA67: 0 | GB67: 0 | GC67: 0 | GD67: 0 | GE67: 0 | GF67: 0 | GG67: 0 | GH67: 0 | GI67: 0 | GJ67: 0 | GK67: 0 | GL67: 0 | GM67: 0 | GN67: 0 | GO67: 0 | GP67: 0 | GQ67: 0 | GR67: 0 | GT67: 62 | GU67: 0 | GV67: 15 | GW67: =INDEX($BW$6:$GR$261,$GT67,$BJ$14) -> 0 | GX67: 0
A68: 7 | B68: Indole | C68: 5.473115544 | D68: 0.2026150034 | E68: 1.323534975 | F68: 6.922365434 | G68: 3.968338452 | H68: 0.7098779629 | I68: 0 | K68: 4.51 | L68: 0.2026150034 | N68: 1D | O68: =N72*B31 -> 7.767481928 | AE68: =AE67+$B$31/100 -> 13 | AF68: =IF('Macro input'!$F$19=1,GC!AG68,IF($K$29>0,IF($AE68<$I$29,$G$29,IF($AE68<$I$29+$J$29,$G$29+((H$29-G$29)*($AE68-I$29)/J$29),$H$29)),$G$29)) -> 230 | AG68: 230.05 | AH68: =AH67+$C$34 -> 0.198 | AI68: =AI67+$B$34 -> 0.66 | AJ68: 6.000324779 | AK68: 6 | AL68: 15 | AM68: 4.999675221 | AN68: 67 | AO68: 0 | AP68: 0 | AQ68: 0 | AR68: 0 | AS68: 0 | AT68: 0 | AU68: 0 | AV68: 0 | AW68: 0 | AX68: 0 | AY68: 0 | AZ68: 0 | BA68: 0 | BB68: 0 | BC68: 0 | BD68: 0 | BE68: 0 | BF68: 0 | BG68: 0 | BH68: 0 | BK68: =BK67+$BJ$38 -> 13.2 | BL68: 3.96 | BM68: 15.00533586 | BN68: 1.158502704e-11 | BO68: 0 | BP68: =EK$4*$N$32+$M$32 -> 19.6838045 | BU68: 6.2 | BW68: 0 | BX68: 0 | BY68: 0 | BZ68: 0 | CA68: 0 | CB68: 0 | CC68: 0 | CD68: 0 | CE68: 0 | CF68: 0 | CG68: 0 | CH68: 0 | CI68: 0 | CJ68: 0 | CK68: 0 | CL68: 0 | CM68: 0 | CN68: 0 | CO68: 0 | CP68: 0 | CQ68: 0 | CR68: 0 | CS68: 0 | CT68: 0 | CU68: 0 | CV68: 0 | CW68: 0 | CX68: 0 | CY68: 0 | CZ68: 0 | DA68: 0 | DB68: 0 | DC68: 0 | DD68: 0 | DE68: 0 | DF68: 0 | DG68: 0 | DH68: 0 | DI68: 0 | DJ68: 0 | DK68: 0 | DL68: 0 | DM68: 0 | DN68: 0 | DO68: 0 | DP68: 0 | DQ68: 0 | DR68: 0 | DS68: 0 | DT68: 0 | DU68: 0 | DV68: 0 | DW68: 0 | DX68: 0 | DY68: 0 | DZ68: 0 | EA68: 0 | EB68: 0 | EC68: 0 | ED68: 0 | EE68: 0 | EF68: 0 | EG68: 0 | EH68: 0 | EI68: 0 | EJ68: 0 | EK68: 0 | EL68: 0 | EM68: 0 | EN68: 0 | EO68: 0 | EP68: 0 | EQ68: 0 | ER68: 0 | ES68: 0 | ET68: 0 | EU68: 0 | EV68: 0 | EW68: 0 | EX68: 0 | EY68: 0 | EZ68: 0 | FA68: 0 | FB68: 0 | FC68: 0 | FD68: 0 | FE68: 0 | FF68: 0 | FG68: 0 | FH68: 0 | FI68: 0 | FJ68: 0 | FK68: 0 | FL68: 0 | FM68: 0 | FN68: 0 | FO68: 0 | FP68: 0 | FQ68: 0 | FR68: 0 | FS68: 0 | FT68: 0 | FU68: 0 | FV68: 0 | FW68: 0 | FX68: 0 | FY68: 0 | FZ68: 0 | GA68: 0 | GB68: 0 | GC68: 0 | GD68: 0 | GE68: 0 | GF68: 0 | GG68: 0 | GH68: 0 | GI68: 0 | GJ68: 0 | GK68: 0 | GL68: 0 | GM68: 0 | GN68: 0 | GO68: 0 | GP68: 0 | GQ68: 0 | GR68: 0 | GT68: 63 | GU68: 0 | GV68: 15 | GW68: =INDEX($BW$6:$GR$261,$GT68,$BJ$14) -> 0 | GX68: 0
A69: 8 | B69: Tetradecane | C69: 6.92032487 | D69: 0.215510662 | E69: 1.427176387 | F69: 10.80170283 | G69: 1.691809088 | H69: 0.30264001 | I69: 0 | K69: 5.83 | L69: 0.215510662 | N69: Scale | O69: 1 | AE69: 13.2 | AF69: =IF('Macro input'!$F$19=1,GC!AG69,IF($K$29>0,IF($AE69<$I$29,$G$29,IF($AE69<$I$29+$J$29,$G$29+((H$29-G$29)*($AE69-I$29)/J$29),$H$29)),$G$29)) -> 232 | AG69: 232.05 | AH69: 0.201 | AI69: 0.67 | AJ69: 6.000493683 | AK69: 6 | AL69: 15 | AM69: 4.999506317 | AN69: 68 | AO69: 0 | AP69: 0 | AQ69: 0 | AR69: 0 | AS69: 0 | AT69: 0 | AU69: 0 | AV69: 0 | AW69: 0 | AX69: 0 | AY69: 0 | AZ69: 0 | BA69: 0 | BB69: 0 | BC69: 0 | BD69: 0 | BE69: 0 | BF69: 0 | BG69: 0 | BH69: 0 | BK69: 13.4 | BL69: 4.02 | BM69: 15.00548765 | BN69: 3.166803474e-12 | BO69: 0 | BP69: =EL$4*$N$32+$M$32 -> 18.94250721 | BU69: 6.3 | BW69: 0 | BX69: 0 | BY69: 0 | BZ69: 0 | CA69: 0 | CB69: 0 | CC69: 0 | CD69: 0 | CE69: 0 | CF69: 0 | CG69: 0 | CH69: 0 | CI69: 0 | CJ69: 0 | CK69: 0 | CL69: 0 | CM69: 0 | CN69: 0 | CO69: 0 | CP69: 0 | CQ69: 0 | CR69: 0 | CS69: 0 | CT69: 0 | CU69: 0 | CV69: 0 | CW69: 0 | CX69: 0 | CY69: 0 | CZ69: 0 | DA69: 0 | DB69: 0 | DC69: 0 | DD69: 0 | DE69: 0 | DF69: 0 | DG69: 0 | DH69: 0 | DI69: 0 | DJ69: 0 | DK69: 0 | DL69: 0 | DM69: 0 | DN69: 0 | DO69: 0 | DP69: 0 | DQ69: 0 | DR69: 0 | DS69: 0 | DT69: 0 | DU69: 0 | DV69: 0 | DW69: 0 | DX69: 0 | DY69: 0 | DZ69: 0 | EA69: 0 | EB69: 0 | EC69: 0 | ED69: 0 | EE69: 0 | EF69: 0 | EG69: 0 | EH69: 0 | EI69: 0 | EJ69: 0 | EK69: 0 | EL69: 0 | EM69: 0 | EN69: 0 | EO69: 0 | EP69: 0 | EQ69: 0 | ER69: 0 | ES69: 0 | ET69: 0 | EU69: 0 | EV69: 0 | EW69: 0 | EX69: 0 | EY69: 0 | EZ69: 0 | FA69: 0 | FB69: 0 | FC69: 0 | FD69: 0 | FE69: 0 | FF69: 0 | FG69: 0 | FH69: 0 | FI69: 0 | FJ69: 0 | FK69: 0 | FL69: 0 | FM69: 0 | FN69: 0 | FO69: 0 | FP69: 0 | FQ69: 0 | FR69: 0 | FS69: 0 | FT69: 0 | FU69: 0 | FV69: 0 | FW69: 0 | FX69: 0 | FY69: 0 | FZ69: 0 | GA69: 0 | GB69: 0 | GC69: 0 | GD69: 0 | GE69: 0 | GF69: 0 | GG69: 0 | GH69: 0 | GI69: 0 | GJ69: 0 | GK69: 0 | GL69: 0 | GM69: 0 | GN69: 0 | GO69: 0 | GP69: 0 | GQ69: 0 | GR69: 0 | GT69: 64 | GU69: 0 | GV69: 15 | GW69: =INDEX($BW$6:$GR$261,$GT69,$BJ$14) -> 0 | GX69: 0
A70: 9 | B70: Dibenzofuran | C70: 9.44934786 | D70: 0.2527530979 | E70: =IF(AND(B15>0,C71>C70),(C71-$B$29)/(C70-$B$29),"") -> 1.116226498 | F70: =IF(E70<>"",2*ABS(C71-C70)/(D71+D70),"") -> 3.824388014 | G70: 4.037424835 | H70: 0.7222365108 | I70: 0 | K70: 8.795 | L70: =IF(K70<>"",D70,"") -> 0.2527530979 | AE70: 13.4 | AF70: =IF('Macro input'!$F$19=1,GC!AG70,IF($K$29>0,IF($AE70<$I$29,$G$29,IF($AE70<$I$29+$J$29,$G$29+((H$29-G$29)*($AE70-I$29)/J$29),$H$29)),$G$29)) -> 234 | AG70: 234.05 | AH70: 0.204 | AI70: 0.68 | AJ70: 6.000741106 | AK70: 6 | AL70: 15 | AM70: 4.999258894 | AN70: 69 | AO70: 0 | AP70: 0 | AQ70: 0 | AR70: 0 | AS70: 0 | AT70: 0 | AU70: 0 | AV70: 0 | AW70: 0 | AX70: 0 | AY70: 0 | AZ70: 0 | BA70: 0 | BB70: 0 | BC70: 0 | BD70: 0 | BE70: 0 | BF70: 0 | BG70: 0 | BH70: 0 | BK70: 13.6 | BL70: 4.08 | BM70: 15.00564334 | BN70: 8.405672722e-13 | BO70: 0 | BP70: =EM$4*$N$32+$M$32 -> 18.13066445 | BU70: 6.4 | BW70: 0 | BX70: 0 | BY70: 0 | BZ70: 0 | CA70: 0 | CB70: 0 | CC70: 0 | CD70: 0 | CE70: 0 | CF70: 0 | CG70: 0 | CH70: 0 | CI70: 0 | CJ70: 0 | CK70: 0 | CL70: 0 | CM70: 0 | CN70: 0 | CO70: 0 | CP70: 0 | CQ70: 0 | CR70: 0 | CS70: 0 | CT70: 0 | CU70: 0 | CV70: 0 | CW70: 0 | CX70: 0 | CY70: 0 | CZ70: 0 | DA70: 0 | DB70: 0 | DC70: 0 | DD70: 0 | DE70: 0 | DF70: 0 | DG70: 0 | DH70: 0 | DI70: 0 | DJ70: 0 | DK70: 0 | DL70: 0 | DM70: 0 | DN70: 0 | DO70: 0 | DP70: 0 | DQ70: 0 | DR70: 0 | DS70: 0 | DT70: 0 | DU70: 0 | DV70: 0 | DW70: 0 | DX70: 0 | DY70: 0 | DZ70: 0 | EA70: 0 | EB70: 0 | EC70: 0 | ED70: 0 | EE70: 0 | EF70: 0 | EG70: 0 | EH70: 0 | EI70: 0 | EJ70: 0 | EK70: 0 | EL70: 0 | EM70: 0 | EN70: 0 | EO70: 0 | EP70: 0 | EQ70: 0 | ER70: 0 | ES70: 0 | ET70: 0 | EU70: 0 | EV70: 0 | EW70: 0 | EX70: 0 | EY70: 0 | EZ70: 0 | FA70: 0 | FB70: 0 | FC70: 0 | FD70: 0 | FE70: 0 | FF70: 0 | FG70: 0 | FH70: 0 | FI70: 0 | FJ70: 0 | FK70: 0 | FL70: 0 | FM70: 0 | FN70: 0 | FO70: 0 | FP70: 0 | FQ70: 0 | FR70: 0 | FS70: 0 | FT70: 0 | FU70: 0 | FV70: 0 | FW70: 0 | FX70: 0 | FY70: 0 | FZ70: 0 | GA70: 0 | GB70: 0 | GC70: 0 | GD70: 0 | GE70: 0 | GF70: 0 | GG70: 0 | GH70: 0 | GI70: 0 | GJ70: 0 | GK70: 0 | GL70: 0 | GM70: 0 | GN70: 0 | GO70: 0 | GP70: 0 | GQ70: 0 | GR70: 0 | GT70: 65 | GU70: =IF(BU70="","",0.01*SUM(BW70:GR70)) -> 0 | GV70: =IF(BW70="","",0.01*SUM(BW70:GR70)*$N$32+$M$32) -> 15 | GW70: =INDEX($BW$6:$GR$261,$GT70,$BJ$14) -> 0 | GX70: =GW70*$BJ$16 -> 0
A71: 10 | B71: Diphenylamine | C71: 10.43138597 | D71: 0.2608130506 | E71: 1.213405994 | F71: 7.525503781 | G71: 3.873476538 | H71: 0.6929085478 | I71: 0 | K71: 10.1 | L71: =IF(K71<>"",D71,"") -> 0.2608130506 | N71: Mouse coord. rel. | AE71: 13.6 | AF71: =IF('Macro input'!$F$19=1,GC!AG71,IF($K$29>0,IF($AE71<$I$29,$G$29,IF($AE71<$I$29+$J$29,$G$29+((H$29-G$29)*($AE71-I$29)/J$29),$H$29)),$G$29)) -> 236 | AG71: 236.05 | AH71: 0.207 | AI71: 0.69 | AJ71: 6.001098712 | AK71: 6 | AL71: 15 | AM71: 4.998901288 | AN71: 70 | AO71: 0 | AP71: 0 | AQ71: 0 | AR71: 0 | AS71: 0 | AT71: 0 | AU71: 0 | AV71: 0 | AW71: 0 | AX71: 0 | AY71: 0 | AZ71: 0 | BA71: 0 | BB71: 0 | BC71: 0 | BD71: 0 | BE71: 0 | BF71: 0 | BG71: 0 | BH71: 0 | BK71: 13.8 | BL71: 4.14 | BM71: 15.00580302 | BN71: 2.166462337e-13 | BO71: 0 | BP71: =EN$4*$N$32+$M$32 -> 17.33267783 | BU71: =BU70+$BJ$7 -> 6.5 | BW71: 0 | BX71: 0 | BY71: 0 | BZ71: 0 | CA71: 0 | CB71: 0 | CC71: 0 | CD71: 0 | CE71: 0 | CF71: 0 | CG71: 0 | CH71: 0 | CI71: 0 | CJ71: 0 | CK71: 0 | CL71: 0 | CM71: 0 | CN71: 0 | CO71: 0 | CP71: 0 | CQ71: 0 | CR71: 0 | CS71: 0 | CT71: 0 | CU71: 0 | CV71: 0 | CW71: 0 | CX71: 0 | CY71: 0 | CZ71: 0 | DA71: 0 | DB71: 0 | DC71: 0 | DD71: 0 | DE71: 0 | DF71: 0 | DG71: 0 | DH71: 0 | DI71: 0 | DJ71: 0 | DK71: 0 | DL71: 0 | DM71: 0 | DN71: 0 | DO71: 0 | DP71: 0 | DQ71: 0 | DR71: 0 | DS71: 0 | DT71: 0 | DU71: 0 | DV71: 0 | DW71: 0 | DX71: 0 | DY71: 0 | DZ71: 0 | EA71: 0 | EB71: 0 | EC71: 0 | ED71: 0 | EE71: 0 | EF71: 0 | EG71: 0 | EH71: 0 | EI71: 0 | EJ71: 0 | EK71: 0 | EL71: 0 | EM71: 0 | EN71: 0 | EO71: 0 | EP71: 0 | EQ71: 0 | ER71: 0 | ES71: 0 | ET71: 0 | EU71: 0 | EV71: 0 | EW71: 0 | EX71: 0 | EY71: 0 | EZ71: 0 | FA71: 0 | FB71: 0 | FC71: 0 | FD71: 0 | FE71: 0 | FF71: 0 | FG71: 0 | FH71: 0 | FI71: 0 | FJ71: 0 | FK71: 0 | FL71: 0 | FM71: 0 | FN71: 0 | FO71: 0 | FP71: 0 | FQ71: 0 | FR71: 0 | FS71: 0 | FT71: 0 | FU71: 0 | FV71: 0 | FW71: 0 | FX71: 0 | FY71: 0 | FZ71: 0 | GA71: 0 | GB71: 0 | GC71: 0 | GD71: 0 | GE71: 0 | GF71: 0 | GG71: 0 | GH71: 0 | GI71: 0 | GJ71: 0 | GK71: 0 | GL71: 0 | GM71: 0 | GN71: 0 | GO71: 0 | GP71: 0 | GQ71: 0 | GR71: 0 | GT71: 66 | GU71: 0 | GV71: 15 | GW71: =INDEX($BW$6:$GR$261,$GT71,$BJ$14) -> 0 | GX71: 0
A72: 11 | B72: Carbazole | C72: 12.44410027 | D72: 0.2740918161 | G72: 4.954178152 | H72: 0.8862303297 | I72: 0 | K72: 12.745 | L72: 0.2740918161 | N72: 0.3883740964 | O72: 0.5249518072 | AE72: 13.8 | AF72: =IF('Macro input'!$F$19=1,GC!AG72,IF($K$29>0,IF($AE72<$I$29,$G$29,IF($AE72<$I$29+$J$29,$G$29+((H$29-G$29)*($AE72-I$29)/J$29),$H$29)),$G$29)) -> 238 | AG72: 238.05 | AH72: 0.21 | AI72: 0.7 | AJ72: 6.001608639 | AK72: 6 | AL72: 15 | AM72: 4.998391361 | AN72: 71 | AO72: 0 | AP72: 0 | AQ72: 0 | AR72: 0 | AS72: 0 | AT72: 0 | AU72: 0 | AV72: 0 | AW72: 0 | AX72: 0 | AY72: 0 | AZ72: 0 | BA72: 0 | BB72: 0 | BC72: 0 | BD72: 0 | BE72: 0 | BF72: 0 | BG72: 0 | BH72: 0 | BK72: 14 | BL72: 4.2 | BM72: 15.00596679 | BN72: 5.421970037e-14 | BO72: 0 | BP72: =EO$4*$N$32+$M$32 -> 16.62321456 | BU72: 6.6 | BW72: 0 | BX72: 0 | BY72: 0 | BZ72: 0 | CA72: 0 | CB72: 0 | CC72: 0 | CD72: 0 | CE72: 0 | CF72: 0 | CG72: 0 | CH72: 0 | CI72: 0 | CJ72: 0 | CK72: 0 | CL72: 0 | CM72: 0 | CN72: 0 | CO72: 0 | CP72: 0 | CQ72: 0 | CR72: 0 | CS72: 0 | CT72: 0 | CU72: 0 | CV72: 0 | CW72: 0 | CX72: 0 | CY72: 0 | CZ72: 0 | DA72: 0 | DB72: 0 | DC72: 0 | DD72: 0 | DE72: 0 | DF72: 0 | DG72: 0 | DH72: 0 | DI72: 0 | DJ72: 0 | DK72: 0 | DL72: 0 | DM72: 0 | DN72: 0 | DO72: 0 | DP72: 0 | DQ72: 0 | DR72: 0 | DS72: 0 | DT72: 0 | DU72: 0 | DV72: 0 | DW72: 0 | DX72: 0 | DY72: 0 | DZ72: 0 | EA72: 0 | EB72: 0 | EC72: 0 | ED72: 0 | EE72: 0 | EF72: 0 | EG72: 0 | EH72: 0 | EI72: 0 | EJ72: 0 | EK72: 0 | EL72: 0 | EM72: 0 | EN72: 0 | EO72: 0 | EP72: 0 | EQ72: 0 | ER72: 0 | ES72: 0 | ET72: 0 | EU72: 0 | EV72: 0 | EW72: 0 | EX72: 0 | EY72: 0 | EZ72: 0 | FA72: 0 | FB72: 0 | FC72: 0 | FD72: 0 | FE72: 0 | FF72: 0 | FG72: 0 | FH72: 0 | FI72: 0 | FJ72: 0 | FK72: 0 | FL72: 0 | FM72: 0 | FN72: 0 | FO72: 0 | FP72: 0 | FQ72: 0 | FR72: 0 | FS72: 0 | FT72: 0 | FU72: 0 | FV72: 0 | FW72: 0 | FX72: 0 | FY72: 0 | FZ72: 0 | GA72: 0 | GB72: 0 | GC72: 0 | GD72: 0 | GE72: 0 | GF72: 0 | GG72: 0 | GH72: 0 | GI72: 0 | GJ72: 0 | GK72: 0 | GL72: 0 | GM72: 0 | GN72: 0 | GO72: 0 | GP72: 0 | GQ72: 0 | GR72: 0 | GT72: 67 | GU72: 0 | GV72: 15 | GW72: =INDEX($BW$6:$GR$261,$GT72,$BJ$14) -> 0 | GX72: 0
A73: 12 | N73: 0.8761802316 | O73: 0.5525641441 | AE73: 14 | AF73: =IF('Macro input'!$F$19=1,GC!AG73,IF($K$29>0,IF($AE73<$I$29,$G$29,IF($AE73<$I$29+$J$29,$G$29+((H$29-G$29)*($AE73-I$29)/J$29),$H$29)),$G$29)) -> 240 | AG73: 240.05 | AH73: 0.213 | AI73: 0.71 | AJ73: 6.002325973 | AK73: 6 | AL73: 15 | AM73: 4.997674027 | AN73: 72 | AO73: 0 | AP73: 0 | AQ73: 0 | AR73: 0 | AS73: 0 | AT73: 0 | AU73: 0 | AV73: 0 | AW73: 0 | AX73: 0 | AY73: 0 | AZ73: 0 | BA73: 0 | BB73: 0 | BC73: 0 | BD73: 0 | BE73: 0 | BF73: 0 | BG73: 0 | BH73: 0 | BK73: 14.2 | BL73: 4.26 | BM73: 15.00613472 | BN73: 1.31762063e-14 | BO73: 0 | BP73: =EP$4*$N$32+$M$32 -> 16.05100747 | BU73: 6.7 | BW73: 0 | BX73: 0 | BY73: 0 | BZ73: 0 | CA73: 0 | CB73: 0 | CC73: 0 | CD73: 0 | CE73: 0 | CF73: 0 | CG73: 0 | CH73: 0 | CI73: 0 | CJ73: 0 | CK73: 0 | CL73: 0 | CM73: 0 | CN73: 0 | CO73: 0 | CP73: 0 | CQ73: 0 | CR73: 0 | CS73: 0 | CT73: 0 | CU73: 0 | CV73: 0 | CW73: 0 | CX73: 0 | CY73: 0 | CZ73: 0 | DA73: 0 | DB73: 0 | DC73: 0 | DD73: 0 | DE73: 0 | DF73: 0 | DG73: 0 | DH73: 0 | DI73: 0 | DJ73: 0 | DK73: 0 | DL73: 0 | DM73: 0 | DN73: 0 | DO73: 0 | DP73: 0 | DQ73: 0 | DR73: 0 | DS73: 0 | DT73: 0 | DU73: 0 | DV73: 0 | DW73: 0 | DX73: 0 | DY73: 0 | DZ73: 0 | EA73: 0 | EB73: 0 | EC73: 0 | ED73: 0 | EE73: 0 | EF73: 0 | EG73: 0 | EH73: 0 | EI73: 0 | EJ73: 0 | EK73: 0 | EL73: 0 | EM73: 0 | EN73: 0 | EO73: 0 | EP73: 0 | EQ73: 0 | ER73: 0 | ES73: 0 | ET73: 0 | EU73: 0 | EV73: 0 | EW73: 0 | EX73: 0 | EY73: 0 | EZ73: 0 | FA73: 0 | FB73: 0 | FC73: 0 | FD73: 0 | FE73: 0 | FF73: 0 | FG73: 0 | FH73: 0 | FI73: 0 | FJ73: 0 | FK73: 0 | FL73: 0 | FM73: 0 | FN73: 0 | FO73: 0 | FP73: 0 | FQ73: 0 | FR73: 0 | FS73: 0 | FT73: 0 | FU73: 0 | FV73: 0 | FW73: 0 | FX73: 0 | FY73: 0 | FZ73: 0 | GA73: 0 | GB73: 0 | GC73: 0 | GD73: 0 | GE73: 0 | GF73: 0 | GG73: 0 | GH73: 0 | GI73: 0 | GJ73: 0 | GK73: 0 | GL73: 0 | GM73: 0 | GN73: 0 | GO73: 0 | GP73: 0 | GQ73: 0 | GR73: 0 | GT73: 68 | GU73: 0 | GV73: 15 | GW73: =INDEX($BW$6:$GR$261,$GT73,$BJ$14) -> 0 | GX73: 0
A74: 13 | AE74: 14.2 | AF74: =IF('Macro input'!$F$19=1,GC!AG74,IF($K$29>0,IF($AE74<$I$29,$G$29,IF($AE74<$I$29+$J$29,$G$29+((H$29-G$29)*($AE74-I$29)/J$29),$H$29)),$G$29)) -> 242 | AG74: 242.05 | AH74: 0.216 | AI74: 0.72 | AJ74: 6.003321407 | AK74: 6 | AL74: 15 | AM74: 4.996678593 | AN74: 73 | AO74: 0 | AP74: 0 | AQ74: 0 | AR74: 0 | AS74: 0 | AT74: 0 | AU74: 0 | AV74: 0 | AW74: 0 | AX74: 0 | AY74: 0 | AZ74: 0 | BA74: 0 | BB74: 0 | BC74: 0 | BD74: 0 | BE74: 0 | BF74: 0 | BG74: 0 | BH74: 0 | BK74: 14.4 | BL74: 4.32 | BM74: 15.00630691 | BN74: 3.109216486e-15 | BO74: 0 | BP74: =EQ$4*$N$32+$M$32 -> 15.63156612 | BU74: 6.8 | BW74: 2.307430912e-26 | BX74: 8.839485658e-28 | BY74: 3.07993886e-29 | BZ74: 9.760543603e-31 | CA74: 2.813343279e-32 | CB74: 7.375445518e-34 | CC74: 1.758614307e-35 | CD74: 3.813903985e-37 | CE74: 7.522907464e-39 | CF74: 1.34964172e-40 | CG74: 2.202257412e-42 | CH74: 3.268394544e-44 | CI74: 4.411818973e-46 | CJ74: 5.416486959e-48 | CK74: 6.048316811e-50 | CL74: 6.143006603e-52 | CM74: 7.872681485e-54 | CN74: 2.425818339e-52 | CO74: 2.43374975e-50 | CP74: 2.221241213e-48 | CQ74: 1.84387868e-46 | CR74: 1.392149172e-44 | CS74: 9.559958673e-43 | CT74: 5.970944948e-41 | CU74: 3.391930382e-39 | CV74: 1.752538646e-37 | CW74: 8.235786656e-36 | CX74: 3.520135516e-34 | CY74: 1.368454899e-32 | CZ74: 4.838585341e-31 | DA74: 1.556048512e-29 | DB74: 4.551396494e-28 | DC74: 1.210829572e-26 | DD74: 2.929801377e-25 | DE74: 6.447779082e-24 | DF74: 1.290621602e-22 | DG74: 2.349657284e-21 | DH74: 3.890692645e-20 | DI74: 5.859575265e-19 | DJ74: 8.026425166e-18 | DK74: 9.999884768e-17 | DL74: 1.133142793e-15 | DM74: 1.167860842e-14 | DN74: 1.094748512e-13 | DO74: 9.333712965e-13 | DP74: 7.237879181e-12 | DQ74: 5.104874013e-11 | DR74: 3.274730298e-10 | DS74: 1.910657566e-09 | DT74: 1.013927704e-08 | DU74: 4.893819323e-08 | DV74: 2.148353205e-07 | DW74: 8.57788555e-07 | DX74: 3.115097336e-06 | DY74: 1.028915729e-05 | DZ74: 3.091041257e-05 | EA74: 8.445913088e-05 | EB74: 0.0002098965136 | EC74: 0.0004744392959 | ED74: 0.0009753778551 | EE74: 0.001823819859 | EF74: 0.003101757209 | EG74: 0.004797892034 | EH74: 0.006750096045 | EI74: 0.008637463883 | EJ74: 0.01005262188 | EK74: 0.01064116704 | EL74: 0.01024509489 | EM74: 0.008971385529 | EN74: 0.007145290099 | EO74: 0.005176032831 | EP74: 0.003410287471 | EQ74: 0.002043627638 | ER74: 0.001113856789 | ES74: 0.0005521712057 | ET74: 0.0002489630901 | EU74: 0.0001020970013 | EV74: 3.808095386e-05 | EW74: 1.291871926e-05 | EX74: 3.986097465e-06 | EY74: 1.118647296e-06 | EZ74: 2.855323054e-07 | FA74: 6.628788112e-08 | FB74: 1.399683468e-08 | FC74: 2.688080929e-09 | FD74: 4.695389854e-10 | FE74: 7.459638563e-11 | FF74: 1.07790559e-11 | FG74: 1.416643176e-12 | FH74: 1.693390169e-13 | FI74: 1.841070441e-14 | FJ74: 1.820541516e-15 | FK74: 1.63737283e-16 | FL74: 1.339403357e-17 | FM74: 9.965337162e-19 | FN74: 6.74356304e-20 | FO74: 4.150530955e-21 | FP74: 2.323457342e-22 | FQ74: 1.18299405e-23 | FR74: 5.478317872e-25 | FS74: 2.307430912e-26 | FT74: 0 | FU74: 0 | FV74: 0 | FW74: 0 | FX74: 0 | FY74: 0 | FZ74: 0 | GA74: 0 | GB74: 0 | GC74: 0 | GD74: 0 | GE74: 0 | GF74: 0 | GG74: 0 | GH74: 0 | GI74: 0 | GJ74: 0 | GK74: 0 | GL74: 0 | GM74: 0 | GN74: 0 | GO74: 0 | GP74: 0 | GQ74: 0 | GR74: 0 | GT74: 69 | GU74: 0.0008665971944 | GV74: 15.0008666 | GW74: =INDEX($BW$6:$GR$261,$GT74,$BJ$14) -> 8.57788555e-07 | GX74: 2.191401362e-07
A75: 14 | N75: Crosshair coordinates | AE75: 14.4 | AF75: =IF('Macro input'!$F$19=1,GC!AG75,IF($K$29>0,IF($AE75<$I$29,$G$29,IF($AE75<$I$29+$J$29,$G$29+((H$29-G$29)*($AE75-I$29)/J$29),$H$29)),$G$29)) -> 244 | AG75: 244.05 | AH75: 0.219 | AI75: 0.73 | AJ75: 6.004683935 | AK75: 6 | AL75: 15 | AM75: 4.995316065 | AN75: 74 | AO75: 0 | AP75: 0 | AQ75: 0 | AR75: 0 | AS75: 0 | AT75: 0 | AU75: 0 | AV75: 0 | AW75: 0 | AX75: 0 | AY75: 0 | AZ75: 0 | BA75: 0 | BB75: 0 | BC75: 0 | BD75: 0 | BE75: 0 | BF75: 0 | BG75: 0 | BH75: 0 | BK75: 14.6 | BL75: 4.38 | BM75: 15.00648347 | BN75: 7.124244905e-16 | BO75: 0 | BP75: =ER$4*$N$32+$M$32 -> 15.35163117 | BU75: 6.9 | BW75: 4.841175225e-27 | BX75: 1.483404141e-28 | BY75: 4.124811136e-30 | BZ75: 1.040841371e-31 | CA75: 2.383421871e-33 | CB75: 4.952827371e-35 | CC75: 9.339881335e-37 | CD75: 1.598326214e-38 | CE75: 2.482134909e-40 | CF75: 3.498011553e-42 | CG75: 4.473557181e-44 | CH75: 5.191832142e-46 | CI75: 5.467945651e-48 | CJ75: 5.225931466e-50 | CK75: 4.545893223e-52 | CL75: 1.769135953e-52 | CM75: 2.037850739e-50 | CN75: 2.174028365e-48 | CO75: 2.104720739e-46 | CP75: 1.849096818e-44 | CQ75: 1.474214636e-42 | CR75: 1.066590429e-40 | CS75: 7.002780966e-39 | CT75: 4.172336235e-37 | CU75: 2.255921342e-35 | CV75: 1.106890099e-33 | CW75: 4.928570226e-32 | CX75: 1.991467815e-30 | CY75: 7.30233128e-29 | CZ75: 2.429884705e-27 | DA75: 7.337459207e-26 | DB75: 2.010673846e-24 | DC75: 5.000039718e-23 | DD75: 1.128343097e-21 | DE75: 2.310706546e-20 | DF75: 4.294220191e-19 | DG75: 7.242020021e-18 | DH75: 1.108334952e-16 | DI75: 1.539282152e-15 | DJ75: 1.939998235e-14 | DK75: 2.218811112e-13 | DL75: 2.302900777e-12 | DM75: 2.169032288e-11 | DN75: 1.853927318e-10 | DO75: 1.437988085e-09 | DP75: 1.012170715e-08 | DQ75: 6.465292002e-08 | DR75: 3.747644762e-07 | DS75: 1.971353858e-06 | DT75: 9.410368999e-06 | DU75: 4.07647343e-05 | DV75: 0.0001602501612 | DW75: 0.0005716737237 | DX75: 0.001850690872 | DY75: 0.00543695116 | DZ75: 0.01449482168 | EA75: 0.0350676141 | EB75: 0.07699020163 | EC75: 0.1533912518 | ED75: 0.2773330469 | EE75: 0.4550284497 | EF75: 0.6775032379 | EG75: 0.9154193662 | EH75: 1.122444079 | EI75: 1.248950503 | EJ75: 1.261135171 | EK75: 1.155617059 | EL75: 0.9609530016 | EM75: 0.7251473222 | EN75: 0.4965765924 | EO75: 0.3085902049 | EP75: 0.1740259152 | EQ75: 0.08905977882 | ER75: 0.04136044423 | ES75: 0.01743109515 | ET75: 0.006666533243 | EU75: 0.002313722772 | EV75: 0.0007287163094 | EW75: 0.0002082771156 | EX75: 5.402073839e-05 | EY75: 1.2714971e-05 | EZ75: 2.715852183e-06 | FA75: 5.264204835e-07 | FB75: 9.259666117e-08 | FC75: 1.47806581e-08 | FD75: 2.141056421e-09 | FE75: 2.81448118e-10 | FF75: 3.357410796e-11 | FG75: 3.634515395e-12 | FH75: 3.570462198e-13 | FI75: 3.183011902e-14 | FJ75: 2.575063732e-15 | FK75: 1.890486578e-16 | FL75: 1.259491123e-17 | FM75: 7.614695131e-19 | FN75: 4.177782496e-20 | FO75: 2.080056004e-21 | FP75: 9.398101408e-23 | FQ75: 3.85337364e-24 | FR75: 1.43376513e-25 | FS75: 4.841175225e-27 | FT75: 0 | FU75: 0 | FV75: 0 | FW75: 0 | FX75: 0 | FY75: 0 | FZ75: 0 | GA75: 0 | GB75: 0 | GC75: 0 | GD75: 0 | GE75: 0 | GF75: 0 | GG75: 0 | GH75: 0 | GI75: 0 | GJ75: 0 | GK75: 0 | GL75: 0 | GM75: 0 | GN75: 0 | GO75: 0 | GP75: 0 | GQ75: 0 | GR75: 0 | GT75: 70 | GU75: 0.1022457866 | GV75: 15.10224579 | GW75: =INDEX($BW$6:$GR$261,$GT75,$BJ$14) -> 0.0005716737237 | GX75: 0.0001460460821
A76: 15 | N76: x | O76: y | AE76: 14.6 | AF76: =IF('Macro input'!$F$19=1,GC!AG76,IF($K$29>0,IF($AE76<$I$29,$G$29,IF($AE76<$I$29+$J$29,$G$29+((H$29-G$29)*($AE76-I$29)/J$29),$H$29)),$G$29)) -> 246 | AG76: 246.05 | AH76: 0.222 | AI76: 0.74 | AJ76: 6.006523353 | AK76: 6 | AL76: 15 | AM76: 4.993476647 | AN76: 75 | AO76: 0 | AP76: 0 | AQ76: 0 | AR76: 0 | AS76: 0 | AT76: 0 | AU76: 0 | AV76: 0 | AW76: 0 | AX76: 0 | AY76: 0 | AZ76: 0 | BA76: 0 | BB76: 0 | BC76: 0 | BD76: 0 | BE76: 0 | BF76: 0 | BG76: 0 | BH76: 0 | BK76: 14.8 | BL76: 4.44 | BM76: 15.00666447 | BN76: 1.58509035e-16 | BO76: 0 | BP76: =ES$4*$N$32+$M$32 -> 15.18121161 | BU76: 7 | BW76: 1.736867001e-28 | BX76: 4.25730205e-30 | BY76: 9.447608287e-32 | BZ76: 1.898142476e-33 | CA76: 3.452671436e-35 | CB76: 5.685926098e-37 | CC76: 8.477478251e-39 | CD76: 1.144331025e-40 | CE76: 1.398479729e-42 | CF76: 1.547320194e-44 | CG76: 1.549971547e-46 | CH76: 1.405680996e-48 | CI76: 1.15417641e-50 | CJ76: 9.75420985e-53 | CK76: 1.644691031e-51 | CL76: 2.083634135e-49 | CM76: 2.390730395e-47 | CN76: 2.483471982e-45 | CO76: 2.335648264e-43 | CP76: 1.988726826e-41 | CQ76: 1.533071245e-39 | CR76: 1.069963736e-37 | CS76: 6.760756489e-36 | CT76: 3.867595477e-34 | CU76: 2.003116962e-32 | CV76: 9.392713768e-31 | CW76: 3.98745121e-29 | CX76: 1.532566016e-27 | CY76: 5.332888639e-26 | CZ76: 1.680062172e-24 | DA76: 4.79189956e-23 | DB76: 1.237398469e-21 | DC76: 2.892883585e-20 | DD76: 6.123107083e-19 | DE76: 1.173362669e-17 | DF76: 2.03569258e-16 | DG76: 3.197507968e-15 | DH76: 4.547059025e-14 | DI76: 5.854220321e-13 | DJ76: 6.82381193e-12 | DK76: 7.201194637e-11 | DL76: 6.880207951e-10 | DM76: 5.951385669e-09 | DN76: 4.660732094e-08 | DO76: 3.304530003e-07 | DP76: 2.121215411e-06 | DQ76: 1.232762352e-05 | DR76: 6.486246757e-05 | DS76: 0.0003089776638 | DT76: 0.001332539889 | DU76: 0.005202988505 | DV76: 0.0183926806 | DW76: 0.05886494014 | DX76: 0.1705642068 | DY76: 0.4474439147 | DZ76: 1.062695466 | EA76: 2.285065031 | EB76: 4.448440801 | EC76: 7.840370419 | ED76: 12.51079368 | EE76: 18.07393257 | EF76: 23.63959152 | EG76: 27.9928291 | EH76: 30.01049318 | EI76: 29.12855809 | EJ76: 25.59672225 | EK76: 20.36428845 | EL76: 14.66809245 | EM76: 9.565277016 | EN76: 5.647301571 | EO76: 3.018588568 | EP76: 1.460785269 | EQ76: 0.6400123478 | ER76: 0.253869098 | ES76: 0.09116976637 | ET76: 0.02964226315 | EU76: 0.008725521436 | EV76: 0.002325363953 | EW76: 0.0005610608904 | EX76: 0.0001225599492 | EY76: 2.423855148e-05 | EZ76: 4.339945417e-06 | FA76: 7.035280008e-07 | FB76: 1.032518928e-07 | FC76: 1.371937007e-08 | FD76: 1.650402356e-09 | FE76: 1.797483919e-10 | FF76: 1.772391699e-11 | FG76: 1.582245669e-12 | FH76: 1.278814755e-13 | FI76: 9.357522416e-15 | FJ76: 6.199171176e-16 | FK76: 3.718141348e-17 | FL76: 2.019006317e-18 | FM76: 9.925878947e-20 | FN76: 4.417939719e-21 | FO76: 1.780287375e-22 | FP76: 6.495011926e-24 | FQ76: 2.145306302e-25 | FR76: 6.415317854e-27 | FS76: 1.736867001e-28 | FT76: 0 | FU76: 0 | FV76: 0 | FW76: 0 | FX76: 0 | FY76: 0 | FZ76: 0 | GA76: 0 | GB76: 0 | GC76: 0 | GD76: 0 | GE76: 0 | GF76: 0 | GG76: 0 | GH76: 0 | GI76: 0 | GJ76: 0 | GK76: 0 | GL76: 0 | GM76: 0 | GN76: 0 | GO76: 0 | GP76: 0 | GQ76: 0 | GR76: 0 | GT76: 71 | GU76: 2.390424727 | GV76: 17.39042473 | GW76: =INDEX($BW$6:$GR$261,$GT76,$BJ$14) -> 0.05886494014 | GX76: 0.01503828761
A77: 16 | N77: 0 | O77: =O67 -> 3.149710843 | AE77: 14.8 | AF77: =IF('Macro input'!$F$19=1,GC!AG77,IF($K$29>0,IF($AE77<$I$29,$G$29,IF($AE77<$I$29+$J$29,$G$29+((H$29-G$29)*($AE77-I$29)/J$29),$H$29)),$G$29)) -> 248 | AG77: 248.05 | AH77: 0.225 | AI77: 0.75 | AJ77: 6.008972268 | AK77: 6 | AL77: 15 | AM77: 4.991027732 | AN77: 76 | AO77: 3.326692013e-300 | AP77: 3.69777399e-304 | AQ77: 0 | AR77: 0 | AS77: 0 | AT77: 0 | AU77: 0 | AV77: 0 | AW77: 0 | AX77: 0 | AY77: 0 | AZ77: 0 | BA77: 0 | BB77: 0 | BC77: 0 | BD77: 0 | BE77: 0 | BF77: 0 | BG77: 0 | BH77: 0 | BK77: 15 | BL77: 4.5 | BM77: 15.00685003 | BN77: 3.424494766e-17 | BO77: 0 | BP77: =ET$4*$N$32+$M$32 -> 15.08639756 | BU77: 7.1 | BW77: 1.908613044e-31 | BX77: 3.397097333e-33 | BY77: 5.447176054e-35 | BZ77: 7.868793574e-37 | CA77: 1.024043043e-38 | CB77: 1.200608985e-40 | CC77: 1.268113967e-42 | CD77: 1.206669404e-44 | CE77: 1.034407439e-46 | CF77: 7.988556071e-49 | CG77: 5.557996389e-51 | CH77: 3.483996586e-53 | CI77: 7.553205045e-55 | CJ77: 9.688298515e-53 | CK77: 1.513750849e-50 | CL77: 2.130782355e-48 | CM77: 2.702073155e-46 | CN77: 3.086941736e-44 | CO77: 3.177116068e-42 | CP77: 2.945852842e-40 | CQ77: 2.460720765e-38 | CR77: 1.851769552e-36 | CS77: 1.255407914e-34 | CT77: 7.667540954e-33 | CU77: 4.218913927e-31 | CV77: 2.091310629e-29 | CW77: 9.339201442e-28 | CX77: 3.75728605e-26 | CY77: 1.361796131e-24 | CZ77: 4.446550718e-23 | DA77: 1.307999938e-21 | DB77: 3.466294958e-20 | DC77: 8.27554541e-19 | DD77: 1.779922346e-17 | DE77: 3.448885716e-16 | DF77: 6.020462706e-15 | DG77: 9.467912946e-14 | DH77: 1.341380413e-12 | DI77: 1.71207578e-11 | DJ77: 1.968644624e-10 | DK77: 2.039318156e-09 | DL77: 1.903162908e-08 | DM77: 1.600074717e-07 | DN77: 1.211930958e-06 | DO77: 8.269682101e-06 | DP77: 5.083619876e-05 | DQ77: 0.0002815338646 | DR77: 0.001404628686 | DS77: 0.00631343544 | DT77: 0.02556485141 | DU77: 0.09325972289 | DV77: 0.3064913959 | DW77: 0.9074355146 | DX77: 2.420396835 | DY77: 5.816084385 | DZ77: 12.59064968 | EA77: 24.55494132 | EB77: 43.14226871 | EC77: 68.28736847 | ED77: 97.37581226 | EE77: 125.0936108 | EF77: 144.7746362 | EG77: 150.9465373 | EH77: 141.7839744 | EI77: 119.978784 | EJ77: 91.46503072 | EK77: 62.8172662 | EL77: 38.86657739 | EM77: 21.66441084 | EN77: 10.87904534 | EO77: 4.921619211 | EP77: 2.005850449 | EQ77: 0.7364824628 | ER77: 0.2436125111 | ES77: 0.07259556432 | ET77: 0.01948919503 | EU77: 0.00471358167 | EV77: 0.001027026122 | EW77: 0.0002015975556 | EX77: 3.565023137e-05 | EY77: 5.679534766e-06 | EZ77: 8.151480439e-07 | FA77: 1.053982834e-07 | FB77: 1.227732927e-08 | FC77: 1.28839072e-09 | FD77: 1.218048528e-10 | FE77: 1.037420709e-11 | FF77: 7.960100556e-13 | FG77: 5.502442507e-14 | FH77: 3.426618787e-15 | FI77: 1.922424925e-16 | FJ77: 9.716420557e-18 | FK77: 4.424218205e-19 | FL77: 1.814847308e-20 | FM77: 6.706824828e-22 | FN77: 2.232889101e-23 | FO77: 6.697159823e-25 | FP77: 1.809620432e-26 | FQ77: 4.405118928e-28 | FR77: 9.660533332e-30 | FS77: 1.908613044e-31 | FT77: 0 | FU77: 0 | FV77: 0 | FW77: 0 | FX77: 0 | FY77: 0 | FZ77: 0 | GA77: 0 | GB77: 0 | GC77: 0 | GD77: 0 | GE77: 0 | GF77: 0 | GG77: 0 | GH77: 0 | GI77: 0 | GJ77: 0 | GK77: 0 | GL77: 0 | GM77: 0 | GN77: 0 | GO77: 0 | GP77: 0 | GQ77: 0 | GR77: 0 | GT77: 72 | GU77: 11.7180384 | GV77: 26.7180384 | GW77: =INDEX($BW$6:$GR$261,$GT77,$BJ$14) -> 0.9074355146 | GX77: 0.2318234968
A78: 17 | N78: =B31 -> 20 | O78: =O67 -> 3.149710843 | AE78: 15 | AF78: =IF('Macro input'!$F$19=1,GC!AG78,IF($K$29>0,IF($AE78<$I$29,$G$29,IF($AE78<$I$29+$J$29,$G$29+((H$29-G$29)*($AE78-I$29)/J$29),$H$29)),$G$29)) -> 250 | AG78: 250.05 | AH78: 0.228 | AI78: 0.76 | AJ78: 6.012187228 | AK78: 6 | AL78: 15 | AM78: 4.987812772 | AN78: 77 | AO78: 2.339834139e-291 | AP78: 2.143120991e-296 | AQ78: 4.454754572e-308 | AR78: 0 | AS78: 0 | AT78: 0 | AU78: 0 | AV78: 0 | AW78: 0 | AX78: 0 | AY78: 0 | AZ78: 0 | BA78: 0 | BB78: 0 | BC78: 0 | BD78: 0 | BE78: 0 | BF78: 0 | BG78: 0 | BH78: 0 | BK78: 15.2 | BL78: 4.56 | BM78: 15.00704023 | BN78: 7.183999516e-18 | BO78: 0 | BP78: =EU$4*$N$32+$M$32 -> 15.03810307 | BU78: 7.2 | BW78: 1.768648233e-35 | BX78: 2.222936108e-37 | BY78: 2.503661101e-39 | BZ78: 2.526894724e-41 | CA78: 2.285397779e-43 | CB78: 1.852249554e-45 | CC78: 1.345241456e-47 | CD78: 8.755158871e-50 | CE78: 5.106118219e-52 | CF78: 2.668583251e-54 | CG78: 1.251512562e-56 | CH78: 4.271628244e-57 | CI78: 9.208785986e-55 | CJ78: 1.801108177e-52 | CK78: 3.156751201e-50 | CL78: 4.957970706e-48 | CM78: 6.977994196e-46 | CN78: 8.800762414e-44 | CO78: 9.946562948e-42 | CP78: 1.007369551e-39 | CQ78: 9.142556418e-38 | CR78: 7.435488805e-36 | CS78: 5.418941275e-34 | CT78: 3.53901506e-32 | CU78: 2.071158914e-30 | CV78: 1.0861942e-28 | CW78: 5.104633684e-27 | CX78: 2.149734024e-25 | CY78: 8.112746836e-24 | CZ78: 2.743558108e-22 | DA78: 8.314257052e-21 | DB78: 2.257853594e-19 | DC78: 5.494537646e-18 | DD78: 1.198200715e-16 | DE78: 2.341483173e-15 | DF78: 4.100299246e-14 | DG78: 6.434326741e-13 | DH78: 9.048023382e-12 | DI78: 1.140164101e-10 | DJ78: 1.287490571e-09 | DK78: 1.30281814e-08 | DL78: 1.181371752e-07 | DM78: 9.599583994e-07 | DN78: 6.990066207e-06 | DO78: 4.561137986e-05 | DP78: 0.0002667031704 | DQ78: 0.001397481898 | DR78: 0.006561864368 | DS78: 0.02761031448 | DT78: 0.1041066574 | DU78: 0.3517618182 | DV78: 1.065079284 | DW78: 2.889869448 | DX78: 7.026475802 | DY78: 15.30946209 | DZ78: 29.89133792 | EA78: 52.29905265 | EB78: 81.99839193 | EC78: 115.2072724 | ED78: 145.0499218 | EE78: 163.6508061 | EF78: 165.4557423 | EG78: 149.9023997 | EH78: 121.7021839 | EI78: 88.54238247 | EJ78: 57.7254173 | EK78: 33.72453763 | EL78: 17.65582326 | EM78: 8.283101567 | EN78: 3.482258813 | EO78: 1.31187408 | EP78: 0.442880238 | EQ78: 0.1339810873 | ER78: 0.03632149697 | ES78: 0.008823624675 | ET78: 0.001920849589 | EU78: 0.0003747164312 | EV78: 6.550510706e-05 | EW78: 1.026149481e-05 | EX78: 1.440486341e-06 | EY78: 1.812052202e-07 | EZ78: 2.042656359e-08 | FA78: 2.063397792e-09 | FB78: 1.867814137e-10 | FC78: 1.515121288e-11 | FD78: 1.101347038e-12 | FE78: 7.174043756e-14 | FF78: 4.187616477e-15 | FG78: 2.190447377e-16 | FH78: 1.026743102e-17 | FI78: 4.312745286e-19 | FJ78: 1.623337682e-20 | FK78: 5.475540255e-22 | FL78: 1.655038603e-23 | FM78: 4.482830573e-25 | FN78: 1.088076844e-26 | FO78: 2.366627225e-28 | FP78: 4.612784758e-30 | FQ78: 8.056744094e-32 | FR78: 1.261011346e-33 | FS78: 1.768648233e-35 | FT78: 0 | FU78: 0 | FV78: 0 | FW78: 0 | FX78: 0 | FY78: 0 | FZ78: 0 | GA78: 0 | GB78: 0 | GC78: 0 | GD78: 0 | GE78: 0 | GF78: 0 | GG78: 0 | GH78: 0 | GI78: 0 | GJ78: 0 | GK78: 0 | GL78: 0 | GM78: 0 | GN78: 0 | GO78: 0 | GP78: 0 | GQ78: 0 | GR78: 0 | GT78: 73 | GU78: 12.63289528 | GV78: 27.63289528 | GW78: =INDEX($BW$6:$GR$261,$GT78,$BJ$14) -> 2.889869448 | GX78: 0.73827796
A79: 18 | N79: =O68 -> 7.767481928 | O79: 0 | AE79: 15.2 | AF79: =IF('Macro input'!$F$19=1,GC!AG79,IF($K$29>0,IF($AE79<$I$29,$G$29,IF($AE79<$I$29+$J$29,$G$29+((H$29-G$29)*($AE79-I$29)/J$29),$H$29)),$G$29)) -> 252 | AG79: 252.05 | AH79: 0.231 | AI79: 0.77 | AJ79: 6.016348539 | AK79: 6 | AL79: 15 | AM79: 4.983651461 | AN79: 78 | AO79: 1.214255839e-282 | AP79: 9.862429298e-289 | AQ79: 2.897441431e-300 | AR79: 0 | AS79: 2.396184512e-307 | AT79: 0 | AU79: 0 | AV79: 0 | AW79: 0 | AX79: 0 | AY79: 0 | AZ79: 0 | BA79: 0 | BB79: 0 | BC79: 0 | BD79: 0 | BE79: 0 | BF79: 0 | BG79: 0 | BH79: 0 | BK79: =BK78+$BJ$38 -> 15.4 | BL79: 4.62 | BM79: 15.00723518 | BN79: 1.463401126e-18 | BO79: 0 | BP79: =EV$4*$N$32+$M$32 -> 15.01554441 | BU79: 7.3 | BW79: 1.971508246e-40 | BX79: 1.716005335e-42 | BY79: 1.330792067e-44 | BZ79: 9.195456765e-47 | CA79: 5.661192776e-49 | CB79: 3.105375445e-51 | CC79: 1.517720566e-53 | CD79: 6.609080737e-56 | CE79: 2.564258896e-58 | CF79: 8.952100059e-61 | CG79: 2.781969703e-60 | CH79: 7.856117245e-58 | CI79: 1.978615864e-55 | CJ79: 4.440036655e-53 | CK79: 8.877346217e-51 | CL79: 1.581434809e-48 | CM79: 2.510099651e-46 | CN79: 3.549785956e-44 | CO79: 4.47285587e-42 | CP79: 5.021565997e-40 | CQ79: 5.023020833e-38 | CR79: 4.476744593e-36 | CS79: 3.554931115e-34 | CT79: 2.51519462e-32 | CU79: 1.585563118e-30 | CV79: 8.905678404e-29 | CW79: 4.456788399e-27 | CX79: 1.987231926e-25 | CY79: 7.894899937e-24 | CZ79: 2.794578014e-22 | DA79: 8.813682057e-21 | DB79: 2.476680902e-19 | DC79: 6.200893387e-18 | DD79: 1.383279712e-16 | DE79: 2.749395922e-15 | DF79: 4.868958742e-14 | DG79: 7.682568454e-13 | DH79: 1.08006108e-11 | DI79: 1.352887637e-10 | DJ79: 1.509894744e-09 | DK79: 1.501423303e-08 | DL79: 1.330243559e-07 | DM79: 1.050100128e-06 | DN79: 7.385872248e-06 | DO79: 4.628544093e-05 | DP79: 0.0002584392981 | DQ79: 0.001285713589 | DR79: 0.005699036641 | DS79: 0.02250765232 | DT79: 0.07920096632 | DU79: 0.2483146236 | DV79: 0.6936583946 | DW79: 1.726475939 | DX79: 3.828661291 | DY79: 7.564929734 | DZ79: 13.3178581 | EA79: 20.88985386 | EB79: 29.19496466 | EC79: 36.35398635 | ED79: 40.33366246 | EE79: 39.87078743 | EF79: 35.11668403 | EG79: 27.55774777 | EH79: 19.2683921 | EI79: 12.00380035 | EJ79: 6.662904454 | EK79: 3.295186056 | EL79: 1.45200406 | EM79: 0.5700687753 | EN79: 0.1994151781 | EO79: 0.06215280039 | EP79: 0.01725975893 | EQ79: 0.004270515313 | ER79: 0.0009414502503 | ES79: 0.0001849209009 | ET79: 3.236280525e-05 | EU79: 5.046355625e-06 | EV79: 7.011017955e-07 | EW79: 8.67872325e-08 | EX79: 9.571987741e-09 | EY79: 9.406324597e-10 | EZ79: 8.235866968e-11 | FA79: 6.424956893e-12 | FB79: 4.465834733e-13 | FC79: 2.765709807e-14 | FD79: 1.526096886e-15 | FE79: 7.502899621e-17 | FF79: 3.286606426e-18 | FG79: 1.282737519e-19 | FH79: 4.460663153e-21 | FI79: 1.382078127e-22 | FJ79: 3.815375551e-24 | FK79: 9.384551562e-26 | FL79: 2.056654267e-27 | FM79: 4.01587874e-29 | FN79: 6.986689201e-31 | FO79: 1.083013304e-32 | FP79: 1.495779899e-34 | FQ79: 1.840658104e-36 | FR79: 2.018134449e-38 | FS79: 1.971508246e-40 | FT79: 0 | FU79: 0 | FV79: 0 | FW79: 0 | FX79: 0 | FY79: 0 | FZ79: 0 | GA79: 0 | GB79: 0 | GC79: 0 | GD79: 0 | GE79: 0 | GF79: 0 | GG79: 0 | GH79: 0 | GI79: 0 | GJ79: 0 | GK79: 0 | GL79: 0 | GM79: 0 | GN79: 0 | GO79: 0 | GP79: 0 | GQ79: 0 | GR79: 0 | GT79: 74 | GU79: 3.0034321 | GV79: 18.0034321 | GW79: =INDEX($BW$6:$GR$261,$GT79,$BJ$14) -> 1.726475939 | GX79: 0.4410646076
A80: 19 | N80: =O68 -> 7.767481928 | O80: =C31*60 -> 6 | AE80: 15.4 | AF80: =IF('Macro input'!$F$19=1,GC!AG80,IF($K$29>0,IF($AE80<$I$29,$G$29,IF($AE80<$I$29+$J$29,$G$29+((H$29-G$29)*($AE80-I$29)/J$29),$H$29)),$G$29)) -> 254 | AG80: 254.05 | AH80: 0.234 | AI80: 0.78 | AJ80: 6.021658295 | AK80: 6 | AL80: 15 | AM80: 4.978341705 | AN80: 79 | AO80: 4.649304358e-274 | AP80: 3.60372798e-281 | AQ80: 1.49636119e-292 | AR80: 9.15247438e-304 | AS80: 9.004806997e-303 | AT80: 0 | AU80: 0 | AV80: 0 | AW80: 0 | AX80: 0 | AY80: 0 | AZ80: 0 | BA80: 0 | BB80: 0 | BC80: 0 | BD80: 0 | BE80: 0 | BF80: 0 | BG80: 0 | BH80: 0 | BK80: =BK79+$BJ$38 -> 15.6 | BL80: 4.68 | BM80: 15.00743499 | BN80: 2.894594806e-19 | BO80: 0 | BP80: =EW$4*$N$32+$M$32 -> 15.00586689 | BU80: 7.4 | BW80: 2.340701713e-45 | BX80: 1.55987034e-47 | BY80: 9.233848782e-50 | BZ80: 4.855442845e-52 | CA80: 2.267914955e-54 | CB80: 9.409715956e-57 | CC80: 3.467992051e-59 | CD80: 1.135355307e-61 | CE80: 3.610561726e-64 | CF80: 1.113731849e-62 | CG80: 3.566754665e-60 | CH80: 1.014730995e-57 | CI80: 2.564368567e-55 | CJ80: 5.756543543e-53 | CK80: 1.147875995e-50 | CL80: 2.033199451e-48 | CM80: 3.199019035e-46 | CN80: 4.471008497e-44 | CO80: 5.550677519e-42 | CP80: 6.12122479e-40 | CQ80: 5.996288095e-38 | CR80: 5.217692531e-36 | CS80: 4.032982211e-34 | CT80: 2.769019154e-32 | CU80: 1.688796981e-30 | CV80: 9.14915022e-29 | CW80: 4.402870412e-27 | CX80: 1.882100796e-25 | CY80: 7.146636353e-24 | CZ80: 2.410528776e-22 | DA80: 7.222287738e-21 | DB80: 1.922158002e-19 | DC80: 4.544176708e-18 | DD80: 9.542741712e-17 | DE80: 1.780094087e-15 | DF80: 2.949609859e-14 | DG80: 4.341482206e-13 | DH80: 5.676273397e-12 | DI80: 6.592352402e-11 | DJ80: 6.800946454e-10 | DK80: 6.232325485e-09 | DL80: 5.073208691e-08 | DM80: 3.668319543e-07 | DN80: 2.356152638e-06 | DO80: 1.344285501e-05 | DP80: 6.812890949e-05 | DQ80: 0.0003067066489 | DR80: 0.001226497804 | DS80: 0.004356745479 | DT80: 0.01374704752 | DU80: 0.03853084286 | DV80: 0.09593109792 | DW80: 0.2121593377 | DX80: 0.4167894502 | DY80: 0.7273159547 | DZ80: 1.127408596 | EA80: 1.552356269 | EB80: 1.898686612 | EC80: 2.062846947 | ED80: 1.990822571 | EE80: 1.706671497 | EF80: 1.299628257 | EG80: 0.8791038577 | EH80: 0.52821783 | EI80: 0.2819277063 | EJ80: 0.1336639496 | EK80: 0.05629147802 | EL80: 0.0210582775 | EM80: 0.006997692712 | EN80: 0.00206556431 | EO80: 0.0005415946989 | EP80: 0.0001261426409 | EQ80: 2.609764168e-05 | ER80: 4.796146487e-06 | ES80: 7.829525533e-07 | ET80: 1.13535135e-07 | EU80: 1.462436263e-08 | EV80: 1.673306293e-09 | EW80: 1.700692402e-10 | EX80: 1.535422602e-11 | EY80: 1.231351142e-12 | EZ80: 8.771780109e-14 | FA80: 5.550669707e-15 | FB80: 3.120001946e-16 | FC80: 1.557816053e-17 | FD80: 6.909224673e-19 | FE80: 2.722038641e-20 | FF80: 9.526011189e-22 | FG80: 2.961281674e-23 | FH80: 8.177116422e-25 | FI80: 2.005730015e-26 | FJ80: 4.370152544e-28 | FK80: 8.45809483e-30 | FL80: 1.454120288e-31 | FM80: 2.220649151e-33 | FN80: 3.012391357e-35 | FO80: 3.62990006e-37 | FP80: 3.88534666e-39 | FQ80: 3.694168575e-41 | FR80: 3.120006337e-43 | FS80: 2.340701713e-45 | FT80: 0 | FU80: 0 | FV80: 0 | FW80: 0 | FX80: 0 | FY80: 0 | FZ80: 0 | GA80: 0 | GB80: 0 | GC80: 0 | GD80: 0 | GE80: 0 | GF80: 0 | GG80: 0 | GH80: 0 | GI80: 0 | GJ80: 0 | GK80: 0 | GL80: 0 | GM80: 0 | GN80: 0 | GO80: 0 | GP80: 0 | GQ80: 0 | GR80: 0 | GT80: 75 | GU80: 0.1505889468 | GV80: 15.15058895 | GW80: =INDEX($BW$6:$GR$261,$GT80,$BJ$14) -> 0.2121593377 | GX80: 0.05420056715
A81: 20 | AE81: 15.6 | AF81: =IF('Macro input'!$F$19=1,GC!AG81,IF($K$29>0,IF($AE81<$I$29,$G$29,IF($AE81<$I$29+$J$29,$G$29+((H$29-G$29)*($AE81-I$29)/J$29),$H$29)),$G$29)) -> 256 | AG81: 256.05 | AH81: 0.237 | AI81: 0.79 | AJ81: 6.028336154 | AK81: 6 | AL81: 15 | AM81: 4.971663846 | AN81: 80 | AO81: 1.313464695e-265 | AP81: 1.045564879e-273 | AQ81: 6.13605285e-285 | AR81: 6.877533222e-297 | AS81: 3.127225808e-298 | AT81: 0 | AU81: 0 | AV81: 0 | AW81: 0 | AX81: 0 | AY81: 0 | AZ81: 0 | BA81: 0 | BB81: 0 | BC81: 0 | BD81: 0 | BE81: 0 | BF81: 0 | BG81: 0 | BH81: 0 | BK81: 15.8 | BL81: 4.74 | BM81: 15.00763975 | BN81: 5.559547883e-20 | BO81: 0 | BP81: =EX$4*$N$32+$M$32 -> 15.00204906 | BU81: 7.5 | BW81: 3.075516543e-51 | BX81: 1.54959572e-53 | BY81: 6.913501593e-56 | BZ81: 2.731222266e-58 | CA81: 9.554222253e-61 | CB81: 2.959463263e-63 | CC81: 8.117310399e-66 | CD81: 3.94290334e-68 | CE81: 8.117310399e-66 | CF81: 2.959463263e-63 | CG81: 9.554222253e-61 | CH81: 2.731222266e-58 | CI81: 6.913501593e-56 | CJ81: 1.54959572e-53 | CK81: 3.075516543e-51 | CL81: 5.405016758e-49 | CM81: 8.41114927e-47 | CN81: 1.159025401e-44 | CO81: 1.414196917e-42 | CP81: 1.527939422e-40 | CQ81: 1.461778952e-38 | CR81: 1.23833056e-36 | CS81: 9.289039196e-35 | CT81: 6.169987984e-33 | CU81: 3.628918036e-31 | CV81: 1.889945664e-29 | CW81: 8.71567035e-28 | CX81: 3.559029528e-26 | CY81: 1.286890826e-24 | CZ81: 4.120321807e-23 | DA81: 1.168153426e-21 | DB81: 2.932567081e-20 | DC81: 6.518915349e-19 | DD81: 1.283163644e-17 | DE81: 2.236495707e-16 | DF81: 3.45170292e-15 | DG81: 4.717132432e-14 | DH81: 5.708237659e-13 | DI81: 6.116533263e-12 | DJ81: 5.80347283e-11 | DK81: 4.875844957e-10 | DL81: 3.627363991e-09 | DM81: 2.389525699e-08 | DN81: 1.393835726e-07 | DO81: 7.199308708e-07 | DP81: 3.292678436e-06 | DQ81: 1.333482008e-05 | DR81: 4.781942167e-05 | DS81: 0.0001518451052 | DT81: 0.0004269495815 | DU81: 0.001062996185 | DV81: 0.002343506367 | DW81: 0.004574881904 | DX81: 0.00790811463 | DY81: 0.01210445784 | DZ81: 0.01640578617 | EA81: 0.01968919996 | EB81: 0.02092369643 | EC81: 0.01968919996 | ED81: 0.01640578617 | EE81: 0.01210445784 | EF81: 0.00790811463 | EG81: 0.004574881904 | EH81: 0.002343506367 | EI81: 0.001062996185 | EJ81: 0.0004269495815 | EK81: 0.0001518451052 | EL81: 4.781942167e-05 | EM81: 1.333482008e-05 | EN81: 3.292678436e-06 | EO81: 7.199308708e-07 | EP81: 1.393835726e-07 | EQ81: 2.389525699e-08 | ER81: 3.627363991e-09 | ES81: 4.875844957e-10 | ET81: 5.80347283e-11 | EU81: 6.116533263e-12 | EV81: 5.708237659e-13 | EW81: 4.717132432e-14 | EX81: 3.45170292e-15 | EY81: 2.236495707e-16 | EZ81: 1.283163644e-17 | FA81: 6.518915349e-19 | FB81: 2.932567081e-20 | FC81: 1.168153426e-21 | FD81: 4.120321807e-23 | FE81: 1.286890826e-24 | FF81: 3.559029528e-26 | FG81: 8.71567035e-28 | FH81: 1.889945664e-29 | FI81: 3.628918036e-31 | FJ81: 6.169987984e-33 | FK81: 9.289039196e-35 | FL81: 1.23833056e-36 | FM81: 1.461778952e-38 | FN81: 1.527939422e-40 | FO81: 1.414196917e-42 | FP81: 1.159025401e-44 | FQ81: 8.41114927e-47 | FR81: 5.405016758e-49 | FS81: 3.075516543e-51 | FT81: 0 | FU81: 0 | FV81: 0 | FW81: 0 | FX81: 0 | FY81: 0 | FZ81: 0 | GA81: 0 | GB81: 0 | GC81: 0 | GD81: 0 | GE81: 0 | GF81: 0 | GG81: 0 | GH81: 0 | GI81: 0 | GJ81: 0 | GK81: 0 | GL81: 0 | GM81: 0 | GN81: 0 | GO81: 0 | GP81: 0 | GQ81: 0 | GR81: 0 | GT81: 76 | GU81: 0.001503898405 | GV81: 15.0015039 | GW81: =INDEX($BW$6:$GR$261,$GT81,$BJ$14) -> 0.004574881904 | GX81: 0.001168749849
AE82: 15.8 | AF82: =IF('Macro input'!$F$19=1,GC!AG82,IF($K$29>0,IF($AE82<$I$29,$G$29,IF($AE82<$I$29+$J$29,$G$29+((H$29-G$29)*($AE82-I$29)/J$29),$H$29)),$G$29)) -> 258 | AG82: 258.05 | AH82: 0.24 | AI82: 0.8 | AJ82: 6.036612456 | AK82: 6 | AL82: 15 | AM82: 4.963387544 | AN82: 81 | AO82: 2.737798492e-257 | AP82: 2.408689713e-266 | AQ82: 1.997894878e-277 | AR82: 4.312660036e-290 | AS82: 1.003632588e-293 | AT82: 0 | AU82: 0 | AV82: 0 | AW82: 0 | AX82: 0 | AY82: 0 | AZ82: 0 | BA82: 0 | BB82: 0 | BC82: 0 | BD82: 0 | BE82: 0 | BF82: 0 | BG82: 0 | BH82: 0 | BK82: 16 | BL82: 4.8 | BM82: 15.00784957 | BN82: 1.03685607e-20 | BO82: 0 | BP82: =EY$4*$N$32+$M$32 -> 15.00066241 | BU82: 7.6 | BW82: 0 | BX82: 0 | BY82: 0 | BZ82: 0 | CA82: 0 | CB82: 0 | CC82: 0 | CD82: 0 | CE82: 0 | CF82: 0 | CG82: 0 | CH82: 0 | CI82: 0 | CJ82: 0 | CK82: 0 | CL82: 0 | CM82: 0 | CN82: 0 | CO82: 0 | CP82: 0 | CQ82: 0 | CR82: 0 | CS82: 0 | CT82: 0 | CU82: 0 | CV82: 0 | CW82: 0 | CX82: 0 | CY82: 0 | CZ82: 0 | DA82: 0 | DB82: 0 | DC82: 0 | DD82: 0 | DE82: 0 | DF82: 0 | DG82: 0 | DH82: 0 | DI82: 0 | DJ82: 0 | DK82: 0 | DL82: 0 | DM82: 0 | DN82: 0 | DO82: 0 | DP82: 0 | DQ82: 0 | DR82: 0 | DS82: 0 | DT82: 0 | DU82: 0 | DV82: 0 | DW82: 0 | DX82: 0 | DY82: 0 | DZ82: 0 | EA82: 0 | EB82: 0 | EC82: 0 | ED82: 0 | EE82: 0 | EF82: 0 | EG82: 0 | EH82: 0 | EI82: 0 | EJ82: 0 | EK82: 0 | EL82: 0 | EM82: 0 | EN82: 0 | EO82: 0 | EP82: 0 | EQ82: 0 | ER82: 0 | ES82: 0 | ET82: 0 | EU82: 0 | EV82: 0 | EW82: 0 | EX82: 0 | EY82: 0 | EZ82: 0 | FA82: 0 | FB82: 0 | FC82: 0 | FD82: 0 | FE82: 0 | FF82: 0 | FG82: 0 | FH82: 0 | FI82: 0 | FJ82: 0 | FK82: 0 | FL82: 0 | FM82: 0 | FN82: 0 | FO82: 0 | FP82: 0 | FQ82: 0 | FR82: 0 | FS82: 0 | FT82: 0 | FU82: 0 | FV82: 0 | FW82: 0 | FX82: 0 | FY82: 0 | FZ82: 0 | GA82: 0 | GB82: 0 | GC82: 0 | GD82: 0 | GE82: 0 | GF82: 0 | GG82: 0 | GH82: 0 | GI82: 0 | GJ82: 0 | GK82: 0 | GL82: 0 | GM82: 0 | GN82: 0 | GO82: 0 | GP82: 0 | GQ82: 0 | GR82: 0 | GT82: 77 | GU82: 0 | GV82: 15 | GW82: =INDEX($BW$6:$GR$261,$GT82,$BJ$14) -> 0 | GX82: 0
A83: Peaks | B83: Analyte | D83: 1D VBA | E83: =J14 -> HP-5 | H83: 2D VBA | I83: =K14 -> Rxi-50-240 | L83: DtR 1D | AE83: 16 | AF83: =IF('Macro input'!$F$19=1,GC!AG83,IF($K$29>0,IF($AE83<$I$29,$G$29,IF($AE83<$I$29+$J$29,$G$29+((H$29-G$29)*($AE83-I$29)/J$29),$H$29)),$G$29)) -> 260 | AG83: 260.05 | AH83: 0.243 | AI83: 0.81 | AJ83: 6.04671842 | AK83: 6 | AL83: 15 | AM83: 4.95328158 | AN83: 82 | AO83: 4.210534261e-249 | AP83: 4.405970806e-259 | AQ83: 5.16519904e-270 | AR83: 2.256711822e-283 | AS83: 2.976603227e-289 | AT83: 0 | AU83: 0 | AV83: 0 | AW83: 0 | AX83: 0 | AY83: 0 | AZ83: 0 | BA83: 0 | BB83: 0 | BC83: 0 | BD83: 0 | BE83: 0 | BF83: 0 | BG83: 0 | BH83: 0 | BK83: 16.2 | BL83: 4.86 | BM83: 15.00806456 | BN83: 1.877693821e-21 | BO83: 0 | BP83: =EZ$4*$N$32+$M$32 -> 15.00019827 | BU83: 7.7 | BW83: 0 | BX83: 0 | BY83: 0 | BZ83: 0 | CA83: 0 | CB83: 0 | CC83: 0 | CD83: 0 | CE83: 0 | CF83: 0 | CG83: 0 | CH83: 0 | CI83: 0 | CJ83: 0 | CK83: 0 | CL83: 0 | CM83: 0 | CN83: 0 | CO83: 0 | CP83: 0 | CQ83: 0 | CR83: 0 | CS83: 0 | CT83: 0 | CU83: 0 | CV83: 0 | CW83: 0 | CX83: 0 | CY83: 0 | CZ83: 0 | DA83: 0 | DB83: 0 | DC83: 0 | DD83: 0 | DE83: 0 | DF83: 0 | DG83: 0 | DH83: 0 | DI83: 0 | DJ83: 0 | DK83: 0 | DL83: 0 | DM83: 0 | DN83: 0 | DO83: 0 | DP83: 0 | DQ83: 0 | DR83: 0 | DS83: 0 | DT83: 0 | DU83: 0 | DV83: 0 | DW83: 0 | DX83: 0 | DY83: 0 | DZ83: 0 | EA83: 0 | EB83: 0 | EC83: 0 | ED83: 0 | EE83: 0 | EF83: 0 | EG83: 0 | EH83: 0 | EI83: 0 | EJ83: 0 | EK83: 0 | EL83: 0 | EM83: 0 | EN83: 0 | EO83: 0 | EP83: 0 | EQ83: 0 | ER83: 0 | ES83: 0 | ET83: 0 | EU83: 0 | EV83: 0 | EW83: 0 | EX83: 0 | EY83: 0 | EZ83: 0 | FA83: 0 | FB83: 0 | FC83: 0 | FD83: 0 | FE83: 0 | FF83: 0 | FG83: 0 | FH83: 0 | FI83: 0 | FJ83: 0 | FK83: 0 | FL83: 0 | FM83: 0 | FN83: 0 | FO83: 0 | FP83: 0 | FQ83: 0 | FR83: 0 | FS83: 0 | FT83: 0 | FU83: 0 | FV83: 0 | FW83: 0 | FX83: 0 | FY83: 0 | FZ83: 0 | GA83: 0 | GB83: 0 | GC83: 0 | GD83: 0 | GE83: 0 | GF83: 0 | GG83: 0 | GH83: 0 | GI83: 0 | GJ83: 0 | GK83: 0 | GL83: 0 | GM83: 0 | GN83: 0 | GO83: 0 | GP83: 0 | GQ83: 0 | GR83: 0 | GT83: 78 | GU83: 0 | GV83: 15 | GW83: =INDEX($BW$6:$GR$261,$GT83,$BJ$14) -> 0 | GX83: 0
C84: tR | D84: w | E84: a | F84: RS | G84: tR | H84: w | I84: h | J84: tR-total | L84: LSS-VBA | AE84: 16.2 | AF84: =IF('Macro input'!$F$19=1,GC!AG84,IF($K$29>0,IF($AE84<$I$29,$G$29,IF($AE84<$I$29+$J$29,$G$29+((H$29-G$29)*($AE84-I$29)/J$29),$H$29)),$G$29)) -> 262 | AG84: 262.05 | AH84: 0.246 | AI84: 0.82 | AJ84: 6.05887335 | AK84: 6 | AL84: 15 | AM84: 4.94112665 | AN84: 83 | AO84: 4.777773758e-241 | AP84: 6.399311613e-252 | AQ84: 1.060308824e-262 | AR84: 9.854289933e-277 | AS84: 8.158265267e-285 | AT84: 0 | AU84: 0 | AV84: 0 | AW84: 0 | AX84: 0 | AY84: 0 | AZ84: 0 | BA84: 0 | BB84: 0 | BC84: 0 | BD84: 0 | BE84: 0 | BF84: 0 | BG84: 0 | BH84: 0 | BK84: 16.4 | BL84: 4.92 | BM84: 15.00828483 | BN84: 3.301857927e-22 | BO84: 0 | BP84: =FA$4*$N$32+$M$32 -> 15.00005496 | BU84: 7.8 | BW84: 0 | BX84: 0 | BY84: 0 | BZ84: 0 | CA84: 0 | CB84: 0 | CC84: 0 | CD84: 0 | CE84: 0 | CF84: 0 | CG84: 0 | CH84: 0 | CI84: 0 | CJ84: 0 | CK84: 0 | CL84: 0 | CM84: 0 | CN84: 0 | CO84: 0 | CP84: 0 | CQ84: 0 | CR84: 0 | CS84: 0 | CT84: 0 | CU84: 0 | CV84: 0 | CW84: 0 | CX84: 0 | CY84: 0 | CZ84: 0 | DA84: 0 | DB84: 0 | DC84: 0 | DD84: 0 | DE84: 0 | DF84: 0 | DG84: 0 | DH84: 0 | DI84: 0 | DJ84: 0 | DK84: 0 | DL84: 0 | DM84: 0 | DN84: 0 | DO84: 0 | DP84: 0 | DQ84: 0 | DR84: 0 | DS84: 0 | DT84: 0 | DU84: 0 | DV84: 0 | DW84: 0 | DX84: 0 | DY84: 0 | DZ84: 0 | EA84: 0 | EB84: 0 | EC84: 0 | ED84: 0 | EE84: 0 | EF84: 0 | EG84: 0 | EH84: 0 | EI84: 0 | EJ84: 0 | EK84: 0 | EL84: 0 | EM84: 0 | EN84: 0 | EO84: 0 | EP84: 0 | EQ84: 0 | ER84: 0 | ES84: 0 | ET84: 0 | EU84: 0 | EV84: 0 | EW84: 0 | EX84: 0 | EY84: 0 | EZ84: 0 | FA84: 0 | FB84: 0 | FC84: 0 | FD84: 0 | FE84: 0 | FF84: 0 | FG84: 0 | FH84: 0 | FI84: 0 | FJ84: 0 | FK84: 0 | FL84: 0 | FM84: 0 | FN84: 0 | FO84: 0 | FP84: 0 | FQ84: 0 | FR84: 0 | FS84: 0 | FT84: 0 | FU84: 0 | FV84: 0 | FW84: 0 | FX84: 0 | FY84: 0 | FZ84: 0 | GA84: 0 | GB84: 0 | GC84: 0 | GD84: 0 | GE84: 0 | GF84: 0 | GG84: 0 | GH84: 0 | GI84: 0 | GJ84: 0 | GK84: 0 | GL84: 0 | GM84: 0 | GN84: 0 | GO84: 0 | GP84: 0 | GQ84: 0 | GR84: 0 | GT84: 79 | GU84: 0 | GV84: 15 | GW84: =INDEX($BW$6:$GR$261,$GT84,$BJ$14) -> 0 | GX84: 0
A85: 1 | B85: =IF(C6="","",C6) -> Phenol | C85: 1.425 | D85: 0.07254162857 | E85: =IF(AND(B6>0,C86>C85),(C86-$B$29)/(C85-$B$29),"") -> 1.247058824 | F85: =IF(E85<>"",2*ABS(C86-C85)/(D86+D85),"") -> 1.347620981 | G85: 0.984 | H85: 0.2139881722 | I85: 3.648189106 | J85: 0.984 | L85: =IF(AND(C85<>"",C85<999),C62-C85,"") -> 0.2783461272 | AE85: 16.4 | AF85: =IF('Macro input'!$F$19=1,GC!AG85,IF($K$29>0,IF($AE85<$I$29,$G$29,IF($AE85<$I$29+$J$29,$G$29+((H$29-G$29)*($AE85-I$29)/J$29),$H$29)),$G$29)) -> 264 | AG85: 264.05 | AH85: 0.249 | AI85: 0.83 | AJ85: 6.073269068 | AK85: 6 | AL85: 15 | AM85: 4.926730932 | AN85: 84 | AO85: 4.000060919e-233 | AP85: 7.379990249e-245 | AQ85: 1.728258001e-255 | AR85: 3.590814086e-270 | AS85: 2.066357101e-280 | AT85: 0 | AU85: 0 | AV85: 0 | AW85: 0 | AX85: 0 | AY85: 0 | AZ85: 0 | BA85: 0 | BB85: 0 | BC85: 0 | BD85: 0 | BE85: 0 | BF85: 0 | BG85: 0 | BH85: 0 | BK85: 16.6 | BL85: 4.98 | BM85: 15.00851049 | BN85: 5.637924956e-23 | BO85: 0 | BP85: =FB$4*$N$32+$M$32 -> 15.00001412 | BU85: 7.9 | BW85: 1.582418031e-18 | BX85: 1.177312914e-19 | BY85: 8.048333011e-21 | BZ85: 5.055490659e-22 | CA85: 2.917857186e-23 | CB85: 1.547419609e-24 | CC85: 7.540419447e-26 | CD85: 3.376185176e-27 | CE85: 1.38899396e-28 | CF85: 5.250707194e-30 | CG85: 1.823805784e-31 | CH85: 5.820800592e-33 | CI85: 1.706986944e-34 | CJ85: 4.59961013e-36 | CK85: 1.138820271e-37 | CL85: 2.590792918e-39 | CM85: 5.415687021e-41 | CN85: 1.04020218e-42 | CO85: 1.835800193e-44 | CP85: 2.980395767e-46 | CQ85: 2.854058473e-47 | CR85: 1.563952304e-45 | CS85: 9.322944305e-44 | CT85: 5.106729776e-42 | CU85: 2.570253824e-40 | CV85: 1.188645895e-38 | CW85: 5.050941293e-37 | CX85: 1.972129781e-35 | CY85: 7.075253532e-34 | CZ85: 2.332340035e-32 | DA85: 7.064559252e-31 | DB85: 1.966172519e-29 | DC85: 5.028072329e-28 | DD85: 1.181475597e-26 | DE85: 2.550887701e-25 | DF85: 5.06059135e-24 | DG85: 9.224748669e-23 | DH85: 1.545080676e-21 | DI85: 2.377886517e-20 | DJ85: 3.36259399e-19 | DK85: 4.369191553e-18 | DL85: 5.216402363e-17 | DM85: 5.722481871e-16 | DN85: 5.768210659e-15 | DO85: 5.342458346e-14 | DP85: 4.546576696e-13 | DQ85: 3.555258989e-12 | DR85: 2.554472958e-11 | DS85: 1.686454858e-10 | DT85: 1.02303732e-09 | DU85: 5.7023199e-09 | DV85: 2.92048529e-08 | DW85: 1.374364135e-07 | DX85: 5.942811412e-07 | DY85: 2.361160061e-06 | DZ85: 8.61990051e-06 | EA85: 2.891494848e-05 | EB85: 8.91222079e-05 | EC85: 0.0002524020025 | ED85: 0.0006568149057 | EE85: 0.001570494966 | EF85: 0.003450431756 | EG85: 0.006965522196 | EH85: 0.01292043881 | EI85: 0.02202136277 | EJ85: 0.03448692432 | EK85: 0.04962586404 | EL85: 0.06561528863 | EM85: 0.07971597284 | EN85: 0.08898749925 | EO85: 0.09127587372 | EP85: 0.0860253286 | EQ85: 0.0744972131 | ER85: 0.05927847976 | ES85: 0.04334085085 | ET85: 0.02911663307 | EU85: 0.01797331637 | EV85: 0.01019432861 | EW85: 0.005312909079 | EX85: 0.002544189661 | EY85: 0.001119463474 | EZ85: 0.0004525991324 | FA85: 0.0001681360542 | FB85: 5.739199613e-05 | FC85: 1.800052424e-05 | FD85: 5.187550315e-06 | FE85: 1.373671333e-06 | FF85: 3.34230973e-07 | FG85: 7.472293053e-08 | FH85: 1.534986087e-08 | FI85: 2.897332486e-09 | FJ85: 5.024994295e-10 | FK85: 8.007854157e-11 | FL85: 1.172573518e-11 | FM85: 1.577637981e-12 | FN85: 1.950374317e-13 | FO85: 2.215500899e-14 | FP85: 2.312433415e-15 | FQ85: 2.217736208e-16 | FR85: 1.954311927e-17 | FS85: 1.582418031e-18 | FT85: 0 | FU85: 0 | FV85: 0 | FW85: 0 | FX85: 0 | FY85: 0 | FZ85: 0 | GA85: 0 | GB85: 0 | GC85: 0 | GD85: 0 | GE85: 0 | GF85: 0 | GG85: 0 | GH85: 0 | GI85: 0 | GJ85: 0 | GK85: 0 | GL85: 0 | GM85: 0 | GN85: 0 | GO85: 0 | GP85: 0 | GQ85: 0 | GR85: 0 | GT85: 80 | GU85: 0.007877805056 | GV85: 15.00787781 | GW85: =INDEX($BW$6:$GR$261,$GT85,$BJ$14) -> 1.374364135e-07 | GX85: 3.511102382e-08
A86: 2 | B86: =IF(C7="","",C7) -> Benzonitrile | C86: 1.53 | D86: 0.0832885365 | E86: =IF(AND(B7>0,C87>C86),(C87-$B$29)/(C86-$B$29),"") -> 1.028301887 | F86: 0.1800968132 | G86: 1.092 | H86: 0.2413453335 | I86: 3.047839338 | J86: 1.092 | L86: 0.3102411393 | N86: To select traces: | AE86: 16.6 | AF86: =IF('Macro input'!$F$19=1,GC!AG86,IF($K$29>0,IF($AE86<$I$29,$G$29,IF($AE86<$I$29+$J$29,$G$29+((H$29-G$29)*($AE86-I$29)/J$29),$H$29)),$G$29)) -> 266 | AG86: 266.05 | AH86: 0.252 | AI86: 0.84 | AJ86: 6.090052112 | AK86: 6 | AL86: 15 | AM86: 4.909947888 | AN86: 85 | AO86: 2.470929076e-225 | AP86: 6.757860205e-238 | AQ86: 2.236740814e-248 | AR86: 1.09188992e-263 | AS86: 4.836638317e-276 | AT86: 5.520111883e-308 | AU86: 0 | AV86: 0 | AW86: 0 | AX86: 0 | AY86: 0 | AZ86: 0 | BA86: 0 | BB86: 0 | BC86: 0 | BD86: 0 | BE86: 0 | BF86: 0 | BG86: 0 | BH86: 0 | BK86: 16.8 | BL86: 5.04 | BM86: 15.00874166 | BN86: 9.347758896e-24 | BO86: 0 | BP86: =FC$4*$N$32+$M$32 -> 15.00000336 | BU86: 8 | BW86: 3.974891562e-19 | BX86: 2.299540728e-20 | BY86: 1.217641747e-21 | BZ86: 5.901474794e-23 | CA86: 2.617967113e-24 | CB86: 1.062993037e-25 | CC86: 3.950565402e-27 | CD86: 1.34384969e-28 | CE86: 4.184125841e-30 | CF86: 1.192398397e-31 | CG86: 3.110288197e-33 | CH86: 7.425786937e-35 | CI86: 1.622732518e-36 | CJ86: 3.245742015e-38 | CK86: 5.942150656e-40 | CL86: 9.957170024e-42 | CM86: 1.527181981e-43 | CN86: 2.143940042e-45 | CO86: 2.948416195e-47 | CP86: 1.592330987e-46 | CQ86: 1.193696409e-44 | CR86: 8.207319328e-43 | CS86: 5.165014022e-41 | CT86: 2.97511859e-39 | CU86: 1.568554676e-37 | CV86: 7.569333577e-36 | CW86: 3.343322192e-34 | CX86: 1.351641197e-32 | CY86: 5.001579921e-31 | CZ86: 1.694008591e-29 | DA86: 5.251539147e-28 | DB86: 1.49011645e-26 | DC86: 3.870048557e-25 | DD86: 9.199732979e-24 | DE86: 2.001689142e-22 | DF86: 3.986397922e-21 | DG86: 7.266533252e-20 | DH86: 1.212373642e-18 | DI86: 1.851434318e-17 | DJ86: 2.587871671e-16 | DK86: 3.310851991e-15 | DL86: 3.877032125e-14 | DM86: 4.155484204e-13 | DN86: 4.076678615e-12 | DO86: 3.660613843e-11 | DP86: 3.00859662e-10 | DQ86: 2.263271278e-09 | DR86: 1.55837461e-08 | DS86: 9.821316774e-08 | DT86: 5.665394766e-07 | DU86: 2.991253627e-06 | DV86: 1.445569254e-05 | DW86: 6.394214045e-05 | DX86: 0.0002588797263 | DY86: 0.0009593377061 | DZ86: 0.003253925395 | EA86: 0.01010197458 | EB86: 0.02870566118 | EC86: 0.07466059397 | ED86: 0.1777370346 | EE86: 0.3872817415 | EF86: 0.7723936917 | EG86: 1.409980209 | EH86: 2.355862389 | EI86: 3.6028769 | EJ86: 5.043262016 | EK86: 6.461543065 | EL86: 7.577458343 | EM86: 8.133425164 | EN86: 7.990721521 | EO86: 7.185568261 | EP86: 5.914238666 | EQ86: 4.45552799 | ER86: 3.072289308 | ES86: 1.939043918 | ET86: 1.120148973 | EU86: 0.5922792633 | EV86: 0.2866420315 | EW86: 0.1269742984 | EX86: 0.05148187714 | EY86: 0.01910537335 | EZ86: 0.006489620292 | FA86: 0.002017649147 | FB86: 0.0005741622202 | FC86: 0.0001495499183 | FD86: 3.565335067e-05 | FE86: 7.779955707e-06 | FF86: 1.55387651e-06 | FG86: 2.840654934e-07 | FH86: 4.753166904e-08 | FI86: 7.279645835e-09 | FJ86: 1.020469526e-09 | FK86: 1.309339991e-10 | FL86: 1.537685179e-11 | FM86: 1.652894091e-12 | FN86: 1.626242209e-13 | FO86: 1.464495474e-14 | FP86: 1.207128329e-15 | FQ86: 9.107128267e-17 | FR86: 6.288862042e-18 | FS86: 3.974891562e-19 | FT86: 0 | FU86: 0 | FV86: 0 | FW86: 0 | FX86: 0 | FY86: 0 | FZ86: 0 | GA86: 0 | GB86: 0 | GC86: 0 | GD86: 0 | GE86: 0 | GF86: 0 | GG86: 0 | GH86: 0 | GI86: 0 | GJ86: 0 | GK86: 0 | GL86: 0 | GM86: 0 | GN86: 0 | GO86: 0 | GP86: 0 | GQ86: 0 | GR86: 0 | GT86: 81 | GU86: 0.6880314079 | GV86: 15.68803141 | GW86: =INDEX($BW$6:$GR$261,$GT86,$BJ$14) -> 6.394214045e-05 | GX86: 1.633536527e-05
A87: 3 | B87: Benzofuran | C87: 1.545 | D87: 0.0832885365 | E87: 1.211009174 | F87: =IF(E87<>"",2*ABS(C88-C87)/(D88+D87),"") -> 1.297060887 | G87: 1.032 | H87: 0.2231072259 | I87: 3.461899723 | J87: 1.032 | L87: 0.3143462011 | N87: 1) Place the cursor at the | AE87: 16.8 | AF87: =IF('Macro input'!$F$19=1,GC!AG87,IF($K$29>0,IF($AE87<$I$29,$G$29,IF($AE87<$I$29+$J$29,$G$29+((H$29-G$29)*($AE87-I$29)/J$29),$H$29)),$G$29)) -> 268 | AG87: 268.05 | AH87: 0.255 | AI87: 0.85 | AJ87: 6.109304604 | AK87: 6 | AL87: 15 | AM87: 4.890695396 | AN87: 86 | AO87: 1.126176871e-217 | AP87: 4.913528792e-231 | AQ87: 2.298548305e-241 | AR87: 2.77065943e-257 | AS87: 1.046194729e-271 | AT87: 4.670550364e-305 | AU87: 0 | AV87: 0 | AW87: 0 | AX87: 0 | AY87: 0 | AZ87: 0 | BA87: 0 | BB87: 0 | BC87: 0 | BD87: 0 | BE87: 0 | BF87: 0 | BG87: 0 | BH87: 0 | BK87: 17 | BL87: 5.1 | BM87: 15.00897844 | BN87: 1.504953276e-24 | BO87: 0 | BP87: =FD$4*$N$32+$M$32 -> 15.00000075 | BU87: 8.1 | BW87: 2.148865005e-20 | BX87: 1.016436542e-21 | BY87: 4.391673809e-23 | BZ87: 1.733239387e-24 | CA87: 6.24835495e-26 | CB87: 2.057555242e-27 | CC87: 6.1889359e-29 | CD87: 1.70043147e-30 | CE87: 4.26757293e-32 | CF87: 9.783211406e-34 | CG87: 2.048616158e-35 | CH87: 3.918487068e-37 | CI87: 6.846284e-39 | CJ87: 1.092622331e-40 | CK87: 1.59280974e-42 | CL87: 2.12097934e-44 | CM87: 2.581653606e-46 | CN87: 2.039474291e-47 | CO87: 1.521577106e-45 | CP87: 1.206440653e-43 | CQ87: 8.737856947e-42 | CR87: 5.780728431e-40 | CS87: 3.493324046e-38 | CT87: 1.928296655e-36 | CU87: 9.722713562e-35 | CV87: 4.477955809e-33 | CW87: 1.883869367e-31 | CX87: 7.239364335e-30 | CY87: 2.541140935e-28 | CZ87: 8.14771331e-27 | DA87: 2.386279966e-25 | DB87: 6.383894771e-24 | DC87: 1.56001478e-22 | DD87: 3.482173251e-21 | DE87: 7.099875053e-20 | DF87: 1.322299109e-18 | DG87: 2.249507128e-17 | DH87: 3.495615938e-16 | DI87: 4.961793851e-15 | DJ87: 6.43327907e-14 | DK87: 7.619118608e-13 | DL87: 8.242439088e-12 | DM87: 8.144893822e-11 | DN87: 7.35180157e-10 | DO87: 6.061509566e-09 | DP87: 4.565059915e-08 | DQ87: 3.140442439e-07 | DR87: 1.973394267e-06 | DS87: 1.132701708e-05 | DT87: 5.93876195e-05 | DU87: 0.000284416605 | DV87: 0.00124420702 | DW87: 0.004971746947 | DX87: 0.01814696713 | DY87: 0.06050311828 | DZ87: 0.1842596037 | EA87: 0.5125794326 | EB87: 1.302479474 | EC87: 3.023147024 | ED87: 6.409531969 | EE87: 12.41286512 | EF87: 21.95818416 | EG87: 35.48129634 | EH87: 52.36983471 | EI87: 70.60599804 | EJ87: 86.95221673 | EK87: 97.81340756 | EL87: 100.5066478 | EM87: 94.33434891 | EN87: 80.87673179 | EO87: 63.33678269 | EP87: 45.30718432 | EQ87: 29.60443768 | ER87: 17.66953938 | ES87: 9.633238411 | ET87: 4.797313035 | EU87: 2.182239819 | EV87: 0.9067458215 | EW87: 0.3441496391 | EX87: 0.1193129937 | EY87: 0.03778390459 | EZ87: 0.0109296083 | FA87: 0.002887892536 | FB87: 0.0006970053755 | FC87: 0.000153663208 | FD87: 3.094441895e-05 | FE87: 5.692112013e-06 | FF87: 9.564080263e-07 | FG87: 1.467883724e-07 | FH87: 2.057873937e-08 | FI87: 2.635266537e-09 | FJ87: 3.082541957e-10 | FK87: 3.29360956e-11 | FL87: 3.214503488e-12 | FM87: 2.865723973e-13 | FN87: 2.333637962e-14 | FO87: 1.735846324e-15 | FP87: 1.179417957e-16 | FQ87: 7.31986154e-18 | FR87: 4.149699661e-19 | FS87: 2.148865005e-20 | FT87: 0 | FU87: 0 | FV87: 0 | FW87: 0 | FX87: 0 | FY87: 0 | FZ87: 0 | GA87: 0 | GB87: 0 | GC87: 0 | GD87: 0 | GE87: 0 | GF87: 0 | GG87: 0 | GH87: 0 | GI87: 0 | GJ87: 0 | GK87: 0 | GL87: 0 | GM87: 0 | GN87: 0 | GO87: 0 | GP87: 0 | GQ87: 0 | GR87: 0 | GT87: 82 | GU87: 8.387821858 | GV87: 23.38782186 | GW87: =INDEX($BW$6:$GR$261,$GT87,$BJ$14) -> 0.004971746947 | GX87: 0.001270137375
A88: 4 | B88: o-Cresol | C88: 1.66 | D88: 0.09403544444 | E88: 1.681818182 | F88: =IF(E88<>"",2*ABS(C89-C88)/(D89+D88),"") -> 3.806591733 | G88: 1.146 | H88: 0.2504643873 | I88: 2.770543754 | J88: 1.146 | L88: 0.4424527409 | N88: selected position | AE88: 17 | AF88: =IF('Macro input'!$F$19=1,GC!AG88,IF($K$29>0,IF($AE88<$I$29,$G$29,IF($AE88<$I$29+$J$29,$G$29+((H$29-G$29)*($AE88-I$29)/J$29),$H$29)),$G$29)) -> 270 | AG88: 270.05 | AH88: 0.258 | AI88: 0.86 | AJ88: 6.131025049 | AK88: 6 | AL88: 15 | AM88: 4.868974951 | AN88: 87 | AO88: 3.787089574e-210 | AP88: 2.836669199e-224 | AQ88: 1.875523429e-234 | AR88: 5.866860834e-251 | AS88: 2.091279711e-267 | AT88: 3.826615911e-302 | AU88: 0 | AV88: 0 | AW88: 0 | AX88: 0 | AY88: 0 | AZ88: 0 | BA88: 0 | BB88: 0 | BC88: 0 | BD88: 0 | BE88: 0 | BF88: 0 | BG88: 0 | BH88: 0 | BK88: 17.2 | BL88: 5.16 | BM88: 15.00922096 | BN88: 2.352696107e-25 | BO88: 0 | BP88: =FE$4*$N$32+$M$32 -> 15.00000017 | BU88: 8.2 | BW88: 4.345643988e-23 | BX88: 1.557844843e-24 | BY88: 5.079384255e-26 | BZ88: 1.506311343e-27 | CA88: 4.0628916e-29 | CB88: 9.967185358e-31 | CC88: 2.223958327e-32 | CD88: 4.51333496e-34 | CE88: 8.330772944e-36 | CF88: 1.398588138e-37 | CG88: 2.135557127e-39 | CH88: 2.965851195e-41 | CI88: 3.746315353e-43 | CJ88: 4.304038204e-45 | CK88: 4.497440833e-47 | CL88: 4.370631823e-49 | CM88: 1.096603037e-48 | CN88: 1.128344617e-46 | CO88: 1.059537703e-44 | CP88: 9.049154275e-43 | CQ88: 7.029369616e-41 | CR88: 4.96639866e-39 | CS88: 3.191417242e-37 | CT88: 1.865273012e-35 | CU88: 9.915578042e-34 | CV88: 4.794137416e-32 | CW88: 2.108238452e-30 | CX88: 8.432295018e-29 | CY88: 3.067528921e-27 | CZ88: 1.014958652e-25 | DA88: 3.054392501e-24 | DB88: 8.360228552e-23 | DC88: 2.081269245e-21 | DD88: 4.712541563e-20 | DE88: 9.70507579e-19 | DF88: 1.817856007e-17 | DG88: 3.096968862e-16 | DH88: 4.798781863e-15 | DI88: 6.763040519e-14 | DJ88: 8.669015526e-13 | DK88: 1.010681655e-11 | DL88: 1.07170633e-10 | DM88: 1.033603614e-09 | DN88: 9.066695981e-09 | DO88: 7.233706746e-08 | DP88: 5.2491569e-07 | DQ88: 3.464455766e-06 | DR88: 2.079683748e-05 | DS88: 0.0001135471886 | DT88: 0.0005638612951 | DU88: 0.002546742254 | DV88: 0.01046199514 | DW88: 0.03908956566 | DX88: 0.1328385072 | DY88: 0.4105858127 | DZ88: 1.154252176 | EA88: 2.951306237 | EB88: 6.863484545 | EC88: 14.51750069 | ED88: 27.92903056 | EE88: 48.86936298 | EF88: 77.77397665 | EG88: 112.5767595 | EH88: 148.2108481 | EI88: 177.4712679 | EJ88: 193.2826727 | EK88: 191.4584786 | EL88: 172.4936433 | EM88: 141.3475866 | EN88: 105.346597 | EO88: 71.41171039 | EP88: 44.02862976 | EQ88: 24.68980814 | ER88: 12.59264822 | ES88: 5.841619136 | ET88: 2.464712207 | EU88: 0.945836358 | EV88: 0.3301281844 | EW88: 0.1048011416 | EX88: 0.03025981258 | EY88: 0.007946634989 | EZ88: 0.001898091337 | FA88: 0.000412351672 | FB88: 8.147703632e-05 | FC88: 1.464264379e-05 | FD88: 2.393429186e-06 | FE88: 3.558266552e-07 | FF88: 4.811419064e-08 | FG88: 5.917315175e-09 | FH88: 6.619009885e-10 | FI88: 6.7340784e-11 | FJ88: 6.231320907e-12 | FK88: 5.244437059e-13 | FL88: 4.014527603e-14 | FM88: 2.795032293e-15 | FN88: 1.769929721e-16 | FO88: 1.019393888e-17 | FP88: 5.340044042e-19 | FQ88: 2.544277418e-20 | FR88: 1.102556613e-21 | FS88: 4.345643988e-23 | FT88: 0 | FU88: 0 | FV88: 0 | FW88: 0 | FX88: 0 | FY88: 0 | FZ88: 0 | GA88: 0 | GB88: 0 | GC88: 0 | GD88: 0 | GE88: 0 | GF88: 0 | GG88: 0 | GH88: 0 | GI88: 0 | GJ88: 0 | GK88: 0 | GL88: 0 | GM88: 0 | GN88: 0 | GO88: 0 | GP88: 0 | GQ88: 0 | GR88: 0 | GT88: 83 | GU88: 15.85293502 | GV88: 30.85293502 | GW88: =INDEX($BW$6:$GR$261,$GT88,$BJ$14) -> 0.03908956566 | GX88: 0.009986252084
A89: 5 | B89: 3,5-Dimethylphenol | C89: 2.11 | D89: 0.1423965302 | E89: 1.747747748 | F89: 4.543030396 | G89: 1.47 | H89: 0.3142977637 | I89: 1.366489408 | J89: 1.47 | L89: 0.8264307449 | N89: 2) Press the left mouse button | AE89: 17.2 | AF89: =IF('Macro input'!$F$19=1,GC!AG89,IF($K$29>0,IF($AE89<$I$29,$G$29,IF($AE89<$I$29+$J$29,$G$29+((H$29-G$29)*($AE89-I$29)/J$29),$H$29)),$G$29)) -> 272 | AG89: 272.05 | AH89: 0.261 | AI89: 0.87 | AJ89: 6.155110617 | AK89: 6 | AL89: 15 | AM89: 4.844889383 | AN89: 88 | AO89: 9.39630706e-203 | AP89: 1.300333547e-217 | AQ89: 1.215128588e-227 | AR89: 1.036684917e-244 | AS89: 3.863157376e-263 | AT89: 3.035905998e-299 | AU89: 0 | AV89: 0 | AW89: 0 | AX89: 0 | AY89: 0 | AZ89: 0 | BA89: 0 | BB89: 0 | BC89: 0 | BD89: 0 | BE89: 0 | BF89: 0 | BG89: 0 | BH89: 0 | BK89: 17.4 | BL89: 5.22 | BM89: 15.00946934 | BN89: 3.571379111e-26 | BO89: 0 | BP89: =FF$4*$N$32+$M$32 -> 15.00000008 | BU89: 8.3 | BW89: 2.863898528e-26 | BX89: 8.27880873e-28 | BY89: 2.171770693e-29 | BZ89: 5.170064769e-31 | CA89: 1.116898984e-32 | CB89: 2.189614724e-34 | CC89: 3.895447988e-36 | CD89: 6.28902052e-38 | CE89: 9.213921546e-40 | CF89: 1.225016405e-41 | CG89: 1.478002593e-43 | CH89: 1.61824541e-45 | CI89: 1.607864586e-47 | CJ89: 1.449829173e-49 | CK89: 2.372451386e-51 | CL89: 1.449829173e-49 | CM89: 1.607864586e-47 | CN89: 1.61824541e-45 | CO89: 1.478002593e-43 | CP89: 1.225016405e-41 | CQ89: 9.213921546e-40 | CR89: 6.28902052e-38 | CS89: 3.895447988e-36 | CT89: 2.189614724e-34 | CU89: 1.116898984e-32 | CV89: 5.170064769e-31 | CW89: 2.171770693e-29 | CX89: 8.27880873e-28 | CY89: 2.863898528e-26 | CZ89: 8.990488712e-25 | DA89: 2.561208122e-23 | DB89: 6.621285849e-22 | DC89: 1.553372816e-20 | DD89: 3.307081977e-19 | DE89: 6.389253461e-18 | DF89: 1.120188655e-16 | DG89: 1.782247931e-15 | DH89: 2.573243978e-14 | DI89: 3.371550799e-13 | DJ89: 4.008799601e-12 | DK89: 4.325485714e-11 | DL89: 4.235369589e-10 | DM89: 3.763428266e-09 | DN89: 3.034672768e-08 | DO89: 2.220628907e-07 | DP89: 1.474606035e-06 | DQ89: 8.886114839e-06 | DR89: 4.85941212e-05 | DS89: 0.0002411523176 | DT89: 0.001086013051 | DU89: 0.004438278441 | DV89: 0.01646000421 | DW89: 0.05539636083 | DX89: 0.1691875594 | DY89: 0.4689121784 | DZ89: 1.179371138 | EA89: 2.691816029 | EB89: 5.575401545 | EC89: 10.47955458 | ED89: 17.87497294 | EE89: 27.66838809 | EF89: 38.86495963 | EG89: 49.54142331 | EH89: 57.30791853 | EI89: 60.15845673 | EJ89: 57.30791853 | EK89: 49.54142331 | EL89: 38.86495963 | EM89: 27.66838809 | EN89: 17.87497294 | EO89: 10.47955458 | EP89: 5.575401545 | EQ89: 2.691816029 | ER89: 1.179371138 | ES89: 0.4689121784 | ET89: 0.1691875594 | EU89: 0.05539636083 | EV89: 0.01646000421 | EW89: 0.004438278441 | EX89: 0.001086013051 | EY89: 0.0002411523176 | EZ89: 4.85941212e-05 | FA89: 8.886114839e-06 | FB89: 1.474606035e-06 | FC89: 2.220628907e-07 | FD89: 3.034672768e-08 | FE89: 3.763428266e-09 | FF89: 4.235369589e-10 | FG89: 4.325485714e-11 | FH89: 4.008799601e-12 | FI89: 3.371550799e-13 | FJ89: 2.573243978e-14 | FK89: 1.782247931e-15 | FL89: 1.120188655e-16 | FM89: 6.389253461e-18 | FN89: 3.307081977e-19 | FO89: 1.553372816e-20 | FP89: 6.621285849e-22 | FQ89: 2.561208122e-23 | FR89: 8.990488712e-25 | FS89: 2.863898528e-26 | FT89: 0 | FU89: 0 | FV89: 0 | FW89: 0 | FX89: 0 | FY89: 0 | FZ89: 0 | GA89: 0 | GB89: 0 | GC89: 0 | GD89: 0 | GE89: 0 | GF89: 0 | GG89: 0 | GH89: 0 | GI89: 0 | GJ89: 0 | GK89: 0 | GL89: 0 | GM89: 0 | GN89: 0 | GO89: 0 | GP89: 0 | GQ89: 0 | GR89: 0 | GT89: 84 | GU89: 4.839576298 | GV89: 19.8395763 | GW89: =INDEX($BW$6:$GR$261,$GT89,$BJ$14) -> 0.05539636083 | GX89: 0.01415216604
A90: 6 | B90: Quinoline | C90: 2.94 | D90: 0.2229983397 | E90: 1.275773196 | F90: 2.164424382 | G90: 2.436 | H90: 0.5057978929 | I90: 0.7017837316 | J90: 2.436 | L90: 1.37868931 | N90: or | AE90: 17.4 | AF90: =IF('Macro input'!$F$19=1,GC!AG90,IF($K$29>0,IF($AE90<$I$29,$G$29,IF($AE90<$I$29+$J$29,$G$29+((H$29-G$29)*($AE90-I$29)/J$29),$H$29)),$G$29)) -> 274 | AG90: 274.05 | AH90: 0.264 | AI90: 0.88 | AJ90: 6.181342684 | AK90: 6 | AL90: 15 | AM90: 4.818657316 | AN90: 89 | AO90: 1.720130804e-195 | AP90: =IF($C$86>0,$B$7*NORMDIST($AI90,$C$86,$D$86/4,FALSE),0) -> 4.732947934e-211 | AQ90: 6.251048511e-221 | AR90: 1.528643189e-238 | AS90: 6.594826249e-259 | AT90: 2.332321424e-296 | AU90: 0 | AV90: 0 | AW90: 0 | AX90: 0 | AY90: 0 | AZ90: 0 | BA90: 0 | BB90: 0 | BC90: 0 | BD90: 0 | BE90: 0 | BF90: 0 | BG90: 0 | BH90: 0 | BK90: 17.6 | BL90: 5.28 | BM90: 15.00972369 | BN90: 5.264212079e-27 | BO90: 0 | BP90: =FG$4*$N$32+$M$32 -> 15.00000015 | BU90: 8.4 | BW90: 4.794545446e-31 | BX90: 1.020233948e-32 | BY90: 1.960731095e-34 | BZ90: 3.403315696e-36 | CA90: 5.335220483e-38 | CB90: 7.553851477e-40 | CC90: 9.659406566e-42 | CD90: 1.115574003e-43 | CE90: 1.163622898e-45 | CF90: 1.096205729e-47 | CG90: 9.326910527e-50 | CH90: 7.167199637e-52 | CI90: 4.978228399e-54 | CJ90: 6.932323789e-55 | CK90: 9.935949896e-53 | CL90: 1.346761118e-50 | CM90: 1.648687907e-48 | CN90: 1.822855614e-46 | CO90: 1.820254119e-44 | CP90: 1.641639183e-42 | CQ90: 1.337178334e-40 | CR90: 9.837095498e-39 | CS90: 6.535974943e-37 | CT90: 3.922110312e-35 | CU90: 2.125666679e-33 | CV90: 1.040486524e-31 | CW90: 4.599850211e-30 | CX90: 1.836609617e-28 | CY90: 6.623018272e-27 | CZ90: 2.157053849e-25 | DA90: 6.345004808e-24 | DB90: 1.685655643e-22 | DC90: 4.044563857e-21 | DD90: 8.764768892e-20 | DE90: 1.715438593e-18 | DF90: 3.032325502e-17 | DG90: 4.84108151e-16 | DH90: 6.980313149e-15 | DI90: 9.090198194e-14 | DJ90: 1.069147766e-12 | DK90: 1.135711565e-11 | DL90: 1.089592985e-10 | DM90: 9.441184463e-10 | DN90: 7.3884715e-09 | DO90: 5.222141754e-08 | DP90: 3.333562832e-07 | DQ90: 1.921916736e-06 | DR90: 1.000751908e-05 | DS90: 4.70634998e-05 | DT90: 0.000199897769 | DU90: 0.0007668273767 | DV90: 0.002656765397 | DW90: 0.008313324592 | DX90: 0.02349428345 | DY90: 0.0599674532 | DZ90: 0.1382403869 | EA90: 0.2878194976 | EB90: 0.5412169827 | EC90: 0.9191545797 | ED90: 1.409845848 | EE90: 1.953082725 | EF90: 2.443630755 | EG90: 2.761318235 | EH90: 2.818144605 | EI90: 2.597622406 | EJ90: 2.162492969 | EK90: 1.625920554 | EL90: 1.10410372 | EM90: 0.6771523024 | EN90: 0.3750842088 | EO90: 0.1876450604 | EP90: 0.08478351679 | EQ90: 0.03459805241 | ER90: 0.01275139832 | ES90: 0.004244532924 | ET90: 0.001276050717 | EU90: 0.0003464749972 | EV90: 8.496533978e-05 | EW90: 1.881818058e-05 | EX90: 3.764258154e-06 | EY90: 6.800597986e-07 | EZ90: 1.109636515e-07 | FA90: 1.635235519e-08 | FB90: 2.176435588e-09 | FC90: 2.616238064e-10 | FD90: 2.840368163e-11 | FE90: 2.785081746e-12 | FF90: 2.466420903e-13 | FG90: 1.972706032e-14 | FH90: 1.425028294e-15 | FI90: 9.297164963e-17 | FJ90: 5.478271112e-18 | FK90: 2.915428802e-19 | FL90: 1.401287647e-20 | FM90: 6.083003716e-22 | FN90: 2.384925431e-23 | FO90: 8.444957383e-25 | FP90: 2.700760384e-26 | FQ90: 7.800825832e-28 | FR90: 2.034984207e-29 | FS90: 4.794545446e-31 | FT90: 0 | FU90: 0 | FV90: 0 | FW90: 0 | FX90: 0 | FY90: 0 | FZ90: 0 | GA90: 0 | GB90: 0 | GC90: 0 | GD90: 0 | GE90: 0 | GF90: 0 | GG90: 0 | GH90: 0 | GI90: 0 | GJ90: 0 | GK90: 0 | GL90: 0 | GM90: 0 | GN90: 0 | GO90: 0 | GP90: 0 | GQ90: 0 | GR90: 0 | GT90: 85 | GU90: 0.2223604116 | GV90: 15.22236041 | GW90: =INDEX($BW$6:$GR$261,$GT90,$BJ$14) -> 0.008313324592 | GX90: 0.002123813699
A91: 7 | B91: Indole | C91: 3.475 | D91: 0.2713594254 | E91: 1.337373737 | F91: 2.679198856 | G91: 3.108 | H91: 0.624345592 | I91: 0.42132939 | J91: 3.108 | L91: 1.998115544 | N91: 3) Press Set coordinates… | AE91: 17.6 | AF91: =IF('Macro input'!$F$19=1,GC!AG91,IF($K$29>0,IF($AE91<$I$29,$G$29,IF($AE91<$I$29+$J$29,$G$29+((H$29-G$29)*($AE91-I$29)/J$29),$H$29)),$G$29)) -> 276 | AG91: 276.05 | AH91: 0.267 | AI91: 0.89 | AJ91: 6.209377433 | AK91: 6 | AL91: 15 | AM91: 4.790622567 | AN91: 90 | AO91: 2.323370098e-188 | AP91: 1.367853459e-204 | AQ91: 2.553373732e-214 | AR91: 1.880978465e-232 | AS91: 1.040387188e-254 | AT91: 1.735062474e-293 | AU91: 0 | AV91: 0 | AW91: 0 | AX91: 0 | AY91: 0 | AZ91: 0 | BA91: 0 | BB91: 0 | BC91: 0 | BD91: 0 | BE91: 0 | BF91: 0 | BG91: 0 | BH91: 0 | BK91: 17.8 | BL91: 5.34 | BM91: 15.00998414 | BN91: 7.534563608e-28 | BO91: 0 | BP91: =FH$4*$N$32+$M$32 -> 15.00000039 | BU91: 8.5 | BW91: 3.048123634e-36 | BX91: 5.149432155e-38 | BY91: 7.837172782e-40 | BZ91: 1.074565322e-41 | CA91: 1.327331924e-43 | CB91: 1.477064896e-45 | CC91: 1.480788158e-47 | CD91: 1.33739473e-49 | CE91: 1.088177147e-51 | CF91: 7.976509979e-54 | CG91: 5.267441725e-56 | CH91: 3.181908896e-58 | CI91: 8.823098769e-58 | CJ91: 1.449667412e-55 | CK91: 2.149890719e-53 | CL91: 2.872352503e-51 | CM91: 3.45726291e-49 | CN91: 3.748870134e-47 | CO91: 3.662197012e-45 | CP91: 3.222970501e-43 | CQ91: 2.555314009e-41 | CR91: 1.825179322e-39 | CS91: 1.174465118e-37 | CT91: 6.80844642e-36 | CU91: 3.555733835e-34 | CV91: 1.672953166e-32 | CW91: 7.09106785e-31 | CX91: 2.707776515e-29 | CY91: 9.315095515e-28 | CZ91: 2.886922506e-26 | DA91: 8.060393773e-25 | DB91: 2.027452603e-23 | DC91: 4.594290793e-22 | DD91: 9.379065502e-21 | DE91: 1.724939933e-19 | DF91: 2.857996566e-18 | DG91: 4.266018629e-17 | DH91: 5.736633586e-16 | DI91: 6.949679773e-15 | DJ91: 7.584829012e-14 | DK91: 7.45761767e-13 | DL91: 6.605835479e-12 | DM91: 5.271433237e-11 | DN91: 3.789683899e-10 | DO91: 2.454429609e-09 | DP91: 1.4320939e-08 | DQ91: 7.527759352e-08 | DR91: 3.564784477e-07 | DS91: 1.520807157e-06 | DT91: 5.84505142e-06 | DU91: 2.023838453e-05 | DV91: 6.313012789e-05 | DW91: 0.0001774070252 | DX91: 0.0004491364242 | DY91: 0.001024375208 | DZ91: 0.002104811267 | EA91: 0.003896194055 | EB91: 0.006497425635 | EC91: 0.009761473386 | ED91: 0.01321182311 | EE91: 0.01610955132 | EF91: 0.01769609568 | EG91: 0.01751236457 | EH91: 0.01561296695 | EI91: 0.01254005408 | EJ91: 0.009073747665 | EK91: 0.005914898608 | EL91: 0.003473611388 | EM91: 0.001837758644 | EN91: 0.0008759292664 | EO91: 0.0003761169614 | EP91: 0.0001454956869 | EQ91: 5.070498265e-05 | ER91: 1.591931866e-05 | ES91: 4.502685699e-06 | ET91: 1.14733993e-06 | EU91: 2.633818855e-07 | EV91: 5.446945314e-08 | EW91: 1.014830349e-08 | EX91: 1.703362951e-09 | EY91: 2.575693997e-10 | EZ91: 3.508768e-11 | FA91: 4.306142128e-12 | FB91: 4.760969345e-13 | FC91: 4.742154825e-14 | FD91: 4.255292242e-15 | FE91: 3.439983607e-16 | FF91: 2.505282317e-17 | FG91: 1.643729282e-18 | FH91: 9.715770093e-20 | FI91: 5.173655248e-21 | FJ91: 2.481938756e-22 | FK91: 1.072649796e-23 | FL91: 4.176362301e-25 | FM91: 1.464912544e-26 | FN91: 4.62912116e-28 | FO91: 1.317827957e-29 | FP91: 3.379809356e-31 | FQ91: 7.8090645e-33 | FR91: 1.62547066e-34 | FS91: 3.048123634e-36 | FT91: 0 | FU91: 0 | FV91: 0 | FW91: 0 | FX91: 0 | FY91: 0 | FZ91: 0 | GA91: 0 | GB91: 0 | GC91: 0 | GD91: 0 | GE91: 0 | GF91: 0 | GG91: 0 | GH91: 0 | GI91: 0 | GJ91: 0 | GK91: 0 | GL91: 0 | GM91: 0 | GN91: 0 | GO91: 0 | GP91: 0 | GQ91: 0 | GR91: 0 | GT91: 86 | GU91: 0.001384550246 | GV91: 15.00138455 | GW91: =INDEX($BW$6:$GR$261,$GT91,$BJ$14) -> 0.0001774070252 | GX91: 4.532235765e-05
A92: 8 | B92: Tetradecane | C92: 4.31 | D92: 0.3519612349 | E92: 1.842900302 | F92: 8.511788729 | G92: 1.41 | H92: 0.3051787099 | I92: 0.8815598413 | J92: 1.41 | L92: 2.61032487 | N92: to select Analyte # coord. | AE92: 17.8 | AF92: =IF('Macro input'!$F$19=1,GC!AG92,IF($K$29>0,IF($AE92<$I$29,$G$29,IF($AE92<$I$29+$J$29,$G$29+((H$29-G$29)*($AE92-I$29)/J$29),$H$29)),$G$29)) -> 278 | AG92: 278.05 | AH92: 0.27 | AI92: 0.9 | AJ92: 6.238743206 | AK92: 6 | AL92: 15 | AM92: 4.761256794 | AN92: 91 | AO92: 2.315410335e-181 | AP92: 3.138905964e-198 | AQ92: 8.281457725e-208 | AR92: 1.931434007e-226 | AS92: 1.51676156e-250 | AT92: 1.249880424e-290 | AU92: 0 | AV92: 0 | AW92: 0 | AX92: 0 | AY92: 0 | AZ92: 0 | BA92: 0 | BB92: 0 | BC92: 0 | BD92: 0 | BE92: 0 | BF92: 0 | BG92: 0 | BH92: 0 | BK92: 18 | BL92: 5.4 | BM92: 15.01025081 | BN92: 1.047152979e-28 | BO92: 0 | BP92: =FI$4*$N$32+$M$32 -> 15.00000098 | BU92: 8.6 | BW92: 0 | BX92: 0 | BY92: 0 | BZ92: 0 | CA92: 0 | CB92: 0 | CC92: 0 | CD92: 0 | CE92: 0 | CF92: 0 | CG92: 0 | CH92: 0 | CI92: 0 | CJ92: 0 | CK92: 0 | CL92: 0 | CM92: 0 | CN92: 0 | CO92: 0 | CP92: 0 | CQ92: 0 | CR92: 0 | CS92: 0 | CT92: 0 | CU92: 0 | CV92: 0 | CW92: 0 | CX92: 0 | CY92: 0 | CZ92: 0 | DA92: 0 | DB92: 0 | DC92: 0 | DD92: 0 | DE92: 0 | DF92: 0 | DG92: 0 | DH92: 0 | DI92: 0 | DJ92: 0 | DK92: 0 | DL92: 0 | DM92: 0 | DN92: 0 | DO92: 0 | DP92: 0 | DQ92: 0 | DR92: 0 | DS92: 0 | DT92: 0 | DU92: 0 | DV92: 0 | DW92: 0 | DX92: 0 | DY92: 0 | DZ92: 0 | EA92: 0 | EB92: 0 | EC92: 0 | ED92: 0 | EE92: 0 | EF92: 0 | EG92: 0 | EH92: 0 | EI92: 0 | EJ92: 0 | EK92: 0 | EL92: 0 | EM92: 0 | EN92: 0 | EO92: 0 | EP92: 0 | EQ92: 0 | ER92: 0 | ES92: 0 | ET92: 0 | EU92: 0 | EV92: 0 | EW92: 0 | EX92: 0 | EY92: 0 | EZ92: 0 | FA92: 0 | FB92: 0 | FC92: 0 | FD92: 0 | FE92: 0 | FF92: 0 | FG92: 0 | FH92: 0 | FI92: 0 | FJ92: 0 | FK92: 0 | FL92: 0 | FM92: 0 | FN92: 0 | FO92: 0 | FP92: 0 | FQ92: 0 | FR92: 0 | FS92: 0 | FT92: 0 | FU92: 0 | FV92: 0 | FW92: 0 | FX92: 0 | FY92: 0 | FZ92: 0 | GA92: 0 | GB92: 0 | GC92: 0 | GD92: 0 | GE92: 0 | GF92: 0 | GG92: 0 | GH92: 0 | GI92: 0 | GJ92: 0 | GK92: 0 | GL92: 0 | GM92: 0 | GN92: 0 | GO92: 0 | GP92: 0 | GQ92: 0 | GR92: 0 | GT92: 87 | GU92: 0 | GV92: 15 | GW92: =INDEX($BW$6:$GR$261,$GT92,$BJ$14) -> 0 | GX92: 0
A93: 9 | B93: Dibenzofuran | C93: 7.1 | D93: 0.3036001492 | E93: 1.168852459 | F93: 3.582860589 | G93: 3.636 | H93: 0.7246551835 | I93: 0.2996557382 | J93: 3.636 | L93: =IF(AND(C93<>"",C93<999),C70-C93,"") -> 2.34934786 | AE93: 18 | AF93: =IF('Macro input'!$F$19=1,GC!AG93,IF($K$29>0,IF($AE93<$I$29,$G$29,IF($AE93<$I$29+$J$29,$G$29+((H$29-G$29)*($AE93-I$29)/J$29),$H$29)),$G$29)) -> 280 | AG93: 280.05 | AH93: 0.273 | AI93: 0.91 | AJ93: 6.268845945 | AK93: 6 | AL93: 15 | AM93: 4.731154055 | AN93: 92 | AO93: 1.702512029e-174 | AP93: 5.719366452e-192 | AQ93: 2.13270152e-201 | AR93: 1.654985817e-220 | AS93: 2.043479628e-246 | AT93: 8.718634054e-288 | AU93: 0 | AV93: 0 | AW93: 0 | AX93: 0 | AY93: 0 | AZ93: 0 | BA93: 0 | BB93: 0 | BC93: 0 | BD93: 0 | BE93: 0 | BF93: 0 | BG93: 0 | BH93: 0 | BK93: 18.2 | BL93: 5.46 | BM93: 15.01052383 | BN93: 1.413153911e-29 | BO93: 0 | BP93: =FJ$4*$N$32+$M$32 -> 15.00000242 | BU93: 8.7 | BW93: 0 | BX93: 0 | BY93: 0 | BZ93: 0 | CA93: 0 | CB93: 0 | CC93: 0 | CD93: 0 | CE93: 0 | CF93: 0 | CG93: 0 | CH93: 0 | CI93: 0 | CJ93: 0 | CK93: 0 | CL93: 0 | CM93: 0 | CN93: 0 | CO93: 0 | CP93: 0 | CQ93: 0 | CR93: 0 | CS93: 0 | CT93: 0 | CU93: 0 | CV93: 0 | CW93: 0 | CX93: 0 | CY93: 0 | CZ93: 0 | DA93: 0 | DB93: 0 | DC93: 0 | DD93: 0 | DE93: 0 | DF93: 0 | DG93: 0 | DH93: 0 | DI93: 0 | DJ93: 0 | DK93: 0 | DL93: 0 | DM93: 0 | DN93: 0 | DO93: 0 | DP93: 0 | DQ93: 0 | DR93: 0 | DS93: 0 | DT93: 0 | DU93: 0 | DV93: 0 | DW93: 0 | DX93: 0 | DY93: 0 | DZ93: 0 | EA93: 0 | EB93: 0 | EC93: 0 | ED93: 0 | EE93: 0 | EF93: 0 | EG93: 0 | EH93: 0 | EI93: 0 | EJ93: 0 | EK93: 0 | EL93: 0 | EM93: 0 | EN93: 0 | EO93: 0 | EP93: 0 | EQ93: 0 | ER93: 0 | ES93: 0 | ET93: 0 | EU93: 0 | EV93: 0 | EW93: 0 | EX93: 0 | EY93: 0 | EZ93: 0 | FA93: 0 | FB93: 0 | FC93: 0 | FD93: 0 | FE93: 0 | FF93: 0 | FG93: 0 | FH93: 0 | FI93: 0 | FJ93: 0 | FK93: 0 | FL93: 0 | FM93: 0 | FN93: 0 | FO93: 0 | FP93: 0 | FQ93: 0 | FR93: 0 | FS93: 0 | FT93: 0 | FU93: 0 | FV93: 0 | FW93: 0 | FX93: 0 | FY93: 0 | FZ93: 0 | GA93: 0 | GB93: 0 | GC93: 0 | GD93: 0 | GE93: 0 | GF93: 0 | GG93: 0 | GH93: 0 | GI93: 0 | GJ93: 0 | GK93: 0 | GL93: 0 | GM93: 0 | GN93: 0 | GO93: 0 | GP93: 0 | GQ93: 0 | GR93: 0 | GT93: 88 | GU93: 0 | GV93: 15 | GW93: =INDEX($BW$6:$GR$261,$GT93,$BJ$14) -> 0 | GX93: 0
A94: 10 | B94: Diphenylamine | C94: 8.13 | D94: 0.2713594254 | E94: 1.311360449 | F94: 8.431471214 | G94: 3.924 | H94: 0.7793695062 | I94: 0.3460625765 | J94: 3.924 | L94: 2.301385972 | N94: 4) To move the cursor: | AE94: 18.2 | AF94: =IF('Macro input'!$F$19=1,GC!AG94,IF($K$29>0,IF($AE94<$I$29,$G$29,IF($AE94<$I$29+$J$29,$G$29+((H$29-G$29)*($AE94-I$29)/J$29),$H$29)),$G$29)) -> 282 | AG94: 282.05 | AH94: 0.276 | AI94: 0.92 | AJ94: 6.29898354 | AK94: 6 | AL94: 15 | AM94: 4.70101646 | AN94: 93 | AO94: 9.2364495e-168 | AP94: 8.274627039e-186 | AQ94: 4.360981594e-195 | AR94: 1.183387646e-214 | AS94: 2.544216071e-242 | AT94: 5.88918323e-285 | AU94: 5.733021564e-308 | AV94: 0 | AW94: 0 | AX94: 0 | AY94: 0 | AZ94: 0 | BA94: 0 | BB94: 0 | BC94: 0 | BD94: 0 | BE94: 0 | BF94: 0 | BG94: 0 | BH94: 0 | BK94: 18.4 | BL94: 5.52 | BM94: 15.01080332 | BN94: 1.851808614e-30 | BO94: 0 | BP94: =FK$4*$N$32+$M$32 -> 15.0000058 | BU94: 8.8 | BW94: 0 | BX94: 0 | BY94: 0 | BZ94: 0 | CA94: 0 | CB94: 0 | CC94: 0 | CD94: 0 | CE94: 0 | CF94: 0 | CG94: 0 | CH94: 0 | CI94: 0 | CJ94: 0 | CK94: 0 | CL94: 0 | CM94: 0 | CN94: 0 | CO94: 0 | CP94: 0 | CQ94: 0 | CR94: 0 | CS94: 0 | CT94: 0 | CU94: 0 | CV94: 0 | CW94: 0 | CX94: 0 | CY94: 0 | CZ94: 0 | DA94: 0 | DB94: 0 | DC94: 0 | DD94: 0 | DE94: 0 | DF94: 0 | DG94: 0 | DH94: 0 | DI94: 0 | DJ94: 0 | DK94: 0 | DL94: 0 | DM94: 0 | DN94: 0 | DO94: 0 | DP94: 0 | DQ94: 0 | DR94: 0 | DS94: 0 | DT94: 0 | DU94: 0 | DV94: 0 | DW94: 0 | DX94: 0 | DY94: 0 | DZ94: 0 | EA94: 0 | EB94: 0 | EC94: 0 | ED94: 0 | EE94: 0 | EF94: 0 | EG94: 0 | EH94: 0 | EI94: 0 | EJ94: 0 | EK94: 0 | EL94: 0 | EM94: 0 | EN94: 0 | EO94: 0 | EP94: 0 | EQ94: 0 | ER94: 0 | ES94: 0 | ET94: 0 | EU94: 0 | EV94: 0 | EW94: 0 | EX94: 0 | EY94: 0 | EZ94: 0 | FA94: 0 | FB94: 0 | FC94: 0 | FD94: 0 | FE94: 0 | FF94: 0 | FG94: 0 | FH94: 0 | FI94: 0 | FJ94: 0 | FK94: 0 | FL94: 0 | FM94: 0 | FN94: 0 | FO94: 0 | FP94: 0 | FQ94: 0 | FR94: 0 | FS94: 0 | FT94: 0 | FU94: 0 | FV94: 0 | FW94: 0 | FX94: 0 | FY94: 0 | FZ94: 0 | GA94: 0 | GB94: 0 | GC94: 0 | GD94: 0 | GE94: 0 | GF94: 0 | GG94: 0 | GH94: 0 | GI94: 0 | GJ94: 0 | GK94: 0 | GL94: 0 | GM94: 0 | GN94: 0 | GO94: 0 | GP94: 0 | GQ94: 0 | GR94: 0 | GT94: 89 | GU94: 0 | GV94: 15 | GW94: =INDEX($BW$6:$GR$261,$GT94,$BJ$14) -> 0 | GX94: 0
A95: 11 | B95: Carbazole | C95: 10.35 | D95: 0.2552390635 | G95: 1.344 | H95: 1.399465163 | I95: 0.06387492539 | J95: 7.344 | L95: 2.09410027 | N95: SHIFT + Arrow keys | AE95: 18.4 | AF95: =IF('Macro input'!$F$19=1,GC!AG95,IF($K$29>0,IF($AE95<$I$29,$G$29,IF($AE95<$I$29+$J$29,$G$29+((H$29-G$29)*($AE95-I$29)/J$29),$H$29)),$G$29)) -> 284 | AG95: 284.05 | AH95: 0.279 | AI95: 0.93 | AJ95: 6.328369179 | AK95: 6 | AL95: 15 | AM95: 4.671630821 | AN95: 94 | AO95: 3.697196905e-161 | AP95: 9.505606205e-180 | AQ95: 7.080587842e-189 | AR95: 7.061193912e-209 | AS95: 2.92730754e-238 | AT95: 3.85201809e-282 | AU95: 1.461203225e-305 | AV95: 0 | AW95: 0 | AX95: 0 | AY95: 0 | AZ95: 0 | BA95: 0 | BB95: 0 | BC95: 0 | BD95: 0 | BE95: 0 | BF95: 0 | BG95: 0 | BH95: 0 | BK95: 18.6 | BL95: 5.58 | BM95: 15.01108943 | BN95: 2.356297042e-31 | BO95: 0 | BP95: =FL$4*$N$32+$M$32 -> 15.00001348 | BU95: 8.9 | BW95: 0 | BX95: 0 | BY95: 0 | BZ95: 0 | CA95: 0 | CB95: 0 | CC95: 0 | CD95: 0 | CE95: 0 | CF95: 0 | CG95: 0 | CH95: 0 | CI95: 0 | CJ95: 0 | CK95: 0 | CL95: 0 | CM95: 0 | CN95: 0 | CO95: 0 | CP95: 0 | CQ95: 0 | CR95: 0 | CS95: 0 | CT95: 0 | CU95: 0 | CV95: 0 | CW95: 0 | CX95: 0 | CY95: 0 | CZ95: 0 | DA95: 0 | DB95: 0 | DC95: 0 | DD95: 0 | DE95: 0 | DF95: 0 | DG95: 0 | DH95: 0 | DI95: 0 | DJ95: 0 | DK95: 0 | DL95: 0 | DM95: 0 | DN95: 0 | DO95: 0 | DP95: 0 | DQ95: 0 | DR95: 0 | DS95: 0 | DT95: 0 | DU95: 0 | DV95: 0 | DW95: 0 | DX95: 0 | DY95: 0 | DZ95: 0 | EA95: 0 | EB95: 0 | EC95: 0 | ED95: 0 | EE95: 0 | EF95: 0 | EG95: 0 | EH95: 0 | EI95: 0 | EJ95: 0 | EK95: 0 | EL95: 0 | EM95: 0 | EN95: 0 | EO95: 0 | EP95: 0 | EQ95: 0 | ER95: 0 | ES95: 0 | ET95: 0 | EU95: 0 | EV95: 0 | EW95: 0 | EX95: 0 | EY95: 0 | EZ95: 0 | FA95: 0 | FB95: 0 | FC95: 0 | FD95: 0 | FE95: 0 | FF95: 0 | FG95: 0 | FH95: 0 | FI95: 0 | FJ95: 0 | FK95: 0 | FL95: 0 | FM95: 0 | FN95: 0 | FO95: 0 | FP95: 0 | FQ95: 0 | FR95: 0 | FS95: 0 | FT95: 0 | FU95: 0 | FV95: 0 | FW95: 0 | FX95: 0 | FY95: 0 | FZ95: 0 | GA95: 0 | GB95: 0 | GC95: 0 | GD95: 0 | GE95: 0 | GF95: 0 | GG95: 0 | GH95: 0 | GI95: 0 | GJ95: 0 | GK95: 0 | GL95: 0 | GM95: 0 | GN95: 0 | GO95: 0 | GP95: 0 | GQ95: 0 | GR95: 0 | GT95: 90 | GU95: 0 | GV95: 15 | GW95: =INDEX($BW$6:$GR$261,$GT95,$BJ$14) -> 0 | GX95: 0
A96: 12 | AE96: 18.6 | AF96: =IF('Macro input'!$F$19=1,GC!AG96,IF($K$29>0,IF($AE96<$I$29,$G$29,IF($AE96<$I$29+$J$29,$G$29+((H$29-G$29)*($AE96-I$29)/J$29),$H$29)),$G$29)) -> 286 | AG96: 286.05 | AH96: 0.282 | AI96: 0.94 | AJ96: 6.356163011 | AK96: 6 | AL96: 15 | AM96: 4.643836989 | AN96: 95 | AO96: 1.091924853e-154 | AP96: 8.670459125e-174 | AQ96: 9.128202429e-183 | AR96: 3.515989727e-203 | AS96: 3.112528893e-234 | AT96: 2.43976616e-279 | AU96: 3.644190674e-303 | AV96: 0 | AW96: 0 | AX96: 0 | AY96: 0 | AZ96: 0 | BA96: 0 | BB96: 0 | BC96: 0 | BD96: 0 | BE96: 0 | BF96: 0 | BG96: 0 | BH96: 0 | BK96: 18.8 | BL96: 5.64 | BM96: 15.01138227 | BN96: 2.911328951e-32 | BO96: 0 | BP96: =FM$4*$N$32+$M$32 -> 15.00003042 | BU96: 9 | BW96: 0 | BX96: 0 | BY96: 0 | BZ96: 0 | CA96: 0 | CB96: 0 | CC96: 0 | CD96: 0 | CE96: 0 | CF96: 0 | CG96: 0 | CH96: 0 | CI96: 0 | CJ96: 0 | CK96: 0 | CL96: 0 | CM96: 0 | CN96: 0 | CO96: 0 | CP96: 0 | CQ96: 0 | CR96: 0 | CS96: 0 | CT96: 0 | CU96: 0 | CV96: 0 | CW96: 0 | CX96: 0 | CY96: 0 | CZ96: 0 | DA96: 0 | DB96: 0 | DC96: 0 | DD96: 0 | DE96: 0 | DF96: 0 | DG96: 0 | DH96: 0 | DI96: 0 | DJ96: 0 | DK96: 0 | DL96: 0 | DM96: 0 | DN96: 0 | DO96: 0 | DP96: 0 | DQ96: 0 | DR96: 0 | DS96: 0 | DT96: 0 | DU96: 0 | DV96: 0 | DW96: 0 | DX96: 0 | DY96: 0 | DZ96: 0 | EA96: 0 | EB96: 0 | EC96: 0 | ED96: 0 | EE96: 0 | EF96: 0 | EG96: 0 | EH96: 0 | EI96: 0 | EJ96: 0 | EK96: 0 | EL96: 0 | EM96: 0 | EN96: 0 | EO96: 0 | EP96: 0 | EQ96: 0 | ER96: 0 | ES96: 0 | ET96: 0 | EU96: 0 | EV96: 0 | EW96: 0 | EX96: 0 | EY96: 0 | EZ96: 0 | FA96: 0 | FB96: 0 | FC96: 0 | FD96: 0 | FE96: 0 | FF96: 0 | FG96: 0 | FH96: 0 | FI96: 0 | FJ96: 0 | FK96: 0 | FL96: 0 | FM96: 0 | FN96: 0 | FO96: 0 | FP96: 0 | FQ96: 0 | FR96: 0 | FS96: 0 | FT96: 0 | FU96: 0 | FV96: 0 | FW96: 0 | FX96: 0 | FY96: 0 | FZ96: 0 | GA96: 0 | GB96: 0 | GC96: 0 | GD96: 0 | GE96: 0 | GF96: 0 | GG96: 0 | GH96: 0 | GI96: 0 | GJ96: 0 | GK96: 0 | GL96: 0 | GM96: 0 | GN96: 0 | GO96: 0 | GP96: 0 | GQ96: 0 | GR96: 0 | GT96: 91 | GU96: 0 | GV96: 15 | GW96: =INDEX($BW$6:$GR$261,$GT96,$BJ$14) -> 0 | GX96: 0
A97: 13 | N97: To zoom contour plot: | AE97: 18.8 | AF97: =IF('Macro input'!$F$19=1,GC!AG97,IF($K$29>0,IF($AE97<$I$29,$G$29,IF($AE97<$I$29+$J$29,$G$29+((H$29-G$29)*($AE97-I$29)/J$29),$H$29)),$G$29)) -> 288 | AG97: 288.05 | AH97: 0.285 | AI97: 0.95 | AJ97: 6.381510557 | AK97: 6 | AL97: 15 | AM97: 4.618489443 | AN97: 96 | AO97: 2.379389665e-148 | AP97: 6.279647385e-168 | AQ97: 9.343984215e-177 | AR97: 1.46095019e-197 | AS97: 3.058363573e-230 | AT97: 1.496355287e-276 | AU97: 8.893137066e-301 | AV97: 0 | AW97: 0 | AX97: 0 | AY97: 0 | AZ97: 0 | BA97: 0 | BB97: 0 | BC97: 0 | BD97: 0 | BE97: 0 | BF97: 0 | BG97: 0 | BH97: 0 | BK97: 19 | BL97: 5.7 | BM97: 15.01168199 | BN97: 3.492849098e-33 | BO97: 0 | BP97: =FN$4*$N$32+$M$32 -> 15.00006663 | BU97: 9.1 | BW97: 0 | BX97: 0 | BY97: 0 | BZ97: 0 | CA97: 0 | CB97: 0 | CC97: 0 | CD97: 0 | CE97: 0 | CF97: 0 | CG97: 0 | CH97: 0 | CI97: 0 | CJ97: 0 | CK97: 0 | CL97: 0 | CM97: 0 | CN97: 0 | CO97: 0 | CP97: 0 | CQ97: 0 | CR97: 0 | CS97: 0 | CT97: 0 | CU97: 0 | CV97: 0 | CW97: 0 | CX97: 0 | CY97: 0 | CZ97: 0 | DA97: 0 | DB97: 0 | DC97: 0 | DD97: 0 | DE97: 0 | DF97: 0 | DG97: 0 | DH97: 0 | DI97: 0 | DJ97: 0 | DK97: 0 | DL97: 0 | DM97: 0 | DN97: 0 | DO97: 0 | DP97: 0 | DQ97: 0 | DR97: 0 | DS97: 0 | DT97: 0 | DU97: 0 | DV97: 0 | DW97: 0 | DX97: 0 | DY97: 0 | DZ97: 0 | EA97: 0 | EB97: 0 | EC97: 0 | ED97: 0 | EE97: 0 | EF97: 0 | EG97: 0 | EH97: 0 | EI97: 0 | EJ97: 0 | EK97: 0 | EL97: 0 | EM97: 0 | EN97: 0 | EO97: 0 | EP97: 0 | EQ97: 0 | ER97: 0 | ES97: 0 | ET97: 0 | EU97: 0 | EV97: 0 | EW97: 0 | EX97: 0 | EY97: 0 | EZ97: 0 | FA97: 0 | FB97: 0 | FC97: 0 | FD97: 0 | FE97: 0 | FF97: 0 | FG97: 0 | FH97: 0 | FI97: 0 | FJ97: 0 | FK97: 0 | FL97: 0 | FM97: 0 | FN97: 0 | FO97: 0 | FP97: 0 | FQ97: 0 | FR97: 0 | FS97: 0 | FT97: 0 | FU97: 0 | FV97: 0 | FW97: 0 | FX97: 0 | FY97: 0 | FZ97: 0 | GA97: 0 | GB97: 0 | GC97: 0 | GD97: 0 | GE97: 0 | GF97: 0 | GG97: 0 | GH97: 0 | GI97: 0 | GJ97: 0 | GK97: 0 | GL97: 0 | GM97: 0 | GN97: 0 | GO97: 0 | GP97: 0 | GQ97: 0 | GR97: 0 | GT97: 92 | GU97: 0 | GV97: 15 | GW97: =INDEX($BW$6:$GR$261,$GT97,$BJ$14) -> 0 | GX97: 0
A98: 14 | N98: 1) Set the lower left limit: | AE98: 19 | AF98: =IF('Macro input'!$F$19=1,GC!AG98,IF($K$29>0,IF($AE98<$I$29,$G$29,IF($AE98<$I$29+$J$29,$G$29+((H$29-G$29)*($AE98-I$29)/J$29),$H$29)),$G$29)) -> 290 | AG98: 290.05 | AH98: 0.288 | AI98: 0.96 | AJ98: 6.403585565 | AK98: 6 | AL98: 15 | AM98: 4.596414435 | AN98: 97 | AO98: 3.825524963e-142 | AP98: 3.611264568e-162 | AQ98: 7.594685878e-171 | AR98: 5.065724571e-192 | AS98: 2.777125547e-226 | AT98: 8.886850529e-274 | AU98: 2.123597976e-298 | AV98: 0 | AW98: 0 | AX98: 0 | AY98: 0 | AZ98: 0 | BA98: 0 | BB98: 0 | BC98: 0 | BD98: 0 | BE98: 0 | BF98: 0 | BG98: 0 | BH98: 0 | BK98: 19.2 | BL98: 5.76 | BM98: 15.01198872 | BN98: =$BJ$31*NORMDIST(BL98,$BJ$29,$BJ$30,FALSE) -> 4.06907477e-34 | BO98: =$BJ$35*NORMDIST(AI98,$BJ$33,$BJ$34,FALSE) -> 0 | BP98: =FO$4*$N$32+$M$32 -> 15.00014168 | BU98: 9.2 | BW98: 0 | BX98: 0 | BY98: 0 | BZ98: 0 | CA98: 0 | CB98: 0 | CC98: 0 | CD98: 0 | CE98: 0 | CF98: 0 | CG98: 0 | CH98: 0 | CI98: 0 | CJ98: 0 | CK98: 0 | CL98: 0 | CM98: 0 | CN98: 0 | CO98: 0 | CP98: 0 | CQ98: 0 | CR98: 0 | CS98: 0 | CT98: 0 | CU98: 0 | CV98: 0 | CW98: 0 | CX98: 0 | CY98: 0 | CZ98: 0 | DA98: 0 | DB98: 0 | DC98: 0 | DD98: 0 | DE98: 0 | DF98: 0 | DG98: 0 | DH98: 0 | DI98: 0 | DJ98: 0 | DK98: 0 | DL98: 0 | DM98: 0 | DN98: 0 | DO98: 0 | DP98: 0 | DQ98: 0 | DR98: 0 | DS98: 0 | DT98: 0 | DU98: 0 | DV98: 0 | DW98: 0 | DX98: 0 | DY98: 0 | DZ98: 0 | EA98: 0 | EB98: 0 | EC98: 0 | ED98: 0 | EE98: 0 | EF98: 0 | EG98: 0 | EH98: 0 | EI98: 0 | EJ98: 0 | EK98: 0 | EL98: 0 | EM98: 0 | EN98: 0 | EO98: 0 | EP98: 0 | EQ98: 0 | ER98: 0 | ES98: 0 | ET98: 0 | EU98: 0 | EV98: 0 | EW98: 0 | EX98: 0 | EY98: 0 | EZ98: 0 | FA98: 0 | FB98: 0 | FC98: 0 | FD98: 0 | FE98: 0 | FF98: 0 | FG98: 0 | FH98: 0 | FI98: 0 | FJ98: 0 | FK98: 0 | FL98: 0 | FM98: 0 | FN98: 0 | FO98: 0 | FP98: 0 | FQ98: 0 | FR98: 0 | FS98: 0 | FT98: 0 | FU98: 0 | FV98: 0 | FW98: 0 | FX98: 0 | FY98: 0 | FZ98: 0 | GA98: 0 | GB98: 0 | GC98: 0 | GD98: 0 | GE98: 0 | GF98: 0 | GG98: 0 | GH98: 0 | GI98: 0 | GJ98: 0 | GK98: 0 | GL98: 0 | GM98: 0 | GN98: 0 | GO98: 0 | GP98: 0 | GQ98: 0 | GR98: 0 | GT98: 93 | GU98: 0 | GV98: 15 | GW98: =INDEX($BW$6:$GR$261,$GT98,$BJ$14) -> 0 | GX98: 0
A99: 15 | N99: Press left mouse button | AE99: 19.2 | AF99: =IF('Macro input'!$F$19=1,GC!AG99,IF($K$29>0,IF($AE99<$I$29,$G$29,IF($AE99<$I$29+$J$29,$G$29+((H$29-G$29)*($AE99-I$29)/J$29),$H$29)),$G$29)) -> 292 | AG99: 292.05 | AH99: 0.291 | AI99: 0.97 | AJ99: 6.421634372 | AK99: 6 | AL99: 15 | AM99: 4.578365628 | AN99: 98 | AO99: 4.538048774e-136 | AP99: 1.648975647e-156 | AQ99: 4.901380534e-165 | AR99: 1.465770879e-186 | AS99: 2.330411396e-222 | AT99: 5.110785605e-271 | AU99: 4.961957534e-296 | AV99: 0 | AW99: 0 | AX99: 0 | AY99: 0 | AZ99: 0 | BA99: 0 | BB99: 0 | BC99: 0 | BD99: 0 | BE99: 0 | BF99: 0 | BG99: 0 | BH99: 0 | BK99: 19.4 | BL99: =BL98+$BJ$6 -> 5.82 | BM99: 15.01230259 | BN99: 4.602977162e-35 | BO99: 0 | BP99: =FP$4*$N$32+$M$32 -> 15.00029249 | BU99: 9.3 | BW99: 0 | BX99: 0 | BY99: 0 | BZ99: 0 | CA99: 0 | CB99: 0 | CC99: 0 | CD99: 0 | CE99: 0 | CF99: 0 | CG99: 0 | CH99: 0 | CI99: 0 | CJ99: 0 | CK99: 0 | CL99: 0 | CM99: 0 | CN99: 0 | CO99: 0 | CP99: 0 | CQ99: 0 | CR99: 0 | CS99: 0 | CT99: 0 | CU99: 0 | CV99: 0 | CW99: 0 | CX99: 0 | CY99: 0 | CZ99: 0 | DA99: 0 | DB99: 0 | DC99: 0 | DD99: 0 | DE99: 0 | DF99: 0 | DG99: 0 | DH99: 0 | DI99: 0 | DJ99: 0 | DK99: 0 | DL99: 0 | DM99: 0 | DN99: 0 | DO99: 0 | DP99: 0 | DQ99: 0 | DR99: 0 | DS99: 0 | DT99: 0 | DU99: 0 | DV99: 0 | DW99: 0 | DX99: 0 | DY99: 0 | DZ99: 0 | EA99: 0 | EB99: 0 | EC99: 0 | ED99: 0 | EE99: 0 | EF99: 0 | EG99: 0 | EH99: 0 | EI99: 0 | EJ99: 0 | EK99: 0 | EL99: 0 | EM99: 0 | EN99: 0 | EO99: 0 | EP99: 0 | EQ99: 0 | ER99: 0 | ES99: 0 | ET99: 0 | EU99: 0 | EV99: 0 | EW99: 0 | EX99: 0 | EY99: 0 | EZ99: 0 | FA99: 0 | FB99: 0 | FC99: 0 | FD99: 0 | FE99: 0 | FF99: 0 | FG99: 0 | FH99: 0 | FI99: 0 | FJ99: 0 | FK99: 0 | FL99: 0 | FM99: 0 | FN99: 0 | FO99: 0 | FP99: 0 | FQ99: 0 | FR99: 0 | FS99: 0 | FT99: 0 | FU99: 0 | FV99: 0 | FW99: 0 | FX99: 0 | FY99: 0 | FZ99: 0 | GA99: 0 | GB99: 0 | GC99: 0 | GD99: 0 | GE99: 0 | GF99: 0 | GG99: 0 | GH99: 0 | GI99: 0 | GJ99: 0 | GK99: 0 | GL99: 0 | GM99: 0 | GN99: 0 | GO99: 0 | GP99: 0 | GQ99: 0 | GR99: 0 | GT99: 94 | GU99: 0 | GV99: 15 | GW99: =INDEX($BW$6:$GR$261,$GT99,$BJ$14) -> 0 | GX99: 0
A100: 16 | N100: 2) Set right limit and zoom: | AE100: 19.4 | AF100: =IF('Macro input'!$F$19=1,GC!AG100,IF($K$29>0,IF($AE100<$I$29,$G$29,IF($AE100<$I$29+$J$29,$G$29+((H$29-G$29)*($AE100-I$29)/J$29),$H$29)),$G$29)) -> 294 | AG100: 294.05 | AH100: 0.294 | AI100: 0.98 | AJ100: 6.435018484 | AK100: 6 | AL100: 15 | AM100: 4.564981516 | AN100: 99 | AO100: 3.971914835e-130 | AP100: 5.978607778e-151 | AQ100: 2.511643022e-159 | AR100: 3.539231395e-181 | AS100: 1.807175614e-218 | AT100: 2.846125747e-268 | AU100: 1.134480947e-293 | AV100: 0 | AW100: 0 | AX100: 0 | AY100: 0 | AZ100: 0 | BA100: 0 | BB100: 0 | BC100: 0 | BD100: 0 | BE100: 0 | BF100: 0 | BG100: 0 | BH100: 0 | BK100: 19.6 | BL100: 5.88 | BM100: 15.01262376 | BN100: 5.056025703e-36 | BO100: 0 | BP100: =FQ$4*$N$32+$M$32 -> 15.00058635 | BU100: 9.4 | BW100: 0 | BX100: 0 | BY100: 0 | BZ100: 0 | CA100: 0 | CB100: 0 | CC100: 0 | CD100: 0 | CE100: 0 | CF100: 0 | CG100: 0 | CH100: 0 | CI100: 0 | CJ100: 0 | CK100: 0 | CL100: 0 | CM100: 0 | CN100: 0 | CO100: 0 | CP100: 0 | CQ100: 0 | CR100: 0 | CS100: 0 | CT100: 0 | CU100: 0 | CV100: 0 | CW100: 0 | CX100: 0 | CY100: 0 | CZ100: 0 | DA100: 0 | DB100: 0 | DC100: 0 | DD100: 0 | DE100: 0 | DF100: 0 | DG100: 0 | DH100: 0 | DI100: 0 | DJ100: 0 | DK100: 0 | DL100: 0 | DM100: 0 | DN100: 0 | DO100: 0 | DP100: 0 | DQ100: 0 | DR100: 0 | DS100: 0 | DT100: 0 | DU100: 0 | DV100: 0 | DW100: 0 | DX100: 0 | DY100: 0 | DZ100: 0 | EA100: 0 | EB100: 0 | EC100: 0 | ED100: 0 | EE100: 0 | EF100: 0 | EG100: 0 | EH100: 0 | EI100: 0 | EJ100: 0 | EK100: 0 | EL100: 0 | EM100: 0 | EN100: 0 | EO100: 0 | EP100: 0 | EQ100: 0 | ER100: 0 | ES100: 0 | ET100: 0 | EU100: 0 | EV100: 0 | EW100: 0 | EX100: 0 | EY100: 0 | EZ100: 0 | FA100: 0 | FB100: 0 | FC100: 0 | FD100: 0 | FE100: 0 | FF100: 0 | FG100: 0 | FH100: 0 | FI100: 0 | FJ100: 0 | FK100: 0 | FL100: 0 | FM100: 0 | FN100: 0 | FO100: 0 | FP100: 0 | FQ100: 0 | FR100: 0 | FS100: 0 | FT100: 0 | FU100: 0 | FV100: 0 | FW100: 0 | FX100: 0 | FY100: 0 | FZ100: 0 | GA100: 0 | GB100: 0 | GC100: 0 | GD100: 0 | GE100: 0 | GF100: 0 | GG100: 0 | GH100: 0 | GI100: 0 | GJ100: 0 | GK100: 0 | GL100: 0 | GM100: 0 | GN100: 0 | GO100: 0 | GP100: 0 | GQ100: 0 | GR100: 0 | GT100: 95 | GU100: 0 | GV100: 15 | GW100: =INDEX($BW$6:$GR$261,$GT100,$BJ$14) -> 0 | GX100: 0
A101: 17 | N101: Pressright mouse button | AE101: 19.6 | AF101: =IF('Macro input'!$F$19=1,GC!AG101,IF($K$29>0,IF($AE101<$I$29,$G$29,IF($AE101<$I$29+$J$29,$G$29+((H$29-G$29)*($AE101-I$29)/J$29),$H$29)),$G$29)) -> 296 | AG101: 296.05 | AH101: 0.297 | AI101: 0.99 | AJ101: 6.443252029 | AK101: 6 | AL101: 15 | AM101: 4.556747971 | AN101: 100 | AO101: 2.564976237e-124 | AP101: 1.721142267e-145 | AQ101: 1.021946808e-153 | AR101: 7.131324168e-176 | AS101: 1.295086572e-214 | AT101: 1.534783563e-265 | AU101: 2.538077e-291 | AV101: 0 | AW101: 0 | AX101: 0 | AY101: 0 | AZ101: 0 | BA101: 0 | BB101: 0 | BC101: 0 | BD101: 0 | BE101: 0 | BF101: 0 | BG101: 0 | BH101: 0 | BK101: 19.8 | BL101: 5.94 | BM101: 15.01295236 | BN101: 5.392709538e-37 | BO101: 0 | BP101: =FR$4*$N$32+$M$32 -> 15.00114142 | BU101: 9.5 | BW101: 0 | BX101: 0 | BY101: 0 | BZ101: 0 | CA101: 0 | CB101: 0 | CC101: 0 | CD101: 0 | CE101: 0 | CF101: 0 | CG101: 0 | CH101: 0 | CI101: 0 | CJ101: 0 | CK101: 0 | CL101: 0 | CM101: 0 | CN101: 0 | CO101: 0 | CP101: 0 | CQ101: 0 | CR101: 0 | CS101: 0 | CT101: 0 | CU101: 0 | CV101: 0 | CW101: 0 | CX101: 0 | CY101: 0 | CZ101: 0 | DA101: 0 | DB101: 0 | DC101: 0 | DD101: 0 | DE101: 0 | DF101: 0 | DG101: 0 | DH101: 0 | DI101: 0 | DJ101: 0 | DK101: 0 | DL101: 0 | DM101: 0 | DN101: 0 | DO101: 0 | DP101: 0 | DQ101: 0 | DR101: 0 | DS101: 0 | DT101: 0 | DU101: 0 | DV101: 0 | DW101: 0 | DX101: 0 | DY101: 0 | DZ101: 0 | EA101: 0 | EB101: 0 | EC101: 0 | ED101: 0 | EE101: 0 | EF101: 0 | EG101: 0 | EH101: 0 | EI101: 0 | EJ101: 0 | EK101: 0 | EL101: 0 | EM101: 0 | EN101: 0 | EO101: 0 | EP101: 0 | EQ101: 0 | ER101: 0 | ES101: 0 | ET101: 0 | EU101: 0 | EV101: 0 | EW101: 0 | EX101: 0 | EY101: 0 | EZ101: 0 | FA101: 0 | FB101: 0 | FC101: 0 | FD101: 0 | FE101: 0 | FF101: 0 | FG101: 0 | FH101: 0 | FI101: 0 | FJ101: 0 | FK101: 0 | FL101: 0 | FM101: 0 | FN101: 0 | FO101: 0 | FP101: 0 | FQ101: 0 | FR101: 0 | FS101: 0 | FT101: 0 | FU101: 0 | FV101: 0 | FW101: 0 | FX101: 0 | FY101: 0 | FZ101: 0 | GA101: 0 | GB101: 0 | GC101: 0 | GD101: 0 | GE101: 0 | GF101: 0 | GG101: 0 | GH101: 0 | GI101: 0 | GJ101: 0 | GK101: 0 | GL101: 0 | GM101: 0 | GN101: 0 | GO101: 0 | GP101: 0 | GQ101: 0 | GR101: 0 | GT101: 96 | GU101: 0 | GV101: 15 | GW101: =INDEX($BW$6:$GR$261,$GT101,$BJ$14) -> 0 | GX101: 0
A102: 18 | N102: 3) The high limit will be | AE102: 19.8 | AF102: =IF('Macro input'!$F$19=1,GC!AG102,IF($K$29>0,IF($AE102<$I$29,$G$29,IF($AE102<$I$29+$J$29,$G$29+((H$29-G$29)*($AE102-I$29)/J$29),$H$29)),$G$29)) -> 298 | AG102: 298.05 | AH102: 0.3 | AI102: 1 | AJ102: 6.446031029 | AK102: 6 | AL102: 15 | AM102: 4.553968971 | AN102: 101 | AO102: 1.222135653e-118 | AP102: 3.93427183e-140 | AQ102: 3.30163877e-148 | AR102: 1.199084397e-170 | AS102: 8.576852152e-211 | AT102: 8.014322755e-263 | AU102: 5.556173565e-289 | AV102: 2.355045272e-307 | AW102: 0 | AX102: 0 | AY102: 0 | AZ102: 0 | BA102: 0 | BB102: 0 | BC102: 0 | BD102: 0 | BE102: 0 | BF102: 0 | BG102: 0 | BH102: 0 | BK102: 20 | BL102: 6 | BM102: 15.01328853 | BN102: 5.585114588e-38 | BO102: 0 | BP102: =FS$4*$N$32+$M$32 -> 15.0021579 | BU102: 9.6 | BW102: 0 | BX102: 0 | BY102: 0 | BZ102: 0 | CA102: 0 | CB102: 0 | CC102: 0 | CD102: 0 | CE102: 0 | CF102: 0 | CG102: 0 | CH102: 0 | CI102: 0 | CJ102: 0 | CK102: 0 | CL102: 0 | CM102: 0 | CN102: 0 | CO102: 0 | CP102: 0 | CQ102: 0 | CR102: 0 | CS102: 0 | CT102: 0 | CU102: 0 | CV102: 0 | CW102: 0 | CX102: 0 | CY102: 0 | CZ102: 0 | DA102: 0 | DB102: 0 | DC102: 0 | DD102: 0 | DE102: 0 | DF102: 0 | DG102: 0 | DH102: 0 | DI102: 0 | DJ102: 0 | DK102: 0 | DL102: 0 | DM102: 0 | DN102: 0 | DO102: 0 | DP102: 0 | DQ102: 0 | DR102: 0 | DS102: 0 | DT102: 0 | DU102: 0 | DV102: 0 | DW102: 0 | DX102: 0 | DY102: 0 | DZ102: 0 | EA102: 0 | EB102: 0 | EC102: 0 | ED102: 0 | EE102: 0 | EF102: 0 | EG102: 0 | EH102: 0 | EI102: 0 | EJ102: 0 | EK102: 0 | EL102: 0 | EM102: 0 | EN102: 0 | EO102: 0 | EP102: 0 | EQ102: 0 | ER102: 0 | ES102: 0 | ET102: 0 | EU102: 0 | EV102: 0 | EW102: 0 | EX102: 0 | EY102: 0 | EZ102: 0 | FA102: 0 | FB102: 0 | FC102: 0 | FD102: 0 | FE102: 0 | FF102: 0 | FG102: 0 | FH102: 0 | FI102: 0 | FJ102: 0 | FK102: 0 | FL102: 0 | FM102: 0 | FN102: 0 | FO102: 0 | FP102: 0 | FQ102: 0 | FR102: 0 | FS102: 0 | FT102: 0 | FU102: 0 | FV102: 0 | FW102: 0 | FX102: 0 | FY102: 0 | FZ102: 0 | GA102: 0 | GB102: 0 | GC102: 0 | GD102: 0 | GE102: 0 | GF102: 0 | GG102: 0 | GH102: 0 | GI102: 0 | GJ102: 0 | GK102: 0 | GL102: 0 | GM102: 0 | GN102: 0 | GO102: 0 | GP102: 0 | GQ102: 0 | GR102: 0 | GT102: 97 | GU102: 0 | GV102: 15 | GW102: =INDEX($BW$6:$GR$261,$GT102,$BJ$14) -> 0 | GX102: 0
A103: 19 | N103: calculated to fix aspect ratio | AE103: 20 | AF103: =IF('Macro input'!$F$19=1,GC!AG103,IF($K$29>0,IF($AE103<$I$29,$G$29,IF($AE103<$I$29+$J$29,$G$29+((H$29-G$29)*($AE103-I$29)/J$29),$H$29)),$G$29)) -> 300 | AG103: 300.05 | AH103: 0.303 | AI103: 1.01 | AJ103: 6.443252029 | AK103: 6 | AL103: 15 | AM103: 4.556747971 | AN103: 102 | AO103: 4.296433866e-113 | AP103: 7.14073379e-135 | AQ103: 8.469576711e-143 | AR103: 1.682471348e-165 | AS103: 5.249134821e-207 | AT103: 4.052407885e-260 | AU103: 1.190173394e-286 | AV103: 1.68228028e-305 | AW103: 0 | AX103: 0 | AY103: 0 | AZ103: 0 | BA103: 0 | BB103: 0 | BC103: 0 | BD103: 0 | BE103: 0 | BF103: 0 | BG103: 0 | BH103: 0 | BK103: =BK102+$BJ$38 -> 20.2 | BL103: 6.06 | BM103: 15.01363243 | BN103: 5.616741667e-39 | BO103: 0 | BP103: =FT$4*$N$32+$M$32 -> 15 | BU103: 9.7 | BW103: 0 | BX103: 0 | BY103: 0 | BZ103: 0 | CA103: 0 | CB103: 0 | CC103: 0 | CD103: 0 | CE103: 0 | CF103: 0 | CG103: 0 | CH103: 0 | CI103: 0 | CJ103: 0 | CK103: 0 | CL103: 0 | CM103: 0 | CN103: 0 | CO103: 0 | CP103: 0 | CQ103: 0 | CR103: 0 | CS103: 0 | CT103: 0 | CU103: 0 | CV103: 0 | CW103: 0 | CX103: 0 | CY103: 0 | CZ103: 0 | DA103: 0 | DB103: 0 | DC103: 0 | DD103: 0 | DE103: 0 | DF103: 0 | DG103: 0 | DH103: 0 | DI103: 0 | DJ103: 0 | DK103: 0 | DL103: 0 | DM103: 0 | DN103: 0 | DO103: 0 | DP103: 0 | DQ103: 0 | DR103: 0 | DS103: 0 | DT103: 0 | DU103: 0 | DV103: 0 | DW103: 0 | DX103: 0 | DY103: 0 | DZ103: 0 | EA103: 0 | EB103: 0 | EC103: 0 | ED103: 0 | EE103: 0 | EF103: 0 | EG103: 0 | EH103: 0 | EI103: 0 | EJ103: 0 | EK103: 0 | EL103: 0 | EM103: 0 | EN103: 0 | EO103: 0 | EP103: 0 | EQ103: 0 | ER103: 0 | ES103: 0 | ET103: 0 | EU103: 0 | EV103: 0 | EW103: 0 | EX103: 0 | EY103: 0 | EZ103: 0 | FA103: 0 | FB103: 0 | FC103: 0 | FD103: 0 | FE103: 0 | FF103: 0 | FG103: 0 | FH103: 0 | FI103: 0 | FJ103: 0 | FK103: 0 | FL103: 0 | FM103: 0 | FN103: 0 | FO103: 0 | FP103: 0 | FQ103: 0 | FR103: 0 | FS103: 0 | FT103: 0 | FU103: 0 | FV103: 0 | FW103: 0 | FX103: 0 | FY103: 0 | FZ103: 0 | GA103: 0 | GB103: 0 | GC103: 0 | GD103: 0 | GE103: 0 | GF103: 0 | GG103: 0 | GH103: 0 | GI103: 0 | GJ103: 0 | GK103: 0 | GL103: 0 | GM103: 0 | GN103: 0 | GO103: 0 | GP103: 0 | GQ103: 0 | GR103: 0 | GT103: 98 | GU103: 0 | GV103: 15 | GW103: =INDEX($BW$6:$GR$261,$GT103,$BJ$14) -> 0 | GX103: 0
